Workbook

Sheet FS 599_Outline 2015
A2: FS 599 | C2: Modeling Forest Growth with 3-PG
A3: 2013 Winter Term | D3: 2:00-3:50 PM, Richardson Hall, Rm 215
A4: R.H. Waring, instructor
A6: Date | D6: Subject
A7: 2015-01-05 | C7: Ex 1 | D7: Fitting model to Douglas-fir, site III Yield Table
A9: 2015-01-12 | C9: Ex 2 | D9: Deriving solar radiation, vapor pressure deficits, and frost days per month from mean monthly temperature extremes
A11: 2015-01-19 | C11: No class | D11: Martin Luther King, Jr. Day
A13: 2015-01-26 | C13: Ex 3 | D13: a) Thinning/Defoliation in a coast-range Douglas-fir forest, b) thinning ponderosa pine against bark beetles
A15: 2015-02-02 | C15: Ex 4 | D15: Penman-Monteith Eq. & Importance of soil water holding capacity during drought in the Southwest, USA
A17: 2015-02-09 | C17: Ex 5 | D17: Effect of fertilization on growth of Eucalyptus in a wet climate
A19: 2015-02-16 | C19: Ex 6 | D19: Comparing species' growth responses in different environments (ponderosa pine and Douglas-fir)
A21: 2015-02-23 | C21: Ex 7 | D21: Importance of access to groundwater by eucalypus in Western Australia
A23: 2015-03-02 | C23: Ex 8 | D23: Sensitivity analysis to assess interactions between soil water storage capacity and soil fertility.
A25: 2015-03-09 | D25: Presentation of special projects by students enrolled for credit
C27: No final | D27: Class grade based on special project, discussion in class, and completion of exercises
C29: 74. Landsberg, J.J. and R.H. Waring. 1997. A generalized model of forest productivity using simplified
C30: concepts of radiation-use efficiency, carbon balance and partitioning. Forest Ecology and Management 95: 209-228.pdf.
A32: website: | B32: http://people.forestry.oregonstate.edu/richard-waring/

Sheet 3PGpjs2.7_Parameters
B2: Standard 3PG parameters (3PGpjs vsn 2.7, 3-PG vsn 1, September 2010)
B3: Do NOT change the format of this block. You can edit values in the | W3: Published
B4: value columns, or add columns of values to the right for additional species. | W4: with B. Law
B6: Meaning/comments | C6: Name | D6: Units | E6: E. globulus | F6: E. cladocalyx | G6: E. maculata | H6: P. radiata | I6: Trial | J6: Doug fir | K6: Pinyon pine | L6: Juniper | M6: pond pine | W6: Ponderosa pine
B7: Biomass partitioning and turnover | E7: (S&L 2002) | F7: (S&L 2002) | G7: (S&L 2002) | H7: (BFG)
B8: Allometric relationships & partitioning
B9: Foliage:stem partitioning ratio @ D=2 cm | C9: pFS2 | D9: - | E9: 1 | F9: 0.8 | G9: 0.8 | H9: 0.8 | I9: 1 | J9: 1.3 | K9: 0.95 | L9: 0.53 | M9: 1.328 | W9: 1.2745
B10: Foliage:stem partitioning ratio @ D=20 cm | C10: pFS20 | D10: - | E10: 0.15 | F10: 0.08 | G10: 0.15 | H10: 0.4 | I10: 0.15 | J10: 0.7 | K10: 0.375 | L10: 0.45 | M10: 0.75 | W10: 0.5132
B11: Constant in the stem mass v. diam. relationship | C11: aS | D11: - | E11: 0.095 | F11: 0.095 | G11: 0.095 | H11: 0.0243 | I11: 0.095 | J11: 0.0843 | K11: 0.0469 | L11: 0.0411 | M11: 0.0046 | W11: 0.0046
B12: Power in the stem mass v. diam. relationship | C12: nS | D12: - | E12: 2.4 | F12: 2.4 | G12: 2.4 | H12: 2.72 | I12: 2.4 | J12: 2.4359 | K12: 2.955 | L12: 2.4192 | M12: 2.97 | W12: 2.97
B13: Maximum fraction of NPP to roots | C13: pRx | D13: - | E13: 0.8 | F13: 0.7 | G13: 0.7 | H13: 0.6 | I13: 0.8 | J13: 0.8 | K13: 0.8 | L13: 0.8 | M13: 0.8 | W13: 0.8
B14: Minimum fraction of NPP to roots | C14: pRn | D14: - | E14: 0.25 | F14: 0.25 | G14: 0.25 | H14: 0.25 | I14: 0.25 | J14: 0.25 | K14: 0.2 | L14: 0.2 | M14: 0.25 | W14: 0.25
B15: Litterfall & root turnover
B16: Maximum litterfall rate | C16: gammaFx | D16: 1/month | E16: 0.027 | F16: 0.027 | G16: 0.027 | H16: 0.03 | I16: 0.03 | J16: 0.02 | K16: 0.078 | L16: 0.008 | M16: 0.021 | W16: 0.021
B17: Litterfall rate at t = 0 | C17: gammaF0 | D17: 1/month | E17: 0.001 | F17: 0.001 | G17: 0.001 | H17: 0.001 | I17: 0.001 | J17: 0.001 | K17: 0.001 | L17: 0.001 | M17: 0.001 | W17: 0.001
B18: Age at which litterfall rate has median value | C18: tgammaF | D18: months | E18: 12 | F18: 12 | G18: 12 | H18: 36 | I18: 12 | J18: 36 | K18: 36 | L18: 36 | M18: 36 | W18: 36
B19: Average monthly root turnover rate | C19: gammaR | D19: 1/month | E19: 0.015 | F19: 0.015 | G19: 0.015 | H19: 0.015 | I19: 0.015 | J19: 0.2 | K19: 0.2 | L19: 0.2 | M19: 0.015 | W19: 0.04
B20: NPP & conductance modifiers
B21: Temperature modifier (fT)
B22: Minimum temperature for growth | C22: Tmin | D22: deg. C | E22: 8.5 | F22: 9 | G22: 9 | H22: 0 | I22: -999 | J22: -7 | K22: 0 | L22: 0 | M22: -7 | W22: -2
B23: Optimum temperature for growth | C23: Topt | D23: deg. C | E23: 16 | F23: 25 | G23: 25 | H23: 20 | I23: 25 | J23: 18 | K23: 24 | L23: 24 | M23: 18 | W23: 20
B24: Maximum temperature for growth | C24: Tmax | D24: deg. C | E24: 40 | F24: 30 | G24: 30 | H24: 32 | I24: 999 | J24: 40 | K24: 40 | L24: 40 | M24: 40 | W24: 40
B25: Frost modifier (fFRost)
B26: Days production lost per frost day | C26: kF | D26: days | E26: 0 | F26: 1 | G26: 2 | H26: 1 | I26: 1 | J26: 1 | K26: 1 | L26: 1 | M26: 1 | W26: 1
B27: Soil water modifier (fSW)
B28: Moisture ratio deficit for fq = 0.5 | C28: SWconst | D28: - | E28: 0.7 | F28: 0.7 | G28: 0.7 | H28: 0.7 | I28: 0.7 | J28: 0.7 | K28: 0.7 | L28: 0.7 | M28: 0.7 | W28: 0.7
B29: Power of moisture ratio deficit | C29: SWpower | D29: - | E29: 9 | F29: 9 | G29: 9 | H29: 9 | I29: 9 | J29: 9 | K29: 9 | L29: 9 | M29: 9 | W29: 9
B30: Atmospheric CO2 modifier (fCO2)
B31: Assimialtion enhancement factor at 700 ppm | C31: fCalpha700 | D31: - | E31: 1.4 | F31: 1.4 | G31: 1.4 | H31: 1.4 | I31: 1.4 | J31: 1.4 | K31: 1.4 | L31: 1.4 | M31: 1.4 | W31: 1.4
B32: Canopy conductance enhancement factor at 700 ppm | C32: fCg700 | D32: - | E32: 0.7 | F32: 0.7 | G32: 0.7 | H32: 0.7 | I32: 0.7 | J32: 0.7 | K32: 0.7 | L32: 0.7 | M32: 0.7 | W32: 0.7
B33: Fertitlity effects
B34: Value of 'm' when FR = 0 | C34: m0 | D34: - | E34: 0 | F34: 0 | G34: 0 | H34: 0 | I34: 0 | J34: 0 | K34: 0 | L34: 0 | M34: 0 | W34: 0
B35: Value of 'fNutr' when FR = 0 | C35: fN0 | D35: - | E35: 1 | F35: 1 | G35: 1 | H35: 0.6 | I35: 1 | J35: 0.37 | K35: 1 | L35: 1 | M35: 0.3 | W35: 1
B36: Power of (1-FR) in 'fNutr' | C36: fNn | D36: - | E36: 0 | F36: 0 | G36: 0 | H36: 1 | I36: 0 | J36: 1 | K36: 0 | L36: 0 | M36: 1 | W36: 0
B37: Age modifier (fAge)
B38: Maximum stand age used in age modifier | C38: MaxAge | D38: years | E38: 50 | F38: 50 | G38: 50 | H38: 50 | I38: 50 | J38: 300 | K38: 200 | L38: 200 | M38: 300 | W38: 200
B39: Power of relative age in function for fAge | C39: nAge | D39: - | E39: 4 | F39: 4 | G39: 4 | H39: 4 | I39: 4 | J39: 4 | K39: 4 | L39: 4 | M39: 4 | W39: 4
B40: Relative age to give fAge = 0.5 | C40: rAge | D40: - | E40: 0.95 | F40: 0.95 | G40: 0.95 | H40: 0.5 | I40: 0.95 | J40: 0.95 | K40: 0.95 | L40: 0.95 | M40: 0.95 | W40: 0.95
B41: Stem mortality & self-thinning
B42: Mortality rate for large t | C42: gammaNx | D42: %/year | E42: 0 | F42: 0 | G42: 0 | H42: 0 | I42: 0 | J42: 0 | K42: 0 | L42: 0 | M42: 0 | W42: 0
B43: Seedling mortality rate (t = 0) | C43: gammaN0 | D43: %/year | E43: 0 | F43: 0 | G43: 0 | H43: 0 | I43: 0 | J43: 0 | K43: 0 | L43: 0 | M43: 0 | W43: 0
B44: Age at which mortality rate has median value | C44: tgammaN | D44: years | E44: 0 | F44: 2 | G44: 2 | H44: 0 | I44: 0 | J44: 0 | K44: 0 | L44: 0 | M44: 0 | W44: 0
B45: Shape of mortality response | C45: ngammaN | D45: - | E45: 1 | F45: 1 | G45: 1 | H45: 1 | I45: 1 | J45: 1 | K45: 1 | L45: 1 | M45: 1 | W45: 1
B46: Max. stem mass per tree @ 1000 trees/hectare | C46: wSx1000 | D46: kg/tree | E46: 300 | F46: 300 | G46: 300 | H46: 160 | I46: 300 | J46: 300 | K46: 50 | L46: 50 | M46: 300 | W46: 300
B47: Power in self-thinning rule | C47: thinPower | D47: - | E47: 1.5 | F47: 1.5 | G47: 1.5 | H47: 1.5 | I47: 1.5 | J47: 1.5 | K47: 1.5 | L47: 1.5 | M47: 1.5 | W47: 1.5
B48: Fraction mean single-tree foliage biomass lost per dead tree | C48: mF | D48: - | E48: 0 | F48: 0 | G48: 0 | H48: 0 | I48: 0 | J48: 0 | K48: 0 | L48: 0 | M48: 0 | W48: 0
B49: Fraction mean single-tree root biomass lost per dead tree | C49: mR | D49: - | E49: 0.2 | F49: 0.2 | G49: 0.2 | H49: 0.2 | I49: 0.2 | J49: 0.2 | K49: 0.2 | L49: 0.2 | M49: 0.2 | W49: 0.2
B50: Fraction mean single-tree stem biomass lost per dead tree | C50: mS | D50: - | E50: 0.2 | F50: 0.2 | G50: 0.2 | H50: 0.2 | I50: 0.2 | J50: 0.2 | K50: 0.2 | L50: 0.2 | M50: 0.2 | W50: 0.2
B51: Canopy structure and processes
B52: Specific leaf area
B53: Specific leaf area at age 0 | C53: SLA0 | D53: m2/kg | E53: 11 | H53: 5 | I53: 6 | J53: 5.5 | K53: 4 | L53: 2 | M53: 3.1 | W53: 4.2
B54: Specific leaf area for mature leaves | C54: SLA1 | D54: m2/kg | E54: 4 | F54: 9 | G54: 6 | H54: 5 | I54: 6 | J54: 5.5 | K54: 3.88 | L54: 1.86 | M54: 3.1 | W54: 4.2
B55: Age at which specific leaf area = (SLA0+SLA1)/2 | C55: tSLA | D55: years | E55: 2.5 | F55: 4 | G55: 4 | H55: 2 | I55: 2.5 | J55: 3 | K55: 10 | L55: 10 | M55: 2.5 | W55: 2.5
B56: Light interception | F56: 2.5 | G56: 2.5
B57: Extinction coefficient for absorption of PAR by canopy | C57: k | D57: - | E57: 0.5 | H57: 0.5 | I57: 0.5 | J57: 0.5 | K57: 0.5 | L57: 0.5 | M57: 0.5 | W57: 0.5
B58: Age at canopy cover | C58: fullCanAge | D58: years | E58: 3 | F58: 0.5 | G58: 0.5 | H58: 3 | I58: 0 | J58: 15 | K58: 15 | L58: 15 | M58: 15 | W58: 15
B59: Maximum proportion of rainfall evaporated from canopy | C59: MaxIntcptn | D59: - | E59: 0.15 | F59: 0 | G59: 0 | H59: 0.15 | I59: 0.15 | J59: 0.15 | K59: 0.15 | L59: 0.15 | M59: 0.1 | W59: 0.1
B60: LAI for maximum rainfall interception | C60: LAImaxIntcptn | D60: - | E60: 0 | F60: 0.15 | G60: 0.15 | H60: 5 | I60: 0 | J60: 5 | K60: 5 | L60: 5 | M60: 5 | W60: 5
B61: Production and respiration | F61: 0 | G61: 0
B62: Canopy quantum efficiency | C62: alpha | D62: molC/molPAR | E62: 0.06 | H62: 0.05 | I62: 0.055 | J62: 0.055 | K62: 0.035 | L62: 0.03 | M62: 0.055 | W62: 0.045
B63: Ratio NPP/GPP | C63: Y | D63: - | E63: 0.47 | F63: 0.06 | G63: 0.06 | H63: 0.47 | I63: 0.47 | J63: 0.47 | K63: 0.47 | L63: 0.47 | M63: 0.47 | W63: 0.47
B64: Conductance | F64: 0.47 | G64: 0.47
B65: Minimum canopy conductance | C65: MinCond | D65: m/s | E65: 0 | H65: 0 | I65: 0 | J65: 0.01 | K65: 0 | L65: 0 | M65: 0 | W65: 0
B66: Maximum canopy conductance | C66: MaxCond | D66: m/s | E66: 0.02 | F66: 0.02 | G66: 0.02 | H66: 0.02 | I66: 0.02 | J66: 0.012 | K66: 0.02 | L66: 0.02 | M66: 0.012 | W66: 0.02
B67: LAI for maximum canopy conductance | C67: LAIgcx | D67: - | E67: 3.33 | F67: 3.33 | G67: 3.33 | H67: 3.33 | I67: 3.33 | J67: 5 | K67: 3.33 | L67: 3.33 | M67: 5 | W67: 3.33
B68: Defines stomatal response to VPD | C68: CoeffCond | D68: 1/mBar | E68: 0.05 | F68: 0.05 | G68: 0.05 | H68: 0.05 | I68: 0.05 | J68: 0.05 | K68: 0.05 | L68: 0.05 | M68: 0.05 | W68: 0.05
B69: Canopy boundary layer conductance | C69: BLcond | D69: m/s | E69: 0.2 | F69: 0.2 | G69: 0.2 | H69: 0.2 | I69: 0.2 | J69: 0.2 | K69: 0.2 | L69: 0.2 | M69: 0.14 | W69: 0.14
B70: Wood and stand properties
B71: Branch and bark fraction (fracBB)
B72: Branch and bark fraction at age 0 | C72: fracBB0 | D72: - | E72: 0.75 | F72: 0.75 | G72: 0.75 | H72: 0.5 | I72: 0.15 | J72: 0.15 | K72: 0.15 | L72: 0.15 | M72: 0.15 | W72: 0.15
B73: Branch and bark fraction for mature stands | C73: fracBB1 | D73: - | E73: 0.15 | F73: 0.15 | G73: 0.15 | H73: 0.1 | I73: 0.15 | J73: 0.05 | K73: 0.05 | L73: 0.05 | M73: 0.15 | W73: 0.15
B74: Age at which fracBB = (fracBB0+fracBB1)/2 | C74: tBB | D74: years | E74: 2 | F74: 2 | G74: 2 | H74: 5 | I74: 1.5 | J74: 30 | K74: 30 | L74: 30 | M74: 1.5 | W74: 1.5
B75: Basic Density
B76: Minimum basic density - for young trees | C76: rhoMin | D76: t/m3 | E76: 0.45 | F76: 0.6 | G76: 0.45 | H76: 0.48 | I76: 0.5 | J76: 0.4 | K76: 0.4 | L76: 0.4 | M76: 0.4 | W76: 0.4
B77: Maximum basic density - for older trees | C77: rhoMax | D77: t/m3 | E77: 0.45 | F77: 0.6 | G77: 0.45 | H77: 0.48 | I77: 0.5 | J77: 0.45 | K77: 0.4 | L77: 0.4 | M77: 0.4 | W77: 0.4
B78: Age at which rho = (rhoMin+rhoMax)/2 | C78: tRho | D78: years | E78: 4 | F78: 4 | G78: 4 | H78: 4 | I78: 4 | J78: 20 | K78: 50 | L78: 50 | M78: 4 | W78: 4
B79: Stem height
B80: Constant in the stem height relationship | C80: aH | D80: - | E80: 0 | F80: 0 | G80: 0 | H80: 0 | I80: 0 | J80: 0 | K80: 0 | L80: 0 | M80: 0 | W80: 0
B81: Power of DBH in the stem height relationship | C81: nHB | D81: - | E81: 0 | F81: 0 | G81: 0 | H81: 0 | I81: 0 | J81: 0 | K81: 0 | L81: 0 | M81: 0 | W81: 0
B82: Power of stocking in the stem height relationship | C82: nHN | D82: - | E82: 0 | F82: 0 | G82: 0 | H82: 0 | I82: 0 | J82: 0 | K82: 0 | L82: 0 | M82: 0 | W82: 0
B83: Stem volume
B84: Constant in the stem volume relationship | C84: aV | D84: - | E84: 0 | F84: 0 | G84: 0 | H84: 0 | I84: 0 | J84: 0 | K84: 0 | L84: 0 | M84: 0 | W84: 0
B85: Power of DBH in the stem volume relationship | C85: nVB | D85: - | E85: 0 | F85: 0 | G85: 0 | H85: 0 | I85: 0 | J85: 0 | K85: 0 | L85: 0 | M85: 0 | W85: 0
B86: Power of stocking in the stem volume relationship | C86: nVN | D86: - | E86: 0 | F86: 0 | G86: 0 | H86: 0 | I86: 0 | J86: 0 | K86: 0 | L86: 0 | M86: 0 | W86: 0
B87: Conversion factors
B88: Intercept of net v. solar radiation relationship | C88: Qa | D88: W/m2 | E88: -90 | F88: -90 | G88: -90 | H88: -90 | I88: -90 | J88: -90 | K88: -90 | L88: -90 | M88: -90 | W88: -90
B89: Slope of net v. solar radiation relationship | C89: Qb | D89: - | E89: 0.8 | F89: 0.8 | G89: 0.8 | H89: 0.8 | I89: 0.8 | J89: 0.8 | K89: 0.8 | L89: 0.8 | M89: 0.8 | W89: 0.8
B90: Molecular weight of dry matter | C90: gDM_mol | D90: gDM/mol | E90: 24 | F90: 24 | G90: 24 | H90: 24 | I90: 24 | J90: 24 | K90: 24 | L90: 24 | M90: 24 | W90: 24
B91: Conversion of solar radiation to PAR | C91: molPAR_MJ | D91: mol/MJ | E91: 2.3 | F91: 2.3 | G91: 2.3 | H91: 2.3 | I91: 2.3 | J91: 2.3 | K91: 2.3 | L91: 2.3 | M91: 2.3 | W91: 2.3
B96: Standard 3PGpjs options
B98: Interpolate lookups? (Yes/No) | C98: no
B99: Output frequency (None, Rotation, Annual or Monthly) | C99: Annual
B100: Clear output region? (Yes/No) | C100: yes
B101: Output data (3-PG names from 3PGpjs_Outputs) | C101: stemNo, WF, WR, WS, standVol, LAI, MAI, avDBH, BasArea, GPP,Transp

Sheet Douglas fir Yield Table Ex 1
A1: Exercise l. Determine Fertility rating and self-thinning | N1: Optional parameter block | X1: Observed data
A2: biomass:(WS x1000)= (Mg/ha) that come close to matching | O2: Parameters
A3: Forestry Yield Table values for site III Douglas-fir growing | O3: WSx1000 | P3: ? | Q3: Weight of stems (Mg/ha starts self-thinning | Y3: McArdle 1961 Volume Tables Site III Douglas-fir
A4: in the Oregon Coast Range. | O4: thinpower | P4: 1.55 | Q4: self-tinning negative slope
O5: MaxAge | P5: 150 | Q5: age when height growth almost stops | W5: Age | X5: standVol | Y5: BA | Z5: LAI | AA5: Trees/ha | AB5: Mg/ha | AC5: Ht,m
O6: alpha | P6: 0.06 | Q6: quantum efficiency mol C/mol APAR
A7: Run type: | B7: SingleSite | O7: fN0 | P7: 0.37 | Q7: links soil fertily to photosynthetic capacity | W7: 20 | X7: 164.5 | Y7: 21.12200068 | Z7: 8 | AA7: 3606.2 | AB7: 65.8 | AC7: 11.2804878
O8: fNn | P8: 1 | Q8: " | W8: 30 | X8: 231 | Y8: 32.14217494 | AA8: 2136.55 | AB8: 92.4 | AC8: 19.51219512
B9: Site : | C9: western Oregon | O9: SLA1 | P9: 4.5 | Q9: M2 of leaf area/kg mass | W9: 40 | X9: 367.5 | Y9: 40.6368926 | AA9: 1444.95 | AB9: 147 | AC9: 25.6097561
B10: Species = | C10: Doug fir | W10: 50 | X10: 493.5 | Y10: 46.83574063 | AA10: 1062.1 | AB10: 197.4 | AC10: 29.87804878
B11: Title: | C11: Douglas-fir Model fit to yield table | W11: 60 | X11: 609 | Y11: 51.88665383 | AA11: 832.39 | AB11: 243.6 | AC11: 30.48780488
A12: Stand initialisation and site factor data | O12: Climate data | P12: Tmax | Q12: Tmin | R12: Rain | S12: Solar rad | T12: Frost days | W12: 70 | X12: 710.5 | Y12: 56.01921918 | Z12: 6.5 | AA12: 676.78 | AB12: 284.2 | AC12: 36.2804878
B13: Month planted= | C13: May | E13: Latitude = | F13: 44 | O13: January | P13: 6.6 | Q13: 0.43 | R13: 364.5270833 | S13: 4.2 | T13: 12.88192536 | W13: 80 | X13: 794.5 | Y13: 59.46302364 | AA13: 573.04 | AB13: 317.8 | AC13: 38.7195122
B14: Year planted = | C14: 1939 | E14: Fertility rating = | F14: ? | O14: Feb | P14: 9.2 | Q14: 0.8 | R14: 264.4425532 | S14: 4.8 | T14: 11.46160723 | W14: 90 | X14: 867.3 | Y14: 62.44765417 | AA14: 506.35 | AB14: 346.92 | AC14: 40.85365854
B15: Initial year = | C15: 1 | E15: Soil class = | F15: cl | O15: March | P15: 11.1 | Q15: 1.4 | R15: 255.8148936 | S15: 7.3 | T15: 9.752933196 | W15: 100 | X15: 928.9 | Y15: 64.97311077 | AA15: 454.48 | AB15: 371.56 | AC15: 42.68292683
B16: Initial month = | C16: January | E16: Maximum ASW = | F16: 300 | O16: April | P16: 14.5 | Q16: 2.9 | R16: 170.4765957 | S16: 13.3 | T16: 6.52198066 | W16: 110 | X16: 980 | Y16: 67.03939345 | Z16: 4 | AA16: 410.02 | AB16: 392 | AC16: 44.20731707
B17: End age = | C17: 160 | E17: Minimum ASW = | F17: 0 | O17: may | P17: 18.8 | Q17: 6.611111111 | R17: 122.8361702 | S17: 16.7 | T17: 1.046945779 | W17: 120 | X17: 1022 | Y17: 69.10567612 | AA17: 383 | AB17: 408.8 | AC17: 45.4
B18: Initial WF = | C18: 2 | E18: Atmospheric CO2 = | F18: 360 | O18: June | P18: 22.88888889 | Q18: 9.166666667 | R18: 66.11276596 | S18: 16.8 | T18: 0 | W18: 130 | X18: 1057.7 | Y18: 70.94237184 | AA18: 358 | AB18: 423.08 | AC18: 46.3
B19: Initial WR = | C19: 2 | O19: July | P19: 27.22222222 | Q19: 10.77777778 | R19: 16.6893617 | S19: 21.2 | T19: 0 | W19: 140 | X19: 1092.7 | Y19: 72.77906755 | AA19: 346 | AB19: 437.08 | AC19: 46.95
B20: Initial WS = | C20: 2 | O20: Aug | P20: 27.44444444 | Q20: 10.61111111 | R20: 32.86382979 | S20: 15.4 | T20: 0 | W20: 150 | X20: 1125.6 | Y20: 74.38617629 | AA20: 321 | AB20: 450.24 | AC20: 47.56
B21: Initial stocking = | C21: 3498 | O21: Sep | P21: 22.6 | Q21: 7.7 | R21: 75.08723404 | S21: 15.8 | T21: -0.1455319149 | W21: 160 | X21: 1154.3 | Y21: 75.99328504 | AA21: 272 | AB21: 461.72 | AC21: 48.2
B22: Initial ASW = | C22: 300 | O22: Oct | P22: 16.7 | Q22: 4.1 | R22: 167.606383 | S22: 10.1 | T22: 2.250322186
O23: Nov | P23: 9.8 | Q23: 1.9 | R23: 372.6851064 | S23: 3.9 | T23: 8.028513028
C24: Output frequency : | D24: a | O24: Dec | P24: 8.111111111 | Q24: 0.65 | R24: 386.6851064 | S24: 3.4 | T24: 12.31542755
R25: =SUM(R13:R24) -> 2295.827083
B26: Output details | P26: Output details
C27: Output frequency : | P27: Output frequency : a
C28: Output data : | P28: Output data : | Q28: height
C29: Output sheet :
C30: Output ages :
C32: ,
A38: #Output from 3PGpjs 2.7 / 3-PG vsn 1 Sep2009
A39: Stand development for western Oregon
A40: Douglas-fir Model fit to yield table
A41: Year & month | B41: Stand age | C41: Stems | D41: Foliage DM | E41: Root DM | F41: Stem DM | G41: Stand volume | H41: LAI | I41: MAI | J41: Mean DBH | K41: Basal area | L41: GPP | M41: Penman transp.
A42: 1940 - Jan | B42: 0.6666666667 | C42: 3498 | D42: 2 | E42: 2 | F42: 2 | G42: 4.245521642 | H42: 1.093269942 | I42: 6.368282464 | J42: 2.194340825 | K42: 1.322872087
A43: 1941 - Jan | B43: 1.666666667 | C43: 3498 | D43: 2.403425758 | E43: 0.4078124167 | F43: 2.3829474 | G43: 5.050832695 | H43: 1.201659394 | I43: 3.030499617 | J43: 2.357972432 | K43: 1.527520802 | L43: 3.606471614 | M43: 509.1682214
A44: 1942 - Jan | B44: 2.666666667 | C44: 3498 | D44: 3.099072027 | E44: 0.5221577548 | F44: 3.124495117 | G44: 6.613251738 | H44: 1.463667962 | I44: 2.479969402 | J44: 2.635381017 | K44: 1.908079709 | L44: 6.88478182 | M44: 513.4918829
A45: 1943 - Jan | B45: 3.666666667 | C45: 3498 | D45: 3.934177304 | E45: 0.7497925553 | F45: 4.231490707 | G45: 8.944425421 | H45: 1.796560666 | I45: 2.439388751 | J45: 2.984799967 | K45: 2.447598334 | L45: 10.09892211 | M45: 519.2092811
A46: 1944 - Jan | B46: 4.666666667 | C46: 3498 | D46: 4.805799526 | E46: 0.9810777422 | F46: 5.709041418 | G46: 12.05261673 | H46: 2.144836277 | I46: 2.582703586 | J46: 3.375299008 | K46: 3.129926867 | L46: 13.24851163 | M46: 524.5321372
A47: 1945 - Jan | B47: 5.666666667 | C47: 3498 | D47: 5.693827331 | E47: 1.203718258 | F47: 7.547406504 | G47: 15.91506488 | H47: 2.50324985 | I47: 2.808540861 | J47: 3.785141956 | K47: 3.936171658 | L47: 16.25655369 | M47: 527.3266044
A48: 1946 - Jan | B48: 6.666666667 | C48: 3498 | D48: 6.617121403 | E48: 1.419800156 | F48: 9.741136523 | G48: 20.51844843 | H48: 2.887621162 | I48: 3.077767265 | J48: 4.203134814 | K48: 4.853514447 | L48: 19.17196482 | M48: 529.4933934
A49: 1947 - Jan | B49: 7.666666667 | C49: 3498 | D49: 7.583257709 | E49: 1.630585077 | F49: 12.28680102 | G49: 25.85401466 | H49: 3.305935891 | I49: 3.372262782 | J49: 4.623451587 | K49: 5.872760843 | L49: 22.0228651 | M49: 531.6996455
A50: 1948 - Jan | B50: 8.666666667 | C50: 3498 | D50: 8.584742684 | E50: 1.835534216 | F50: 15.18000531 | G50: 31.91125498 | H50: 3.753184196 | I50: 3.682067882 | J50: 5.042735372 | K50: 6.986216548 | L50: 24.80906857 | M50: 533.934868
A51: 1949 - Jan | B51: 9.666666667 | C51: 3498 | D51: 9.60862643 | E51: 2.033957198 | F51: 18.41588276 | G51: 38.67892077 | H51: 4.219371293 | I51: 4.001267666 | J51: 5.459058699 | K51: 8.187385035 | L51: 27.52905939 | M51: 536.1732865
A52: 1950 - Jan | B52: 10.66666667 | C52: 3498 | D52: 10.64240337 | E52: 2.225473491 | F52: 21.98975329 | G52: 46.14638347 | H52: 4.695333934 | I52: 4.32622345 | J52: 5.871373065 | K52: 9.470851758 | L52: 30.1843261 | M52: 538.4025396
A53: 1951 - Jan | B53: 11.66666667 | C53: 3498 | D53: 11.69843405 | E53: 2.424422336 | F53: 25.92249971 | G53: 54.3568203 | H53: 5.178323705 | I53: 4.659156026 | J53: 6.281660023 | K53: 10.84073035 | L53: 32.95125102 | M53: 539.9845382
A54: 1952 - Jan | B54: 12.66666667 | C54: 3498 | D54: 12.79858971 | E54: 2.642776654 | F54: 30.25066 | G54: 63.38623662 | H54: 5.67508364 | I54: 5.004176575 | J54: 6.69273243 | K54: 12.30599153 | L54: 35.95103363 | M54: 541.0373
A55: 1953 - Jan | B55: 13.66666667 | C55: 3498 | D55: 13.93148516 | E55: 2.863217592 | F55: 34.97946523 | G55: 73.24502577 | H55: 6.188815356 | I55: 5.35939213 | J55: 7.103931124 | K55: 13.86459445 | L55: 38.96292663 | M55: 541.0321967 | Q55: ASWC | R55: LAI @50
A56: 1954 - Jan | B56: 14.66666667 | C56: 3498 | D56: 15.08790038 | E56: 3.084299659 | F56: 40.11334831 | G56: 83.94204154 | H56: 6.714883891 | I56: 5.723321014 | J56: 7.514759334 | K56: 15.51457344 | L56: 41.98280977 | M56: 541.0257769 | Q56: 1000 | R56: 8.03
A57: 1955 - Jan | B57: 15.66666667 | C57: 3498 | D57: 16.22781676 | E57: 3.267811576 | F57: 45.61728992 | G57: 95.40375151 | H57: 7.244187937 | I57: 6.08960116 | J57: 7.922077273 | K57: 17.24200771 | L57: 44.68595461 | M57: 541.0178315 | Q57: 500 | R57: 8.03
A58: 1956 - Jan | B58: 16.66666667 | C58: 3498 | D58: 17.13024005 | E58: 3.300719925 | F58: 51.20755848 | G58: 107.037043 | H58: 7.699526443 | I58: 6.422222579 | J58: 8.30709845 | K58: 18.95869332 | L58: 45.0839028 | M58: 541.0081363 | Q58: 400 | R58: 8
A59: 1957 - Jan | B59: 17.66666667 | C59: 3498 | D59: 17.82687118 | E59: 3.313662843 | F59: 56.85178088 | G59: 118.7752372 | H59: 8.053397933 | I59: 6.723126633 | J59: 8.671442316 | K59: 20.65819466 | L59: 45.25734177 | M59: 540.9964514 | Q59: 300 | R59: 7.93
A60: 1958 - Jan | B60: 18.66666667 | C60: 3498 | D60: 18.3585551 | E60: 3.321533073 | F60: 62.53946001 | G60: 130.5974155 | H60: 8.324739718 | I60: 6.996290115 | J60: 9.01760563 | K60: 22.34046267 | L60: 45.36983733 | M60: 540.982522 | Q60: 200 | R60: 6.75
A61: 1959 - Jan | B61: 19.66666667 | C61: 3498 | D61: 18.75926003 | E61: 3.326754075 | F61: 68.26339119 | G61: 142.4895089 | H61: 8.530316549 | I61: 7.245229265 | J61: 9.347706541 | K61: 24.00600135 | L61: 45.44454934 | M61: 540.9660777 | Q61: 100 | R61: 6.37
A62: 1960 - Jan | B62: 20.66666667 | C62: 3498 | D62: 19.05663931 | E62: 3.330299056 | F62: 74.01836822 | G62: 154.4415802 | H62: 8.683882324 | I62: 7.472979687 | J62: 9.663528479 | K62: 25.6555393 | L62: 45.49474463 | M62: 540.9468332
A63: 1961 - Jan | B63: 21.66666667 | C63: 3498 | D63: 19.27292094 | E63: 3.332721895 | F63: 79.80046332 | G63: 166.4463135 | H63: 8.796544352 | I63: 7.682137544 | J63: 9.966574809 | K63: 27.28987512 | L63: 45.52838413 | M63: 540.9244879
A64: 1962 - Jan | B64: 22.66666667 | C64: 3498 | D64: 19.42582647 | E64: 3.334367325 | F64: 85.60660574 | G64: 178.498131 | H64: 8.877185058 | I64: 7.874917546 | J64: 10.25811907 | K64: 28.90980475 | L64: 45.55044887 | M64: 540.8987259
A65: 1963 - Jan | B65: 23.66666667 | C65: 3498 | D65: 19.52940525 | E65: 3.335459542 | F65: 91.43432317 | G65: 190.592653 | H65: 8.932861206 | I65: 8.05321069 | J65: 10.53924712 | K65: 30.51608824 | L65: 45.56417268 | M65: 540.8692167
A66: 1964 - Jan | B66: 24.66666667 | C66: 3498 | D66: 19.59474903 | E66: 3.33614945 | F66: 97.28157593 | G66: 202.7263516 | H66: 8.96915283 | I66: 8.218635877 | J66: 10.81089118 | K66: 32.10943607 | L66: 45.57172355 | M66: 540.8356146
A67: 1965 - Jan | B67: 25.66666667 | C67: 3375.889501 | D67: 19.62913394 | E67: 3.320669641 | F67: 102.4274765 | G67: 213.3979991 | H67: 8.990240584 | I67: 8.314207756 | J67: 11.20434676 | K67: 33.28520121 | L67: 45.57458037 | M67: 540.7975591
A68: 1966 - Jan | B68: 26.66666667 | C68: 3131.338669 | D68: 19.62803707 | E68: 3.314375003 | F68: 106.7526029 | G68: 222.3604523 | H68: 8.995889736 | I68: 8.338516962 | J68: 11.75350607 | K68: 33.9746346 | L68: 45.57307037 | M68: 540.7546751
A69: 1967 - Jan | B69: 27.66666667 | C69: 2912.059556 | D69: 19.59695292 | E69: 3.314485537 | F69: 111.1014832 | G69: 231.3739695 | H69: 8.986585516 | I69: 8.362914561 | J69: 12.30921386 | K69: 34.65379231 | L69: 45.56705212 | M69: 540.7065727
A70: 1968 - Jan | B70: 28.66666667 | C70: 2714.735001 | D70: 19.54302845 | E70: 3.314779761 | F70: 115.4728547 | G70: 240.4362313 | H70: 8.965612651 | I70: 8.387310395 | J70: 12.87124708 | K70: 35.32308105 | L70: 45.55731916 | M70: 540.6528478
A71: 1969 - Jan | B71: 29.66666667 | C71: 2536.567746 | D71: 19.47187257 | E71: 3.314883232 | F71: 119.8655657 | G71: 249.5451265 | H71: 8.935799186 | I71: 8.411633477 | J71: 13.43939808 | K71: 35.98288522 | L71: 45.54453261 | M71: 540.5930817
A72: 1970 - Jan | B72: 30.66666667 | C72: 2375.187053 | D72: 19.38787494 | E72: 3.314806224 | F72: 124.2785553 | G72: 258.6987105 | H72: 8.899360845 | I72: 8.435827515 | J72: 14.01347215 | K72: 36.63356705 | L72: 45.52917853 | M72: 540.5268419
A73: 1971 - Jan | B73: 31.66666667 | C73: 2228.573961 | D73: 19.29446084 | E73: 3.314577095 | F73: 128.7108378 | G73: 267.8951745 | H73: 8.858028607 | I73: 8.459847616 | J73: 14.59328558 | K73: 37.27546723 | L73: 45.51161802 | M73: 540.4536817
A74: 1972 - Jan | B74: 32.66666667 | C74: 2095.001158 | D74: 19.19429403 | E74: 3.31421952 | F74: 133.1614908 | G74: 277.1328214 | H74: 8.813150422 | I74: 8.483657797 | J74: 15.17866412 | K74: 37.90890592 | L74: 45.49212072 | M74: 540.3731408
A75: 1973 - Jan | B75: 33.66666667 | C75: 1972.98436 | D75: 19.08943795 | E75: 3.31375239 | F75: 137.6296458 | G75: 286.4100462 | H75: 8.765772087 | I75: 8.507229096 | J75: 15.7694418 | K75: 38.53418384 | L75: 45.47088777 | M75: 540.2847454
A76: 1974 - Jan | B76: 34.66666667 | C76: 1861.242782 | D76: 18.98148337 | E76: 3.313190819 | F76: 142.1144802 | G76: 295.7253213 | H76: 8.716701389 | I76: 8.530538115 | J76: 16.36545978 | K76: 39.15158337 | L76: 45.44806802 | M76: 540.1880085
A77: 1975 - Jan | B77: 35.66666667 | C77: 1758.666844 | D77: 18.87164953 | E77: 3.312546959 | F77: 146.6152107 | G77: 305.077183 | H77: 8.66655889 | I77: 8.553565878 | J77: 16.96656557 | K77: 39.76136976 | L77: 45.42376969 | M77: 540.0824299
A78: 1976 - Jan | B78: 36.66666667 | C78: 1664.291639 | D78: 18.76086395 | E78: 3.311830595 | F78: 151.1310879 | G78: 314.4642213 | H78: 8.615818089 | I78: 8.576296946 | J78: 17.57261218 | K78: 40.36379218 | L78: 45.39806893 | M78: 539.9674969
A79: 1977 - Jan | B79: 37.66666667 | C79: 1577.275043 | D79: 18.64982553 | E79: 3.311049613 | F79: 155.6613915 | G79: 323.8850711 | H79: 8.564837138 | I79: 8.598718702 | J79: 18.18345749 | K79: 40.95908478 | L79: 45.37101631 | M79: 539.8426846
A80: 1978 - Jan | B80: 38.66666667 | C80: 1496.879568 | D80: 18.53905426 | E80: 3.310210345 | F80: 160.2054265 | G80: 333.3384042 | H80: 8.513883863 | I80: 8.6208208 | J80: 18.79896366 | K80: 41.54746768 | L80: 45.34264171 | M80: 539.7074557
A81: 1979 - Jan | B81: 39.66666667 | C81: 1422.45724 | D81: 18.42893041 | E81: 3.309317843 | F81: 164.7625196 | G81: 342.8229232 | H81: 8.463155495 | I81: 8.642594704 | J81: 19.41899665 | K81: 42.12914788 | L81: 45.31295824 | M81: 539.5612616
A82: 1980 - Jan | B82: 40.66666667 | C82: 1353.436957 | D82: 18.3197254 | E82: 3.308376101 | F82: 169.3320158 | G82: 352.3373557 | H82: 8.412794209 | I82: 8.664033337 | J82: 20.04342567 | K82: 42.70432015 | L82: 45.28196522 | M82: 539.4035421
A83: 1981 - Jan | B83: 41.66666667 | C83: 1289.313861 | D83: 18.21162609 | E83: 3.307388225 | F83: 173.9132765 | G83: 361.8804494 | H83: 8.362899355 | I83: 8.685130785 | J83: 20.67212287 | K83: 43.27316779 | L83: 45.24965059 | M83: 539.2337264
A84: 1982 - Jan | B84: 42.66666667 | C84: 1229.640385 | D84: 18.10475386 | E84: 3.306356568 | F84: 178.5056763 | G84: 371.4509681 | H84: 8.313537075 | I84: 8.705882065 | J84: 21.30496291 | K84: 43.83586335 | L84: 45.21599292 | M84: 539.0512332
A85: 1983 - Jan | B85: 43.66666667 | C85: 1174.018662 | D85: 17.99917962 | E85: 3.305282848 | F85: 183.1086014 | G85: 381.047688 | H85: 8.264747865 | I85: 8.726282932 | J85: 21.94182264 | K85: 44.39256939 | L85: 45.18096294 | M85: 538.8554712
A86: 1984 - Jan | B86: 44.66666667 | C86: 1122.094088 | D86: 17.89493554 | E86: 3.304168236 | F86: 187.7214478 | G86: 390.6693944 | H86: 8.21655251 | I86: 8.746329726 | J86: 22.58258081 | K86: 44.94343904 | L86: 45.14452484 | M86: 538.6458394
A87: 1985 - Jan | B87: 45.66666667 | C87: 1073.54982 | D87: 17.79202433 | E87: 3.303013445 | F87: 192.3436193 | G87: 400.314879 | H87: 8.168956735 | I87: 8.766019249 | J87: 23.22711779 | K87: 45.48861663 | L87: 45.10663739 | M87: 538.4217281
A88: 1986 - Jan | B88: 46.66666667 | C88: 1028.102079 | D88: 17.69042645 | E88: 3.301818724 | F88: 196.9745264 | G88: 409.9829375 | H88: 8.121954852 | I88: 8.785348661 | J88: 23.87531535 | K88: 46.0282382 | L88: 45.06725476 | M88: 538.1825189
A89: 1987 - Jan | B89: 47.66666667 | C89: 985.4955768 | D89: 17.59010571 | E89: 3.300583646 | F89: 201.613563 | G89: 419.6723216 | H89: 8.075532617 | I89: 8.80431444 | J89: 24.52706077 | K89: 46.56242334 | L89: 45.02632729 | M89: 537.9275853
A90: 1988 - Jan | B90: 48.66666667 | C90: 945.502226 | D90: 17.49101374 | E90: 3.299308536 | F90: 206.2601933 | G90: 429.3819211 | H90: 8.02966945 | I90: 8.822916187 | J90: 25.1822291 | K90: 47.09131069 | L90: 44.9838021 | M90: 537.6562937
A91: 1989 - Jan | B91: 49.66666667 | C91: 907.9147907 | D91: 17.3930934 | E91: 3.297992307 | F91: 210.9138178 | G91: 439.1104851 | H91: 7.984340183 | I91: 8.841150707 | J91: 25.84070943 | K91: 47.61500538 | L91: 44.93962363 | M91: 537.3680033
A92: 1990 - Jan | B92: 50.66666667 | C92: 872.5465692 | D92: 17.29628141 | E92: 3.296633987 | F92: 215.5738617 | G92: 448.8568064 | H92: 7.939516399 | I92: 8.859015915 | J92: 26.50238703 | K92: 48.13361506 | L92: 44.89373402 | M92: 537.062067
A93: 1991 - Jan | B93: 51.66666667 | C93: 839.2285518 | D93: 17.2005105 | E93: 3.295232352 | F93: 220.2397515 | G93: 458.6196734 | H93: 7.895167497 | I93: 8.876509808 | J93: 27.16714761 | K93: 48.64724129 | L93: 44.84607355 | M93: 536.7378318
A94: 1992 - Jan | B94: 52.66666667 | C94: 807.8074542 | D94: 17.10571096 | E94: 3.293785895 | F94: 224.9109145 | G94: 468.3978693 | H94: 7.85126149 | I94: 8.89363043 | J94: 27.83487723 | K94: 49.1559799 | L94: 44.79658091 | M94: 536.3946397
A95: 1993 - Jan | B95: 53.66666667 | C95: 778.1440004 | D95: 17.01181184 | E95: 3.292292936 | F95: 229.5867778 | G95: 478.1901711 | H95: 7.807765641 | I95: 8.91037586 | J95: 28.50546212 | K95: 49.65992129 | L95: 44.7451935 | M95: 536.0318278
A96: 1994 - Jan | B96: 54.66666667 | C96: 750.1114195 | D96: 16.91874196 | E96: 3.290751555 | F96: 234.2667681 | G96: 487.995349 | H96: 7.764646938 | I96: 8.926744189 | J96: 29.17878865 | K96: 50.15915078 | L96: 44.69184766 | M96: 535.6487289
A97: 1995 - Jan | B97: 55.66666667 | C97: 723.5941265 | D97: 16.82643057 | E97: 3.289159613 | F97: 238.9503113 | G97: 497.8121654 | H97: 7.721872463 | I97: 8.942733511 | J97: 29.85474316 | K97: 50.65374887 | L97: 44.63647884 | M97: 535.2446723
A98: 1996 - Jan | B98: 56.66666667 | C98: 698.4865627 | D98: 16.73480794 | E98: 3.287514758 | F98: 243.6368316 | G98: 507.6393751 | H98: 7.679409671 | I98: 8.958341914 | J98: 30.53321191 | K98: 51.14379147 | L98: 44.57902183 | M98: 534.8189839
A99: 1997 - Jan | B99: 57.66666667 | C99: 674.6921731 | D99: 16.64380571 | E99: 3.285814425 | F99: 248.3257517 | G99: 517.4757243 | H99: 7.637226601 | I99: 8.973567473 | J99: 31.214081 | K99: 51.62935025 | L99: 44.51941087 | M99: 534.3709868
A100: 1998 - Jan | B100: 58.66666667 | C100: 652.122503 | D100: 16.55335725 | E100: 3.28405583 | F100: 253.016492 | G100: 527.3199505 | H100: 7.59529203 | I100: 8.988408247 | J100: 31.89723631 | K100: 52.11049276 | L100: 44.45757976 | M100: 533.9000017
A101: 1999 - Jan | B101: 59.66666667 | C101: 630.6963984 | D101: 16.46339781 | E101: 3.28223597 | F101: 257.7084709 | G101: 537.1707826 | H101: 7.553575586 | I101: 9.002862278 | J101: 32.58256342 | K101: 52.58728274 | L101: 44.39346203 | M101: 533.4053472
A102: 2000 - Jan | B102: 60.66666667 | C102: 610.3392965 | D102: 16.37386473 | E102: 3.28035162 | F102: 262.4011042 | G102: 547.0269404 | H102: 7.512047832 | I102: 9.016927589 | J102: 33.26994758 | K102: 53.0597803 | L102: 44.32699097 | M102: 532.8863401
A103: 2001 - Jan | B103: 61.66666667 | C103: 590.9825953 | D103: 16.28469746 | E103: 3.278399357 | F103: 267.093805 | G103: 556.8871351 | H103: 7.470680308 | I103: 9.03060219 | J103: 33.95927368 | K103: 53.52804209 | L103: 44.2580997 | M103: 532.3422952
A104: 2002 - Jan | B104: 62.66666667 | C104: 572.5630931 | D104: 16.19583776 | E104: 3.276375413 | F104: 271.7859838 | G104: 566.7500684 | H104: 7.429445602 | I104: 9.04388407 | J104: 34.65042617 | K104: 53.99212154 | L104: 44.18672127 | M104: 531.7725261
A105: 2003 - Jan | B105: 63.66666667 | C105: 555.0224865 | D105: 16.10722958 | E105: 3.27427588 | F105: 276.4770482 | G105: 576.6144336 | H105: 7.388317337 | I105: 9.056771208 | J105: 35.34328907 | K105: 54.45206896 | L105: 44.11278861 | M105: 531.1763444
A106: 2004 - Jan | B106: 64.66666667 | C106: 538.3069235 | D106: 16.01881913 | E106: 3.272096562 | F106: 281.1664029 | G106: 586.4789153 | H106: 7.347270184 | I106: 9.069261576 | J106: 36.03774594 | K106: 54.90793178 | L106: 44.0362346 | M106: 530.5530599
A107: 2005 - Jan | B107: 65.66666667 | C107: 522.3666024 | D107: 15.93055485 | E107: 3.269832995 | F107: 285.8534498 | G107: 596.3421895 | H107: 7.306279865 | I107: 9.081353139 | J107: 36.73367984 | K107: 55.35975466 | L107: 43.95699201 | M107: 529.9019805
A108: 2006 - Jan | B108: 66.66666667 | C108: 507.155413 | D108: 15.84238737 | E108: 3.267480439 | F108: 290.5375878 | G108: 606.202924 | H108: 7.265323135 | I108: 9.09304386 | J108: 37.43097335 | K108: 55.80757965 | L108: 43.87499348 | M108: 529.2224114
A109: 2007 - Jan | B109: 67.66666667 | C109: 492.6306137 | D109: 15.75426944 | E109: 3.265033864 | F109: 295.218213 | G109: 616.0597787 | H109: 7.224377767 | I109: 9.104331705 | J109: 38.12950854 | K109: 56.25144633 | L109: 43.79017144 | M109: 528.5136545
A110: 2008 - Jan | B110: 68.66666667 | C110: 478.7525407 | D110: 15.66615589 | E110: 3.262488012 | F110: 299.8947188 | G110: 625.9114058 | H110: 7.183422519 | I110: 9.115214648 | J110: 38.82916698 | K110: 56.69139194 | L110: 43.70245802 | M110: 527.7750079
A111: 2009 - Jan | B111: 69.66666667 | C111: 465.4843482 | D111: 15.57800354 | E111: 3.259837091 | F111: 304.5664952 | G111: 635.7564493 | H111: 7.142437107 | I111: 9.12569066 | J111: 39.52982966 | K111: 57.12745144 | L111: 43.61178492 | M111: 527.0057647
A112: 2010 - Jan | B112: 70.66666667 | C112: 452.7917707 | D112: 15.48977105 | E112: 3.257075192 | F112: 309.2329296 | G112: 645.593546 | H112: 7.101402167 | I112: 9.135757726 | J112: 40.23137706 | K112: 57.55965771 | L112: 43.51808325 | M112: 526.2052119
A113: 2011 - Jan | B113: 71.66666667 | C113: 440.6429105 | D113: 15.40141887 | E113: 3.254195997 | F113: 313.8934066 | G113: 655.4213253 | H113: 7.060299201 | I113: 9.145413842 | J113: 40.93368909 | K113: 57.98804159 | L113: 43.42128331 | M113: 525.3726289
A114: 2012 - Jan | B114: 72.66666667 | C114: 429.008045 | D114: 15.31290907 | E114: 3.251192828 | F114: 318.5473076 | G114: 665.2384097 | H114: 7.019110522 | I114: 9.154657014 | J114: 41.63664511 | K114: 58.41263199 | L114: 43.3213144 | M114: 524.5072856
A115: 2013 - Jan | B115: 73.66666667 | C115: 417.8594516 | D115: 15.22420519 | E115: 3.248058626 | F115: 323.1940112 | G115: 675.043414 | H115: 6.977819199 | I115: 9.163485258 | J115: 42.34012389 | K115: 58.83345599 | L115: 43.21810449 | M115: 523.6084413
A116: 2014 - Jan | B116: 74.66666667 | C116: 407.1712498 | D116: 15.13527208 | E116: 3.244785942 | F116: 327.8328926 | G116: 684.8349459 | H116: 6.936408984 | I116: 9.171896597 | J116: 43.04400359 | K116: 59.25053886 | L116: 43.11157994 | M116: 522.6753417
A117: 2015 - Jan | B117: 75.66666667 | C117: 396.9192567 | D117: 15.04607571 | E117: 3.241366915 | F117: 332.4633239 | G117: 694.6116053 | H117: 6.89486424 | I117: 9.179889057 | J117: 43.74816172 | K117: 59.66390419 | L117: 43.00166512 | M117: 521.7072168
A118: 2016 - Jan | B118: 76.66666667 | C118: 387.0808568 | D118: 14.95658298 | E118: 3.237793255 | F118: 337.0846733 | G118: 704.3719841 | H118: 6.853169847 | I118: 9.187460662 | J118: 44.45247509 | K118: 60.07357389 | L118: 42.888282 | M118: 520.7032786
A119: 2017 - Jan | B119: 77.66666667 | C119: 377.6348807 | D119: 14.8667613 | E119: 3.234056712 | F119: 341.6963062 | G119: 714.1146673 | H119: 6.811311072 | I119: 9.19460945 | J119: 45.1568199 | K119: 60.47956832 | L119: 42.77134965 | M119: 519.6627176
A120: 2018 - Jan | B120: 78.66666667 | C120: 368.5615011 | D120: 14.77657881 | E120: 3.230147531 | F120: 346.2975823 | G120: 723.8382282 | H120: 6.769273561 | I120: 9.201333409 | J120: 45.86107134 | K120: 60.88190616 | L120: 42.65078383 | M120: 518.5847004
A121: 2019 - Jan | B121: 79.66666667 | C121: 359.8421313 | D121: 14.68600377 | E121: 3.226055655 | F121: 350.8878563 | G121: 733.5412294 | H121: 6.727043187 | I121: 9.207630494 | J121: 46.5651037 | K121: 61.28060449 | L121: 42.52649636 | M121: 517.4683656
A122: 2020 - Jan | B122: 80.66666667 | C122: 351.4593334 | D122: 14.59500423 | E122: 3.221771272 | F122: 355.4664781 | G122: 743.2222231 | H122: 6.684605898 | I122: 9.213498633 | J122: 47.26879031 | K122: 61.67567889 | L122: 42.3983946 | M122: 516.3128209
A123: 2021 - Jan | B123: 81.66666667 | C123: 343.3967371 | D123: 14.5035478 | E123: 3.217283673 | F123: 360.0327911 | G123: 752.8797485 | H123: 6.641947575 | I123: 9.218935696 | J123: 47.97200342 | K123: 62.06714339 | L123: 42.26638071 | M123: 515.1171392
A124: 2022 - Jan | B124: 82.66666667 | C124: 335.6389638 | D124: 14.41160129 | E124: 3.212581566 | F124: 364.5861319 | G124: 762.5123303 | H124: 6.599053906 | I124: 9.22393948 | J124: 48.67461398 | K124: 62.4550104 | L124: 42.13035101 | M124: 513.8803548
A125: 2023 - Jan | B125: 83.66666667 | C125: 328.1715573 | D125: 14.31913039 | E125: 3.207653078 | F125: 369.1258289 | G125: 772.1184764 | H125: 6.555910243 | I125: 9.228507686 | J125: 49.37649153 | K125: 62.83929076 | L125: 41.9901953 | M125: 512.6014597
A126: 2024 - Jan | B126: 84.66666667 | C126: 320.9809203 | D126: 14.2260993 | E126: 3.202485731 | F126: 373.6512013 | G126: 781.6966756 | H126: 6.512501435 | I126: 9.232637901 | J126: 50.077504 | K126: 63.21999366 | L126: 41.84579609 | M126: 511.2793994
A127: 2025 - Jan | B127: 85.66666667 | C127: 314.0542561 | D127: 14.1324703 | E127: 3.197066417 | F127: 378.1615579 | G127: 791.2453953 | H127: 6.468811665 | I127: 9.236327571 | J127: 50.7775175 | K127: 63.59712656 | L127: 41.69702788 | M127: 509.9130697
A128: 2026 - Jan | B128: 86.66666667 | C128: 307.3795127 | D128: 14.03820314 | E128: 3.191382318 | F128: 382.6561971 | G128: 800.7630818 | H128: 6.424824218 | I128: 9.23957402 | J128: 51.47639635 | K128: 63.97069533 | L128: 41.54375633 | M128: 508.5013125
A129: 2027 - Jan | B129: 87.66666667 | C129: 300.9453409 | D129: 13.94325543 | E129: 3.185417101 | F129: 387.1344004 | G129: 810.2481464 | H129: 6.380521458 | I129: 9.242374293 | J129: 52.174002 | K129: 64.34070371 | L129: 41.38583759 | M129: 507.0429128
A130: 2028 - Jan | B130: 88.66666667 | C130: 294.7410398 | D130: 13.84758124 | E130: 3.179156834 | F130: 391.5954369 | G130: 819.6989747 | H130: 6.335884542 | I130: 9.244725279 | J130: 52.87019378 | K130: 64.70715374 | L130: 41.22311759 | M130: 505.5365956
A131: 2029 - Jan | B131: 89.66666667 | C131: 288.7565219 | D131: 13.75113146 | E131: 3.172584934 | F131: 396.0385566 | G131: 829.1139133 | H131: 6.290893285 | I131: 9.246623568 | J131: 53.56482776 | K131: 65.07004529 | L131: 41.05543132 | M131: 503.9810233
A132: 2030 - Jan | B132: 90.66666667 | C132: 282.9925072 | D132: 13.64854888 | E132: 3.162399606 | F132: 400.4550236 | G132: 838.4745883 | H132: 6.244362088 | I132: 9.247881488 | J132: 54.25650803 | K132: 65.42873087 | L132: 40.82753842 | M132: 501.8569344
A133: 2031 - Jan | B133: 91.66666667 | C133: 277.440105 | D133: 13.54042988 | E133: 3.151236419 | F133: 404.8432295 | G133: 847.7775428 | H133: 6.195223165 | I133: 9.248482285 | J133: 54.94494898 | K133: 65.78315074 | L133: 40.58833549 | M133: 499.6430232
A134: 2032 - Jan | B134: 92.66666667 | C134: 272.0904139 | D134: 13.42749099 | E134: 3.139421741 | F134: 409.2019375 | G134: 857.0200985 | H134: 6.14377006 | I134: 9.248418329 | J134: 55.62992251 | K134: 66.13327539 | L134: 40.34039615 | M134: 497.3623847
A135: 2033 - Jan | B135: 93.66666667 | C135: 266.9349978 | D135: 13.3102952 | E135: 3.126973744 | F135: 413.5299134 | G135: 866.1995826 | H135: 6.090289627 | I135: 9.247682376 | J135: 56.31120041 | K135: 66.47907535 | L135: 40.08375239 | M135: 495.0137078
A136: 2034 - Jan | B136: 94.66666667 | C136: 261.9722207 | D136: 13.18550051 | E136: 3.111157484 | F136: 417.8203453 | G136: 875.3016378 | H136: 6.034422893 | I136: 9.246144062 | J136: 56.98767384 | K136: 66.82007873 | L136: 39.78229421 | M136: 492.2495171
A137: 2035 - Jan | B137: 95.66666667 | C137: 257.1978637 | D137: 13.05193092 | E137: 3.092780711 | F137: 422.0684809 | G137: 884.316217 | H137: 5.975059414 | I137: 9.243723523 | J137: 57.65855341 | K137: 67.15598491 | L137: 39.44903722 | M137: 489.2088519
A138: 2036 - Jan | B138: 96.66666667 | C138: 252.6040141 | D138: 12.91101159 | E138: 3.07356084 | F138: 426.2730069 | G138: 893.2404757 | H138: 5.912092417 | I138: 9.240418714 | J138: 58.32359032 | K138: 67.48676808 | L138: 39.10601203 | M138: 486.1098757
A139: 2037 - Jan | B139: 97.66666667 | C139: 248.1831226 | D139: 12.76390216 | E139: 3.053638822 | F139: 430.4326782 | G139: 902.0717129 | H139: 5.846097635 | I139: 9.236229143 | J139: 58.98254632 | K139: 67.81240714 | L139: 38.75369689 | M139: 482.9535113
A140: 2038 - Jan | B140: 98.66666667 | C140: 243.9279945 | D140: 12.61154817 | E140: 3.033042219 | F140: 434.5463096 | G140: 910.8073548 | H140: 5.777544083 | I140: 9.231155623 | J140: 59.63519255 | K140: 68.13288488 | L140: 38.39249105 | M140: 479.7407571
A141: 2039 - Jan | B141: 99.66666667 | C141: 239.831778 | D141: 12.45472268 | E141: 3.011786543 | F141: 438.6127701 | G141: 919.4449414 | H141: 5.706814762 | I141: 9.22520008 | J141: 60.28130863 | K141: 68.44818743 | L141: 38.02273245 | M141: 476.4726857
A142: 2040 - Jan | B142: 100.6666667 | C142: 235.8879518 | D142: 12.29405996 | E142: 2.989883105 | F142: 442.6309779 | G142: 927.982117 | H142: 5.634223434 | I142: 9.218365401 | J142: 60.92068203 | K142: 68.75830379 | L142: 37.64471138 | M142: 473.150442
A143: 2041 - Jan | B143: 101.6666667 | C143: 232.0903105 | D143: 12.13008269 | E143: 2.967340266 | F143: 446.599897 | G143: 936.4166231 | H143: 5.560028172 | I143: 9.21065531 | J143: 61.55310753 | K143: 69.0632255 | L143: 37.25868103 | M143: 469.775242
A144: 2042 - Jan | B144: 102.6666667 | C144: 228.4329508 | D144: 11.96322393 | E144: 2.944164084 | F144: 450.5185341 | G144: 944.7462922 | H144: 5.484442301 | I144: 9.202074275 | J144: 62.17838686 | K144: 69.36294636 | L144: 36.8648658 | M144: 466.3483703
A145: 2043 - Jan | B145: 103.6666667 | C145: 224.9102569 | D145: 11.79384483 | E145: 2.920358809 | F145: 454.385937 | G145: 952.9690441 | H145: 5.407643225 | I145: 9.192627435 | J145: 62.79632847 | K145: 69.65746219 | L145: 36.4634678 | M145: 462.8711778
A146: 2044 - Jan | B146: 104.6666667 | C146: 221.5168861 | D146: 11.62224884 | E146: 2.895927278 | F146: 458.2011931 | G146: 961.0828824 | H146: 5.329779533 | I146: 9.182320533 | J146: 63.4067473 | K146: 69.94677073 | L146: 36.05467206 | M146: 459.3450797
A147: 2045 - Jan | B147: 105.6666667 | C147: 218.2477553 | D147: 11.44869325 | E147: 2.87087124 | F147: 461.9634279 | G147: 969.085893 | H147: 5.250976726 | I147: 9.171159871 | J147: 64.00946468 | K147: 70.23087146 | L147: 35.63865067 | M147: 455.7715524
A148: 2046 - Jan | B148: 106.6666667 | C148: 215.0980272 | D148: 11.27339839 | E148: 2.845191617 | F148: 465.6718046 | G148: 976.9762417 | H148: 5.171341825 | I148: 9.159152266 | J148: 64.60430829 | K148: 70.50976552 | L148: 35.21556612 | M148: 452.1521313
A149: 2047 - Jan | B149: 107.6666667 | C149: 212.0630977 | D149: 11.09655506 | E149: 2.818888726 | F149: 469.3255236 | G149: 984.7521741 | H149: 5.090967076 | I149: 9.146305022 | J149: 65.19111205 | K149: 70.78345567 | L149: 34.785574 | M149: 448.3840907
A150: 2048 - Jan | B150: 108.6666667 | C150: 209.1385831 | D150: 10.91833051 | E150: 2.791962465 | F150: 472.9238222 | G150: 992.4120142 | H150: 5.009932929 | I150: 9.132625897 | J150: 65.76971618 | K150: 71.05194621 | L150: 34.3488252 | M150: 444.3476217
A151: 2049 - Jan | B151: 109.6666667 | C151: 206.3203089 | D151: 10.7388732 | E151: 2.764412465 | F151: 476.465974 | G151: 999.9541649 | H151: 4.928310429 | I151: 9.118123084 | J151: 66.33996721 | K151: 71.31524293 | L151: 33.90546767 | M151: 440.002424
A152: 2050 - Jan | B152: 110.6666667 | C152: 203.6042982 | D152: 10.55831669 | E152: 2.736238226 | F152: 479.9512897 | G152: 1007.377107 | H152: 4.846163142 | I152: 9.102805187 | J152: 66.90171798 | K152: 71.57335311 | L152: 33.45564792 | M152: 435.2507889
A153: 2051 - Jan | B153: 111.6666667 | C153: 200.9867609 | D153: 10.37678269 | E153: 2.707439231 | F153: 483.3791166 | G153: 1014.679402 | H153: 4.76354869 | I153: 9.08668121 | J153: 67.45482772 | K153: 71.8262855 | L153: 32.99951223 | M153: 430.3538095
A154: 2052 - Jan | B154: 112.6666667 | C154: 198.4640842 | D154: 10.19438355 | E154: 2.678015053 | F154: 486.7488387 | G154: 1021.859687 | H154: 4.680519988 | I154: 9.069760537 | J154: 67.9991621 | K154: 72.07405029 | L154: 32.53720762 | M154: 425.4329546
A155: 2053 - Jan | B155: 113.6666667 | C155: 196.0328226 | D155: 10.01122423 | E155: 2.647965441 | F155: 490.0598771 | G155: 1028.916682 | H155: 4.597126236 | I155: 9.052052921 | J155: 68.53459329 | K155: 72.31665911 | L155: 32.06888276 | M155: 420.4911519
A156: 2054 - Jan | B156: 114.6666667 | C156: 193.6896893 | D156: 9.827403893 | E156: 2.617290406 | F156: 493.3116903 | G156: 1035.849185 | H156: 4.513413707 | I156: 9.033568471 | J156: 69.06100002 | K156: 72.55412506 | L156: 31.59468868 | M156: 415.5312891
A157: 2055 - Jan | B157: 115.6666667 | C157: 191.4315472 | D157: 9.643017144 | E157: 2.585990297 | F157: 496.5037742 | G157: 1042.656074 | H157: 4.429426379 | I157: 9.014317643 | J157: 69.57826764 | K157: 72.78646266 | L157: 31.11477936 | M157: 410.5562188
A158: 2056 - Jan | B158: 116.6666667 | C158: 189.2554013 | D158: 9.458155055 | E158: 2.554065872 | F158: 499.6356622 | G158: 1049.33631 | H158: 4.345206439 | I158: 8.994311227 | J158: 70.08628822 | K158: 73.01368788 | L158: 30.62931233 | M158: 405.5687607
A159: 2057 - Jan | B159: 117.6666667 | C159: 187.1583911 | D159: 9.272905962 | E159: 2.521518367 | F159: 502.7069259 | G159: 1055.888933 | H159: 4.260794687 | I159: 8.973560339 | J159: 70.58496058 | K159: 73.23581816 | L159: 30.13844915 | M159: 400.5717035
A160: 2058 - Jan | B160: 118.6666667 | C160: 185.1377832 | D160: 9.087356099 | E160: 2.488349563 | F160: 505.717175 | G160: 1062.313067 | H160: 4.176230851 | I160: 8.95207641 | J160: 71.0741904 | K160: 73.45287237 | L160: 29.64235586 | M160: 395.5678045
A161: 2059 - Jan | B161: 119.6666667 | C161: 183.1909648 | D161: 8.901590103 | E161: 2.454561846 | F161: 508.6660577 | G161: 1068.607918 | H161: 4.091553843 | I161: 8.92987118 | J161: 71.55389021 | K161: 73.66487088 | L161: 29.14120342 | M161: 390.559789
A162: 2060 - Jan | B162: 120.6666667 | C162: 181.3154371 | D162: 8.715691418 | E162: 2.420158275 | F162: 511.5532607 | G162: 1074.772774 | H162: 4.006801959 | I162: 8.906956687 | J162: 72.02397954 | K162: 73.87183551 | L162: 28.63516808 | M162: 385.5503484
A163: 2061 - Jan | B163: 121.6666667 | C163: 179.5088093 | D163: 8.529742605 | E163: 2.385142645 | F163: 514.3785098 | G163: 1080.807006 | H163: 3.922013038 | I163: 8.883345259 | J163: 72.4843849 | K163: 74.07378958 | L163: 28.12443184 | M163: 380.5421385
A164: 2062 - Jan | B164: 122.6666667 | C164: 177.7687934 | D164: 8.343825603 | E164: 2.349519547 | F164: 517.1415697 | G164: 1086.710073 | H164: 3.837224589 | I164: 8.859049505 | J164: 72.93503989 | K164: 74.27075789 | L164: 27.60918279 | M164: 375.5377765
A165: 2063 - Jan | B165: 123.6666667 | C165: 176.0931978 | D165: 8.158021919 | E165: 2.313294435 | F165: 519.8422445 | G165: 1092.481512 | H165: 3.752473889 | I165: 8.834082311 | J165: 73.37588522 | K165: 74.46276678 | L165: 27.08961555 | M165: 370.5398388
A166: 2064 - Jan | B166: 124.6666667 | C166: 174.4799233 | D166: 7.972412792 | E166: 2.276473694 | F166: 522.4803778 | G166: 1098.120951 | H166: 3.667798064 | I166: 8.808456827 | J166: 73.80686876 | K166: 74.64984405 | L166: 26.56593166 | M166: 365.550858
A167: 2065 - Jan | B167: 125.6666667 | C167: 172.9269574 | D167: 7.787079324 | E167: 2.2390647 | F167: 525.0558528 | G167: 1103.628099 | H167: 3.583234153 | I167: 8.782186463 | J167: 74.22794561 | K167: 74.83201908 | L167: 26.03833998 | M167: 360.5733194
A168: 2066 - Jan | B168: 126.6666667 | C168: 171.4323702 | D168: 7.602102578 | E168: 2.201075894 | F168: 527.5685927 | G168: 1109.002751 | H168: 3.498819159 | I168: 8.75528488 | J168: 74.63907811 | K168: 75.00932276 | L168: 25.50705717 | M168: 355.609659
A169: 2067 - Jan | B169: 127.6666667 | C169: 169.9943098 | D169: 7.417563668 | E169: 2.16251685 | F169: 530.0185606 | G169: 1114.244791 | H169: 3.414590091 | I169: 8.727765983 | J169: 75.04023591 | K169: 75.18178754 | L169: 24.97230808 | M169: 350.6622598
A170: 2068 - Jan | B170: 128.6666667 | C170: 168.6109984 | D170: 7.233543835 | E170: 2.123398346 | F170: 532.4057597 | G170: 1119.354184 | H170: 3.330584001 | I170: 8.699643917 | J170: 75.43139599 | K170: 75.34944744 | L170: 24.43432626 | M170: 345.7334496
A171: 2069 - Jan | B171: 129.6666667 | C171: 167.2807281 | D171: 7.050124506 | E171: 2.083732437 | F171: 534.7302337 | G171: 1124.330986 | H171: 3.246838014 | I171: 8.670933057 | J171: 75.81254271 | K171: 75.51233806 | L171: 23.89335441 | M171: 340.8254981
A172: 2070 - Jan | B172: 130.6666667 | C172: 166.0018573 | D172: 6.867387355 | E172: 2.043532529 | F172: 536.992067 | G172: 1129.175339 | H172: 3.163389352 | I172: 8.641648002 | J172: 76.18366784 | K172: 75.67049661 | L172: 23.34964491 | M172: 335.9406141
A173: 2071 - Jan | B173: 131.6666667 | C173: 164.772807 | D173: 6.685414357 | E173: 2.002813459 | F173: 539.1913843 | G173: 1133.88747 | H173: 3.080275366 | I173: 8.611803573 | J173: 76.54477059 | K173: 75.8239619 | L173: 22.80346029 | M173: 331.080944
A174: 2072 - Jan | B174: 132.6666667 | C174: 163.5920575 | D174: 6.504287837 | E174: 1.961591564 | F174: 541.3283515 | G174: 1138.467697 | H174: 2.997533552 | I174: 8.581414801 | J174: 76.89585766 | K174: 75.97277439 | L174: 22.25507381 | M174: 326.2485688
A175: 2073 - Jan | B175: 133.6666667 | C175: 162.4581452 | D175: 6.324090518 | E175: 1.919884769 | F175: 543.4031753 | G175: 1142.916423 | H175: 2.91520158 | I175: 8.550496928 | J175: 77.23694324 | K175: 76.1169762 | L175: 21.70476992 | M175: 321.4455028
A176: 2074 - Jan | B176: 134.6666667 | C176: 161.3696593 | D176: 6.144905576 | E176: 1.877712657 | F176: 545.4161039 | G176: 1147.23414 | H176: 2.833317308 | I176: 8.519065397 | J176: 77.5680491 | K176: 76.25661111 | L176: 21.1528449 | M176: 316.6736915
A177: 2075 - Jan | B177: 135.6666667 | C177: 160.325239 | D177: 5.966816682 | E177: 1.835096556 | F177: 547.3674267 | G177: 1151.421431 | H177: 2.751918815 | I177: 8.487135853 | J177: 77.88920456 | K177: 76.39172462 | L177: 20.59960732 | M177: 311.9350105
A178: 2076 - Jan | B178: 136.6666667 | C178: 159.3235704 | D178: 5.789908054 | E178: 1.792059608 | F178: 549.2574747 | G178: 1155.478964 | H178: 2.671044413 | I178: 8.45472413 | J178: 78.20044657 | K178: 76.52236395 | L178: 20.04537862 | M178: 307.2312639
A179: 2077 - Jan | B179: 137.6666667 | C179: 158.3633839 | D179: 5.614264505 | E179: 1.748626857 | F179: 551.0866208 | G179: 1159.407501 | H179: 2.590732673 | I179: 8.421846258 | J179: 78.50181971 | K179: 76.64857807 | L179: 19.49049364 | M179: 302.5641832
A180: 2078 - Jan | B180: 138.6666667 | C180: 157.4434516 | D180: 5.439971485 | E180: 1.704825315 | F180: 552.85528 | G180: 1163.207891 | H180: 2.511022447 | I180: 8.388518447 | J180: 78.79337624 | K180: 76.77041775 | L180: 18.93530115 | M180: 297.9354268
A181: 2079 - Jan | B181: 139.6666667 | C181: 156.5625848 | D181: 5.267115133 | E181: 1.660684044 | F181: 554.5639093 | G181: 1166.881074 | H181: 2.431952885 | I181: 8.354757094 | J181: 79.07517613 | K181: 76.88793554 | L181: 18.38016429 | M181: 293.3465791
A182: 2080 - Jan | B182: 140.6666667 | C182: 155.7196313 | D182: 5.095782309 | E182: 1.616234215 | F182: 556.2130082 | G182: 1170.428081 | H182: 2.353563457 | I182: 8.320578773 | J182: 79.34728709 | K182: 77.00118585 | L182: 17.82546108 | M182: 288.7991498
A183: 2081 - Jan | B183: 141.6666667 | C183: 154.9134733 | D183: 4.92606064 | E183: 1.571509183 | F183: 557.803119 | G183: 1173.850033 | H183: 2.275893971 | I183: 8.286000234 | J183: 79.60978458 | K183: 77.11022495 | L183: 17.27158481 | M183: 284.2945742
A184: 2082 - Jan | B184: 142.6666667 | C184: 154.1430249 | D184: 4.758038543 | E184: 1.526544536 | F184: 559.3348265 | G184: 1177.148145 | H184: 2.198984585 | I184: 8.251038398 | J184: 79.86275187 | K184: 77.21511103 | L184: 16.71894434 | M184: 279.8342124
A185: 2083 - Jan | B185: 143.6666667 | C185: 153.4072303 | D185: 4.591805248 | E185: 1.481378151 | F185: 560.8087588 | G185: 1180.323721 | H185: 2.122875818 | I185: 8.215710357 | J185: 80.10628002 | K185: 77.31590419 | L185: 16.16796445 | M185: 275.4193497
A186: 2084 - Jan | B186: 144.6666667 | C186: 152.7050613 | D186: 4.427450812 | E186: 1.436050231 | F186: 562.225587 | G186: 1183.37816 | H186: 2.047608562 | I186: 8.180033366 | J186: 80.34046795 | K186: 77.4126665 | L186: 15.61908593 | M186: 271.0511969
A187: 2085 - Jan | B187: 145.6666667 | C187: 152.0355155 | D187: 4.265066115 | E187: 1.390603338 | F187: 563.5860256 | G187: 1186.312952 | H187: 1.973224076 | I187: 8.144024842 | J187: 80.56542241 | K187: 77.50546202 | L187: 15.07276571 | M187: 266.7308901
A188: 2086 - Jan | B188: 146.6666667 | C188: 151.3976144 | D188: 4.104742843 | E188: 1.345082403 | F188: 564.8908324 | G188: 1189.129679 | H188: 1.899763987 | I188: 8.107702359 | J188: 80.781258 | K188: 77.59435682 | L188: 14.52947678 | M188: 262.4594917
A189: 2087 - Jan | B189: 147.6666667 | C189: 150.7904012 | D189: 3.946573449 | E189: 1.299534729 | F189: 566.1408089 | G189: 1191.830018 | H189: 1.827270274 | I189: 8.071083644 | J189: 80.98809718 | K189: 77.67941904 | L189: 13.98970796 | M189: 258.2379902
A190: 2088 - Jan | B190: 148.6666667 | C190: 150.2129396 | D190: 3.790651098 | E190: 1.254009975 | F190: 567.3367999 | G190: 1194.415737 | H190: 1.755785244 | I190: 8.034186569 | J190: 81.18607024 | K190: 77.76071887 | L190: 13.45396353 | M190: 254.0673015
A191: 2089 - Jan | B191: 149.6666667 | C191: 149.6643115 | D191: 3.63706958 | E191: 1.208560109 | F191: 568.4796934 | G191: 1196.888696 | H191: 1.685351502 | I191: 7.99702915 | J191: 81.37531526 | K191: 77.83832857 | L191: 12.92276267 | M191: 249.9482691
A192: 2090 - Jan | B192: 150.6666667 | C192: 149.1436158 | D192: 3.4859232 | E192: 1.163239352 | F192: 569.570421 | G192: 1199.25085 | H192: 1.6160119 | I192: 7.959629533 | J192: 81.55597812 | K192: 77.91232253 | L192: 12.39663861 | M192: 245.8816648
A193: 2091 - Jan | B193: 151.6666667 | C193: 148.6499669 | D193: 3.337306627 | E193: 1.118104083 | F193: 570.6099568 | G193: 1201.504242 | H193: 1.547809483 | I193: 7.922005991 | J193: 81.72821236 | K193: 77.9827772 | L193: 11.87613763 | M193: 241.8681895
A194: 2092 - Jan | B194: 152.6666667 | C194: 148.1824929 | D194: 3.191314718 | E194: 1.073212723 | F194: 571.5993177 | G194: 1203.651009 | H194: 1.480787404 | I194: 7.884176913 | J194: 81.89217919 | K194: 78.04977117 | L194: 11.36181773 | M194: 237.908474
A195: 2093 - Jan | B195: 153.6666667 | C195: 147.7403346 | D195: 3.048042293 | E195: 1.028625582 | F195: 572.5395625 | G195: 1205.693375 | H195: 1.414988841 | I195: 7.84616079 | J195: 82.04804728 | K195: 78.1133851 | L195: 10.85424702 | M195: 234.0030798
A196: 2094 - Jan | B196: 154.6666667 | C196: 147.3226444 | D196: 2.907583867 | E196: 0.984404671 | F196: 573.4317914 | G196: 1207.633653 | H196: 1.350456874 | I196: 7.807976206 | J196: 82.19599273 | K196: 78.17370173 | L196: 10.35400177 | M196: 230.1524996
A197: 2095 - Jan | B197: 155.6666667 | C197: 146.9285849 | D197: 2.770033344 | E197: 0.9406134823 | F197: 574.2771447 | G197: 1209.474243 | H197: 1.287234359 | I197: 7.769641819 | J197: 82.33619882 | K197: 78.23080581 | L197: 9.861664205 | M197: 226.3571582
A198: 2096 - Jan | B198: 156.6666667 | C198: 146.557328 | D198: 2.635483651 | E198: 0.8973167221 | F198: 575.0768021 | G198: 1211.217627 | H198: 1.225363768 | I198: 7.731176345 | J198: 82.46885584 | K198: 78.28478412 | L198: 9.377819874 | M198: 222.6174133
A199: 2097 - Jan | B199: 157.6666667 | C199: 146.2080542 | D199: 2.504026326 | E199: 0.8545800084 | F199: 575.8319815 | G199: 1212.86637 | H199: 1.164887013 | I199: 7.69259854 | J199: 82.59416086 | K199: 78.33572532 | L199: 8.903054673 | M199: 218.9335561
A200: 2098 - Jan | B200: 158.6666667 | C200: 145.8799518 | D200: 2.375751054 | E200: 0.8124695244 | F200: 576.5439366 | G200: 1214.423112 | H200: 1.105845243 | I200: 7.653927175 | J200: 82.71231742 | K200: 78.38371997 | L200: 8.437951534 | M200: 215.3058117
A201: 2099 - Jan | B201: 159.6666667 | C201: 145.5722165 | D201: 2.250745148 | E201: 0.7710516301 | F201: 577.2139562 | G201: 1215.890568 | H201: 1.04827862 | I201: 7.615181012 | J201: 82.82353525 | K201: 78.42886034 | L201: 7.983086734 | M201: 211.7343405
A202: 2100 - Jan | B202: 160.6666667 | C202: 145.2840509 | D202: 2.129092978 | E202: 0.7303924332 | F202: 577.8433612 | G202: 1217.271523 | H202: 0.992226065 | I202: 7.576378776 | J202: 82.92802983 | K202: 78.47124036 | L202: 7.539025869 | M202: 208.2192379

Sheet Douglas fir Yield Table Ex1 ANS
A1: Exercise l. Determine Fertility rating and self-thinning | N1: Optional parameter block | X1: Observed data
A2: biomass:(WS x1000)= (Mg/ha) that come close to matching | O2: Parameters
A3: Forestry Yield Table values for site III Douglas-fir growing | O3: WSx1000 | P3: 200 | Q3: Weight of stems (Mg/ha starts self-thinning | Y3: McArdle 1961 Volume Tables Site III Douglas-fir
A4: in the Oregon Coast Range. | O4: thinpower | P4: 1.55 | Q4: self-tinning negative slope
O5: MaxAge | P5: 150 | Q5: age when height growth almost stops | W5: Age | X5: standVol | Y5: BA | Z5: LAI | AA5: Trees/ha | AB5: Mg/ha | AC5: Ht, m
O6: alpha | P6: 0.055 | Q6: quantum efficiency mol C/mol APAR
A7: Run type: | B7: SingleSite | O7: fN0 | P7: 0.37 | Q7: links soil fertily to photosynthetic capacity | W7: 20 | X7: 164.5 | Y7: 21.12200068 | Z7: 8 | AA7: 3606.2 | AB7: 65.8 | AC7: 11.2804878
O8: fNn | P8: 1 | Q8: " | W8: 30 | X8: 231 | Y8: 32.14217494 | AA8: 2136.55 | AB8: 92.4 | AC8: 19.51219512
B9: Site : | C9: western Oregon | O9: SLA1 | P9: 4.5 | Q9: M2 of leaf area/kg mass | W9: 40 | X9: 367.5 | Y9: 40.6368926 | AA9: 1444.95 | AB9: 147 | AC9: 25.6097561
B10: Species = | C10: Doug fir | O10: aH | P10: 0.33 | Q10: Constant in the stem height relationship | W10: 50 | X10: 493.5 | Y10: 46.83574063 | AA10: 1062.1 | AB10: 197.4 | AC10: 29.87804878
B11: Title: | C11: Douglas-fir Model fit to yield table | O11: nHB | P11: 1.02 | Q11: Power of DBH in the stem height relationship | W11: 60 | X11: 609 | Y11: 51.88665383 | AA11: 832.39 | AB11: 243.6 | AC11: 33.5
A12: Stand initialisation and site factor data | O12: nHN | P12: 0.12 | Q12: Power of stocking in the stem height relationship | W12: 70 | X12: 710.5 | Y12: 56.01921918 | Z12: 6.5 | AA12: 676.78 | AB12: 284.2 | AC12: 36.2804878
B13: Month planted= | C13: May | E13: Latitude = | F13: 44 | W13: 80 | X13: 794.5 | Y13: 59.46302364 | AA13: 573.04 | AB13: 317.8 | AC13: 38.7195122
B14: Year planted = | C14: 1939 | E14: Fertility rating = | F14: 0.42 | O14: Output details | W14: 90 | X14: 867.3 | Y14: 62.44765417 | AA14: 506.35 | AB14: 346.92 | AC14: 40.85365854
B15: Initial year = | C15: 1 | E15: Soil class = | F15: cl | P15: Output frequency : a | W15: 100 | X15: 928.9 | Y15: 64.97311077 | AA15: 454.48 | AB15: 371.56 | AC15: 42.68292683
B16: Initial month = | C16: January | E16: Maximum ASW = | F16: 300 | O16: Output data : | P16: Height | W16: 110 | X16: 980 | Y16: 67.03939345 | Z16: 4 | AA16: 410.02 | AB16: 392 | AC16: 44.20731707
B17: End age = | C17: 160 | E17: Minimum ASW = | F17: 0 | O17: Output sheet : | W17: 120 | X17: 1022 | Y17: 69.10567612 | AA17: 383 | AB17: 408.8 | AC17: 45.4
B18: Initial WF = | C18: 2 | E18: Atmospheric CO2 = | F18: 360 | O18: Output ages : | W18: 130 | X18: 1057.7 | Y18: 70.94237184 | AA18: 358 | AB18: 423.08 | AC18: 46.3
B19: Initial WR = | C19: 2 | W19: 140 | X19: 1092.7 | Y19: 72.77906755 | AA19: 346 | AB19: 437.08 | AC19: 46.95
B20: Initial WS = | C20: 2 | O20: Climate data | P20: Tmax | Q20: Tmin | R20: Rain | S20: Solar rad | T20: Frost days | W20: 150 | X20: 1125.6 | Y20: 74.38617629 | AA20: 321 | AB20: 450.24 | AC20: 47.56
B21: Initial stocking = | C21: 3498 | O21: January | P21: 6.6 | Q21: 0.43 | R21: 364.5270833 | S21: 4.2 | T21: 12.88192536 | W21: 160 | X21: 1154.3 | Y21: 75.99328504 | AA21: 272 | AB21: 461.72 | AC21: 48.2
B22: Initial ASW = | C22: 300 | O22: Feb | P22: 9.2 | Q22: 0.8 | R22: 264.4425532 | S22: 4.8 | T22: 11.46160723
O23: March | P23: 11.1 | Q23: 1.4 | R23: 255.8148936 | S23: 7.3 | T23: 9.752933196
C24: Output frequency : | D24: a | O24: April | P24: 14.5 | Q24: 2.9 | R24: 170.4765957 | S24: 13.3 | T24: 6.52198066
O25: may | P25: 18.8 | Q25: 6.611111111 | R25: 122.8361702 | S25: 16.7 | T25: 1.046945779
B26: Output details | O26: June | P26: 22.88888889 | Q26: 9.166666667 | R26: 66.11276596 | S26: 16.8 | T26: 0
C27: Output frequency : | O27: July | P27: 27.22222222 | Q27: 10.77777778 | R27: 16.6893617 | S27: 21.2 | T27: 0
C28: Output data : | O28: Aug | P28: 27.44444444 | Q28: 10.61111111 | R28: 32.86382979 | S28: 15.4 | T28: 0 | W28: 33
C29: Output sheet : | O29: Sep | P29: 22.6 | Q29: 7.7 | R29: 75.08723404 | S29: 15.8 | T29: -0.1455319149
C30: Output ages : | O30: Oct | P30: 16.7 | Q30: 4.1 | R30: 167.606383 | S30: 10.1 | T30: 2.250322186
O31: Nov | P31: 9.8 | Q31: 1.9 | R31: 372.6851064 | S31: 3.9 | T31: 8.028513028
C32: , | O32: Dec | P32: 8.111111111 | Q32: 0.65 | R32: 386.6851064 | S32: 3.4 | T32: 12.31542755
A38: #Output from 3PGpjs 2.7 / 3-PG vsn 1 Sep2009
A39: Stand development for western Oregon
A40: Douglas-fir Model fit to yield table
A41: Year & month | B41: Stand age | C41: Stems | D41: Foliage DM | E41: Root DM | F41: Stem DM | G41: Stand volume | H41: LAI | I41: MAI | J41: Mean DBH | K41: Basal area | L41: GPP | M41: Penman transp. | N41: Height
A42: 1940 - Jan | B42: 0.6666666667 | C42: 3498 | D42: 2 | E42: 2 | F42: 2 | G42: 4.245521642 | H42: 1.093269942 | I42: 6.368282464 | J42: 2.194340825 | K42: 1.322872087
A43: 1941 - Jan | B43: 1.666666667 | C43: 3498 | D43: 2.364206031 | E43: 0.3852641729 | F43: 2.350882645 | G43: 4.982869084 | H43: 1.189918317 | I43: 2.98972145 | J43: 2.344894953 | K43: 1.510624313 | L43: 3.305792019 | M43: 466.4298038 | N43: 2.095550717
A44: 1942 - Jan | B44: 2.666666667 | C44: 3498 | D44: 2.990240637 | E44: 0.4789582007 | F44: 3.029122606 | G44: 6.411387949 | H44: 1.422291317 | I44: 2.404270481 | J44: 2.602055192 | K44: 1.86012742 | L44: 6.305442403 | M44: 469.9712052 | N44: 2.330210477
A45: 1943 - Jan | B45: 3.666666667 | C45: 3498 | D45: 3.735922071 | E45: 0.6853267731 | F45: 4.038571001 | G45: 8.536636289 | H45: 1.71581078 | I45: 2.328173533 | J45: 2.928165703 | K45: 2.355596963 | L45: 9.230400398 | M45: 474.6189947 | N45: 2.628450962
A46: 1944 - Jan | B46: 4.666666667 | C46: 3498 | D46: 4.512303197 | E46: 0.8958494131 | F46: 5.384526151 | G46: 11.36751781 | H46: 2.021581964 | I46: 2.435896673 | J46: 3.295174724 | K46: 2.98309155 | L46: 12.09848187 | M46: 479.3685306 | N46: 2.964888279
A47: 1945 - Jan | B47: 5.666666667 | C47: 3498 | D47: 5.308515198 | E47: 1.099540371 | F47: 7.060874459 | G47: 14.8891245 | H47: 2.338697301 | I47: 2.627492559 | J47: 3.683001195 | K47: 3.726605375 | L47: 14.855283 | M47: 482.2540679 | N47: 3.32122435
A48: 1946 - Jan | B48: 6.666666667 | C48: 3498 | D48: 6.14098444 | E48: 1.296808259 | F48: 9.06056295 | G48: 19.08490793 | H48: 2.682701393 | I48: 2.86273619 | J48: 4.080002742 | K48: 4.573309533 | L48: 17.51389832 | M48: 483.8514493 | N48: 3.686769454
A49: 1947 - Jan | B49: 7.666666667 | C49: 3498 | D49: 7.017844293 | E49: 1.490128419 | F49: 11.38170325 | G49: 23.94949852 | H49: 3.060403947 | I49: 3.123847633 | J49: 4.480473326 | K49: 5.515151906 | L49: 20.12379603 | M49: 485.4707481 | N49: 4.0562311
A50: 1948 - Jan | B50: 8.666666667 | C50: 3498 | D50: 7.932376945 | E50: 1.67920165 | F50: 14.02151211 | G50: 29.4758822 | H50: 3.467189048 | I50: 3.40106333 | J50: 4.881040912 | K50: 6.545375737 | L50: 22.68536332 | M50: 487.0964225 | N50: 4.426444398
A51: 1949 - Jan | B51: 9.666666667 | C51: 3498 | D51: 8.872164353 | E51: 1.86328752 | F51: 16.97636794 | G51: 35.65550449 | H51: 3.893659851 | I51: 3.688500464 | J51: 5.279667746 | K51: 7.658132431 | L51: 25.19458794 | M51: 488.7054373 | N51: 4.795468485
A52: 1950 - Jan | B52: 10.66666667 | C52: 3498 | D52: 9.824802791 | E52: 2.041827574 | F52: 20.24234034 | G52: 42.47936697 | H52: 4.331027856 | I52: 3.982440654 | J52: 5.675149616 | K52: 8.848391248 | L52: 27.64944741 | M52: 490.2894637 | N52: 5.162132864
A53: 1951 - Jan | B53: 11.66666667 | C53: 3498 | D53: 10.78023261 | E53: 2.214609681 | F53: 23.81573985 | G53: 49.93916119 | H53: 4.772726817 | I53: 4.28049953 | J53: 6.066829924 | K53: 10.11191306 | L53: 30.05150079 | M53: 491.8213732 | N53: 5.525777238
A54: 1952 - Jan | B54: 12.66666667 | C54: 3498 | D54: 11.75729997 | E54: 2.398833282 | F54: 27.72295886 | G54: 58.0897749 | H54: 5.218919152 | I54: 4.586034861 | J54: 6.457233212 | K54: 11.45519879 | L54: 32.6089239 | M54: 492.9422684 | N54: 5.888703905
A55: 1953 - Jan | B55: 13.66666667 | C55: 3498 | D55: 12.76972084 | E55: 2.597551195 | F55: 31.99078637 | G55: 66.98690094 | H55: 5.676977633 | I55: 4.901480557 | J55: 6.848179914 | K55: 12.88427571 | L55: 35.3349765 | M55: 493.5720196 | N55: 6.252576028
A56: 1954 - Jan | B56: 14.66666667 | C56: 3498 | D56: 13.80833712 | E56: 2.797988951 | F56: 36.62377501 | G56: 76.6396866 | H56: 6.148593424 | I56: 5.225433177 | J56: 7.239168902 | K56: 14.39750061 | L56: 38.072563 | M56: 493.566514 | N56: 6.616903488
A57: 1955 - Jan | B57: 15.66666667 | C57: 3498 | D57: 14.83674316 | E57: 2.965526685 | F57: 41.59168401 | G57: 86.98462123 | H57: 6.625267673 | I57: 5.552209866 | J57: 7.627242493 | K57: 15.98250301 | L57: 40.53380766 | M57: 493.5597002 | N57: 6.978903958
A58: 1956 - Jan | B58: 16.66666667 | C58: 3498 | D58: 15.65718267 | E58: 2.999362776 | F58: 46.64470578 | G58: 97.49950057 | H58: 7.037950918 | I58: 5.849970034 | J58: 7.994844861 | K58: 17.56021254 | L58: 40.95407901 | M58: 493.551386 | N58: 7.32214893
A59: 1957 - Jan | B59: 17.66666667 | C59: 3498 | D59: 16.29516732 | E59: 3.014239367 | F59: 51.75205103 | G59: 108.120837 | H59: 7.361089509 | I59: 6.12004738 | J59: 8.343247112 | K59: 19.12405131 | L59: 41.15652244 | M59: 493.5413657 | N59: 7.647757796
A60: 1958 - Jan | B60: 18.66666667 | C60: 3498 | D60: 16.78546136 | E60: 3.023636362 | F60: 56.90273477 | G60: 118.8265792 | H60: 7.610615086 | I60: 6.365709598 | J60: 8.674632021 | K60: 20.67339528 | L60: 41.29082099 | M60: 493.5294207 | N60: 7.957715322
A61: 1959 - Jan | B61: 19.66666667 | C61: 3498 | D61: 17.15749959 | E61: 3.029990771 | F61: 62.08916624 | G61: 129.6017477 | H61: 7.800956745 | I61: 6.589919375 | J61: 8.990894161 | K61: 22.20830724 | L61: 41.38172735 | M61: 493.5153194 | N61: 8.253749034
A62: 1960 - Jan | B62: 20.66666667 | C62: 3498 | D62: 17.43557035 | E62: 3.034368389 | F62: 67.30585921 | G62: 140.4357256 | H62: 7.944132467 | I62: 6.795277047 | J62: 9.293653983 | K62: 23.72917748 | L62: 41.44389177 | M62: 493.498817 | N62: 8.537339369
A63: 1961 - Jan | B63: 21.66666667 | C63: 3498 | D63: 17.63940625 | E63: 3.037398894 | F63: 72.54869216 | G63: 151.3207048 | H63: 8.049962065 | I63: 6.984032531 | J63: 9.584293039 | K63: 25.23654246 | L63: 41.48634328 | M63: 493.4796558 | N63: 8.809750357
A64: 1962 - Jan | B64: 22.66666667 | C64: 3498 | D64: 17.78487826 | E64: 3.039483408 | F64: 77.81446552 | G64: 162.2507579 | H64: 8.126373272 | I64: 7.158121672 | J64: 9.863991621 | K64: 26.730992 | L64: 41.51485757 | M64: 493.4575653 | N64: 9.072063159
A65: 1963 - Jan | B65: 23.66666667 | C65: 3498 | D65: 17.88466339 | E65: 3.040887563 | F65: 83.10062565 | G65: 173.2212605 | H65: 8.1797149 | I65: 7.319208189 | J65: 10.13376262 | K65: 28.21312158 | L65: 41.53325485 | M65: 493.4322619 | N65: 9.325206505
A66: 1964 - Jan | B66: 24.66666667 | C66: 3498 | D66: 17.94883636 | E66: 3.041792824 | F66: 88.40508606 | G66: 184.228518 | H66: 8.215042193 | I66: 7.468723704 | J66: 10.39448009 | K66: 29.68350836 | L66: 41.54413726 | M66: 493.4034493 | N66: 9.5699825
A67: 1965 - Jan | B67: 25.66666667 | C67: 3498 | D67: 17.98537234 | E67: 3.04232652 | F67: 93.72610736 | G67: 195.2695162 | H67: 8.236362906 | I67: 7.607903228 | J67: 10.6469027 | K67: 31.14269963 | L67: 41.54932266 | M67: 493.3708185 | N67: 9.80708789
A68: 1966 - Jan | B68: 26.66666667 | C68: 3498 | D68: 18.00056376 | E68: 3.042580067 | F68: 99.06221402 | G68: 206.3417483 | H68: 8.24684318 | I68: 7.73781556 | J68: 10.89169286 | K68: 32.59120802 | L68: 41.55010796 | M68: 493.334048 | N68: 10.03713141
A69: 1967 - Jan | B69: 27.66666667 | C69: 3320.891971 | D69: 17.99611781 | E69: 3.026029535 | F69: 103.3569974 | G69: 215.2457202 | H69: 8.248356385 | I69: 7.77996579 | J69: 11.32206592 | K69: 33.43458889 | L69: 41.54734942 | M69: 493.2928036 | N69: 10.37692558
A70: 1968 - Jan | B70: 28.66666667 | C70: 3102.216851 | D70: 17.96723613 | E70: 3.023726149 | F70: 107.3026164 | G70: 223.4242565 | H70: 8.239224123 | I70: 7.793869413 | J70: 11.82359464 | K70: 34.06129045 | L70: 41.54057283 | M70: 493.246739 | N70: 10.75769236
A71: 1969 - Jan | B71: 29.66666667 | C71: 2904.176936 | D71: 17.918992 | E71: 3.02365137 | F71: 111.2672376 | G71: 231.6444819 | H71: 8.22027901 | I71: 7.808240964 | J71: 12.33046273 | K71: 34.67941024 | L71: 41.52972194 | M71: 493.1954953 | N71: 11.13975581
A72: 1970 - Jan | B72: 30.66666667 | C72: 2724.293781 | D72: 17.85602679 | E72: 3.023513643 | F72: 115.2498395 | G72: 239.9045015 | H72: 8.193804739 | I72: 7.822972874 | J72: 12.84249171 | K72: 35.2892484 | L72: 41.51550889 | M72: 493.1387019 | N72: 11.52303
A73: 1971 - Jan | B73: 31.66666667 | C73: 2560.444841 | D73: 17.781992 | E73: 3.023196188 | F73: 119.249485 | G73: 248.2025768 | H73: 8.161640538 | I73: 7.837976111 | J73: 13.35951458 | K73: 35.8910912 | L73: 41.49848286 | M73: 493.0759759 | N73: 11.90743673
A74: 1972 - Jan | B74: 32.66666667 | C74: 2410.804898 | D74: 17.69975205 | E74: 3.022721099 | F74: 123.2653065 | G74: 256.537096 | H74: 8.125230833 | I74: 7.85317641 | J74: 13.88137402 | K74: 36.48521073 | L74: 41.47905773 | M74: 493.006923 | N74: 12.29290408
A75: 1973 - Jan | B75: 33.66666667 | C75: 2273.798192 | D75: 17.61154673 | E75: 3.022113492 | F75: 127.2964937 | G75: 264.9065499 | H75: 8.085706502 | I75: 7.868511384 | J75: 14.40792098 | K75: 37.0718649 | L75: 41.45754679 | M75: 492.9311372 | N75: 12.67936529
A76: 1974 - Jan | B76: 34.66666667 | C76: 2148.05913 | D76: 17.51912091 | E76: 3.021393806 | F76: 131.3422851 | G76: 273.3095136 | H76: 8.043949824 | I76: 7.883928278 | J76: 14.93901346 | K76: 37.65129781 | L76: 41.43418718 | M76: 492.8482011 | N76: 13.0667579
A77: 1975 - Jan | B77: 35.66666667 | C77: 2032.399934 | D77: 17.42382787 | E77: 3.020578374 | F77: 135.40196 | G77: 281.7446316 | H77: 8.000646275 | I77: 7.899382196 | J77: 15.4745156 | K77: 38.22374015 | L77: 41.40915733 | M77: 492.7576864 | N77: 13.45502302
A78: 1976 - Jan | B78: 36.66666667 | C78: 1925.783854 | D78: 17.32671149 | E78: 3.019680266 | F78: 139.4748323 | G78: 290.2106057 | H78: 7.956325745 | I78: 7.9148347 | J78: 16.01429686 | K78: 38.78940985 | L78: 41.3825898 | M78: 492.6591539 | N78: 13.84410476
A79: 1977 - Jan | B79: 37.66666667 | C79: 1827.302934 | D79: 17.2285715 | E79: 3.018709946 | F79: 143.5602455 | G79: 298.7061845 | H79: 7.911395281 | I79: 7.930252686 | J79: 16.55823126 | K79: 39.34851265 | L79: 41.35458083 | M79: 492.5521537 | N79: 14.23394977
A80: 1978 - Jan | B80: 38.66666667 | C80: 1736.159448 | D80: 17.13001526 | E80: 3.017675782 | F80: 147.6575681 | G80: 307.2301556 | H80: 7.866165083 | I80: 7.945607472 | J80: 17.10619689 | K80: 39.90124273 | L80: 41.3251976 | M80: 492.4362258 | N80: 14.62450679
A81: 1979 - Jan | B81: 39.66666667 | C81: 1651.650362 | D81: 17.03149875 | E81: 3.016584437 | F81: 151.7661899 | G81: 315.781338 | H81: 7.820869098 | I81: 7.960874068 | J81: 17.65807527 | K81: 40.44778333 | L81: 41.29448388 | M81: 492.3109002 | N81: 15.01572635
A82: 1980 - Jan | B82: 40.66666667 | C82: 1573.154268 | D82: 16.93335907 | E82: 3.01544117 | F82: 155.8855191 | G82: 324.3585764 | H82: 7.775681347 | I82: 7.976030568 | J82: 18.213751 | K82: 40.98830735 | L82: 41.26246437 | M82: 492.1756973 | N82: 15.40756045
A83: 1981 - Jan | B83: 41.66666667 | C83: 1500.120352 | D83: 16.83584017 | E83: 3.014250084 | F83: 160.0149791 | G83: 332.9607359 | H83: 7.730728832 | I83: 7.991057662 | J83: 18.77311126 | K83: 41.52297794 | L83: 41.22914822 | M83: 492.0301282 | N83: 15.79996233
A84: 1982 - Jan | B84: 42.66666667 | C84: 1432.059053 | D84: 16.73911311 | E84: 3.01301432 | F84: 164.154006 | G84: 341.5866976 | H84: 7.686101758 | I84: 8.005938224 | J84: 19.33604555 | K84: 42.05194903 | L84: 41.19453177 | M84: 491.8736949 | N84: 16.19288624
A85: 1983 - Jan | B85: 43.66666667 | C85: 1368.534124 | D85: 16.64329216 | E85: 3.011736206 | F85: 168.3020472 | G85: 350.2353547 | H85: 7.641861605 | I85: 8.020656979 | J85: 19.90244527 | K85: 42.57536589 | L85: 41.15860084 | M85: 491.7058913 | N85: 16.58628726
A86: 1984 - Jan | B86: 44.66666667 | C86: 1309.155854 | D86: 16.54844747 | E86: 3.010417388 | F86: 172.4585587 | G86: 358.9056098 | H86: 7.598047506 | I86: 8.035200218 | J86: 20.47220352 | K86: 43.09336561 | L86: 41.12133252 | M86: 491.5262027 | N86: 16.98012114
A87: 1985 - Jan | B87: 45.66666667 | C87: 1253.575271 | D87: 16.45461507 | E87: 3.009058929 | F87: 176.6230039 | G87: 367.5963711 | H87: 7.554681277 | I87: 8.049555572 | J87: 21.04521479 | K87: 43.60607755 | L87: 41.08269664 | M87: 491.334107 | N87: 17.37434415
A88: 1986 - Jan | B88: 46.66666667 | C88: 1201.479167 | D88: 16.36180475 | E88: 3.00766139 | F88: 180.7948524 | G88: 376.306551 | H88: 7.511771394 | I88: 8.063711806 | J88: 21.62137477 | K88: 44.11362381 | L88: 41.04265703 | M88: 491.1290745 | N88: 17.76891296
A89: 1987 - Jan | B89: 47.66666667 | C89: 1152.585812 | D89: 16.27000631 | E89: 3.00622491 | F89: 184.9735781 | G89: 385.0350631 | H89: 7.469316115 | I89: 8.077658666 | J89: 22.2005801 | K89: 44.61611965 | L89: 41.0011725 | M89: 490.9105689 | N89: 18.16378453
A90: 1988 - Jan | B90: 48.66666667 | C90: 1106.641249 | D90: 16.17919438 | E90: 3.004749209 | F90: 189.1586587 | G90: 393.780821 | H90: 7.427305946 | I90: 8.091386734 | J90: 22.78272824 | K90: 45.11367381 | L90: 40.9581977 | M90: 490.6780473 | N90: 18.55891602
A91: 1989 - Jan | B91: 49.66666667 | C91: 1063.41558 | D91: 16.08933233 | E91: 3.003233415 | F91: 193.3495557 | G91: 402.5426977 | H91: 7.385725578 | I91: 8.104886531 | J91: 23.36772093 | K91: 45.60638142 | L91: 40.91368379 | M91: 490.4309607 | N91: 18.95426668
A92: 1990 - Jan | B92: 50.66666667 | C92: 1022.702264 | D92: 16.00037526 | E92: 3.001677224 | F92: 197.5457886 | G92: 411.3196799 | H92: 7.344555406 | I92: 8.118151577 | J92: 23.95544927 | K92: 46.09435468 | L92: 40.86757903 | M92: 490.1687548 | N92: 19.34978984
A93: 1991 - Jan | B93: 51.66666667 | C93: 984.3125022 | D93: 15.91227233 | E93: 3.000079154 | F93: 201.7468212 | G93: 420.1106323 | H93: 7.303772724 | I93: 8.131173527 | J93: 24.54581588 | K93: 46.57767726 | L93: 40.81982927 | M93: 489.89087 | N93: 19.74544482
A94: 1992 - Jan | B94: 52.66666667 | C94: 948.0752905 | D94: 15.82496868 | E94: 2.998437778 | F94: 205.9521366 | G94: 428.9144535 | H94: 7.26335266 | I94: 8.14394532 | J94: 25.13871986 | K94: 47.05643543 | L94: 40.77037839 | M94: 489.5967418 | N94: 20.14118881
A95: 1993 - Jan | B95: 53.66666667 | C95: 913.8350138 | D95: 15.73840679 | E95: 2.996751444 | F95: 210.1612175 | G95: 437.7300364 | H95: 7.223268897 | I95: 8.156460305 | J95: 25.73406041 | K95: 47.53071065 | L95: 40.7191686 | M95: 489.2858017 | N95: 20.53697893
A96: 1994 - Jan | B96: 54.66666667 | C96: 881.4498194 | D96: 15.65252765 | E96: 2.995018215 | F96: 214.3735459 | G96: 446.5562665 | H96: 7.183494256 | I96: 8.168712193 | J96: 26.33173671 | K96: 48.00057973 | L96: 40.66614076 | M96: 488.9574769 | N96: 20.9327721
A97: 1995 - Jan | B97: 55.66666667 | C97: 850.7901865 | D97: 15.56727165 | E97: 2.993235992 | F97: 218.5886024 | G97: 455.3920223 | H97: 7.144001127 | I97: 8.180695011 | J97: 26.93164792 | K97: 48.46611513 | L97: 40.61123466 | M97: 488.6111914 | N97: 21.32852505
A98: 1996 - Jan | B98: 56.66666667 | C98: 821.7376665 | D98: 15.48257919 | E98: 2.991402446 | F98: 222.8058659 | G98: 464.236174 | H98: 7.104761814 | I98: 8.19240307 | J98: 27.53369298 | K98: 48.92738523 | L98: 40.55438919 | M98: 488.2463654 | N98: 21.72419428
A99: 1997 - Jan | B99: 57.66666667 | C99: 794.1837701 | D99: 15.39839124 | E99: 2.989515036 | F99: 227.0248136 | G99: 473.0875838 | H99: 7.065748797 | I99: 8.203830934 | J99: 28.13777068 | K99: 49.38445446 | L99: 40.49554254 | M99: 487.8624164 | N99: 22.11973605
A100: 1998 - Jan | B100: 58.66666667 | C100: 768.0289821 | D100: 15.3146497 | E100: 2.987571014 | F100: 231.2449203 | G100: 481.9451055 | H100: 7.026934939 | I100: 8.214973389 | J100: 28.74377947 | K100: 49.83738361 | L100: 40.43463237 | M100: 487.4587589 | N100: 22.51510634
A101: 1999 - Jan | B101: 59.66666667 | C101: 743.1818879 | D101: 15.23129776 | E101: 2.98556742 | F101: 235.4656584 | G101: 490.8075839 | H101: 6.988293632 | I101: 8.225825429 | J101: 29.35161751 | K101: 50.28622995 | L101: 40.37159593 | M101: 487.0348048 | N101: 22.91026085
A102: 2000 - Jan | B102: 60.66666667 | C102: 719.5583971 | D102: 15.14828002 | E102: 2.983501079 | F102: 239.6864975 | G102: 499.6738555 | H102: 6.949798916 | I102: 8.236382233 | J102: 29.96118258 | K102: 50.73104744 | L102: 40.30637017 | M102: 486.5899631 | N102: 23.30515499
A103: 2001 - Jan | B103: 61.66666667 | C103: 697.0810524 | D103: 15.06554276 | E103: 2.981368604 | F103: 243.9069049 | G103: 508.5427475 | H103: 6.911425566 | I103: 8.246639149 | J103: 30.57237204 | K103: 51.17188692 | L103: 40.23889179 | M103: 486.1236403 | N103: 23.69974384
A104: 2002 - Jan | B104: 62.66666667 | C104: 675.6784131 | D104: 14.98303396 | E104: 2.979166381 | F104: 248.1263445 | G104: 517.413079 | H104: 6.873149148 | I104: 8.256591686 | J104: 31.18508284 | K104: 51.60879627 | L104: 40.16909738 | M104: 485.6352399 | N104: 24.09398221
A105: 2003 - Jan | B105: 63.66666667 | C105: 655.2845044 | D105: 14.90070342 | E105: 2.976890569 | F105: 252.3442778 | G105: 526.28366 | H105: 6.834946062 | I105: 8.266235497 | J105: 31.79921145 | K105: 52.04182053 | L105: 40.09692337 | M105: 485.1241624 | N105: 24.48782456
A106: 2004 - Jan | B106: 64.66666667 | C106: 635.8383238 | D106: 14.81850277 | E106: 2.974537122 | F106: 256.5601632 | G106: 535.1532923 | H106: 6.796793561 | I106: 8.275566376 | J106: 32.41465386 | K106: 52.47100213 | L106: 40.02230611 | M106: 484.5898045 | N106: 24.88122509
A107: 2005 - Jan | B107: 65.66666667 | C107: 617.2834003 | D107: 14.73638555 | E107: 2.972101659 | F107: 260.7734559 | G107: 544.0207693 | H107: 6.75866979 | I107: 8.284580243 | J107: 33.03130559 | K107: 52.89638092 | L107: 39.94518186 | M107: 484.0315592 | N107: 25.27413764
A108: 2006 - Jan | B108: 66.66666667 | C108: 599.5673967 | D108: 14.65430715 | E108: 2.96957963 | F108: 264.9836084 | G108: 552.8848762 | H108: 6.720553764 | I108: 8.293273143 | J108: 33.6490616 | K108: 53.31799439 | L108: 39.86548673 | M108: 483.4488145 | N108: 25.66651578
A109: 2007 - Jan | B109: 67.66666667 | C109: 582.6417524 | D109: 14.57222476 | E109: 2.966966198 | F109: 269.1900703 | G109: 561.7443904 | H109: 6.682425366 | I109: 8.301641238 | J109: 34.26781639 | K109: 53.73587774 | L109: 39.78315668 | M109: 482.8409528 | N109: 26.05831275
A110: 2008 - Jan | B110: 68.66666667 | C110: 566.4613625 | D110: 14.49009737 | E110: 2.964256246 | F110: 273.3922879 | G110: 570.5980818 | H110: 6.644265332 | I110: 8.309680803 | J110: 34.88746392 | K110: 54.15006405 | L110: 39.69812738 | M110: 482.2073498 | N110: 26.44948153
A111: 2009 - Jan | B111: 69.66666667 | C111: 550.9842872 | D111: 14.40788569 | E111: 2.96144437 | F111: 277.589705 | G111: 579.4447125 | H111: 6.606055234 | I111: 8.317388218 | J111: 35.50789759 | K111: 54.56058431 | L111: 39.61033413 | M111: 481.5473734 | N111: 26.83997478
A112: 2010 - Jan | B112: 70.66666667 | C112: 536.17149 | D112: 14.32555209 | E112: 2.958524869 | F112: 281.7817624 | G112: 588.2830376 | H112: 6.567777445 | I112: 8.324759967 | J112: 36.12901032 | K112: 54.9674676 | L112: 39.51971174 | M112: 480.8603819 | N112: 27.22974488
A113: 2011 - Jan | B113: 71.66666667 | C113: 521.9866011 | D113: 14.24306046 | E113: 2.955491724 | F113: 285.9678978 | G113: 597.111805 | H113: 6.529415103 | I113: 8.331792627 | J113: 36.75069444 | K113: 55.37074112 | L113: 39.42619429 | M113: 480.1457224 | N113: 27.61874393
A114: 2012 - Jan | B114: 72.66666667 | C114: 508.3957016 | D114: 14.16037613 | E114: 2.952338652 | F114: 290.1475462 | G114: 605.9297555 | H114: 6.490952067 | I114: 8.338482874 | J114: 37.37284175 | K114: 55.7704303 | L114: 39.32971499 | M114: 479.4027293 | N114: 28.00692373
A115: 2013 - Jan | B115: 73.66666667 | C115: 495.3671306 | D115: 14.07746578 | E115: 2.949058854 | F115: 294.3201394 | G115: 614.7356227 | H115: 6.452372865 | I115: 8.344827457 | J115: 37.99534346 | K115: 56.16655887 | L115: 39.23020588 | M115: 478.6307213 | N115: 28.39423579
A116: 2014 - Jan | B116: 74.66666667 | C116: 482.8713069 | D116: 13.99429721 | E116: 2.94564534 | F116: 298.4851061 | G116: 623.5281329 | H116: 6.413662639 | I116: 8.350823209 | J116: 38.61809018 | K116: 56.55914893 | L116: 39.12759758 | M116: 477.8289998 | N116: 28.78063131
A117: 2015 - Jan | B117: 75.66666667 | C117: 470.880569 | D117: 13.91083923 | E117: 2.942090699 | F117: 302.6418716 | G117: 632.3060054 | H117: 6.374807069 | I117: 8.356467032 | J117: 39.24097191 | K117: 56.94822098 | L117: 39.02181892 | M117: 476.9968459 | N117: 29.16606119
A118: 2016 - Jan | B118: 76.66666667 | C118: 459.3690284 | D118: 13.82706145 | E118: 2.938387128 | F118: 306.7898581 | G118: 641.0679515 | H118: 6.335792299 | I118: 8.361755889 | J118: 39.86387797 | K118: 57.33379401 | L118: 38.91279658 | M118: 476.1335172 | N118: 29.55047599
A119: 2017 - Jan | B119: 77.66666667 | C119: 448.3124366 | D119: 13.74293409 | E119: 2.934526413 | F119: 310.9284836 | G119: 649.8126744 | H119: 6.296604852 | I119: 8.366686795 | J119: 40.48669701 | K119: 57.71588551 | L119: 38.80045467 | M119: 475.2382455 | N119: 29.93382593
A120: 2018 - Jan | B120: 78.66666667 | C120: 437.6880635 | D120: 13.65842773 | E120: 2.930499918 | F120: 315.0571622 | G120: 658.5388686 | H120: 6.257231537 | I120: 8.371256804 | J120: 41.10931687 | K120: 58.09451151 | L120: 38.68471427 | M120: 474.3102324 | N120: 30.3160608
A121: 2019 - Jan | B121: 79.66666667 | C121: 427.4745865 | D121: 13.57351309 | E121: 2.926298559 | F121: 319.1753033 | G121: 667.2452186 | H121: 6.217659343 | I121: 8.375462995 | J121: 41.73162458 | K121: 58.46968659 | L121: 38.56549292 | M121: 473.3486467 | N121: 30.69713001
A122: 2020 - Jan | B122: 80.66666667 | C122: 417.6519888 | D122: 13.48816073 | E122: 2.921912789 | F122: 323.2823114 | G122: 675.9303984 | H122: 6.177875327 | I122: 8.37930246 | J122: 42.35350622 | K122: 58.84142386 | L122: 38.44270406 | M122: 472.3526204 | N122: 31.07698247
A123: 2021 - Jan | B123: 81.66666667 | C123: 408.2014661 | D123: 13.40234073 | E123: 2.917332709 | F123: 327.3775851 | G123: 684.5930705 | H123: 6.137866461 | I123: 8.382772292 | J123: 42.97484688 | K123: 59.20973504 | L123: 38.31625642 | M123: 471.3212445 | N123: 31.45556656
A124: 2022 - Jan | B124: 82.66666667 | C124: 399.1053428 | D124: 13.31602247 | E124: 2.912547823 | F124: 331.4605164 | G124: 693.2318832 | H124: 6.097619573 | I124: 8.385869554 | J124: 43.59553047 | K124: 59.57463034 | L124: 38.18605346 | M124: 470.2535659 | N124: 31.83283006
A125: 2023 - Jan | B125: 83.66666667 | C125: 390.3469944 | D125: 13.22917436 | E125: 2.907546556 | F125: 335.5304895 | G125: 701.8454685 | H125: 6.057121157 | I125: 8.388591257 | J125: 44.21543952 | K125: 59.93611844 | L125: 38.05199264 | M125: 469.148583 | N125: 32.20872
A126: 2024 - Jan | B126: 84.66666667 | C126: 381.9107731 | D126: 13.14176322 | E126: 2.902317852 | F126: 339.5868807 | G126: 710.4324428 | H126: 6.016357235 | I126: 8.390934364 | J126: 44.83445521 | K126: 60.29420658 | L126: 37.9139648 | M126: 468.0052419 | N126: 32.58318272
A127: 2025 - Jan | B127: 85.66666667 | C127: 373.781946 | D127: 13.05375419 | E127: 2.896848978 | F127: 343.6290559 | G127: 718.9914007 | H127: 5.97531318 | I127: 8.392895728 | J127: 45.45245696 | K127: 60.64890032 | L127: 37.77185335 | M127: 466.8224328 | N127: 32.95616358
A128: 2026 - Jan | B128: 86.66666667 | C128: 365.9466318 | D128: 12.96511023 | E128: 2.891127354 | F128: 347.6563706 | G128: 727.5209154 | H128: 5.933973599 | I128: 8.3944721 | J128: 46.06932239 | K128: 61.0002036 | L128: 37.62553368 | M128: 465.5989867 | N128: 33.32760699
A129: 2027 - Jan | B129: 87.66666667 | C129: 358.3917461 | D129: 12.87579176 | E129: 2.885139537 | F129: 351.6681678 | G129: 736.0195344 | H129: 5.892322129 | I129: 8.395660088 | J129: 46.68492702 | K129: 61.34811866 | L129: 37.4748724 | M129: 464.3336719 | N129: 33.69745621
A130: 2028 - Jan | B130: 88.66666667 | C130: 351.1049502 | D130: 12.7857563 | E130: 2.878871403 | F130: 355.6637767 | G130: 744.485777 | H130: 5.850341291 | I130: 8.396456131 | J130: 47.29914405 | K130: 61.69264594 | L130: 37.31972661 | M130: 463.0251916 | N130: 34.06565325
A131: 2029 - Jan | B131: 89.66666667 | C131: 344.0746038 | D131: 12.69495809 | E131: 2.872308129 | F131: 359.6425107 | G131: 752.9181301 | H131: 5.808012329 | I131: 8.396856469 | J131: 47.91184408 | K131: 62.03378398 | L131: 37.15994333 | M131: 461.6721813 | N131: 34.43213866
A132: 2030 - Jan | B132: 90.66666667 | C132: 337.3017304 | D132: 12.59846299 | E132: 2.862470626 | F132: 363.5965463 | G132: 761.3001373 | H132: 5.764242442 | I132: 8.396692691 | J132: 48.52179553 | K132: 62.37092391 | L132: 36.94562955 | M132: 459.7313777 | N132: 34.79619603
A133: 2031 - Jan | B133: 91.66666667 | C133: 330.7761394 | D133: 12.49679636 | E133: 2.851709938 | F133: 367.5243921 | G133: 769.6285953 | H133: 5.718041834 | I133: 8.395948313 | J133: 49.12873851 | K133: 62.70400504 | L133: 36.72060255 | M133: 457.7051189 | N133: 35.1576927
A134: 2032 - Jan | B134: 92.66666667 | C134: 324.4875996 | D134: 12.39060083 | E134: 2.840320554 | F134: 371.4248933 | G134: 777.9010056 | H134: 5.66967191 | I134: 8.394615168 | J134: 49.73246438 | K134: 63.03299553 | L134: 36.48720528 | M134: 455.6177591 | N134: 35.51652707
A135: 2033 - Jan | B135: 93.66666667 | C135: 318.4264037 | D135: 12.28038414 | E135: 2.828320014 | F135: 375.2968995 | G135: 786.1148786 | H135: 5.619390883 | I135: 8.392685537 | J135: 50.33276469 | K135: 63.35786375 | L135: 36.24549676 | M135: 453.4680773 | N135: 35.87259797
A136: 2034 - Jan | B136: 94.66666667 | C136: 312.5889216 | D136: 12.16394302 | E136: 2.813859433 | F136: 379.1355401 | G136: 794.2599324 | H136: 5.567000705 | I136: 8.390069709 | J136: 50.9288524 | K136: 63.67826824 | L136: 35.97112583 | M136: 451.0161147 | N136: 36.2254624
A137: 2035 - Jan | B137: 95.66666667 | C137: 306.9724268 | D137: 12.03908373 | E137: 2.796443634 | F137: 382.9352238 | G137: 802.324371 | H137: 5.511548819 | I137: 8.386665899 | J137: 51.51982421 | K137: 63.9938139 | L137: 35.65912208 | M137: 448.2242078 | N137: 36.57461169
A138: 2036 - Jan | B138: 96.66666667 | C138: 301.5678399 | D138: 11.90713369 | E138: 2.778156922 | F138: 386.6946874 | G138: 810.3054637 | H138: 5.452628581 | I138: 8.382470314 | J138: 52.10544696 | K138: 64.30446923 | L138: 35.33743754 | M138: 445.3788383 | N138: 36.91993528
A139: 2037 - Jan | B139: 97.66666667 | C139: 296.3664749 | D139: 11.76917954 | E139: 2.759168546 | F139: 390.4127385 | G139: 818.2006284 | H139: 5.390778125 | I139: 8.377480837 | J139: 52.68549827 | K139: 64.61020804 | L139: 35.00659018 | M139: 442.4808577 | N139: 37.26132914
A140: 2038 - Jan | B140: 98.66666667 | C140: 291.3600345 | D140: 11.62611255 | E140: 2.739510729 | F140: 394.0882467 | G140: 826.0074142 | H140: 5.326438449 | I140: 8.371696766 | J140: 53.25976526 | K140: 64.91100859 | L140: 34.66701215 | M140: 439.531187 | N140: 37.59869491
A141: 2039 - Jan | B141: 99.66666667 | C141: 286.5406013 | D141: 11.47866564 | E141: 2.719201651 | F141: 397.7201369 | G141: 833.7234865 | H141: 5.259971791 | I141: 8.365118594 | J141: 53.82804359 | K141: 65.2068529 | L141: 34.31906851 | M141: 436.5308151 | N141: 37.93193934
A142: 2040 - Jan | B142: 100.6666667 | C142: 281.9006267 | D142: 11.32744357 | E142: 2.698254843 | F142: 401.307384 | G142: 841.3466169 | H142: 5.191676612 | I142: 8.35774785 | J142: 54.39013673 | K142: 65.49772628 | L142: 33.96307184 | M142: 433.4807976 | N142: 38.26097372
A143: 2041 - Jan | B143: 101.6666667 | C143: 277.4329172 | D143: 11.17294751 | E143: 2.676680595 | F143: 404.8490092 | G143: 848.8746744 | H143: 5.121799787 | I143: 8.349586961 | J143: 54.9458554 | K143: 65.78361685 | L143: 33.59929357 | M143: 430.34847 | N143: 38.58571357
A144: 2042 - Jan | B144: 102.6666667 | C144: 273.1306205 | D144: 11.01559494 | E144: 2.654486664 | F144: 408.3440766 | G144: 856.3056193 | H144: 5.050546505 | I144: 8.340639149 | J144: 55.49501715 | K144: 66.06451525 | L144: 33.22797295 | M144: 427.0158767 | N144: 38.90607831
A145: 2043 - Jan | B145: 103.6666667 | C145: 268.9872104 | D145: 10.85573581 | E145: 2.631678809 | F145: 411.7916909 | G145: 863.6374985 | H145: 4.978088309 | I145: 8.330908346 | J145: 56.03744607 | K145: 66.34041443 | L145: 32.84932419 | M145: 423.4486385 | N145: 39.22199104
A146: 2044 - Jan | B146: 104.6666667 | C146: 264.9964721 | D146: 10.69366565 | E146: 2.608261225 | F146: 415.1909957 | G146: 870.8684416 | H146: 4.90456961 | I146: 8.320399123 | J146: 56.57297252 | K146: 66.61130939 | L146: 32.46354209 | M146: 419.6107356 | N146: 39.5333784
A147: 2045 - Jan | B147: 105.6666667 | C147: 261.152487 | D147: 10.52963619 | E147: 2.584236898 | F147: 418.5411725 | G147: 877.9966583 | H147: 4.830112962 | I147: 8.30911664 | J147: 57.10143305 | K147: 66.87719706 | L147: 32.07080669 | M147: 415.44423 | N147: 39.84017043
A148: 2046 - Jan | B148: 106.6666667 | C148: 257.4496183 | D148: 10.36386391 | E148: 2.559607899 | F148: 421.8414392 | G148: 885.0204367 | H148: 4.754823338 | I148: 8.297066594 | J148: 57.62267022 | K148: 67.13807621 | L148: 31.67128696 | M148: 411.1906234 | N148: 40.14230046
A149: 2047 - Jan | B149: 107.6666667 | C149: 253.8824967 | D149: 10.196537 | E149: 2.534375621 | F149: 425.0910499 | G149: 891.9381421 | H149: 4.678791584 | I149: 8.28425519 | J149: 58.13653262 | K149: 67.3939473 | L149: 31.26514379 | M149: 406.9007515 | N149: 40.43970508
A150: 2048 - Jan | B150: 108.6666667 | C150: 250.4460069 | D150: 10.02782099 | E150: 2.508540993 | F150: 428.2892944 | G150: 898.7482157 | H150: 4.602097215 | I150: 8.270689102 | J150: 58.64287478 | K150: 67.64481249 | L150: 30.8525325 | M150: 402.5776204 | N150: 40.73232407
A151: 2049 - Jan | B151: 109.6666667 | C151: 247.1352741 | D151: 9.857863263 | E151: 2.482104645 | F151: 431.4354979 | G151: 905.4491748 | H151: 4.524810671 | I151: 8.256375454 | J151: 59.14155723 | K151: 67.89067552 | L151: 30.43360484 | M151: 398.224132 | N151: 41.0201004
A152: 2050 - Jan | B152: 110.6666667 | C152: 243.9456517 | D152: 9.686796721 | E152: 2.455067065 | F152: 434.5290208 | G152: 912.0396121 | H152: 4.446995148 | I152: 8.241321796 | J152: 59.63244646 | K152: 68.13154174 | L152: 30.00851074 | M152: 393.8431068 | N152: 41.3029802
A153: 2051 - Jan | B153: 111.6666667 | C153: 240.8727093 | D153: 9.514742752 | E153: 2.427428725 | F153: 437.5692592 | G153: 918.5181961 | H153: 4.368708064 | I153: 8.225536084 | J153: 60.11541503 | K153: 68.36741802 | L153: 29.57739962 | M153: 389.4373005 | N153: 41.58091275
A154: 2052 - Jan | B154: 112.6666667 | C154: 237.912221 | D154: 9.341813606 | E154: 2.399190201 | F154: 440.5556444 | G154: 924.8836714 | H154: 4.29000225 | I154: 8.209026669 | J154: 60.59034156 | K154: 68.59831279 | L154: 29.14042168 | M154: 385.0094166 | N154: 41.85385051
A155: 2053 - Jan | B155: 113.6666667 | C155: 235.0601548 | D155: 9.16811432 | E155: 2.37035227 | F155: 443.4876433 | G155: 931.1348588 | H155: 4.210926909 | I155: 8.191802277 | J155: 61.05711082 | K155: 68.82423602 | L155: 28.69772883 | M155: 380.5621158 | N155: 42.12174911
A156: 2054 - Jan | B156: 114.6666667 | C156: 232.3126623 | D156: 8.993744261 | E156: 2.34091601 | F156: 446.3647589 | G156: 937.270656 | H156: 4.131528386 | I156: 8.173872 | J156: 61.5156138 | K156: 69.04519918 | L156: 28.2494756 | M156: 376.0980223 | N156: 42.38456738
A157: 2055 - Jan | B157: 115.6666667 | C157: 229.6660689 | D157: 8.818798377 | E157: 2.310882885 | F157: 449.1865302 | G157: 943.2900382 | H157: 4.05185079 | I157: 8.155245287 | J157: 61.96574774 | K157: 69.26121529 | L157: 27.79581988 | M157: 371.6197282 | N157: 42.64226737
A158: 2056 - Jan | B158: 116.6666667 | C158: 227.1168645 | D158: 8.643368195 | E158: 2.280254822 | F158: 451.9525325 | G158: 949.1920585 | H158: 3.971936494 | I158: 8.13593193 | J158: 62.40741625 | K158: 69.47229891 | L158: 27.3369236 | M158: 367.1297961 | N158: 42.89481435
A159: 2057 - Jan | B159: 117.6666667 | C159: 224.6616949 | D159: 8.467542625 | E159: 2.249034295 | F159: 454.6623778 | G159: 954.9758484 | H159: 3.891826535 | I159: 8.115942054 | J159: 62.84052934 | K159: 69.67846613 | L159: 26.87295332 | M159: 362.6307602 | N159: 43.14217687
A160: 2058 - Jan | B160: 118.6666667 | C160: 222.2973535 | D160: 8.291408604 | E160: 2.217224392 | F160: 457.3157151 | G160: 960.640619 | H160: 3.811560938 | I160: 8.095286115 | J160: 63.26500352 | K160: 69.87973459 | L160: 26.40408082 | M160: 358.1251266 | N160: 43.38432674
A161: 2059 - Jan | B161: 119.6666667 | C161: 220.0207734 | D161: 8.11505162 | E161: 2.184828895 | F161: 459.9122306 | G161: 966.1856611 | H161: 3.731178972 | I161: 8.073974884 | J161: 63.68076187 | K161: 70.07612352 | L161: 25.93048357 | M161: 353.6153724 | N161: 43.6212391
A162: 2060 - Jan | B162: 120.6666667 | C162: 217.82902 | D162: 7.938556121 | E162: 2.151852342 | F162: 462.4516483 | G162: 971.6103461 | H162: 3.65071936 | I162: 8.052019443 | J162: 64.08773407 | K162: 70.2676537 | L162: 25.45234526 | M162: 349.1039442 | N162: 43.8528924
A163: 2061 - Jan | B163: 121.6666667 | C163: 215.7192841 | D163: 7.762005852 | E163: 2.118300106 | F163: 464.9337296 | G163: 976.9141265 | H163: 3.570220444 | I163: 8.029431177 | J163: 64.48585654 | K163: 70.45434753 | L163: 24.96985627 | M163: 344.5932567 | N163: 44.07926848
A164: 2062 - Jan | B164: 122.6666667 | C164: 213.688875 | D164: 7.585484124 | E164: 2.084178459 | F164: 467.3582746 | G164: 982.0965367 | H164: 3.489720322 | I164: 8.006221767 | J164: 64.87507245 | K164: 70.63622898 | L164: 24.48321414 | M164: 340.0856902 | N164: 44.30035254
A165: 2063 - Jan | B165: 123.6666667 | C165: 211.7352145 | D165: 7.409074031 | E165: 2.049494648 | F165: 469.7251215 | G165: 987.1571936 | H165: 3.40925695 | I165: 7.982403183 | J165: 65.25533178 | K165: 70.81332369 | L165: 23.99262403 | M165: 335.5835883 | N165: 44.5161332
A166: 2064 - Jan | B166: 124.6666667 | C166: 209.8558306 | D166: 7.232858622 | E166: 2.014256962 | F166: 472.0341474 | G166: 992.0957971 | H166: 3.328868234 | I166: 7.957987677 | J166: 65.62659145 | K166: 70.98565892 | L166: 23.49829923 | M166: 331.0892553 | N166: 44.72660251
A167: 2065 - Jan | B167: 125.6666667 | C167: 208.0483521 | D167: 7.056921052 | E167: 1.978474809 | F167: 474.2852684 | G167: 996.9121307 | H167: 3.248592099 | I167: 7.932987778 | J167: 65.9888153 | K167: 71.15326359 | L167: 23.00046155 | M167: 326.6049538 | N167: 44.93175598
A168: 2066 - Jan | B168: 126.6666667 | C168: 206.3105029 | D168: 6.881344696 | E168: 1.942158785 | F168: 476.4784399 | G168: 1001.606062 | H168: 3.168466551 | I168: 7.907416282 | J168: 66.34197419 | K168: 71.3161683 | L168: 22.49934191 | M168: 322.1329016 | N168: 45.13159261
A169: 2067 - Jan | B169: 127.6666667 | C169: 204.6400972 | D169: 6.70621325 | E169: 1.905320751 | F169: 478.613657 | G169: 1006.177545 | H169: 3.088529719 | I169: 7.881286252 | J169: 66.68604607 | K169: 71.47440539 | L169: 21.99518073 | M169: 317.6752698 | N169: 45.3261149
A170: 2068 - Jan | B170: 128.6666667 | C170: 203.0350341 | D170: 6.531610816 | E170: 1.867973912 | F170: 480.6909547 | G170: 1010.626616 | H170: 3.008819903 | I170: 7.854611008 | J170: 67.02101601 | K170: 71.62800887 | L170: 21.48822851 | M170: 313.2341796 | N170: 45.51532889
A171: 2069 - Jan | B171: 129.6666667 | C171: 201.4932936 | D171: 6.357621979 | E171: 1.830132887 | F171: 482.7104082 | G171: 1014.953401 | H171: 2.929375604 | I171: 7.827404121 | J171: 67.34687625 | K171: 71.77701455 | L171: 20.9787463 | M171: 308.8117005 | N171: 45.69924416
A172: 2070 - Jan | B172: 130.6666667 | C172: 200.0129314 | D172: 6.184331868 | E172: 1.791813791 | F172: 484.672133 | G172: 1019.15811 | H172: 2.850235562 | I172: 7.799679413 | J172: 67.6636263 | K172: 71.92145999 | L172: 20.46700621 | M172: 304.4098475 | N172: 45.87787391
A173: 2071 - Jan | B173: 131.6666667 | C173: 198.5920753 | D173: 6.011826218 | E173: 1.753034311 | F173: 486.5762854 | G173: 1023.241041 | H173: 2.771438775 | I173: 7.771450945 | J173: 67.97127292 | K173: 72.06138454 | L173: 19.95329194 | M173: 300.0305794 | N173: 46.05123492
A174: 2072 - Jan | B174: 132.6666667 | C174: 197.2289208 | D174: 5.840191423 | E174: 1.713813786 | F174: 488.4230628 | G174: 1027.20258 | H174: 2.693024532 | I174: 7.742733018 | J174: 68.26983024 | K174: 72.19682941 | L174: 19.43789932 | M174: 295.6757966 | N174: 46.21934761
A175: 2073 - Jan | B175: 133.6666667 | C175: 195.921727 | D175: 5.669514589 | E175: 1.674173285 | F175: 490.212704 | G175: 1031.043202 | H175: 2.615032432 | I175: 7.713540166 | J175: 68.55931975 | K175: 72.32783765 | L175: 18.92113678 | M175: 291.3473394 | N175: 46.38223605
A176: 2074 - Jan | B176: 134.6666667 | C176: 194.6688132 | D176: 5.499883576 | E176: 1.634135679 | F176: 491.945489 | G176: 1034.76347 | H176: 2.537502407 | I176: 7.683887152 | J176: 68.83977041 | K176: 72.45445418 | L176: 18.40332591 | M176: 287.0469865 | N176: 46.53992801
A177: 2075 - Jan | B177: 135.6666667 | C177: 193.4685554 | D177: 5.331387044 | E177: 1.593725723 | F177: 493.6217402 | G177: 1038.364036 | H177: 2.460474744 | I177: 7.653788962 | J177: 69.11121864 | K177: 72.57672587 | L177: 17.88480191 | M177: 282.7764533 | N177: 46.69245496
A178: 2076 - Jan | B178: 136.6666667 | C178: 192.3193822 | D178: 5.164114491 | E178: 1.552970124 | F178: 495.2418216 | G178: 1041.845644 | H178: 2.383990099 | I178: 7.623260807 | J178: 69.3737084 | K178: 72.69470151 | L178: 17.36591408 | M178: 278.537391 | N178: 46.83985211
A179: 2077 - Jan | B179: 137.6666667 | C179: 191.2197724 | D179: 4.998156287 | E179: 1.511897612 | F179: 496.80614 | G179: 1045.209126 | H179: 2.308089516 | I179: 7.592318109 | J179: 69.6272912 | K179: 72.8084319 | L179: 16.84702624 | M179: 274.3313852 | N179: 46.98215844
A180: 2078 - Jan | B180: 138.6666667 | C180: 190.168251 | D180: 4.833603704 | E180: 1.470539007 | F180: 498.3151448 | G180: 1048.455409 | H180: 2.23281444 | I180: 7.560976509 | J180: 69.8720262 | K180: 72.91796981 | L180: 16.32851712 | M180: 270.1599553 | N180: 47.11941669
A181: 2079 - Jan | B181: 139.6666667 | C181: 189.1633865 | D181: 4.670548934 | E181: 1.428927274 | F181: 499.7693283 | G181: 1051.585509 | H181: 2.15820673 | I181: 7.529251851 | J181: 70.10798019 | K181: 73.02337011 | L181: 15.81078069 | M181: 266.0245536 | N181: 47.25167344
A182: 2080 - Jan | B182: 140.6666667 | C182: 188.203788 | D182: 4.509085106 | E182: 1.387097576 | F182: 501.1692258 | G182: 1054.600533 | H182: 2.084308662 | I182: 7.497160189 | J182: 70.33522762 | K182: 73.12468971 | L182: 15.29422643 | M182: 261.9265648 | N182: 47.37897908
A183: 2081 - Jan | B183: 141.6666667 | C183: 187.2881023 | D183: 4.349306283 | E183: 1.345087319 | F183: 502.5154163 | G183: 1057.501685 | H183: 2.011162935 | I183: 7.464717774 | J183: 70.55385068 | K183: 73.22198766 | L183: 14.77927949 | M183: 257.8673054 | N183: 47.50138785
A184: 2082 - Jan | B184: 142.6666667 | C184: 186.415011 | D184: 4.191307452 | E184: 1.302936182 | F184: 503.808522 | G184: 1060.290257 | H184: 1.938812665 | I184: 7.431941055 | J184: 70.76393929 | K184: 73.31532512 | L184: 14.26638077 | M184: 253.8480238 | N184: 47.61895788
A185: 2083 - Jan | B185: 143.6666667 | C185: 185.5832282 | D185: 4.035184497 | E185: 1.260686138 | F185: 505.0492091 | G185: 1062.967638 | H185: 1.867301381 | I185: 7.398846672 | J185: 70.96559111 | K185: 73.40476547 | L185: 13.75598685 | M185: 249.8698998 | N185: 47.73175117
A186: 2084 - Jan | B186: 144.6666667 | C186: 184.7914975 | D186: 3.881034153 | E186: 1.218381454 | F186: 506.2381874 | G186: 1065.53531 | H186: 1.796672998 | I186: 7.365451449 | J186: 71.15891153 | K186: 73.49037425 | L186: 13.24856982 | M186: 245.9340445 | N186: 47.83983359
A187: 2085 - Jan | B187: 145.6666667 | C187: 184.0385903 | D187: 3.728953936 | E187: 1.176068685 | F187: 507.3762105 | G187: 1067.994845 | H187: 1.726971799 | I187: 7.331772392 | J187: 71.34401371 | K187: 73.57221922 | L187: 12.7446169 | M187: 242.0415006 | N187: 47.94327495
A188: 2086 - Jan | B188: 146.6666667 | C188: 183.3233027 | D188: 3.57904205 | E188: 1.133796636 | F188: 508.4640758 | G188: 1070.347913 | H188: 1.658242392 | I188: 7.297826677 | J188: 71.52101852 | K188: 73.65037042 | L188: 12.24462989 | M188: 238.1932424 | N188: 48.04214891
A189: 2087 - Jan | B189: 147.6666667 | C189: 182.6444542 | D189: 3.431397269 | E189: 1.091616307 | F189: 509.5026241 | G189: 1072.596273 | H189: 1.59052966 | I189: 7.263631646 | J189: 71.69005453 | K189: 73.7249001 | L189: 11.74912447 | M189: 234.390176 | N189: 48.13653303
A190: 2088 - Jan | B190: 148.6666667 | C190: 182.0008848 | D190: 3.286118775 | E190: 1.049580817 | F190: 510.4927399 | G190: 1074.74178 | H190: 1.523878698 | I190: 7.229204795 | J190: 71.85125791 | K190: 73.79588279 | L190: 11.25862911 | M190: 230.6331395 | N190: 48.22650873
A191: 2089 - Jan | B191: 149.6666667 | C191: 181.3914537 | D191: 3.143305976 | E191: 1.00774529 | F191: 511.4353503 | G191: 1076.786377 | H191: 1.458334733 | I191: 7.194563766 | J191: 72.00477243 | K191: 73.86339527 | L191: 10.77368392 | M191: 226.9229034 | N191: 48.31216126
A192: 2090 - Jan | B192: 150.6666667 | C192: 180.8150372 | D192: 3.00305827 | E192: 0.9661667175 | F192: 512.331425 | G192: 1078.732101 | H192: 1.393943025 | I192: 7.159726332 | J192: 72.15074926 | K192: 73.92751658 | L192: 10.29483906 | M192: 223.2601709 | N192: 48.39357963
A193: 2091 - Jan | B193: 151.6666667 | C193: 180.2705271 | D193: 2.865474774 | E193: 0.9249037876 | F193: 513.1819755 | G193: 1080.581075 | H193: 1.330748754 | I193: 7.124710384 | J193: 72.28934696 | K193: 73.98832797 | L193: 9.82265295 | M193: 219.6455781 | N193: 48.4708566
A194: 2092 - Jan | B194: 152.6666667 | C194: 179.7568294 | D194: 2.730654006 | E194: 0.8840166752 | F194: 513.9880541 | G194: 1082.335511 | H194: 1.268796879 | I194: 7.089533917 | J194: 72.42073122 | K194: 74.04591288 | L194: 9.357690069 | M194: 216.0796947 | N194: 48.54408856
A195: 2093 - Jan | B195: 153.6666667 | C195: 179.2728627 | D195: 2.598693518 | E195: 0.8435667957 | F195: 514.750753 | G195: 1083.997706 | H195: 1.208131981 | I195: 7.054215008 | J195: 72.54507472 | K195: 74.10035689 | L195: 8.900518512 | M195: 212.5630241 | N195: 48.61337546
A196: 2094 - Jan | B196: 154.6666667 | C196: 178.8175573 | D196: 2.469689471 | E196: 0.8036165198 | F196: 515.471203 | G196: 1085.570039 | H196: 1.148798085 | I196: 7.018771802 | J196: 72.66255689 | K196: 74.15174768 | L196: 8.451707134 | M196: 209.0960038 | N196: 48.67882069
A197: 2095 - Jan | B197: 155.6666667 | C197: 178.389854 | D197: 2.34373617 | E197: 0.7642288474 | F197: 516.1505716 | G197: 1087.054966 | H197: 1.090838449 | I197: 6.983222479 | J197: 72.77336363 | K197: 74.20017491 | L197: 8.01182237 | M197: 205.6790059 | N197: 48.74053093
A198: 2096 - Jan | B198: 156.6666667 | C198: 177.9887036 | D198: 2.220925537 | E198: 0.7254670407 | F198: 516.7900619 | G198: 1088.455021 | H198: 1.034295339 | I198: 6.947585239 | J198: 72.87768703 | K198: 74.24573014 | L198: 7.581424702 | M198: 202.3123373 | N198: 48.798616
A199: 2097 - Jan | B199: 157.6666667 | C199: 177.6130659 | D199: 2.101346532 | E199: 0.687394218 | F199: 517.3909099 | G199: 1089.772807 | H199: 0.9792097772 | I199: 6.911878267 | J199: 72.97572496 | K199: 74.28850671 | L199: 7.161064797 | M199: 198.9962404 | N199: 48.85318868
A200: 2098 - Jan | B200: 158.6666667 | C200: 177.26191 | D200: 1.985084532 | E200: 0.6500729091 | F200: 517.9543823 | G200: 1091.010993 | H200: 0.9256212625 | I200: 6.876119702 | J200: 73.06768072 | K200: 74.32859963 | L200: 6.751279335 | M200: 195.7308933 | N200: 48.90436449
A201: 2099 - Jan | B201: 159.6666667 | C201: 176.9342136 | D201: 1.872220654 | E201: 0.6135645759 | F201: 518.4817739 | G201: 1092.172308 | H201: 0.8735674755 | I201: 6.840327607 | J201: 73.1537625 | K201: 74.36610536 | L201: 6.352586559 | M201: 192.5164102 | N201: 48.95226144
A202: 2100 - Jan | B202: 160.6666667 | C202: 176.6289633 | D202: 1.762831046 | E202: 0.5779291023 | F202: 518.9744048 | G202: 1093.259535 | H202: 0.8230839609 | I202: 6.804519927 | J202: 73.23418299 | K202: 74.40112168 | L202: 5.9654816 | M202: 189.352842 | N202: 48.99699979

Sheet Radiation, vpd, frost _Ex 2
A1: Predicting Climatic Variables from temperature extremes
A3: EXERCISE 2 | S3: EUGENE, OR
B4: If mean monthly (av. daily) temperature extremes are | I4: Eugene Oregon. 44.12 oN Latitude, 123.22 oW. Long., Elevation 150 m | Q4: VARIABLES | R4: Jan | S4: Feb | T4: Mar | U4: Apr | V4: May | W4: Jun | X4: Jul | Y4: Aug | Z4: Sep | AA4: Oct | AB4: Nov | AC4: Dec | AD4: Annual
B5: available, it is possible to predict three climatic | Q5: Avg. Temperature | R5: 4.9 | S5: 6.8 | T5: 8.6 | U5: 10.3 | V5: 13.2 | W5: 16.7 | X5: 19.6 | Y5: 19.8 | Z5: 17.1 | AA5: 12.3 | AB5: 7.8 | AC5: 5.1 | AD5: 11.8
B6: variables used in the 3-PG model. | I6: Temp. oC | J6: Temp., oC | K6: Rad. Predicted | L6: Rad. Observed | M6: Predicted | N6: Observed | O6: Predicted | P6: Observed | Q6: Avg. Max Temperature | R6: 8 | S6: 10.8 | T6: 13.3 | U6: 15.8 | V6: 19.5 | W6: 23.4 | X6: 27.6 | Y6: 27.7 | Z6: 24.6 | AA6: 18.1 | AB6: 11.3 | AC6: 7.9 | AD6: 17.3
H7: Month | I7: Mean Max | J7: Mean Min | K7: MJ/m2/day | L7: MJ/m2/day | M7: VPD, mb (62% max VPD) | N7: VPD, 24hr, mb | O7: day <2oC | P7: days <0oC | Q7: Avg. Min Temperature | R7: 1.8 | S7: 2.8 | T7: 3.8 | U7: 4.8 | V7: 6.9 | W7: 9.8 | X7: 11.6 | Y7: 11.8 | Z7: 9.6 | AA7: 6.4 | AB7: 4.3 | AC7: 2.2 | AD7: 6.3
A8: SOLAR RAD | B8: 1) copy Mean Max and Min temperatures | H8: Jan | I8: 8 | J8: 1.8 | K8: 10 | L8: 4.68 | M8: 5 | N8: 4.625587655 | O8: 5 | P8: 14 | Q8: Avg. Relative Humidity | R8: 66.5 | S8: 86 | T8: 81.5 | U8: 77 | V8: 74.5 | W8: 72.5 | X8: 68.5 | Y8: 63.5 | Z8: 64 | AA8: 68 | AB8: 78 | AC8: 85.5 | AD8: 87.5
B9: from the adjacent table and insert them | H9: Feb | I9: 10.8 | J9: 2.8 | K9: 10 | L9: 7.2 | M9: 5 | N9: 6.424581601 | O9: 5 | P9: 10 | Q9: Mean Sat. VP | R9: =6.1078*EXP((17.269*R7)/(237.3+R7)) -> 6.955770909 | S9: =6.1078*EXP((17.269*S7)/(237.3+S7)) -> 7.470443722 | T9: 8.018448843 | U9: 8.601621927 | V9: 9.94939117 | W9: 12.11514304 | X9: 13.65887459 | Y9: 13.84062895 | Z9: 11.95347813 | AA9: 9.612666158 | AB9: 8.305521492 | AC9: 7.15775431 | AD9: 9.5465393
B10: under the same columns labels on the Radiation | H10: Mar | I10: 13.3 | J10: 3.8 | K10: 10 | L10: 11.16 | M10: 5 | N10: 6.535035807 | O10: 5 | P10: 7 | Q10: Mean VPD at mean T | R10: =R9*R8/100 -> 4.625587655 | S10: =S9*S8/100 -> 6.424581601 | T10: 6.535035807 | U10: 6.623248884 | V10: 7.412296421 | W10: 8.783478706 | X10: 9.356329092 | Y10: 8.78879938 | Z10: 7.650226003 | AA10: 6.536612987 | AB10: 6.478306764 | AC10: 6.119879935 | AD10: 8.353221887
B11: Calculation page. After inserting Elevation (150 m) | H11: Apr | I11: 15.8 | J11: 4.8 | K11: 25 | L11: 15.84 | M11: 5 | N11: 6.623248884 | O11: 5 | P11: 2
B12: and Latitude (+44.12), Insert Months, 1 through 12 | H12: May | I12: 19.5 | J12: 6.9 | K12: 25 | L12: 19.8 | M12: 10 | N12: 7.412296421 | O12: 2 | P12: 0
B13: and copy values into the Rad. Predicted column | H13: Jun | I13: 23.4 | J13: 9.8 | K13: 25 | L13: 22.32 | M13: 10 | N13: 8.783478706 | O13: 2 | P13: 0
B14: in the adjacent table. | H14: Jul | I14: 27.6 | J14: 11.6 | K14: 25 | L14: 24.12 | M14: 10 | N14: 9.356329092 | O14: 2 | P14: 0
B15: Fit linear relation to trend line and determine slope (forced through zero) | H15: Aug | I15: 27.7 | J15: 11.8 | K15: 25 | L15: 20.88 | M15: 10 | N15: 8.78879938 | O15: 2 | P15: 0
B16: and r2. | H16: Sep | I16: 24.6 | J16: 9.6 | K16: 10 | L16: 15.84 | M16: 10 | N16: 7.650226003 | O16: 2 | P16: 0.5
H17: Oct | I17: 18.1 | J17: 6.4 | K17: 10 | L17: 9.72 | M17: 5 | N17: 6.536612987 | O17: 5 | P17: 2
A18: VPD | B18: 2) Go to 3-PG function tools and substitute | H18: Nov | I18: 11.3 | J18: 4.3 | K18: 10 | L18: 5.04 | M18: 5 | N18: 6.478306764 | O18: 5 | P18: 7
B19: mean max and min monthly temperatures into | H19: Dec | I19: 7.9 | J19: 2.2 | K19: 10 | L19: 3.6 | M19: 5 | N19: 6.119879935 | O19: 5 | P19: 11
B20: tables to solve for mean daily vapor pressure deficits
B21: (vpd) each month; insert values in adjacent table
B22: Fit linear relation to trend line and determine slope (not forced through zero)
B23: and r2 .
A24: FROST DAYS
B25: 3) Go to 3-PG function tools and substitute
B26: mean max and min monthly tempertures into
B27: table to solve for No. of frost days (<-2o C each month;
B28: insert values in adjacent table.
B29: Fit linear relation to trend line and determine slope (forced through zero)
B30: and r2.
A53: 82. Coops, N.C., R.H. Waring, and J. Moncrieff. 2000. Estimating mean monthly incident solar radiation on horizontal and inclined slopes from mean monthly temperature extremes. Journal of Biometeorology 44:204-211.pdf.
A54: Thornton, P.E., S.W. Running, and M.A. White. 1997. Predicting surface daily
A55: meteorlogical variables over large regions of complex terrain. J. Hydrology 19:214-251.

Sheet Radiation, vpd, frost _Ex 2 ANS
A1: Predicting Climatic Variables from temperature extremes
A3: EXERCISE 2 | S3: EUGENE, OR
B4: If mean monthly (av. daily) temperature extremes are | I4: Eugene Oregon. 44.12 oN Latitude, 123.22 oW. Long., Elevation 150 m | Q4: VARIABLES | R4: Jan | S4: Feb | T4: Mar | U4: Apr | V4: May | W4: Jun | X4: Jul | Y4: Aug | Z4: Sep | AA4: Oct | AB4: Nov | AC4: Dec | AD4: Annual
B5: available, it is possible to predict three climatic | Q5: Avg. Temperature | R5: 4.9 | S5: 6.8 | T5: 8.6 | U5: 10.3 | V5: 13.2 | W5: 16.7 | X5: 19.6 | Y5: 19.8 | Z5: 17.1 | AA5: 12.3 | AB5: 7.8 | AC5: 5.1 | AD5: 11.8
B6: variables used in the 3-PG model. | I6: Temp. oC | J6: Temp., oC | K6: Rad. Predicted | L6: Rad. Observed | M6: Predicted | N6: Observed | O6: Predicted | P6: Observed | Q6: Avg. Max Temperature | R6: 8 | S6: 10.8 | T6: 13.3 | U6: 15.8 | V6: 19.5 | W6: 23.4 | X6: 27.6 | Y6: 27.7 | Z6: 24.6 | AA6: 18.1 | AB6: 11.3 | AC6: 7.9 | AD6: 17.3
H7: Month | I7: Mean Max | J7: Mean Min | K7: MJ/m2/day | L7: MJ/m2/day | M7: VPD, mb (62% max VPD) | N7: VPD, 24hr, mb | O7: day <2oC | P7: days <0oC | Q7: Avg. Min Temperature | R7: 1.8 | S7: 2.8 | T7: 3.8 | U7: 4.8 | V7: 6.9 | W7: 9.8 | X7: 11.6 | Y7: 11.8 | Z7: 9.6 | AA7: 6.4 | AB7: 4.3 | AC7: 2.2 | AD7: 6.3
A8: SOLAR RAD | B8: 1) copy Mean Max and Min temperatures | H8: Jan | I8: 8 | J8: 1.8 | K8: 4.5 | L8: 4.68 | M8: 2.338154067 | N8: 4.625587655 | O8: 8 | P8: 14 | Q8: Avg. Relative Humidity | R8: 66.5 | S8: 86 | T8: 81.5 | U8: 77 | V8: 74.5 | W8: 72.5 | X8: 68.5 | Y8: 63.5 | Z8: 64 | AA8: 68 | AB8: 78 | AC8: 85.5 | AD8: 87.5
B9: from the adjacent table and insert them | H9: Feb | I9: 10.8 | J9: 2.8 | K9: 7.9 | L9: 7.2 | M9: 3.398969664 | N9: 6.424581601 | O9: 6 | P9: 10 | Q9: Mean Sat. VP | R9: =6.1078*EXP((17.269*R7)/(237.3+R7)) -> 6.955770909 | S9: =6.1078*EXP((17.269*S7)/(237.3+S7)) -> 7.470443722 | T9: 8.018448843 | U9: 8.601621927 | V9: 9.94939117 | W9: 12.11514304 | X9: 13.65887459 | Y9: 13.84062895 | Z9: 11.95347813 | AA9: 9.612666158 | AB9: 8.305521492 | AC9: 7.15775431 | AD9: 9.5465393
B10: under the same columns labels on the Radiation | H10: Mar | I10: 13.3 | J10: 3.8 | K10: 13.3 | L10: 11.16 | M10: 4.497738885 | N10: 6.535035807 | O10: 4 | P10: 7 | Q10: Mean VPD at mean T | R10: =R9*R8/100 -> 4.625587655 | S10: =S9*S8/100 -> 6.424581601 | T10: 6.535035807 | U10: 6.623248884 | V10: 7.412296421 | W10: 8.783478706 | X10: 9.356329092 | Y10: 8.78879938 | Z10: 7.650226003 | AA10: 6.536612987 | AB10: 6.478306764 | AC10: 6.119879935 | AD10: 8.353221887
B11: Calculation page. After inserting Elevation (150 m) | H11: Apr | I11: 15.8 | J11: 4.8 | K11: 19.9 | L11: 15.84 | M11: 5.79610254 | N11: 6.623248884 | O11: 2 | P11: 2
B12: and Latitude (+44.12), Insert Months, 1 through 12 | H12: May | I12: 19.5 | J12: 6.9 | K12: 24.3 | L12: 19.8 | M12: 7.884506737 | N12: 7.412296421 | O12: 0 | P12: 0
B13: and copy values into the Rad. Predicted column | H13: Jun | I13: 23.4 | J13: 9.8 | K13: 25.9 | L13: 22.32 | M13: 10.33083322 | N13: 8.783478706 | O13: 0 | P13: 0
B14: in the adjacent table. | H14: Jul | I14: 27.6 | J14: 11.6 | K14: 25.2 | L14: 24.12 | M14: 14.42361097 | N14: 9.356329092 | O14: 0 | P14: 0
B15: Fit linear relation to trend line and determine slope (forced through zero) | H15: Aug | I15: 27.7 | J15: 11.8 | K15: 21.9 | L15: 20.88 | M15: 14.44494994 | N15: 8.78879938 | O15: 0 | P15: 0
B16: and r2. | H16: Sep | I16: 24.6 | J16: 9.6 | K16: 15.9 | L16: 15.84 | M16: 11.76351873 | N16: 7.650226003 | O16: 0 | P16: 0.5
H17: Oct | I17: 18.1 | J17: 6.4 | K17: 9.6 | L17: 9.72 | M17: 6.91622901 | N17: 6.536612987 | O17: 0 | P17: 2
A18: VPD | B18: 2) Go to 3-PG function tools and substitute | H18: Nov | I18: 11.3 | J18: 4.3 | K18: 5.3 | L18: 5.04 | M18: 3.152484837 | N18: 6.478306764 | O18: 3 | P18: 7
B19: mean max and min monthly temperatures into | H19: Dec | I19: 7.9 | J19: 2.2 | K19: 3.8 | L19: 3.6 | M19: 2.167766041 | N19: 6.119879935 | O19: 7.2 | P19: 11
B20: tables to solve for mean daily vapor pressure deficits
B21: (vpd) each month; insert values in adjacent table
B22: Fit linear relation to trend line and determine slope (not forced through zero)
B23: and r2 .
A24: FROST DAYS
B25: 3) Go to 3-PG function tools and substitute
B26: mean max and min monthly tempertures into
B27: table to solve for No. of frost days (<-2o C each month;
B28: insert values in adjacent table.
B29: Fit linear relation to trend line and determine slope (forced through zero)
B30: and r2.
A53: 82. Coops, N.C., R.H. Waring, and J. Moncrieff. 2000. Estimating mean monthly incident solar radiation on horizontal and inclined slopes from mean monthly temperature extremes. Journal of Biometeorology 44:204-211.pdf.
A54: Thornton, P.E., S.W. Running, and M.A. White. 1997. Predicting surface daily
A55: meteorlogical variables over large regions of complex terrain. J. Hydrology 19:214-251.

Sheet Douglas fir thinning Ex 3a
A7: Run type: | B7: SingleSite
A9: Site : | B9: Douglas-fir
A10: Species = | B10: Doug fir
A11: Title: | B11: Douglas-fir Thinning Experiment
O14: Optional parameter block
P15: Parameters
A16: Stand initialisation and site factor data | G16: Optimum | P16: WSx1000= | Q16: 75
B17: Month planted= | C17: May | E17: Latitude = | F17: 44 | H17: Climate data | I17: Tmax | J17: Tmin | K17: Rain | L17: Solar rad | M17: Frost days | P17: fN0= | Q17: 0.37 | R17: [These parameters link soil fertility to max. canopy quantum efficiency (range 0.02-0.055 mol C/mol APAR)
B18: Year planted = | C18: 1939 | E18: Fertility rating = | F18: 0.4 | H18: January | I18: 6.6 | J18: 0.43 | K18: 364.5270833 | L18: 4.2 | M18: 0 | P18: fNn= | Q18: 1
B19: Initial year = | C19: 1 | E19: Soil class = | F19: cl | H19: Feb | I19: 9.2 | J19: 0.8 | K19: 264.4425532 | L19: 4.8 | M19: 0 | P19: alpha= | Q19: 0.055
B20: Initial month = | C20: January | E20: Maximum ASW = | F20: 300 | H20: March | I20: 11.1 | J20: 1.4 | K20: 255.8148936 | L20: 7.3 | M20: 0
B21: End age = | C21: 40 | E21: Minimum ASW = | F21: 0 | H21: April | I21: 14.5 | J21: 2.9 | K21: 200 | L21: 13.3 | M21: 0 | O21: Silvicultural events
B22: Initial WF = | C22: 2 | E22: Atmospheric CO2 = | F22: 350 | H22: may | I22: 18.8 | J22: 6.611111111 | K22: 200 | L22: 16.7 | M22: 0
B23: Initial WR = | C23: 2 | H23: June | I23: 22.88888889 | J23: 9.166666667 | K23: 200 | L23: 16.8 | M23: 0 | O23: Thinning
B24: Initial WS = | C24: 2 | H24: July | I24: 27.22222222 | J24: 10.77777778 | K24: 200 | L24: 21.2 | M24: 0 | O24: Age | P24: Stocking | Q24: F | R24: R | S24: S
B25: Initial stocking = | C25: 1000 | H25: Aug | I25: 27.44444444 | J25: 10.61111111 | K25: 200 | L25: 15.4 | M25: 0 | O25: 20 | P25: 200 | Q25: 1 | R25: 1 | S25: 1 | V25: Note: this example assumes thinned trees
B26: Initial ASW = | C26: 300 | H26: Sep | I26: 22.6 | J26: 7.7 | K26: 200 | L26: 15.8 | M26: 0 | V26: to be of average diameter. Normally, foresters | Y26: S ilvicultural events
H27: Oct | I27: 16.7 | J27: 4.1 | K27: 167.606383 | L27: 10.1 | M27: 0 | T27: would select smaller trees to thin. | Y27: D efoliation
C28: Output frequency : | D28: a | H28: Nov | I28: 9.8 | J28: 1.9 | K28: 372.6851064 | L28: 3.9 | M28: 0 | T28: To model this,set the fraction of Foliage, Roots, | Y28: Age | Z28: Foliage Remaining
H29: Dec | I29: 8.111111111 | J29: 0.65 | K29: 386.6851064 | L29: 3.4 | M29: 0 | T29: and Stems to 0.75 | Y29: 20 | Z29: 0.25
B30: Output details
C31: Output frequency : | D31: Annual
C32: Output data :
C33: Output sheet :
C34: Output ages :
A42: #Output from 3PGpjs 2.7 / 3-PG vsn 1 Sep2009
A43: Stand development for Douglas-fir
A44: Douglas-fir Thinning Experiment
A45: Year & month | B45: Stand age | C45: Stems | D45: Foliage DM | E45: Root DM | F45: Stem DM | G45: Stand volume | H45: LAI | I45: MAI | J45: Mean DBH | K45: Basal area | L45: GPP | M45: Penman transp. | Q45: Growth Efficiency
A46: 1940 - Jan | B46: 0.6666666667 | C46: 1000 | D46: 2 | E46: 2 | F46: 2 | G46: 4.245521642 | H46: 1.1 | I46: 6.368282464 | J46: 3.669071619 | K46: 1.057309805
A47: 1941 - Jan | B47: 1.666666667 | C47: 1000 | D47: 2.359662847 | E47: 0.4156804318 | F47: 2.398977905 | G47: 5.084810533 | H47: 1.212134631 | I47: 3.05088632 | J47: 3.953540531 | K47: 1.227615243 | L47: 3.521831712 | M47: 514.9307735
A48: 1942 - Jan | B48: 2.666666667 | C48: 1000 | D48: 2.978073353 | E48: 0.5335869406 | F48: 3.172591187 | G48: 6.715051038 | H48: 1.504065177 | I48: 2.518144139 | J48: 4.434238579 | K48: 1.544286922 | L48: 6.735679928 | M48: 519.7849762 | Q48: =(F48-F47)/H48 -> 0.514348243
A49: 1943 - Jan | B49: 3.666666667 | C49: 1000 | D49: 3.716570607 | E49: 0.7658506386 | F49: 4.329699049 | G49: 9.152015902 | H49: 1.896930921 | I49: 2.496004337 | J49: 5.037997505 | K49: 1.993451976 | L49: 9.906193483 | M49: 526.5709158 | Q49: 0.6099894571
A50: 1944 - Jan | B50: 4.666666667 | C50: 1000 | D50: 4.490380497 | E50: 1.005077107 | F50: 5.881920368 | G50: 12.41758934 | H50: 2.326082103 | I50: 2.660912001 | J50: 5.713248434 | K50: 2.563634456 | L50: 13.06153398 | M50: 534.0577222 | Q50: 0.6673114918
A51: 1945 - Jan | B51: 5.666666667 | C51: 1000 | D51: 5.302760337 | E51: 1.244559882 | F51: 7.840221737 | G51: 16.5325185 | H51: 2.772508478 | I51: 2.917503264 | J51: 6.428660905 | K51: 3.245868478 | L51: 16.21228939 | M51: 541.8041689 | Q51: 0.7063283612
A52: 1946 - Jan | B52: 6.666666667 | C52: 1000 | D52: 6.180121521 | E52: 1.484691082 | F52: 10.21516785 | G52: 21.51693433 | H52: 3.248017827 | I52: 3.22754015 | J52: 7.16633305 | K52: 4.033516679 | L52: 19.37085127 | M52: 549.9969184 | Q52: 0.7311986089
A53: 1947 - Jan | B53: 7.666666667 | C53: 1000 | D53: 7.132188847 | E53: 1.726110642 | F53: 13.01707106 | G53: 27.39065648 | H53: 3.762812743 | I53: 3.572694323 | J53: 7.916115669 | K53: 4.921688739 | L53: 22.54731001 | M53: 558.8301183 | Q53: 0.7446299863
A54: 1948 - Jan | B54: 8.666666667 | C54: 1000 | D54: 8.153397485 | E54: 1.968932694 | F54: 16.2553737 | G54: 34.17188363 | H54: 4.317346499 | I54: 3.942909649 | J54: 8.672038164 | K54: 5.906527663 | L54: 25.74363477 | M54: 568.3206515 | Q54: 0.7500678121
A55: 1949 - Jan | B55: 9.666666667 | C55: 1000 | D55: 9.231732841 | E55: 2.212907881 | F55: 19.93821979 | G55: 41.87628872 | H55: 4.906331609 | I55: 4.332029867 | J55: 9.430408017 | K55: 6.984749707 | L55: 28.95634826 | M55: 577.8410467 | Q55: 0.7506313027
A56: 1950 - Jan | B56: 10.66666667 | C56: 1000 | D56: 10.35412175 | E56: 2.457686927 | F56: 24.07242915 | G56: 50.51696269 | H56: 5.5226949 | I56: 4.735965252 | J56: 10.18885235 | K56: 8.153431357 | L56: 32.18048392 | M56: 581.2053654 | Q56: 0.7485855076
A57: 1951 - Jan | B57: 11.66666667 | C57: 1000 | D57: 11.50873493 | E57: 2.702961553 | F57: 28.66368717 | G57: 60.10480896 | H57: 6.159562709 | I57: 5.151840768 | J57: 10.94581526 | K57: 9.409923858 | L57: 35.41165959 | M57: 581.2049951 | Q57: 0.745387008
A58: 1952 - Jan | B58: 12.66666667 | C58: 1000 | D58: 12.68570022 | E58: 2.948503941 | F58: 33.71678226 | G58: 70.64903504 | H58: 6.811004121 | I58: 5.577555398 | J58: 11.70027214 | K58: 10.75181561 | L58: 38.64664448 | M58: 581.2045098 | Q58: 0.7419016346
A59: 1953 - Jan | B59: 13.66666667 | C59: 1000 | D59: 13.87712721 | E59: 3.194160604 | F59: 39.23581556 | G59: 82.15758312 | H59: 7.472191498 | I59: 6.011530472 | J59: 12.45155457 | K59: 12.17690826 | L59: 41.88326638 | M59: 581.203888 | Q59: 0.7386097246
A60: 1954 - Jan | B60: 14.66666667 | C60: 1000 | D60: 15.07687567 | E60: 3.439833882 | F60: 45.22436385 | G60: 94.63746082 | H60: 8.139324932 | I60: 6.452554146 | J60: 13.19923705 | K60: 13.68319572 | L60: 45.12014497 | M60: 581.2031061 | Q60: 0.7357549105
A61: 1955 - Jan | B61: 15.66666667 | C61: 1000 | D61: 16.23929658 | E61: 3.635263896 | F61: 51.62925875 | G61: 107.9771503 | H61: 8.80176961 | I61: 6.892158532 | J61: 13.93681974 | K61: 15.25517687 | L61: 47.94113843 | M61: 581.2021388 | Q61: 0.7276826343
A62: 1956 - Jan | B62: 16.66666667 | C62: 1000 | D62: 17.14564132 | E62: 3.663070098 | F62: 58.1168352 | G62: 121.4792185 | H62: 9.36468837 | I62: 7.288753112 | J62: 14.6307707 | K62: 16.81218998 | L62: 48.25741686 | M62: 581.2009589 | Q62: 0.6927701374
A63: 1957 - Jan | B63: 17.66666667 | C63: 1000 | D63: 17.83451269 | E63: 3.671027386 | F63: 64.65246229 | G63: 135.0724889 | H63: 9.795334971 | I63: 7.64561258 | J63: 15.28507661 | K63: 18.34953744 | L63: 48.35328614 | M63: 581.1995371 | Q63: 0.667218335
A64: 1958 - Jan | B64: 18.66666667 | C64: 1000 | D64: 18.3523669 | E64: 3.675340865 | F64: 71.22787782 | G64: 148.740919 | H64: 10.12063032 | I64: 7.968263517 | J64: 15.90509856 | K64: 19.86838699 | L64: 48.41265186 | M64: 581.1978427 | Q64: 0.6497041514
A65: 1959 - Jan | B65: 19.66666667 | C65: 948.0202673 | D65: 18.73434282 | E65: 3.650781622 | F65: 77.02867942 | G65: 160.7857229 | H65: 10.36304253 | I65: 8.175545232 | J65: 16.78851239 | K65: 20.98610949 | L65: 48.4507744 | M65: 581.1958427 | Q65: 0.559758544
A66: 1960 - Jan | B66: 20.66666667 | C66: 200 | D66: 5.37489747 | E66: 2.16623503 | F66: 20.06904416 | G66: 41.87467202 | H66: 5.261525599 | I66: 2.026193807 | J66: 18.30803705 | K66: 5.265061425 | L66: 41.52800684 | M66: 556.549865 | Q66: -10.82568814
A67: 1961 - Jan | B67: 21.66666667 | C67: 200 | D67: 7.749643437 | E67: 3.078274097 | F67: 25.69567631 | G67: 53.59556092 | H67: 3.792761976 | I67: 2.473641273 | J67: 20.26305423 | K67: 6.44955411 | L67: 40.48400433 | M67: 557.6428994 | Q67: 1.483518393
A68: 1962 - Jan | B68: 22.66666667 | C68: 200 | D68: 9.891147118 | E68: 3.382413901 | F68: 31.93084071 | G68: 66.57892039 | H68: 5.047235187 | I68: 2.937305311 | J68: 22.15328564 | K68: 7.708966735 | L68: 44.37464139 | M68: 577.4343338 | Q68: 1.235362365
A69: 1963 - Jan | B69: 23.66666667 | C69: 200 | D69: 11.67723945 | E69: 3.517950634 | F69: 38.48722007 | G69: 80.22568688 | H69: 6.124007057 | I69: 3.389817755 | J69: 23.91852188 | K69: 8.986458069 | L69: 46.23134391 | M69: 581.1840649 | Q69: 1.070602843
A70: 1964 - Jan | B70: 24.66666667 | C70: 200 | D70: 13.10973462 | E70: 3.583976657 | F70: 45.22550938 | G70: 94.246032 | H70: 7.000439615 | I70: 3.820785081 | J70: 25.55633801 | K70: 10.25928569 | L70: 47.14484336 | M70: 581.1799793 | Q70: 0.9625523082
A71: 1965 - Jan | B71: 25.66666667 | C71: 200 | D71: 14.23368084 | E71: 3.618587776 | F71: 52.07804026 | G71: 108.4996914 | H71: 7.69399588 | I71: 4.227260704 | J71: 27.08020969 | K71: 11.51924255 | L71: 47.62521119 | M71: 581.1753519 | Q71: 0.8906335514
A72: 1966 - Jan | B72: 26.66666667 | C72: 200 | D72: 15.10259559 | E72: 3.638048123 | F72: 59.00960078 | G72: 122.9141132 | H72: 8.233392694 | I72: 4.609279246 | J72: 28.50561791 | K72: 12.76382368 | L72: 47.89582074 | M72: 581.1701369 | Q72: 0.8418838725
A73: 1967 - Jan | B73: 27.66666667 | C73: 200 | D73: 15.76616508 | E73: 3.649666775 | F73: 66.00022522 | G73: 137.448517 | H73: 8.64744161 | I73: 4.968018687 | J73: 29.84635864 | K73: 13.99273417 | L73: 48.05754497 | M73: 581.1642865 | Q73: 0.8084037746
A74: 1968 - Jan | B74: 28.66666667 | C74: 200 | D74: 16.26675391 | E74: 3.656936171 | F74: 73.03761281 | G74: 152.0780656 | H74: 8.961454243 | I74: 5.3050488 | J74: 31.1139368 | K74: 15.20651895 | L74: 48.15874488 | M74: 581.1577512 | Q74: 0.7852952653
A75: 1969 - Jan | B75: 29.66666667 | C75: 200 | D75: 16.63913192 | E75: 3.661637841 | F75: 80.11361214 | G75: 166.7865275 | H75: 9.19649745 | I75: 5.62201778 | J75: 32.3177844 | K75: 16.40601242 | L75: 48.22415926 | M75: 581.1504795 | Q75: 0.7694232905
A76: 1970 - Jan | B76: 30.66666667 | C76: 200 | D76: 16.91127886 | E76: 3.664739149 | F76: 87.2224822 | G76: 181.5626486 | H76: 9.369650168 | I76: 5.92052115 | J76: 33.4656349 | K76: 17.59211335 | L76: 48.26724748 | M76: 581.142418 | Q76: 0.7587124309
A77: 1971 - Jan | B77: 31.66666667 | C77: 200 | D77: 17.10545791 | E77: 3.666796077 | F77: 94.35997435 | G77: 196.3982383 | H77: 9.494560724 | I77: 6.202049632 | J77: 34.56387097 | K77: 18.76569388 | L77: 48.2957538 | M77: 581.1335116 | Q77: 0.75174538
A78: 1972 - Jan | B78: 32.66666667 | C78: 200 | D78: 17.2392591 | E78: 3.668144761 | F78: 101.5228172 | G78: 211.2870966 | H78: 9.582042228 | I78: 6.467972344 | J78: 35.61780753 | K78: 19.92756538 | L78: 48.31436229 | M78: 581.1237033 | Q78: 0.7475277911
A79: 1973 - Jan | B79: 33.66666667 | C79: 200 | D79: 17.32651382 | E79: 3.66899772 | F79: 108.7084109 | G79: 226.2243777 | H79: 9.640613343 | I79: 6.719535972 | J79: 36.63191229 | K79: 21.07846876 | L79: 48.32603411 | M79: 581.1129342 | Q79: 0.7453461115
A80: 1974 - Jan | B80: 34.66666667 | C80: 200 | D80: 17.37805936 | E80: 3.669494684 | F80: 115.9146362 | G80: 241.206195 | H80: 9.676958223 | I80: 6.95787101 | J80: 37.60997569 | K80: 22.21907539 | L80: 48.33271525 | M80: 581.1011436 | Q80: 0.7446787667
A81: 1975 - Jan | B81: 35.66666667 | C81: 200 | D81: 17.4023626 | E81: 3.669730711 | F81: 123.1397302 | G81: 256.2293627 | H81: 9.696305184 | I81: 7.184000824 | J81: 38.55524171 | K81: 23.34999207 | L81: 48.33572845 | M81: 581.0882688 | Q81: 0.7451388817
A82: 1976 - Jan | B82: 36.66666667 | C82: 200 | D82: 17.40602163 | E82: 3.669772379 | F82: 130.3822015 | G82: 271.2912218 | H82: 9.702732895 | I82: 7.398851503 | J82: 39.47050915 | K82: 24.4717673 | L82: 48.33599908 | M82: 581.0742456 | Q82: 0.7464362244
A83: 1977 - Jan | B83: 37.66666667 | C83: 200 | D83: 17.39416564 | E83: 3.669667474 | F83: 137.6407708 | G83: 286.3895177 | H83: 9.699415295 | I83: 7.603261532 | J83: 40.35821079 | K83: 25.58489775 | L83: 48.33419041 | M83: 581.0590076 | Q83: 0.7483512191
A84: 1978 - Jan | B84: 38.66666667 | C84: 200 | D84: 17.37077183 | E84: 3.669450989 | F84: 144.9143274 | G84: 301.5223123 | H84: 9.688816149 | I84: 7.797990836 | J84: 41.2204757 | K84: 26.6898342 | L84: 48.33078727 | M84: 581.0424867 | Q84: 0.750716757
A85: 1979 - Jan | B85: 39.66666667 | C85: 200 | D85: 17.33891565 | E85: 3.669148959 | F85: 152.2018974 | G85: 316.6879186 | H85: 9.672842898 | I85: 7.983729041 | J85: 42.05917882 | K85: 27.78698683 | L85: 48.3261496 | M85: 581.024613 | Q85: 0.7534051834
A86: 1980 - Jan | B86: 40.66666667 | C86: 200 | D86: 17.30096787 | E86: 3.668780989 | F86: 159.5026186 | G86: 331.8848511 | H86: 9.652967924 | I86: 8.161102896 | J86: 42.87598078 | K86: 28.87673 | L86: 48.32054773 | M86: 581.0053147 | Q86: 0.7563188093

Sheet Douglas fir thinning Ex 3a Ans
O1: Optional parameter block
P2: Parameters
P3: WSx1000= | Q3: 75
P4: fN0= | Q4: 0.37 | R4: [These parameters link soil fertility to max. canopy quantum efficiency (range 0.02-0.055 mol C/mol APAR)
P5: fNn= | Q5: 1
P6: alpha= | Q6: 0.055
A7: Run type: | B7: SingleSite
A9: Site : | B9: Douglas-fir
A10: Species = | B10: Doug fir
A11: Title: | B11: Douglas-fir Thinning Experiment
A16: Stand initialisation and site factor data | G16: Optimum
B17: Month planted= | C17: May | E17: Latitude = | F17: 44 | H17: Climate data | I17: Tmax | J17: Tmin | K17: Rain | L17: Solar rad | M17: Frost days
B18: Year planted = | C18: 1939 | E18: Fertility rating = | F18: 0.4 | H18: January | I18: 6.6 | J18: 0.43 | K18: 364.5270833 | L18: 4.2 | M18: 0
B19: Initial year = | C19: 1 | E19: Soil class = | F19: cl | H19: Feb | I19: 9.2 | J19: 0.8 | K19: 264.4425532 | L19: 4.8 | M19: 0
B20: Initial month = | C20: January | E20: Maximum ASW = | F20: 300 | H20: March | I20: 11.1 | J20: 1.4 | K20: 255.8148936 | L20: 7.3 | M20: 0
B21: End age = | C21: 40 | E21: Minimum ASW = | F21: 0 | H21: April | I21: 14.5 | J21: 2.9 | K21: 200 | L21: 13.3 | M21: 0
B22: Initial WF = | C22: 2 | E22: Atmospheric CO2 = | F22: 350 | H22: may | I22: 18.8 | J22: 6.611111111 | K22: 200 | L22: 16.7 | M22: 0 | O22: Silvicultural events
B23: Initial WR = | C23: 2 | H23: June | I23: 22.88888889 | J23: 9.166666667 | K23: 200 | L23: 16.8 | M23: 0 | O23: T hinning
B24: Initial WS = | C24: 2 | H24: July | I24: 27.22222222 | J24: 10.77777778 | K24: 200 | L24: 21.2 | M24: 0 | O24: Age | P24: Stocking | Q24: F | R24: R | S24: S
B25: Initial stocking = | C25: 1000 | H25: Aug | I25: 27.44444444 | J25: 10.61111111 | K25: 200 | L25: 15.4 | M25: 0 | O25: 20 | P25: 200 | Q25: 1 | R25: 1 | S25: 1 | V25: Note: this example assumes thinned trees | Y25: Silvicultural events
B26: Initial ASW = | C26: 300 | H26: Sep | I26: 22.6 | J26: 7.7 | K26: 200 | L26: 15.8 | M26: 0 | V26: to be of average diameter. Normally, foresters | Y26: Defoliation
H27: Oct | I27: 16.7 | J27: 4.1 | K27: 167.606383 | L27: 10.1 | M27: 0 | T27: would select smaller trees to thin. | Y27: Age | Z27: Foliage Remaining
C28: Output frequency : | D28: a | H28: Nov | I28: 9.8 | J28: 1.9 | K28: 372.6851064 | L28: 3.9 | M28: 0 | T28: To model this,set the fraction of Foliage, Roots, | Y28: 20 | Z28: 0.25
H29: Dec | I29: 8.111111111 | J29: 0.65 | K29: 386.6851064 | L29: 3.4 | M29: 0 | T29: and Stems to 0.75
B30: Output details
C31: Output frequency : | D31: Annual
C32: Output data :
C33: Output sheet :
C34: Output ages :
A42: #Output from 3PGpjs 2.7 / 3-PG vsn 1 Sep2009
A43: Stand development for Douglas-fir
A44: Douglas-fir Thinning Experiment
A45: Year & month | B45: Stand age | C45: Stems | D45: Foliage DM | E45: Root DM | F45: Stem DM | G45: Stand volume | H45: LAI | I45: MAI | J45: Mean DBH | K45: Basal area | L45: GPP | M45: Penman transp. | Q45: Growth Efficiency
A46: 1940 - Jan | B46: 0.6666666667 | C46: 1000 | D46: 2 | E46: 2 | F46: 2 | G46: 4.245521642 | H46: 1.1 | I46: 6.368282464 | J46: 3.669071619 | K46: 1.057309805
A47: 1941 - Jan | B47: 1.666666667 | C47: 1000 | D47: 2.359662847 | E47: 0.4156804318 | F47: 2.398977905 | G47: 5.084810533 | H47: 1.212134631 | I47: 3.05088632 | J47: 3.953540531 | K47: 1.227615243 | L47: 3.521831712 | M47: 514.9307735
A48: 1942 - Jan | B48: 2.666666667 | C48: 1000 | D48: 2.978073353 | E48: 0.5335869406 | F48: 3.172591187 | G48: 6.715051038 | H48: 1.504065177 | I48: 2.518144139 | J48: 4.434238579 | K48: 1.544286922 | L48: 6.735679928 | M48: 519.7849762 | Q48: =(F48-F47)/H48 -> 0.514348243
A49: 1943 - Jan | B49: 3.666666667 | C49: 1000 | D49: 3.716570607 | E49: 0.7658506386 | F49: 4.329699049 | G49: 9.152015902 | H49: 1.896930921 | I49: 2.496004337 | J49: 5.037997505 | K49: 1.993451976 | L49: 9.906193483 | M49: 526.5709158 | Q49: 0.6099894571
A50: 1944 - Jan | B50: 4.666666667 | C50: 1000 | D50: 4.490380497 | E50: 1.005077107 | F50: 5.881920368 | G50: 12.41758934 | H50: 2.326082103 | I50: 2.660912001 | J50: 5.713248434 | K50: 2.563634456 | L50: 13.06153398 | M50: 534.0577222 | Q50: 0.6673114918
A51: 1945 - Jan | B51: 5.666666667 | C51: 1000 | D51: 5.302760337 | E51: 1.244559882 | F51: 7.840221737 | G51: 16.5325185 | H51: 2.772508478 | I51: 2.917503264 | J51: 6.428660905 | K51: 3.245868478 | L51: 16.21228939 | M51: 541.8041689 | Q51: 0.7063283612
A52: 1946 - Jan | B52: 6.666666667 | C52: 1000 | D52: 6.180121521 | E52: 1.484691082 | F52: 10.21516785 | G52: 21.51693433 | H52: 3.248017827 | I52: 3.22754015 | J52: 7.16633305 | K52: 4.033516679 | L52: 19.37085127 | M52: 549.9969184 | Q52: 0.7311986089
A53: 1947 - Jan | B53: 7.666666667 | C53: 1000 | D53: 7.132188847 | E53: 1.726110642 | F53: 13.01707106 | G53: 27.39065648 | H53: 3.762812743 | I53: 3.572694323 | J53: 7.916115669 | K53: 4.921688739 | L53: 22.54731001 | M53: 558.8301183 | Q53: 0.7446299863
A54: 1948 - Jan | B54: 8.666666667 | C54: 1000 | D54: 8.153397485 | E54: 1.968932694 | F54: 16.2553737 | G54: 34.17188363 | H54: 4.317346499 | I54: 3.942909649 | J54: 8.672038164 | K54: 5.906527663 | L54: 25.74363477 | M54: 568.3206515 | Q54: 0.7500678121
A55: 1949 - Jan | B55: 9.666666667 | C55: 1000 | D55: 9.231732841 | E55: 2.212907881 | F55: 19.93821979 | G55: 41.87628872 | H55: 4.906331609 | I55: 4.332029867 | J55: 9.430408017 | K55: 6.984749707 | L55: 28.95634826 | M55: 577.8410467 | Q55: 0.7506313027
A56: 1950 - Jan | B56: 10.66666667 | C56: 1000 | D56: 10.35412175 | E56: 2.457686927 | F56: 24.07242915 | G56: 50.51696269 | H56: 5.5226949 | I56: 4.735965252 | J56: 10.18885235 | K56: 8.153431357 | L56: 32.18048392 | M56: 581.2053654 | Q56: 0.7485855076
A57: 1951 - Jan | B57: 11.66666667 | C57: 1000 | D57: 11.50873493 | E57: 2.702961553 | F57: 28.66368717 | G57: 60.10480896 | H57: 6.159562709 | I57: 5.151840768 | J57: 10.94581526 | K57: 9.409923858 | L57: 35.41165959 | M57: 581.2049951 | Q57: 0.745387008
A58: 1952 - Jan | B58: 12.66666667 | C58: 1000 | D58: 12.68570022 | E58: 2.948503941 | F58: 33.71678226 | G58: 70.64903504 | H58: 6.811004121 | I58: 5.577555398 | J58: 11.70027214 | K58: 10.75181561 | L58: 38.64664448 | M58: 581.2045098 | Q58: 0.7419016346
A59: 1953 - Jan | B59: 13.66666667 | C59: 1000 | D59: 13.87712721 | E59: 3.194160604 | F59: 39.23581556 | G59: 82.15758312 | H59: 7.472191498 | I59: 6.011530472 | J59: 12.45155457 | K59: 12.17690826 | L59: 41.88326638 | M59: 581.203888 | Q59: 0.7386097246
A60: 1954 - Jan | B60: 14.66666667 | C60: 1000 | D60: 15.07687567 | E60: 3.439833882 | F60: 45.22436385 | G60: 94.63746082 | H60: 8.139324932 | I60: 6.452554146 | J60: 13.19923705 | K60: 13.68319572 | L60: 45.12014497 | M60: 581.2031061 | Q60: 0.7357549105
A61: 1955 - Jan | B61: 15.66666667 | C61: 1000 | D61: 16.23929658 | E61: 3.635263896 | F61: 51.62925875 | G61: 107.9771503 | H61: 8.80176961 | I61: 6.892158532 | J61: 13.93681974 | K61: 15.25517687 | L61: 47.94113843 | M61: 581.2021388 | Q61: 0.7276826343
A62: 1956 - Jan | B62: 16.66666667 | C62: 1000 | D62: 17.14564132 | E62: 3.663070098 | F62: 58.1168352 | G62: 121.4792185 | H62: 9.36468837 | I62: 7.288753112 | J62: 14.6307707 | K62: 16.81218998 | L62: 48.25741686 | M62: 581.2009589 | Q62: 0.6927701374
A63: 1957 - Jan | B63: 17.66666667 | C63: 1000 | D63: 17.83451269 | E63: 3.671027386 | F63: 64.65246229 | G63: 135.0724889 | H63: 9.795334971 | I63: 7.64561258 | J63: 15.28507661 | K63: 18.34953744 | L63: 48.35328614 | M63: 581.1995371 | Q63: 0.667218335
A64: 1958 - Jan | B64: 18.66666667 | C64: 1000 | D64: 18.3523669 | E64: 3.675340865 | F64: 71.22787782 | G64: 148.740919 | H64: 10.12063032 | I64: 7.968263517 | J64: 15.90509856 | K64: 19.86838699 | L64: 48.41265186 | M64: 581.1978427 | Q64: 0.6497041514
A65: 1959 - Jan | B65: 19.66666667 | C65: 948.0202673 | D65: 18.73434282 | E65: 3.650781622 | F65: 77.02867942 | G65: 160.7857229 | H65: 10.36304253 | I65: 8.175545232 | J65: 16.78851239 | K65: 20.98610949 | L65: 48.4507744 | M65: 581.1958427 | Q65: 0.559758544
A66: 1960 - Jan | B66: 20.66666667 | C66: 852.520307 | D66: 5.966737614 | E66: 3.07722508 | F66: 81.22858671 | G66: 169.4859207 | H66: 5.480035256 | I66: 8.200931648 | J66: 17.9228891 | K66: 21.50852601 | L66: 42.5861192 | M66: 559.8753116 | Q66: 0.7664015095
A67: 1961 - Jan | B67: 21.66666667 | C67: 772.0849759 | D67: 8.3470748 | E67: 3.193481335 | F67: 85.35495007 | G67: 178.031758 | H67: 4.126679962 | I67: 8.216850369 | J67: 19.05071769 | K67: 22.00785245 | L67: 41.74588021 | M67: 563.4215235 | Q67: 0.9999232778
A68: 1962 - Jan | B68: 22.66666667 | C68: 696.9466043 | D68: 10.46207473 | E68: 3.402049578 | F68: 89.83829688 | G68: 187.3216202 | H68: 5.37206378 | I68: 8.264189127 | J68: 20.29050041 | K68: 22.53589984 | L68: 45.03051334 | M68: 579.7564659 | Q68: 0.8345669374
A69: 1963 - Jan | B69: 23.66666667 | C69: 629.750091 | D69: 12.21594271 | E69: 3.511852742 | F69: 94.50986524 | G69: 197.0035467 | H69: 6.431592271 | I69: 8.324093521 | J69: 21.59766102 | K69: 23.07127316 | L69: 46.58992693 | M69: 581.1840649 | Q69: 0.726347095
A70: 1964 - Jan | B70: 24.66666667 | C70: 570.5602576 | D70: 13.6180736 | E70: 3.567504105 | F70: 99.29114173 | G70: 206.9141122 | H70: 7.290567121 | I70: 8.388409952 | J70: 22.95110334 | K70: 23.60470276 | L70: 47.36036136 | M70: 581.1799793 | Q70: 0.6558168115
A71: 1965 - Jan | B71: 25.66666667 | C71: 518.6152702 | D71: 14.71386617 | E71: 3.597528689 | F71: 104.1450453 | G71: 216.976392 | H71: 7.967956892 | I71: 8.453625663 | J71: 24.34063164 | K71: 24.13230854 | L71: 47.76759839 | M71: 581.1753519 | Q71: 0.6091779445
A72: 1966 - Jan | B72: 26.66666667 | C72: 472.9870845 | D72: 15.55538677 | E72: 3.614978606 | F72: 109.0527502 | G72: 227.1515466 | H72: 8.491958974 | I72: 8.518182998 | J72: 25.76089485 | K72: 24.65250487 | L72: 47.99768746 | M72: 581.1701369 | Q72: 0.5779237584
A73: 1967 - Jan | B73: 27.66666667 | C73: 432.7966478 | D73: 16.19085636 | E73: 3.625816988 | F73: 114.0037978 | G73: 237.4181738 | H73: 8.890537982 | I73: 8.581379776 | J73: 27.2087809 | K73: 25.16471039 | L73: 48.1350694 | M73: 581.1642865 | Q73: 0.5568895436
A74: 1968 - Jan | B74: 28.66666667 | C74: 397.2723124 | D74: 16.6615994 | E74: 3.632921286 | F74: 118.9918219 | G74: 247.7633839 | H74: 9.188324559 | I74: 8.642908741 | J74: 28.68228271 | K74: 25.66880223 | L74: 48.22048003 | M74: 581.1577512 | Q74: 0.5428654686
A75: 1969 - Jan | B75: 29.66666667 | C75: 365.7540604 | D75: 17.0017851 | E75: 3.637769166 | F75: 124.0125044 | G75: 258.1785345 | H75: 9.405954434 | I75: 8.702647229 | J75: 30.18001888 | K75: 26.16483809 | L75: 48.2748733 | M75: 581.1504795 | Q75: 0.5337770347
A76: 1970 - Jan | B76: 30.66666667 | C76: 337.6887196 | D76: 17.23913733 | E76: 3.641177472 | F76: 129.0630308 | G76: 268.6580927 | H76: 9.560290451 | I76: 8.76058998 | J76: 31.70082329 | K76: 26.65308703 | L76: 48.30969961 | M76: 581.142418 | Q76: 0.5282816907
A77: 1971 - Jan | B77: 31.66666667 | C77: 312.6059795 | D77: 17.39590408 | E77: 3.643613519 | F77: 134.1410089 | G77: 279.1973824 | H77: 9.664922035 | I77: 8.816759444 | J77: 33.24385386 | K77: 27.13375451 | L77: 48.33156907 | M77: 581.1335116 | Q77: 0.5254029055
A78: 1972 - Jan | B78: 32.66666667 | C78: 290.1107208 | D78: 17.48981532 | E78: 3.645364254 | F78: 139.2446078 | G78: 289.7928732 | H78: 9.730708248 | I78: 8.871210404 | J78: 34.80836148 | K78: 27.60710203 | L78: 48.34449006 | M78: 581.1237033 | Q78: 0.5244838041
A79: 1973 - Jan | B79: 33.66666667 | C79: 269.8689272 | D79: 17.5349335 | E79: 3.64661318 | F79: 144.3723064 | G79: 300.4416577 | H79: 9.766278047 | I79: 8.924009636 | J79: 36.39368935 | K79: 28.07339468 | L79: 48.35100244 | M79: 581.1129342 | Q79: 0.5250412258
A80: 1974 - Jan | B80: 34.66666667 | C80: 251.5972696 | D80: 17.54237344 | E80: 3.6474825 | F80: 149.5228028 | G80: 311.1412632 | H80: 9.778461191 | I80: 8.975228747 | J80: 37.99924812 | K80: 28.53289328 | L80: 48.35278004 | M80: 581.1011436 | Q80: 0.5267184993
A81: 1975 - Jan | B81: 35.66666667 | C81: 235.0545004 | D81: 17.52089597 | E81: 3.648056672 | F81: 154.6949572 | G81: 321.8895333 | H81: 9.772647009 | I81: 9.024940187 | J81: 39.6245001 | K81: 28.98585027 | L81: 48.35096519 | M81: 581.0882688 | Q81: 0.5292480488
A82: 1976 - Jan | B82: 36.66666667 | C82: 220.0343924 | D82: 17.47738982 | E82: 3.648396278 | F82: 159.8877549 | G82: 332.6845525 | H82: 9.753077399 | I82: 9.073215068 | J82: 41.26894899 | K82: 29.43250776 | L82: 48.34636188 | M82: 581.0742456 | Q82: 0.5324265854
A83: 1977 - Jan | B83: 37.66666667 | C83: 206.3599669 | D83: 17.41726037 | E83: 3.6485451 | F83: 165.1002787 | G83: 343.5245889 | H83: 9.723083853 | I83: 9.120121828 | J83: 42.93213191 | K83: 29.87309645 | L83: 48.33955151 | M83: 581.0590076 | Q83: 0.5360977975
A84: 1978 - Jan | B84: 38.66666667 | C84: 193.8787522 | D84: 17.34473918 | E84: 3.648536769 | F84: 170.3316928 | G84: 354.4080616 | H84: 9.685276908 | I84: 9.165725732 | J84: 44.61361481 | K84: 30.30783568 | L84: 48.33096429 | M84: 581.0424867 | Q84: 0.5401408924
A85: 1979 - Jan | B85: 39.66666667 | C85: 182.4588947 | D85: 17.26313121 | E85: 3.648397554 | F85: 175.58123 | G85: 365.3335158 | H85: 9.641697558 | I85: 9.210088633 | J85: 46.31298881 | K85: 30.73693363 | L85: 48.3209248 | M85: 581.024613 | Q85: 0.5444619227
A86: 1980 - Jan | B86: 40.66666667 | C86: 171.9859628 | D86: 17.17501094 | E86: 3.648148166 | F86: 180.8481788 | G86: 376.2995957 | H86: 9.593937487 | I86: 9.253268746 | J86: 48.02986621 | K86: 31.1605875 | L86: 48.30968182 | M86: 581.0053147 | Q86: 0.5489871891

Sheet Ponderosa pine Ex 3b
A1: GOAL: Thinning to maintain Tree vigor > 70 g wood produced/m2 of LAI/yr
A2: Run type : | B2: SingleSite | E2: Stand initialisation and site factor data | K2: Optional parameter block | N2: Definition of parameter
A3: Site : | B3: Metolius River Oregon | F3: Year planted = | G3: 1999 | I3: Latitude = | J3: 44 | L3: Parameters | S3: gC/MJ APAR
A4: Species : | B4: pond pine | F4: Month planted = | G4: Jan | I4: Fertility rating = | J4: 0.25 | L4: WSx1000= | M4: 50 | S4: =#REF!*55 -> 
A5: Climate data : | B5: Metolius, OR Metdata | F5: Initial year = | G5: 1 | I5: Soil class = | J5: sl | L5: fN0 | M5: 0.37
A6: Met station : | B6: Mean data | F6: Initial month = | G6: Jan | I6: Maximum ASW = | J6: 100 | L6: fNn | M6: 1 | S6: 0
A7: Title : | B7: Ponderosa pine average climate | F7: End age = | G7: 100 | I7: Minimum ASW = | J7: 0 | L7: alpha = | M7: 0.055 | N7: Quantum Efficiency (mol CO2/mol APAR (X 55 =gC/MJ absorbed PAR)
F8: Initial WF = | G8: 3 | I8: Atmospheric CO2 = | J8: 360
F9: Initial WR = | G9: 3 | L9: MaxAge | M9: 200 | N9: Age when species reaches 90% of max height on site | P9: [from Law et al. 2001 )
F10: Initial WS = | G10: 3 | L10: MaxCond | M10: 0.018 | N10: Max canopy conductance, m/second
F11: Initial stocking = | G11: 1000 | L11: SLA1 | M11: 4.2
F12: Initial ASW = | G12: 100 | L12: gammaFx = | M12: 0.021 | N12: Leaf turnover/ month
L14: Silvicultural Event
L15: T hinning
F16: Output details | H16: BasArea, avdbh | L16: Age | M16: Stocking | N16: F | O16: R | P16: S
G17: Output frequency : | H17: a | L17: ? | M17: 500 | N17: 1 | O17: 1 | P17: 1
L18: ? | M18: 250 | N18: 1 | O18: 1 | P18: 1
L19: ? | M19: 100 | N19: 1 | O19: 1 | P19: 1
L20: ? | M20: 50 | N20: 1 | O20: 1 | P20: 1
L21: ? | M21: 25 | N21: 1 | O21: 1 | P21: 1
A36: #Output from 3PGpjs 2.7 / 3-PG vsn 1 Sep2009
A37: Stand development for Metolius River Oregon
A38: Ponderosa pine average climate | Q38: Tree vigor
A39: Year & month | B39: Stand age | C39: Stems | D39: Foliage DM | E39: Root DM | F39: Stem DM | G39: Stand volume | H39: LAI | I39: MAI | J39: Mean DBH | K39: Basal area | L39: GPP | M39: Penman transp. | Q39: g wood/m2 Leaf area/yr | S39: % mortality/yr
A40: 2000 - Jan | B40: 1 | C40: 1000 | D40: 3 | E40: 3 | F40: 3 | G40: 6.375 | H40: 0.93 | I40: 6.375 | J40: 8.863333936 | K40: 6.169984964
A41: 2001 - Jan | B41: 2 | C41: 1000 | D41: 3.164950337 | E41: 3.353727458 | F41: 3.342052172 | G41: 7.101860865 | H41: 0.9675723837 | I41: 3.550930433 | J41: 9.191484399 | K41: 6.635309579 | L41: 3.380507059 | M41: 125.1345738 | Q41: =1000*(F41-F40)/F41 -> 102.347945 | S41: =100*(C40-C41)/C40 -> 0
A42: 2002 - Jan | B42: 3 | C42: 1000 | D42: 3.346666471 | E42: 4.187363238 | F42: 3.903305696 | G42: 8.294524605 | H42: 1.030561036 | I42: 2.764841535 | J42: 9.684691006 | K42: 7.366503835 | L42: 5.526265285 | M42: 130.6114107 | Q42: =1000*(F42-F41)/F42 -> 143.7892822 | S42: =100*(C41-C42)/C41 -> 0
A43: 2003 - Jan | B43: 4 | C43: 1000 | D43: 3.44791572 | E43: 5.324455605 | F43: 4.642302454 | G43: 9.864892714 | H43: 1.079786895 | I43: 2.466223178 | J43: 10.26690624 | K43: 8.278832075 | L43: 7.266275001 | M43: 134.0543449 | Q43: 159.1875507 | S43: 0
A44: 2004 - Jan | B44: 5 | C44: 1000 | D44: 3.487593192 | E44: 6.638021121 | F44: 5.532348006 | G44: 11.75623951 | H44: 1.103779095 | I44: 2.351247902 | J44: 10.89151016 | K44: 9.316785203 | L44: 8.708512962 | M44: 135.698751 | Q44: 160.880254 | S44: 0
A45: 2005 - Jan | B45: 6 | C45: 1000 | D45: 3.523743616 | E45: 8.032415717 | F45: 6.548942167 | G45: 13.9165021 | H45: 1.117611047 | I45: 2.319417017 | J45: 11.5280361 | K45: 10.4375973 | L45: 9.889367107 | M45: 136.4823065 | Q45: 155.2302853 | S45: 0
A46: 2006 - Jan | B46: 7 | C46: 1000 | D46: 3.585577901 | E46: 9.443230911 | F46: 7.671649616 | G46: 16.30225543 | H46: 1.135631858 | I46: 2.328893633 | J46: 12.15885189 | K46: 11.61114418 | L46: 10.86521987 | M46: 137.4254185 | Q46: 146.3449851 | S46: 0
A47: 2007 - Jan | B47: 8 | C47: 1000 | D47: 3.676593351 | E47: 10.83345021 | F47: 8.886367044 | G47: 18.88352997 | H47: 1.162545199 | I47: 2.360441246 | J47: 12.77573805 | K47: 12.8192282 | L47: 11.70323321 | M47: 138.9079423 | Q47: 136.6944919 | S47: 0
A48: 2008 - Jan | B48: 9 | C48: 1000 | D48: 3.791512613 | E48: 12.18430585 | F48: 10.18470771 | G48: 21.64250388 | H48: 1.197795201 | I48: 2.404722653 | J48: 13.3760181 | K48: 14.05217588 | L48: 12.45577546 | M48: 140.9303836 | Q48: 127.4794232 | S48: 0
A49: 2009 - Jan | B49: 10 | C49: 1000 | D49: 3.924461598 | E49: 13.48793715 | F49: 11.56248498 | G49: 24.57028059 | H49: 1.23954395 | I49: 2.457028059 | J49: 13.95982313 | K49: 15.30557723 | L49: 13.15810711 | M49: 143.4075795 | Q49: 119.1592706 | S49: 0
A50: 2010 - Jan | B50: 11 | C50: 1000 | D50: 4.071122857 | E50: 14.74319777 | F50: 13.01830395 | G50: 27.66389589 | H50: 1.286178317 | I50: 2.514899627 | J50: 14.52850975 | K50: 16.57799559 | L50: 13.83384519 | M50: 146.2753974 | Q50: 111.82862 | S50: 0
A51: 2011 - Jan | B51: 12 | C51: 1000 | D51: 4.228724652 | E51: 15.95329432 | F51: 14.55248498 | G51: 30.92403059 | H51: 1.336593793 | I51: 2.577002549 | J51: 15.08382754 | K51: 17.86952457 | L51: 14.49924183 | M51: 149.5019207 | Q51: 105.4239901 | S51: 0
A52: 2012 - Jan | B52: 13 | C52: 1000 | D52: 4.395579614 | E52: 17.12421841 | F52: 16.16635466 | G52: 34.35350365 | H52: 1.390101536 | I52: 2.642577204 | J52: 15.62752948 | K52: 19.18096862 | L52: 15.16572539 | M52: 153.0759433 | Q52: 99.82891678 | S52: 0
A53: 2013 - Jan | B53: 14 | C53: 1000 | D53: 4.570694205 | E53: 18.26357709 | F53: 17.86184333 | G53: 37.95641707 | H53: 1.446288382 | I53: 2.711172648 | J53: 16.16122303 | K53: 20.51343212 | L53: 15.84149235 | M53: 156.99732 | Q53: 94.92237952 | S53: 0
A54: 2014 - Jan | B54: 15 | C54: 1000 | D54: 4.753513972 | E54: 19.37972433 | F54: 19.64127513 | G54: 41.73770964 | H54: 1.504915143 | I54: 2.782513976 | J54: 16.68633243 | K54: 21.86813087 | L54: 16.5325318 | M54: 161.2714153 | Q54: 90.59655172 | S54: 0
A55: 2015 - Jan | B55: 16 | C55: 1000 | D55: 4.933660871 | E55: 20.44499937 | F55: 21.4924997 | G55: 45.67156185 | H55: 1.563868105 | I55: 2.854472616 | J55: 17.20012815 | K55: 23.23556551 | L55: 17.10318721 | M55: 165.8207173 | Q55: 86.13351615 | S55: 0
A56: 2016 - Jan | B56: 17 | C56: 1000 | D56: 5.092797617 | E56: 21.40557744 | F56: 23.38705783 | G56: 49.69749789 | H56: 1.61756077 | I56: 2.923382229 | J56: 17.69639351 | K56: 24.59571292 | L56: 17.41783794 | M56: 170.2203307 | Q56: 81.00882754 | S56: 0
A57: 2017 - Jan | B57: 18 | C57: 1000 | D57: 5.214761765 | E57: 22.24132974 | F57: 25.29397393 | G57: 53.7496946 | H57: 1.661717948 | I57: 2.986094144 | J57: 18.16964925 | K57: 25.9288329 | L57: 17.52823969 | M57: 172.6388474 | Q57: 75.39013452 | S57: 0
A58: 2018 - Jan | B58: 19 | C58: 1000 | D58: 5.299727485 | E58: 22.94890768 | F58: 27.20002017 | G58: 57.80004286 | H58: 1.694021075 | I58: 3.042107519 | J58: 18.61959226 | K58: 27.22890736 | L58: 17.53320959 | M58: 173.7539776 | Q58: 70.07517744 | S58: 0
A59: 2019 - Jan | B59: 20 | C59: 1000 | D59: 5.358424378 | E59: 23.54512616 | F59: 29.10740787 | G59: 61.85324173 | H59: 1.716356627 | I59: 3.092662087 | J59: 19.04937394 | K59: 28.50042232 | L59: 17.53649715 | M59: 174.5183536 | Q59: 65.52928778 | S59: 0
A60: 2020 - Jan | B60: 21 | C60: 1000 | D60: 5.3982877 | E60: 24.04613076 | F60: 31.01735191 | G60: 65.9118728 | H60: 1.731598678 | I60: 3.13866061 | J60: 19.46139805 | K60: 29.7466424 | L60: 17.5393696 | M60: 175.04418 | Q60: 61.57663099 | S60: 0
A61: 2021 - Jan | B61: 22 | C61: 1000 | D61: 5.424531169 | E61: 24.46637164 | F61: 32.93045954 | G61: 69.97722652 | H61: 1.74174364 | I61: 3.180783024 | J61: 19.85756132 | K61: 30.97003571 | L61: 17.54188127 | M61: 175.400092 | Q61: 58.09538223 | S61: 0
A62: 2022 - Jan | B62: 23 | C62: 1000 | D62: 5.440871636 | E62: 24.81840489 | F62: 34.84700173 | G62: 74.04987867 | H62: 1.748198815 | I62: 3.219559942 | J62: 20.23940962 | K62: 32.17255572 | L62: 17.54396449 | M62: 175.6324629 | Q62: 54.99876868 | S62: 0
A63: 2023 - Jan | B63: 24 | C63: 1000 | D63: 5.449997692 | E63: 25.11298665 | F63: 36.76707032 | G63: 78.13002443 | H63: 1.751972456 | I63: 3.255417685 | J63: 20.60823538 | K63: 33.35581017 | L63: 17.54561202 | M63: 175.7743464 | Q63: 52.22250716 | S63: 0
A64: 2024 - Jan | B64: 25 | C64: 1000 | D64: 5.453875686 | E64: 25.35926121 | F64: 38.69066399 | G64: 82.21766098 | H64: 1.753796629 | I64: 3.288706439 | J64: 20.96513973 | K64: 34.52116186 | L64: 17.5468697 | M64: 175.8499332 | Q64: 49.71725658 | S64: 0
A65: 2025 - Jan | B65: 26 | C65: 1000 | D65: 5.453954575 | E65: 25.56496782 | F65: 40.61773406 | G65: 86.31268488 | H65: 1.754208034 | I65: 3.319718649 | J65: 21.31107415 | K65: 35.66979075 | L65: 17.5478065 | M65: 175.8771466 | Q65: 47.44405652 | S65: 0
A66: 2026 - Jan | B66: 27 | C66: 1000 | D66: 5.45130683 | E66: 25.73663794 | F66: 42.54820864 | G66: 90.41494337 | H66: 1.753602619 | I66: 3.348701606 | J66: 21.64686958 | K66: 36.80273398 | L66: 17.54849358 | M66: 175.8693318 | Q66: 45.37146557 | S66: 0
A67: 2027 - Jan | B67: 28 | C67: 1000 | D67: 5.44672777 | E67: 25.87977294 | F67: 44.48200521 | G67: 94.52426107 | H67: 1.752273478 | I67: 3.375866467 | J67: 21.97325789 | K67: 37.92091318 | L67: 17.54899391 | M67: 175.8364347 | Q67: 43.47368235 | S67: 0
A68: 2028 - Jan | B68: 29 | C68: 1000 | D68: 5.440807017 | E68: 25.99900002 | F68: 46.41903706 | G68: 98.64045376 | H68: 1.750437768 | I68: 3.401394957 | J68: 22.29088812 | K68: 39.02515402 | L68: 17.54935855 | M68: 175.785856 | Q68: 41.7292554 | S68: 0
A69: 2029 - Jan | B69: 30 | C69: 1000 | D69: 5.433980738 | E69: 26.09820687 | F69: 48.35921667 | G69: 102.7633354 | H69: 1.748256193 | I69: 3.425444514 | J69: 22.60033924 | K69: 40.11620092 | L69: 17.54962662 | M69: 175.7230847 | Q69: 40.12016197 | S69: 0
A70: 2030 - Jan | B70: 31 | C70: 991.4127372 | D70: 5.426556864 | E70: 26.13596538 | F70: 50.21606483 | G70: 106.7091378 | H70: 1.745846227 | I70: 3.44223025 | J70: 22.95544097 | K70: 41.03133575 | L70: 17.5498265 | M70: 175.6521579 | Q70: 36.97717386 | S70: 0.8587262773
A71: 2031 - Jan | B71: 32 | C71: 938.666426 | D71: 5.417329504 | E71: 25.95027057 | F71: 51.60767397 | G71: 109.6663072 | H71: 1.742996216 | I71: 3.4270721 | J71: 23.59810675 | K71: 41.05400099 | L71: 17.55019834 | M71: 175.5715673 | Q71: 26.96515918 | S71: 5.320318096
A72: 2032 - Jan | B72: 33 | C72: 889.8745874 | D72: 5.405823291 | E72: 25.80274313 | F72: 53.00361966 | G72: 112.6326918 | H72: 1.73939703 | I72: 3.413111872 | J72: 24.24295112 | K72: 41.07614304 | L72: 17.55094055 | M72: 175.4716273 | Q72: 26.33679927 | S72: 5.197995501
A73: 2033 - Jan | B73: 34 | C73: 844.6569148 | D73: 5.392730815 | E73: 25.68620977 | F73: 54.40386621 | G73: 115.6082157 | H73: 1.735198864 | I73: 3.400241638 | J73: 24.88995461 | K73: 41.09778655 | L73: 17.55156944 | M73: 175.3509871 | Q73: 25.73799701 | S73: 5.081353399
A74: 2034 - Jan | B74: 35 | C74: 802.6776118 | D74: 5.378570029 | E74: 25.59482606 | F74: 55.80837321 | G74: 118.5927931 | H74: 1.730591734 | I74: 3.388365516 | J74: 25.53909571 | K74: 41.11895441 | L74: 17.55212599 | M74: 175.2160678 | Q74: 25.16659993 | S74: 4.969982753
A75: 2035 - Jan | B75: 36 | C75: 763.63926 | D75: 5.363726582 | E75: 25.52382746 | F75: 57.21709671 | G75: 121.5863305 | H75: 1.725717364 | I75: 3.37739807 | J75: 26.19035142 | K75: 41.13966785 | L75: 17.5526364 | M75: 175.0716295 | Q75: 24.62067422 | S75: 4.863515717
A76: 2036 - Jan | B76: 37 | C76: 727.2776655 | D76: 5.348485784 | E76: 25.46932822 | F76: 58.62998982 | G76: 124.5887284 | H76: 1.720680884 | I76: 3.367262929 | J76: 26.84369746 | K76: 41.15994665 | L76: 17.55311539 | M76: 174.921173 | Q76: 24.09847111 | S76: 4.761619309
A77: 2037 - Jan | B77: 38 | C77: 693.3575011 | D77: 5.333056917 | E77: 25.42815847 | F77: 60.0470032 | G77: 127.5998818 | H77: 1.7155597 | I77: 3.357891627 | J77: 27.49910855 | K77: 41.17980925 | L77: 17.55356942 | M77: 174.7672486 | Q77: 23.59840299 | S77: 4.663990933
A78: 2038 - Jan | B78: 39 | C78: 661.6686025 | D78: 5.317591777 | E78: 25.39773193 | F78: 61.4680854 | G78: 130.6196815 | H78: 1.710410234 | I78: 3.349222602 | J78: 28.15655853 | K78: 41.19927289 | L78: 17.55399917 | M78: 174.6116909 | Q78: 23.11902486 | S78: 4.570354911
A79: 2039 - Jan | B79: 40 | C79: 632.0228081 | D79: 5.302198851 | E79: 25.37593851 | F79: 62.89318322 | G79: 133.6480143 | H79: 1.705273075 | I79: 3.341200359 | J79: 28.81602051 | K79: 41.2183537 | L79: 17.55440161 | M79: 174.4557991 | Q79: 22.65901886 | S79: 4.480459597
A80: 2040 - Jan | B80: 41 | C80: 604.2512527 | D80: 5.286954146 | E80: 25.36105678 | F80: 64.32224211 | G80: 136.6847645 | H80: 1.700176913 | I80: 3.333774744 | J80: 29.47746706 | K80: 41.23706681 | L80: 17.5547714 | M80: 174.3004733 | Q80: 22.2171809 | S80: 4.39407487
A81: 2041 - Jan | B81: 42 | C81: 578.2020422 | D81: 5.271909445 | E81: 25.3516827 | F81: 65.75520645 | G81: 139.7298137 | H81: 1.69514154 | I81: 3.326900326 | J81: 30.14087034 | K81: 41.25542641 | L81: 17.55510198 | M81: 174.1463187 | Q81: 21.79240881 | S81: 4.310989916
A82: 2042 - Jan | B82: 43 | C82: 553.7382488 | D82: 5.257098581 | E82: 25.34667154 | F82: 67.1920199 | G82: 142.7830423 | H82: 1.690180132 | I82: 3.320535867 | J82: 30.80620225 | K82: 41.27344587 | L82: 17.5553862 | M82: 173.9937231 | Q82: 21.38369177 | S82: 4.231011243
A83: 2043 - Jan | B83: 44 | C83: 530.7361784 | D83: 5.242542201 | E83: 25.34509044 | F83: 68.63262563 | G83: 145.8443295 | H83: 1.68530099 | I83: 3.314643852 | J83: 31.47343453 | K83: 41.29113776 | L83: 17.55561681 | M83: 173.8429164 | Q83: 20.99010088 | S83: 4.15396091
A84: 2044 - Jan | B84: 45 | C84: 509.0838674 | D84: 5.228251347 | E84: 25.34617974 | F84: 70.07696663 | G84: 148.9135541 | H84: 1.680508843 | I84: 3.309190091 | J84: 32.14253888 | K84: 41.30851396 | L84: 17.55578671 | M84: 173.6940139 | Q84: 20.61078083 | S84: 4.079674951
A85: 2045 - Jan | B85: 46 | C85: 488.679776 | D85: 5.214230153 | E85: 25.3493213 | F85: 71.52498585 | G85: 151.9905949 | H85: 1.67580584 | I85: 3.304143368 | J85: 32.81348705 | K85: 41.32558566 | L85: 17.55588912 | M85: 173.5470495 | Q85: 20.24494242 | S85: 4.008001972
A86: 2046 - Jan | B86: 47 | C86: 469.4316477 | D86: 5.200477855 | E86: 25.35401273 | F86: 72.9766264 | G86: 155.0753311 | H86: 1.671192288 | I86: 3.29947513 | J86: 33.48625093 | K86: 41.34236348 | L86: 17.55591764 | M86: 173.4019997 | Q86: 19.89185601 | S86: 3.938801907
A87: 2047 - Jan | B87: 48 | C87: 451.2555128 | D87: 5.186990288 | E87: 25.35984621 | F87: 74.43183165 | G87: 158.1676423 | H87: 1.6666672 | I87: 3.295159214 | J87: 34.16080257 | K87: 41.35885745 | L87: 17.55586625 | M87: 173.2588014 | Q87: 19.55084569 | S87: 3.871944918
A88: 2048 - Jan | B88: 49 | C88: 434.0748146 | D88: 5.17376098 | E88: 25.36649126 | F88: 75.89054539 | G88: 161.267409 | H88: 1.662228704 | I88: 3.291171611 | J88: 34.83711426 | K88: 41.37507708 | L88: 17.55572937 | M88: 173.1173653 | Q88: 19.22128416 | S88: 3.807310426
A89: 2049 - Jan | B89: 50 | C89: 417.8196407 | D89: 5.160781964 | E89: 25.37368056 | F89: 77.35271184 | G89: 164.3745127 | H89: 1.65787434 | I89: 3.287490253 | J89: 35.51515856 | K89: 41.3910314 | L89: 17.55550177 | M89: 172.9775848 | Q89: 18.90258815 | S89: 3.74478625
A90: 2050 - Jan | B90: 51 | C90: 402.426046 | D90: 5.14804436 | E90: 25.38119842 | F90: 78.81827576 | G90: 167.488836 | H90: 1.653601278 | I90: 3.284094824 | J90: 36.19490827 | K90: 41.40672898 | L90: 17.55517856 | M90: 172.8393434 | Q90: 18.59421444 | S90: 3.684267842
A91: 2051 - Jan | B91: 52 | C91: 387.8354554 | D91: 5.13553879 | E91: 25.38887131 | F91: 80.28718246 | G91: 170.6102627 | H91: 1.649406478 | I91: 3.280966591 | J91: 36.87633655 | K91: 41.42217798 | L91: 17.55475516 | M91: 172.702519 | Q91: 18.2956563 | S91: 3.625657619
A92: 2052 - Jan | B92: 53 | C92: 373.9941341 | D92: 5.12325568 | E92: 25.39656007 | F92: 81.75937781 | G92: 173.7386779 | H92: 1.645286796 | I92: 3.278088261 | J92: 37.55941681 | K92: 41.43738615 | L92: 17.55422724 | M92: 172.5669874 | Q92: 18.00644027 | S92: 3.568864354
A93: 2053 - Jan | B93: 54 | C93: 360.8527176 | D93: 5.111185446 | E93: 25.40415388 | F93: 83.23480838 | G93: 176.8739678 | H93: 1.641239064 | I93: 3.275443848 | J93: 38.24412283 | K93: 41.45236089 | L93: 17.55359073 | M93: 172.4326247 | Q93: 17.72612441 | S93: 3.513802848
A94: 2054 - Jan | B94: 55 | C94: 348.3657967 | D94: 5.099318691 | E94: 25.41156416 | F94: 84.71342114 | G94: 180.0160199 | H94: 1.637260154 | I94: 3.273018544 | J94: 38.93042864 | K94: 41.46710924 | L94: 17.55284168 | M94: 172.2993088 | Q94: 17.45429162 | S94: 3.460392633
A95: 2055 - Jan | B95: 56 | C95: 336.4915437 | D95: 5.087646233 | E95: 25.41872127 | F95: 86.19516373 | G95: 183.1647229 | H95: 1.633346999 | I95: 3.270798624 | J95: 39.61830857 | K95: 41.48163792 | L95: 17.55197637 | M95: 172.1669204 | Q95: 17.19055369 | S95: 3.408558784
A96: 2056 - Jan | B96: 57 | C96: 325.1923412 | D96: 5.076056949 | E96: 25.42540511 | F96: 87.67985498 | G96: 186.3196918 | H96: 1.62947921 | I96: 3.268766523 | J96: 40.3076772 | K96: 41.49595212 | L96: 17.54994248 | M96: 172.0257905 | Q96: 16.93309424 | S96: 3.35794546
A97: 2057 - Jan | B97: 58 | C97: 314.4518672 | D97: 5.062398247 | E97: 25.42808574 | F97: 89.16468695 | G97: 189.4749598 | H97: 1.625273549 | I97: 3.266809651 | J97: 40.99722911 | K97: 41.51003209 | L97: 17.52550161 | M97: 171.6818429 | Q97: 16.65269095 | S97: 3.302806572
A98: 2058 - Jan | B98: 59 | C98: 304.2365145 | D98: 5.046943594 | E98: 25.42657866 | F98: 90.64926988 | G98: 192.6296985 | H98: 1.620459344 | I98: 3.264910144 | J98: 41.68678134 | K98: 41.52388187 | L98: 17.49742561 | M98: 171.2870781 | Q98: 16.37721882 | S98: 3.248622042
A99: 2059 - Jan | B99: 60 | C99: 294.5147872 | D99: 5.02993866 | E99: 25.42084066 | F99: 92.13325767 | G99: 195.7831726 | H99: 1.615118594 | I99: 3.263052876 | J99: 42.37617116 | K99: 41.53750576 | L99: 17.46620132 | M99: 170.8486916 | Q99: 16.1069719 | S99: 3.195450546
A100: 2060 - Jan | B100: 61 | C100: 285.2571966 | D100: 5.011603832 | E100: 25.41093489 | F100: 93.61634381 | G100: 198.9347306 | H100: 1.609324875 | I100: 3.261225092 | J100: 43.06525419 | K100: 41.55090822 | L100: 17.43226656 | M100: 170.373156 | Q100: 15.84217117 | S100: 3.143336429
A101: 2061 - Jan | B101: 62 | C101: 276.4361546 | D101: 4.992136523 | E101: 25.3970029 | F101: 95.09825762 | G101: 202.0837975 | H101: 1.603144117 | I101: 3.259416088 | J101: 43.75390267 | K101: 41.56409389 | L101: 17.3960145 | M101: 169.8662778 | Q101: 15.5829754 | S101: 3.092311816
A102: 2062 - Jan | B102: 63 | C102: 268.0258653 | D102: 4.971713311 | E102: 25.37924223 | F102: 96.57876082 | G102: 205.2298668 | H102: 1.596635317 | I102: 3.257616933 | J102: 44.44200389 | K102: 41.57706749 | L102: 17.35779768 | M102: 169.333251 | Q102: 15.32949054 | S102: 3.042398441
A103: 2063 - Jan | B103: 64 | C103: 260.0022168 | D103: 4.950491836 | E103: 25.35788951 | F103: 98.0576447 | G103: 208.372495 | H103: 1.589851173 | I103: 3.255820234 | J103: 45.12945888 | K103: 41.58983379 | L103: 17.31793157 | M103: 168.7787092 | Q103: 15.08178051 | S103: 2.993609766
A104: 2064 - Jan | B104: 65 | C104: 252.3426811 | D104: 4.928612781 | E104: 25.33320381 | F104: 99.53472642 | G104: 211.5112936 | H104: 1.582838728 | I104: 3.254019902 | J104: 45.8161807 | K104: 41.60239761 | L104: 17.27669818 | M104: 168.2067756 | Q104: 14.83986314 | S104: 2.94595016
A105: 2065 - Jan | B105: 66 | C105: 245.0262084 | D105: 4.906201315 | E105: 25.30545853 | F105: 101.0098473 | G105: 214.6459255 | H105: 1.575639879 | I105: 3.252210992 | J105: 46.50209362 | K105: 41.61476373 | L105: 17.23434902 | M105: 167.6211086 | Q105: 14.60373324 | S105: 2.899419443
A106: 2066 - Jan | B106: 67 | C106: 238.0331319 | D106: 4.883368652 | E106: 25.27493195 | F106: 102.4828701 | G106: 217.7760989 | H106: 1.568291878 | I106: 3.250389536 | J106: 47.18713194 | K106: 41.62693695 | L106: 17.19110785 | M106: 167.0249427 | Q106: =1000*(F106-F105)/F106 -> 14.37335614 | S106: =100*(C105-C106)/C105 -> 2.854011602
A107: 2067 - Jan | B107: 68 | C107: 231.3450763 | D107: 4.860213411 | E107: 25.24190071 | F107: 103.9536769 | G107: 220.9015634 | H107: 1.560827785 | I107: 3.248552402 | J107: 47.87123894 | K107: 41.63892199 | L107: 17.14717334 | M107: 166.4211295 | Q107: 14.14867518 | S107: 2.809716257
A108: 2068 - Jan | B108: 69 | C108: 224.9448699 | D108: 4.836822846 | E108: 25.20663499 | F108: 105.4221671 | G108: 224.0221052 | H108: 1.553276883 | I108: 3.246697176 | J108: 48.55436602 | K108: 41.65072354 | L108: 17.10272139 | M108: 165.8121735 | Q108: 13.92961555 | S108: 2.766519424
A109: 2069 - Jan | B109: 70 | C109: 218.8164625 | D109: 4.81327397 | E109: 25.16939498 | F109: 106.8882558 | G109: 227.1375436 | H109: 1.545665046 | I109: 3.244822052 | J109: 49.2364718 | K109: 41.66234619 | L109: 17.05790725 | M109: 165.2002663 | Q109: 13.71608761 | S109: 2.72440416
A110: 2070 - Jan | B110: 71 | C110: 212.9448459 | D110: 4.78963456 | E110: 25.13042866 | F110: 108.3518725 | G110: 230.247729 | H110: 1.538015081 | I110: 3.24292576 | J110: 49.91752172 | K110: 41.67379447 | L110: 17.01286752 | M110: 164.5873172 | Q110: 13.50799576 | S110: 2.68335231
A111: 2071 - Jan | B111: 72 | C111: 207.3159868 | D111: 4.765963969 | E111: 25.08997115 | F111: 109.8129583 | G111: 233.3525363 | H111: 1.530346999 | I111: 3.241007449 | J111: 50.5974867 | K111: 41.68507281 | L111: 16.96772184 | M111: 163.97498 | Q111: 13.30522228 | S111: 2.643341325
A112: 2072 - Jan | B112: 73 | C112: 201.9167584 | D112: 4.742314334 | E112: 25.04823818 | F112: 111.2714649 | G112: 236.4518629 | H112: 1.522678374 | I112: 3.239066615 | J112: 51.27634252 | K112: 41.69618555 | L112: 16.9225746 | M112: 163.3646821 | Q112: 13.10764287 | S112: 2.604347317
A113: 2073 - Jan | B113: 74 | C113: 196.7348696 | D113: 4.718730825 | E113: 25.00543434 | F113: 112.7273552 | G113: 239.5456299 | H113: 1.515024518 | I113: 3.237103106 | J113: 51.95407024 | K113: 41.70713692 | L113: 16.87751665 | M113: 162.757648 | Q113: 12.91514679 | S113: 2.566349037
A114: 2074 - Jan | B114: 75 | C114: 191.7588175 | D114: 4.695252795 | E114: 24.9617437 | F114: 114.1805992 | G114: 242.6337733 | H114: 1.507398739 | I114: 3.235116978 | J114: 52.63065425 | K114: 41.71793104 | L114: 16.83262612 | M114: 162.1549161 | Q114: 12.72759108 | S114: 2.529318848
A115: 2075 - Jan | B115: 76 | C115: 186.9778235 | D115: 4.671914066 | E115: 24.91733716 | F115: 115.6311752 | G115: 245.7162474 | H115: 1.499812556 | I115: 3.233108518 | J115: 53.3060829 | K115: 41.72857193 | L115: 16.78797031 | M115: 161.557366 | Q115: 12.54485238 | S115: 2.493232942
A116: 2076 - Jan | B116: 77 | C116: 182.3817859 | D116: 4.648743602 | E116: 24.87237025 | F116: 117.0790684 | G116: 248.7930204 | H116: 1.492275849 | I116: 3.231078187 | J116: 53.9803477 | K116: 41.73906351 | L116: 16.74360631 | M116: 160.9657293 | Q116: 12.36679803 | S116: 2.458065642
A117: 2077 - Jan | B117: 78 | C117: 177.9612324 | D117: 4.625766027 | E117: 24.82698365 | F117: 118.5242698 | G117: 251.8640733 | H117: 1.48479705 | I117: 3.229026581 | J117: 54.65344295 | K117: 41.74940956 | L117: 16.6995822 | M117: 160.3806089 | Q117: 12.19329468 | S117: 2.423791107
A118: 2078 - Jan | B118: 79 | C118: 173.7072729 | D118: 4.603001942 | E118: 24.7813068 | F118: 119.9667766 | G118: 254.9294002 | H118: 1.477383266 | I118: 3.226954433 | J118: 55.32536591 | K118: 41.75961379 | L118: 16.655938 | M118: 159.8024924 | Q118: 12.02421908 | S118: 2.390385451
A119: 2079 - Jan | B119: 80 | C119: 169.61157 | D119: 4.580468784 | E119: 24.73544927 | F119: 121.4065881 | G119: 257.9889997 | H119: 1.470040485 | I119: 3.224862496 | J119: 55.99611477 | K119: 41.76967977 | L119: 16.61270643 | M119: 159.2317661 | Q119: 11.85941823 | S119: 2.357818894
A120: 2080 - Jan | B120: 81 | C120: 165.6662894 | D120: 4.558180745 | E120: 24.68951171 | F120: 122.8437086 | G120: 261.0428808 | H120: 1.462773672 | I120: 3.222751615 | J120: 56.66569016 | K120: 41.77961097 | L120: 16.56991418 | M120: 158.6687312 | Q120: 11.69877187 | S120: 2.326068082
A121: 2081 - Jan | B121: 82 | C121: 161.8640694 | D121: 4.536149282 | E121: 24.64358297 | F121: 124.2781457 | G121: 264.0910596 | H121: 1.455586851 | I121: 3.220622679 | J121: 57.33409421 | K121: 41.78941075 | L121: 16.52758203 | M121: 158.1136084 | Q121: 11.54215085 | S121: 2.295107886
A122: 2082 - Jan | B122: 83 | C122: 158.1979881 | D122: 4.514383425 | E122: 24.59774093 | F122: 125.7099097 | G122: 267.1335581 | H122: 1.448483231 | I122: 3.218476604 | J122: 58.00133039 | K122: 41.79908237 | L122: 16.48572574 | M122: 157.56655 | Q122: 11.38942829 | S122: 2.264913596
A123: 2083 - Jan | B123: 84 | C123: 154.6615338 | D123: 4.492890063 | E123: 24.55205334 | F123: 127.1390132 | G123: 270.1704031 | H123: 1.441465301 | I123: 3.216314323 | J123: 58.66740328 | K123: 41.80862899 | L123: 16.44435665 | M123: 157.0276489 | Q123: 11.24047987 | S123: 2.235460987
A124: 2084 - Jan | B124: 85 | C124: 151.2485769 | D124: 4.471674198 | E124: 24.50657862 | F124: 128.5654708 | G124: 273.2016255 | H124: 1.434534912 | I124: 3.21413677 | J124: 59.33231837 | K124: 41.81805364 | L124: 16.40348218 | M124: 156.4969466 | Q124: 11.09518413 | S124: 2.206726371
A125: 2085 - Jan | B125: 86 | C125: 147.9533444 | D125: 4.450739174 | E125: 24.46136663 | F125: 129.9892985 | G125: 276.2272594 | H125: 1.427693356 | I125: 3.211944876 | J125: 59.99608193 | K125: 41.8273593 | L125: 16.36310634 | M125: 155.9744399 | Q125: 10.95342261 | S125: 2.178686638
A126: 2086 - Jan | B126: 87 | C126: 144.7703955 | D126: 4.430086894 | E126: 24.41645944 | F126: 131.4105138 | G126: 279.2473417 | H126: 1.420941436 | I126: 3.20973956 | J126: 60.65870084 | K126: 41.83654882 | L126: 16.32323016 | M126: 155.4600877 | Q126: 10.81508005 | S126: 2.151319283
A127: 2087 - Jan | B127: 88 | C127: 141.6946002 | D127: 4.409718 | E127: 24.37189199 | F127: 132.8291348 | G127: 282.2619115 | H127: 1.414279524 | I127: 3.207521722 | J127: 61.32018246 | K127: 41.84562496 | L127: 16.28385211 | M127: 154.9538164 | Q127: 10.68004449 | S127: 2.124602435
A128: 2088 - Jan | B128: 89 | C128: 138.7211179 | D128: 4.389632047 | E128: 24.32769279 | F128: 134.2451808 | G128: 285.2710092 | H128: 1.407707624 | I128: 3.205292239 | J128: 61.98053453 | K128: 41.8545904 | L128: 16.2449684 | M128: 154.4555247 | Q128: 10.54820731 | S128: 2.09851487
A129: 2089 - Jan | B129: 90 | C129: 135.8453792 | D129: 4.369827656 | E129: 24.28388455 | F129: 135.6586714 | G129: 288.2746767 | H129: 1.401225418 | I129: 3.203051963 | J129: 62.63976508 | K129: 41.86344772 | L129: 16.20657335 | M129: 153.9650885 | Q129: 10.41946331 | S129: 2.073036021
A130: 2090 - Jan | B130: 91 | C130: 133.0630675 | D130: 4.350302647 | E130: 24.24048472 | F130: 137.0696265 | G130: 291.2729562 | H130: 1.394832312 | I130: 3.200801717 | J130: 63.29788232 | K130: 41.87219943 | L130: 16.16865965 | M130: 153.4823643 | Q130: 10.29371073 | S130: 2.048145982
A131: 2091 - Jan | B131: 92 | C131: 130.3701032 | D131: 4.331054165 | E131: 24.19750605 | F131: 138.4780663 | G131: 294.2658908 | H131: 1.388527482 | I131: 3.198542291 | J131: 63.95489461 | K131: 41.88084794 | L131: 16.13121862 | M131: 153.0071931 | Q131: 10.1708512 | S131: 2.023825508
A132: 2092 - Jan | B132: 93 | C132: 127.7626281 | D132: 4.31207879 | E132: 24.15495711 | F132: 139.884011 | G132: 297.2535235 | H132: 1.382309904 | I132: 3.196274446 | J132: 64.61081035 | K132: 41.8893956 | L132: 16.09424041 | M132: 152.5394032 | Q132: 10.05078978 | S132: 2.000056011
A133: 2093 - Jan | B133: 94 | C133: 125.2369915 | D133: 4.293372629 | E133: 24.1128427 | F133: 141.287481 | G133: 300.2358972 | H133: 1.376178388 | I133: 3.193998906 | J133: 65.26563793 | K133: 41.89784467 | L133: 16.05771423 | M133: 152.0788126 | Q133: 9.933434852 | S133: 1.976819554
A134: 2094 - Jan | B134: 95 | C134: 122.7897369 | D134: 4.274931406 | E134: 24.07116431 | F134: 142.6884963 | G134: 303.2130546 | H134: 1.370131613 | I134: 3.191716365 | J134: 65.91938573 | K134: 41.90619734 | L134: 16.02162852 | M134: 151.6252318 | Q134: 9.8186981 | S134: 1.954098837
A135: 2095 - Jan | B135: 96 | C135: 120.41759 | D135: 4.256750537 | E135: 24.02992049 | F135: 144.0870767 | G135: 306.185038 | H135: 1.364168143 | I135: 3.189427479 | J135: 66.57206204 | K135: 41.91445573 | L135: 15.98597107 | M135: 151.1784655 | Q135: 9.706494441 | S135: 1.931877188
A136: 2096 - Jan | B136: 97 | C136: 118.1174472 | D136: 4.238825196 | E136: 23.98910719 | F136: 145.4832418 | G136: 309.1518889 | H136: 1.358286457 | I136: 3.187132875 | J136: 67.22367505 | K136: 41.92262189 | L136: 15.95072919 | M136: 150.7383141 | Q136: 9.596741937 | S136: 1.910138548
A137: 2097 - Jan | B137: 98 | C137: 115.8863652 | D137: 4.221150374 | E137: 23.94871806 | F137: 146.8770109 | G137: 312.1136482 | H137: 1.352484966 | I137: 3.184833145 | J137: 67.87423278 | K137: 41.9306978 | L137: 15.91588978 | M137: 150.3045757 | Q137: 9.489361721 | S137: 1.888867455
A138: 2098 - Jan | B138: 99 | C138: 113.7215511 | D138: 4.203720927 | E138: 23.90874479 | F138: 148.2684028 | G138: 315.070356 | H138: 1.346762031 | I138: 3.182528848 | J138: 68.52374314 | K138: 41.93868538 | L138: 15.88143949 | M138: 149.8770466 | Q138: 9.384277899 | S138: 1.868049025
A139: 2099 - Jan | B139: 100 | C139: 111.6203533 | D139: 4.186531624 | E139: 23.86917729 | F139: 149.657436 | G139: 318.0220514 | H139: 1.341115975 | I139: 3.180220514 | J139: 69.17221384 | K139: 41.94658651 | L139: 15.84736473 | M139: 149.4555229 | Q139: 9.281417459 | S139: 1.847668936

Sheet Ponderosa pine Ex 3b ANS
A1: GOAL: Thinning to maintain Tree vigor > 70 g wood produced/m2 of LAI/yr
A2: Run type : | B2: SingleSite | E2: Stand initialisation and site factor data | K2: Optional parameter block | N2: Definition of parameter
A3: Site : | B3: Metolius River Oregon | F3: Year planted = | G3: 1999 | I3: Latitude = | J3: 44 | L3: Parameters | S3: gC/MJ APAR
A4: Species : | B4: pond pine | F4: Month planted = | G4: Jan | I4: Fertility rating = | J4: 0.25 | L4: WSx1000= | M4: 50 | S4: =#REF!*55 -> 
A5: Climate data : | B5: Metolius, OR Metdata | F5: Initial year = | G5: 1 | I5: Soil class = | J5: sl | L5: fN0 | M5: 0.37
A6: Met station : | B6: Mean data | F6: Initial month = | G6: Jan | I6: Maximum ASW = | J6: 100 | L6: fNn | M6: 1 | S6: 0
A7: Title : | B7: Ponderosa pine average climate | F7: End age = | G7: 100 | I7: Minimum ASW = | J7: 0 | L7: alpha = | M7: 0.055 | N7: Quantum Efficiency (mol CO2/mol APAR (X 55 =gC/MJ absorbed PAR)
F8: Initial WF = | G8: 3 | I8: Atmospheric CO2 = | J8: 360
F9: Initial WR = | G9: 3 | L9: MaxAge | M9: 200 | N9: Age when species reaches 90% of max height on site | P9: [from Law et al. 2001 )
F10: Initial WS = | G10: 3 | L10: MaxCond | M10: 0.018 | N10: Max canopy conductance, m/second
F11: Initial stocking = | G11: 1000 | L11: SLA1 | M11: 4.2
F12: Initial ASW = | G12: 100 | L12: gammaFx = | M12: 0.021 | N12: Leaf turnover/ month
L14: Silvicultural Event
L15: Thinning
F16: Output details | H16: BasArea, avdbh | L16: Age | M16: Stocking | N16: F | O16: R | P16: S
G17: Output frequency : | H17: a | L17: 19 | M17: 500 | N17: 1 | O17: 1 | P17: 1
L18: 26 | M18: 250 | N18: 1 | O18: 1 | P18: 1
L19: 34 | M19: 100 | N19: 1 | O19: 1 | P19: 1
L20: 45 | M20: 50 | N20: 1 | O20: 1 | P20: 1
L21: 53 | M21: 25 | N21: 1 | O21: 1 | P21: 1
A36: #Output from 3PGpjs 2.7 / 3-PG vsn 1 Sep2009
A37: Stand development for Metolius River Oregon
A38: Ponderosa pine average climate | Q38: Tree vigor
A39: Year & month | B39: Stand age | C39: Stems | D39: Foliage DM | E39: Root DM | F39: Stem DM | G39: Stand volume | H39: LAI | I39: MAI | J39: Mean DBH | K39: Basal area | L39: GPP | M39: Penman transp. | Q39: g wood/m2 Leaf area/yr | S39: % mortality/yr
A40: 2000 - Jan | B40: 1 | C40: 1000 | D40: 3 | E40: 3 | F40: 3 | G40: 6.375 | H40: 0.93 | I40: 6.375 | J40: 8.863333936 | K40: 6.169984964
A41: 2001 - Jan | B41: 2 | C41: 1000 | D41: 3.164950337 | E41: 3.353727458 | F41: 3.342052172 | G41: 7.101860865 | H41: 0.9675723837 | I41: 3.550930433 | J41: 9.191484399 | K41: 6.635309579 | L41: 3.380507059 | M41: 125.1345738 | Q41: =1000*(F41-F40)/F41 -> 102.347945 | S41: =100*(C40-C41)/C40 -> 0
A42: 2002 - Jan | B42: 3 | C42: 1000 | D42: 3.346666471 | E42: 4.187363238 | F42: 3.903305696 | G42: 8.294524605 | H42: 1.030561036 | I42: 2.764841535 | J42: 9.684691006 | K42: 7.366503835 | L42: 5.526265285 | M42: 130.6114107 | Q42: =1000*(F42-F41)/F42 -> 143.7892822 | S42: =100*(C41-C42)/C41 -> 0
A43: 2003 - Jan | B43: 4 | C43: 1000 | D43: 3.44791572 | E43: 5.324455605 | F43: 4.642302454 | G43: 9.864892714 | H43: 1.079786895 | I43: 2.466223178 | J43: 10.26690624 | K43: 8.278832075 | L43: 7.266275001 | M43: 134.0543449 | Q43: 159.1875507 | S43: 0
A44: 2004 - Jan | B44: 5 | C44: 1000 | D44: 3.487593192 | E44: 6.638021121 | F44: 5.532348006 | G44: 11.75623951 | H44: 1.103779095 | I44: 2.351247902 | J44: 10.89151016 | K44: 9.316785203 | L44: 8.708512962 | M44: 135.698751 | Q44: 160.880254 | S44: 0
A45: 2005 - Jan | B45: 6 | C45: 1000 | D45: 3.523743616 | E45: 8.032415717 | F45: 6.548942167 | G45: 13.9165021 | H45: 1.117611047 | I45: 2.319417017 | J45: 11.5280361 | K45: 10.4375973 | L45: 9.889367107 | M45: 136.4823065 | Q45: 155.2302853 | S45: 0
A46: 2006 - Jan | B46: 7 | C46: 1000 | D46: 3.585577901 | E46: 9.443230911 | F46: 7.671649616 | G46: 16.30225543 | H46: 1.135631858 | I46: 2.328893633 | J46: 12.15885189 | K46: 11.61114418 | L46: 10.86521987 | M46: 137.4254185 | Q46: 146.3449851 | S46: 0
A47: 2007 - Jan | B47: 8 | C47: 1000 | D47: 3.676593351 | E47: 10.83345021 | F47: 8.886367044 | G47: 18.88352997 | H47: 1.162545199 | I47: 2.360441246 | J47: 12.77573805 | K47: 12.8192282 | L47: 11.70323321 | M47: 138.9079423 | Q47: 136.6944919 | S47: 0
A48: 2008 - Jan | B48: 9 | C48: 1000 | D48: 3.791512613 | E48: 12.18430585 | F48: 10.18470771 | G48: 21.64250388 | H48: 1.197795201 | I48: 2.404722653 | J48: 13.3760181 | K48: 14.05217588 | L48: 12.45577546 | M48: 140.9303836 | Q48: 127.4794232 | S48: 0
A49: 2009 - Jan | B49: 10 | C49: 1000 | D49: 3.924461598 | E49: 13.48793715 | F49: 11.56248498 | G49: 24.57028059 | H49: 1.23954395 | I49: 2.457028059 | J49: 13.95982313 | K49: 15.30557723 | L49: 13.15810711 | M49: 143.4075795 | Q49: 119.1592706 | S49: 0
A50: 2010 - Jan | B50: 11 | C50: 1000 | D50: 4.071122857 | E50: 14.74319777 | F50: 13.01830395 | G50: 27.66389589 | H50: 1.286178317 | I50: 2.514899627 | J50: 14.52850975 | K50: 16.57799559 | L50: 13.83384519 | M50: 146.2753974 | Q50: 111.82862 | S50: 0
A51: 2011 - Jan | B51: 12 | C51: 1000 | D51: 4.228724652 | E51: 15.95329432 | F51: 14.55248498 | G51: 30.92403059 | H51: 1.336593793 | I51: 2.577002549 | J51: 15.08382754 | K51: 17.86952457 | L51: 14.49924183 | M51: 149.5019207 | Q51: 105.4239901 | S51: 0
A52: 2012 - Jan | B52: 13 | C52: 1000 | D52: 4.395579614 | E52: 17.12421841 | F52: 16.16635466 | G52: 34.35350365 | H52: 1.390101536 | I52: 2.642577204 | J52: 15.62752948 | K52: 19.18096862 | L52: 15.16572539 | M52: 153.0759433 | Q52: 99.82891678 | S52: 0
A53: 2013 - Jan | B53: 14 | C53: 1000 | D53: 4.570694205 | E53: 18.26357709 | F53: 17.86184333 | G53: 37.95641707 | H53: 1.446288382 | I53: 2.711172648 | J53: 16.16122303 | K53: 20.51343212 | L53: 15.84149235 | M53: 156.99732 | Q53: 94.92237952 | S53: 0
A54: 2014 - Jan | B54: 15 | C54: 1000 | D54: 4.753513972 | E54: 19.37972433 | F54: 19.64127513 | G54: 41.73770964 | H54: 1.504915143 | I54: 2.782513976 | J54: 16.68633243 | K54: 21.86813087 | L54: 16.5325318 | M54: 161.2714153 | Q54: 90.59655172 | S54: 0
A55: 2015 - Jan | B55: 16 | C55: 1000 | D55: 4.933660871 | E55: 20.44499937 | F55: 21.4924997 | G55: 45.67156185 | H55: 1.563868105 | I55: 2.854472616 | J55: 17.20012815 | K55: 23.23556551 | L55: 17.10318721 | M55: 165.8207173 | Q55: 86.13351615 | S55: 0
A56: 2016 - Jan | B56: 17 | C56: 1000 | D56: 5.092797617 | E56: 21.40557744 | F56: 23.38705783 | G56: 49.69749789 | H56: 1.61756077 | I56: 2.923382229 | J56: 17.69639351 | K56: 24.59571292 | L56: 17.41783794 | M56: 170.2203307 | Q56: 81.00882754 | S56: 0
A57: 2017 - Jan | B57: 18 | C57: 1000 | D57: 5.214761765 | E57: 22.24132974 | F57: 25.29397393 | G57: 53.7496946 | H57: 1.661717948 | I57: 2.986094144 | J57: 18.16964925 | K57: 25.9288329 | L57: 17.52823969 | M57: 172.6388474 | Q57: 75.39013452 | S57: 0
A58: 2018 - Jan | B58: 19 | C58: 500 | D58: 2.649863743 | E58: 11.47445384 | F58: 13.60001008 | G58: 28.90002143 | H58: 1.625566262 | I58: 1.521053759 | J58: 18.61959226 | K58: 13.61445368 | L58: 17.53320959 | M58: 173.7539776 | Q58: -859.8496451 | S58: 50
A59: 2019 - Jan | B59: 20 | C59: 500 | D59: 3.032909811 | E59: 12.90780206 | F59: 15.07288581 | G59: 32.02988234 | H59: 0.9166813214 | I59: 1.601494117 | J59: 19.27552668 | K59: 14.59057451 | L59: 13.31913853 | M59: 118.7890979 | Q59: 97.71690318 | S59: 0
A60: 2020 - Jan | B60: 21 | C60: 500 | D60: 3.389350138 | E60: 14.36981066 | F60: 16.65307416 | G60: 35.3877826 | H60: 1.036688985 | I60: 1.685132505 | J60: 19.93355263 | K60: 15.60376137 | L60: 14.33359533 | M60: 129.7754015 | Q60: 94.88868788 | S60: 0
A61: 2021 - Jan | B61: 22 | C61: 500 | D61: 3.687035975 | E61: 15.75073199 | F61: 18.28437768 | G61: 38.85430256 | H61: 1.142707012 | I61: 1.766104662 | J61: 20.57074159 | K61: 16.61727408 | L61: 14.89494728 | M61: 136.6889245 | Q61: 89.21843232 | S61: 0
A62: 2022 - Jan | B62: 23 | C62: 500 | D62: 3.939124304 | E62: 17.01500466 | F62: 19.96497248 | G62: 42.42556651 | H62: 1.231304133 | I62: 1.844589848 | J62: 21.1888819 | K62: 17.63096026 | L62: 15.33333988 | M62: 142.2801176 | Q62: 84.17716595 | S62: 0
A63: 2023 - Jan | B63: 24 | C63: 500 | D63: 4.156436285 | E63: 18.1592352 | F63: 21.69447303 | G63: 46.10075518 | H63: 1.306595582 | I63: 1.920864799 | J63: 21.78995431 | K63: 18.64543522 | L63: 15.71515467 | M63: 147.2067817 | Q63: 79.72079094 | S63: 0
A64: 2024 - Jan | B64: 25 | C64: 500 | D64: 4.345733766 | E64: 19.19127552 | F64: 23.47041018 | G64: 49.87462162 | H64: 1.37157684 | I64: 1.994984865 | J64: 22.37494107 | K64: 19.66000781 | L64: 16.05789155 | M64: 151.6750018 | Q64: 75.6670692 | S64: 0
A65: 2025 - Jan | B65: 26 | C65: 500 | D65: 4.511415559 | E65: 20.121336 | F65: 25.28920226 | G65: 53.7395548 | H65: 1.428132658 | I65: 2.066905954 | J65: 22.94435516 | K65: 20.6733853 | L65: 16.36640748 | M65: 155.7476849 | Q65: 71.91970966 | S65: 0
A66: 2026 - Jan | B66: 27 | C66: 250 | D66: 2.60220579 | E66: 11.35346095 | F66: 13.99463108 | G66: 29.73859105 | H66: 0.7820190355 | I66: 1.101429298 | J66: 23.7415809 | K66: 11.06749052 | L66: 11.98840258 | M66: 106.8784485 | Q66: -807.0645888 | S66: 50
A67: 2027 - Jan | B67: 28 | C67: 250 | D67: 2.951401948 | E67: 12.75682122 | F67: 15.48717204 | G67: 32.91024057 | H67: 0.8941985406 | I67: 1.175365735 | J67: 24.56563763 | K67: 11.84911658 | L67: 13.13363102 | M67: 116.76084 | Q67: 96.37272385 | S67: 0
A68: 2028 - Jan | B68: 29 | C68: 250 | D68: 3.278070211 | E68: 14.18337981 | F68: 17.08643294 | G68: 36.30867 | H68: 1.003654882 | I68: 1.252023103 | J68: 25.39207373 | K68: 12.65978211 | L68: 14.11085517 | M68: 127.2128682 | Q68: 93.59829003 | S68: 0
A69: 2029 - Jan | B69: 30 | C69: 250 | D69: 3.555988908 | E69: 15.5421464 | F69: 18.74363017 | G69: 39.8302141 | H69: 1.101477909 | I69: 1.327673803 | J69: 26.19595878 | K69: 13.47406031 | L69: 14.70856993 | M69: 134.2682539 | Q69: 88.41388833 | S69: 0
A70: 2030 - Jan | B70: 31 | C70: 250 | D70: 3.787942868 | E70: 16.78726864 | F70: 20.44446628 | G70: 43.44449084 | H70: 1.183639554 | I70: 1.401435188 | J70: 26.97337761 | K70: 14.28566806 | L70: 15.12044068 | M70: 139.4728738 | Q70: 83.19298181 | S70: 0
A71: 2031 - Jan | B71: 32 | C71: 250 | D71: 3.984420538 | E71: 17.91009928 | F71: 22.18778862 | G71: 47.14905082 | H71: 1.252367142 | I71: 1.473407838 | J71: 27.72688432 | K71: 15.09496225 | L71: 15.46238473 | M71: 143.864266 | Q71: 78.57125264 | S71: 0
A72: 2032 - Jan | B72: 33 | C72: 250 | D72: 4.152741201 | E72: 18.9160416 | F72: 23.97151905 | G72: 50.93947798 | H72: 1.31067635 | I72: 1.543620545 | J72: 28.45823655 | K72: 15.90178437 | L72: 15.76065495 | M72: 147.7260227 | Q72: 74.41040452 | S72: 0
A73: 2033 - Jan | B73: 34 | C73: 250 | D73: 4.297813521 | E73: 19.8148469 | F73: 25.79255837 | G73: 54.80918654 | H73: 1.360620627 | I73: 1.612034898 | J73: 29.16853882 | K73: 16.70549074 | L73: 16.02413394 | M73: 151.1652927 | Q73: 70.60328394 | S73: 0
A74: 2034 - Jan | B74: 35 | C74: 100 | D74: 1.988509436 | E74: 8.968380933 | F74: 11.41776209 | G74: 24.26274443 | H74: 0.5968926467 | I74: 0.6932212695 | J74: 30.18133438 | K74: 7.15429354 | L74: 9.583873336 | M74: 83.2881799 | Q74: -1258.985446 | S74: 60
A75: 2035 - Jan | B75: 36 | C75: 100 | D75: 2.279358441 | E75: 10.14523754 | F75: 12.66730775 | G75: 26.91802897 | H75: 0.6866734391 | I75: 0.7477230271 | J75: 31.25537718 | K75: 7.672543684 | L75: 10.67810693 | M75: 91.4704661 | Q75: 98.64334952 | S75: 0
A76: 2036 - Jan | B76: 37 | C76: 100 | D76: 2.586005795 | E76: 11.43519027 | F76: 14.06671596 | G76: 29.89177142 | H76: 0.7819391878 | I76: 0.8078857141 | J76: 32.37780749 | K76: 8.233505018 | L76: 11.91583251 | M76: 103.9493662 | Q76: 99.48364733 | S76: 0
A77: 2037 - Jan | B77: 38 | C77: 100 | D77: 2.89080319 | E77: 12.79521533 | F77: 15.59572638 | G77: 33.14091855 | H77: 0.8799085534 | I77: 0.8721294355 | J77: 33.52246541 | K77: 8.825956527 | L77: 13.0243955 | M77: 115.5248899 | Q77: 98.04034622 | S77: 0
A78: 2038 - Jan | B78: 39 | C78: 100 | D78: 3.173676822 | E78: 14.15845581 | F78: 17.22239989 | G78: 36.59759976 | H78: 0.9747975145 | I78: 0.9383999938 | J78: 34.66120973 | K78: 9.435769296 | L78: 13.89318401 | M78: 124.7760358 | Q78: 94.45103593 | S78: 0
A79: 2039 - Jan | B79: 40 | C79: 100 | D79: 3.421783652 | E79: 15.46435188 | F79: 18.91680542 | G79: 40.19821152 | H79: 1.060429249 | I79: 1.004955288 | J79: 35.77384696 | K79: 10.05127536 | L79: 14.51689848 | M79: 131.8099517 | Q79: 89.57144171 | S79: 0
A80: 2040 - Jan | B80: 41 | C80: 100 | D80: 3.626288434 | E80: 16.66221229 | F80: 20.6496783 | G80: 43.88056638 | H80: 1.133285307 | I80: 1.070257717 | J80: 36.84531801 | K80: 10.66238843 | L80: 14.89760845 | M80: 136.5433786 | Q80: 83.91766947 | S80: 0
A81: 2041 - Jan | B81: 42 | C81: 100 | D81: 3.795973004 | E81: 17.7399818 | F81: 22.41774919 | G81: 47.63771703 | H81: 1.193276846 | I81: 1.134231358 | J81: 37.87872436 | K81: 11.26887525 | L81: 15.19588669 | M81: 140.3452642 | Q81: 78.86924231 | S81: 0
A82: 2042 - Jan | B82: 43 | C82: 100 | D82: 3.938022289 | E82: 18.70004581 | F82: 24.21870193 | G82: 51.4647416 | H82: 1.243082353 | I82: 1.196854456 | J82: 38.87716816 | K82: 11.87077648 | L82: 15.44416672 | M82: 143.5419789 | Q82: 74.36206705 | S82: 0
A83: 2043 - Jan | B83: 44 | C83: 100 | D83: 4.057627845 | E83: 19.55071723 | F83: 26.04979336 | G83: 55.35581089 | H83: 1.284764905 | I83: 1.258086611 | J83: 39.84302835 | K83: 12.46793594 | L83: 15.6559257 | M83: 146.284695 | Q83: 70.29197538 | S83: 0
A84: 2044 - Jan | B84: 45 | C84: 50 | D84: 2.079285581 | E84: 10.15103178 | F84: 13.95399834 | G84: 29.65224647 | H84: 1.266094655 | I84: 0.6589388106 | J84: 40.77818476 | K84: 6.530037333 | L84: 15.83772541 | M84: 148.6518654 | Q84: -866.833629 | S84: 50
A85: 2045 - Jan | B85: 46 | C85: 50 | D85: 2.338348556 | E85: 11.21152411 | F85: 15.27929979 | G85: 32.46851206 | H85: 0.7091935346 | I85: 0.7058372187 | J85: 42.04317386 | K85: 6.941460762 | L85: 10.99944232 | M85: 94.59753088 | Q85: 86.73836295 | S85: 0
A86: 2046 - Jan | B86: 47 | C86: 50 | D86: 2.606899288 | E86: 12.36582372 | F86: 16.73941965 | G86: 35.57126677 | H86: 0.793130758 | I86: 0.7568354631 | J86: 43.35520723 | K86: 7.381462513 | L86: 12.08221599 | M86: 105.5945214 | Q86: 87.22643276 | S86: 0
A87: 2047 - Jan | B87: 48 | C87: 50 | D87: 2.869214409 | E87: 13.57236317 | F87: 18.31264028 | G87: 38.9143606 | H87: 0.8780637455 | I87: 0.8107158459 | J87: 44.68647911 | K87: 7.841734983 | L87: 13.02957632 | M87: 115.5095438 | Q87: 85.90900078 | S87: 0
A88: 2048 - Jan | B88: 49 | C88: 50 | D88: 3.110969931 | E88: 14.77698676 | F88: 19.97238387 | G88: 42.44131572 | H88: 0.959234757 | I88: 0.8661493004 | J88: 46.01110351 | K88: 8.313524566 | L88: 13.78096791 | M88: 123.5048122 | Q88: 83.10192692 | S88: 0
A89: 2049 - Jan | B89: 50 | C89: 50 | D89: 3.327848585 | E89: 15.93973267 | F89: 21.70248887 | G89: 46.11778885 | H89: 1.032984044 | I89: 0.9223557769 | J89: 47.31628897 | K89: 8.791869572 | L89: 14.38287192 | M89: 130.1191796 | Q89: 79.71919769 | S89: 0
A90: 2050 - Jan | B90: 51 | C90: 50 | D90: 3.505924696 | E90: 17.0111345 | F90: 23.46686107 | G90: 49.86707977 | H90: 1.09647505 | I90: 0.9777858778 | J90: 48.57805512 | K90: 9.267020683 | L90: 14.73040463 | M90: 134.3729696 | Q90: 75.18569248 | S90: 0
A91: 2051 - Jan | B91: 52 | C91: 50 | D91: 3.651964864 | E91: 17.97792544 | F91: 25.26055657 | G91: 53.67868271 | H91: 1.148404816 | I91: 1.03228236 | J91: 49.79783529 | K91: 9.738247645 | L91: 14.99392003 | M91: 137.6985765 | Q91: 71.00775853 | S91: 0
A92: 2052 - Jan | B92: 53 | C92: 25 | D92: 1.886116725 | E92: 9.41972472 | F92: 13.54035184 | G92: 28.77324766 | H92: 1.142214596 | I92: 0.5428914652 | J92: 50.97820607 | K92: 5.102687677 | L92: 15.20484387 | M92: 140.3997854 | Q92: -865.5760849 | S92: 50
A93: 2053 - Jan | B93: 54 | C93: 25 | D93: 2.106250545 | E93: 10.37636632 | F93: 14.78226149 | G93: 31.41230567 | H93: 0.6403525884 | I93: 0.5817093642 | J93: 52.50691614 | K93: 5.413310193 | L93: 10.09581143 | M93: 85.65560598 | Q93: 84.01350858 | S93: 0
A94: 2054 - Jan | B94: 55 | C94: 25 | D94: 2.334376968 | E94: 11.41175416 | F94: 16.14514349 | G94: 34.30842992 | H94: 0.7116521966 | I94: 0.6237896349 | J94: 54.0894395 | K94: 5.744534636 | L94: 11.04857487 | M94: 95.03785884 | Q94: 84.41436289 | S94: 0
A95: 2055 - Jan | B95: 56 | C95: 25 | D95: 2.567760733 | E95: 12.51132252 | F95: 17.62891731 | G95: 37.46144928 | H95: 0.7849440005 | I95: 0.6689544514 | J95: 55.71459223 | K95: 6.094917097 | L95: 11.99547793 | M95: 104.6465483 | Q95: 84.16704151 | S95: 0
A96: 2056 - Jan | B96: 57 | C96: 25 | D96: 2.796067382 | E96: 13.6456516 | F96: 19.21814411 | G96: 40.83855622 | H96: 0.858538262 | I96: 0.7164658987 | J96: 57.35752981 | K96: 6.459676499 | L96: 12.84629126 | M96: 113.5171882 | Q96: 82.69408274 | S96: 0
A97: 2057 - Jan | B97: 58 | C97: 25 | D97: 3.006624753 | E97: 14.77135381 | F97: 20.8879322 | G97: 44.38685593 | H97: 0.9289621046 | I97: 0.7652906194 | J97: 58.98934931 | K97: 6.832460056 | L97: 13.52705714 | M97: 120.7390504 | Q97: 79.9403253 | S97: 0
A98: 2058 - Jan | B98: 59 | C98: 25 | D98: 3.197125759 | E98: 15.85820616 | F98: 22.62631923 | G98: 48.08092836 | H98: 0.9933262966 | I98: 0.8149309892 | J98: 60.59870219 | K98: 7.210353154 | L98: 14.09394883 | M98: 126.8520211 | Q98: 76.83030598 | S98: 0
A99: 2059 - Jan | B99: 60 | C99: 25 | D99: 3.360443613 | E99: 16.87439922 | F99: 24.41041227 | G99: 51.87212607 | H99: 1.050058266 | I99: 0.8645354345 | J99: 62.16720922 | K99: 7.588442252 | L99: 14.49526266 | M99: 131.4297876 | Q99: 73.08737844 | S99: 0
A100: 2060 - Jan | B100: 61 | C100: 25 | D100: 3.493375572 | E100: 17.79616824 | F100: 26.22117378 | G100: 55.71999428 | H100: 1.097503811 | I100: 0.9134425292 | J100: 63.68321978 | K100: 7.963058678 | L100: 14.75032635 | M100: 134.5797301 | Q100: 69.05722545 | S100: 0
A101: 2061 - Jan | B101: 62 | C101: 25 | D101: 3.601284194 | E101: 18.61971849 | F101: 28.05457213 | G101: 59.61596578 | H101: 1.13596662 | I101: 0.9615478352 | J101: 65.14898889 | K101: 8.333841757 | L101: 14.94596656 | M101: 137.0515506 | Q101: 65.351143 | S101: 0
A102: 2062 - Jan | B102: 63 | C102: 25 | D102: 3.688835104 | E102: 19.34810341 | F102: 29.90772669 | G102: 63.55391922 | H102: 1.167096821 | I102: 1.008792369 | J102: 66.56732915 | K102: 8.700659135 | L102: 15.10063966 | M102: 139.0309673 | Q102: 61.96240116 | S102: 0
A103: 2063 - Jan | B103: 64 | C103: 25 | D103: 3.759767595 | E103: 19.9877759 | F103: 31.77813301 | G103: 67.52853264 | H103: 1.192271553 | I103: 1.055133322 | J103: 67.94093109 | K103: 9.063436132 | L103: 15.22485021 | M103: 140.6326108 | Q103: 58.85828199 | S103: 0
A104: 2064 - Jan | B104: 65 | C104: 25 | D104: 3.817026507 | E104: 20.54655619 | F104: 33.66348183 | G104: 71.53489889 | H104: 1.212580984 | I104: 1.100536906 | J104: 69.27225482 | K104: 9.422117991 | L104: 15.32506882 | M104: 141.9315352 | Q104: 56.00575824 | S104: 0
A105: 2065 - Jan | B105: 66 | C105: 25 | D105: 3.862946385 | E105: 21.0325489 | F105: 35.56164587 | G105: 75.56849747 | H105: 1.228882483 | I105: 1.144977234 | J105: 70.56355875 | K105: 9.776667409 | L105: 15.40570473 | M105: 142.9809771 | Q105: 53.37672061 | S105: 0
A106: 2066 - Jan | B106: 67 | C106: 25 | D106: 3.899403695 | E106: 21.45359945 | F106: 37.47069311 | G106: 79.62522286 | H106: 1.241857349 | I106: 1.188436162 | J106: 71.81694018 | K106: 10.12706705 | L106: 15.47003026 | M106: 143.8214123 | Q106: =1000*(F106-F105)/F106 -> 50.94774298 | S106: =100*(C105-C106)/C105 -> 0
A107: 2067 - Jan | B107: 68 | C107: 25 | D107: 3.927928362 | E107: 21.81703933 | F107: 39.38889312 | G107: 83.70139788 | H107: 1.252054929 | I107: 1.23090291 | J107: 73.03436394 | K107: 10.47332047 | L107: 15.52062272 | M107: 144.4851883 | Q107: 48.69900773 | S107: 0
A108: 2068 - Jan | B108: 69 | C108: 25 | D108: 3.9497833 | E108: 22.12958314 | F108: 41.31471303 | G108: 87.79376519 | H108: 1.259924397 | I108: 1.272373409 | J108: 74.21767989 | K108: 10.81545109 | L108: 15.55958946 | M108: 144.9990063 | Q108: 46.61341614 | S108: 0
A109: 2069 - Jan | B109: 70 | C109: 25 | D109: 3.966021431 | E109: 22.39730495 | F109: 43.24680644 | G109: 91.8994637 | H109: 1.26583735 | I109: 1.312849481 | J109: 75.36863337 | K109: 11.15349999 | L109: 15.58869255 | M109: 145.385348 | Q109: 44.67597894 | S109: 0
A110: 2070 - Jan | B110: 71 | C110: 25 | D110: 3.977527371 | E110: 22.62565505 | F110: 45.18399853 | G110: 96.01599687 | H110: 1.270104075 | I110: 1.352337984 | J110: 76.48887195 | K110: 11.48752322 | L110: 15.60942467 | M110: 145.6633633 | Q110: 42.87340969 | S110: 0
A111: 2071 - Jan | B111: 72 | C111: 25 | D111: 3.9850486 | E111: 22.8194967 | F111: 47.12526958 | G111: 100.1411979 | H111: 1.272985511 | I111: 1.39084997 | J111: 77.57995036 | K111: 11.81758909 | L111: 15.62305962 | M111: 145.8494696 | Q111: 41.19384516 | S111: 0
A112: 2072 - Jan | B112: 73 | C112: 25 | D112: 3.989219352 | E112: 22.98315168 | F112: 49.06973856 | G112: 104.2731944 | H112: 1.274702249 | I112: 1.428399924 | J112: 78.64333469 | K112: 12.14377553 | L112: 15.6306887 | M112: 145.9577864 | Q112: 39.62664229 | S112: 0
A113: 2073 - Jan | B113: 74 | C113: 25 | D113: 3.990579325 | E113: 23.12044851 | F113: 51.01664719 | G113: 108.4103753 | H113: 1.275441484 | I113: 1.465005071 | J113: 79.68040627 | K113: 12.46616783 | L113: 15.63324851 | M113: 146.0004715 | Q113: 38.16222228 | S113: 0
A114: 2074 - Jan | B114: 75 | C114: 25 | D114: 3.989588614 | E114: 23.23477013 | F114: 52.96534526 | G114: 112.5513587 | H114: 1.275362471 | I114: 1.500684782 | J114: 80.69246557 | K114: 12.7848566 | L114: 15.6315432 | M114: 145.9879918 | Q114: 36.79194495 | S114: 0
A115: 2075 - Jan | B115: 76 | C115: 25 | D115: 3.986639838 | E115: 23.32909935 | F115: 54.91527711 | G115: 116.6949639 | H115: 1.274600919 | I115: 1.535460051 | J115: 81.68073608 | K115: 13.09993605 | L115: 15.62626287 | M115: 145.9293492 | Q115: 35.50800356 | S115: 0
A116: 2076 - Jan | B116: 77 | C116: 25 | D116: 3.982068129 | E116: 23.40606121 | F116: 56.8659695 | G116: 120.8401852 | H116: 1.273272553 | I116: 1.569353055 | J116: 82.64636816 | K116: 13.41150257 | L116: 15.61799903 | M116: 145.8322731 | Q116: 34.30333482 | S116: 0
A117: 2077 - Jan | B117: 78 | C117: 25 | D117: 3.976159448 | E117: 23.46796193 | F117: 58.81702068 | G117: 124.986169 | H117: 1.271476071 | I117: 1.602386781 | J117: 83.59044299 | K117: 13.71965352 | L117: 15.60725781 | M117: 145.7033864 | Q117: 33.17154044 | S117: 0
A118: 2078 - Jan | B118: 79 | C118: 25 | D118: 3.969157576 | E118: 23.51682432 | F118: 60.76809072 | G118: 129.1321928 | H118: 1.269295599 | I118: 1.634584719 | J118: 84.51397638 | K118: 14.02448627 | L118: 15.59447134 | M118: 145.5483497 | Q118: 32.10681812 | S118: 0
A119: 2079 - Jan | B119: 80 | C119: 25 | D119: 3.961270045 | E119: 23.55441984 | F119: 62.71889293 | G119: 133.2776475 | H119: 1.266802768 | I119: 1.665970593 | J119: 85.41792251 | K119: 14.32609739 | L119: 15.58000764 | M119: 145.3719879 | Q119: 31.10390057 | S119: 0
A120: 2080 - Jan | B120: 81 | C120: 25 | D120: 3.952673188 | E120: 23.58229749 | F120: 64.66918633 | G120: 137.4220209 | H120: 1.264058469 | I120: 1.69656816 | J120: 86.30317766 | K120: 14.62458205 | L120: 15.56417922 | M120: 145.1784003 | Q120: 30.1580012 | S120: 0
A121: 2081 - Jan | B121: 82 | C121: 25 | D121: 3.94351647 | E121: 23.60180966 | F121: 66.61876901 | G121: 141.5648842 | H121: 1.261114355 | I121: 1.726401026 | J121: 87.17058367 | K121: 14.92003349 | L121: 15.54725051 | M121: 144.9710575 | Q121: 29.26476596 | S121: 0
A122: 2082 - Jan | B122: 83 | C122: 25 | D122: 3.933926211 | E122: 23.61413529 | F122: 68.56747236 | G122: 145.7058788 | H122: 1.258014125 | I122: 1.755492515 | J122: 88.02093135 | K122: 15.21254266 | L122: 15.52944445 | M122: 144.7528867 | Q122: 28.42023017 | S122: 0
A123: 2083 - Jan | B123: 84 | C123: 25 | D123: 3.924008799 | E123: 23.62030043 | F123: 70.51515598 | G123: 149.8447065 | H123: 1.254794634 | I123: 1.783865553 | J123: 88.8549637 | K123: 15.50219793 | L123: 15.51094811 | M123: 144.5263454 | Q123: 27.62078019 | S123: 0
A124: 2084 - Jan | B124: 85 | C124: 25 | D124: 3.913853469 | E124: 23.62119669 | F124: 72.46170334 | G124: 153.9811196 | H124: 1.251486844 | I124: 1.811542584 | J124: 89.673379 | K124: 15.78908489 | L124: 15.49191775 | M124: 144.293487 | Q124: 26.86311896 | S124: 0
A125: 2085 - Jan | B125: 86 | C125: 25 | D125: 3.90353471 | E125: 23.61759751 | F125: 74.40701793 | G125: 158.1149131 | H125: 1.24811665 | I125: 1.838545501 | J125: 90.47683367 | K125: 16.07328618 | L125: 15.47248307 | M125: 144.056017 | Q125: 26.14423535 | S125: 0
A126: 2086 - Jan | B126: 87 | C126: 25 | D126: 3.893114348 | E126: 23.61017259 | F126: 76.35102 | G126: 162.2459175 | H126: 1.244705597 | I126: 1.864895603 | J126: 91.26594504 | K126: 16.35488145 | L126: 15.45275102 | M126: 143.8153431 | Q126: 25.46137656 | S126: 0
A127: 2087 - Jan | B127: 88 | C127: 25 | D127: 3.882643358 | E127: 23.59950075 | F127: 78.29364373 | G127: 166.3739929 | H127: 1.241271497 | I127: 1.890613556 | J127: 92.04129394 | K127: 16.63394729 | L127: 15.43280907 | M127: 143.5726177 | Q127: 24.81202352 | S127: 0
A128: 2088 - Jan | B128: 89 | C128: 25 | D128: 3.872163429 | E128: 23.58608124 | F128: 80.23483479 | G128: 170.4990239 | H128: 1.237828966 | I128: 1.91571937 | J128: 92.80342707 | K128: 16.91055723 | L128: 15.41272809 | M128: 143.328776 | Q128: 24.19386869 | S128: 0
A129: 2089 - Jan | B129: 90 | C129: 25 | D129: 3.861708329 | E129: 23.57034372 | F129: 82.17454825 | G129: 174.620915 | H129: 1.234389893 | I129: 1.940232389 | J129: 93.55285931 | K129: 17.18478177 | L129: 15.39256477 | M129: 143.0845678 | Q129: 23.60479625 | S129: 0
A130: 2090 - Jan | B130: 91 | C130: 25 | D130: 3.851305085 | E130: 23.5526571 | F130: 84.11274686 | G130: 178.7395871 | H130: 1.230963837 | I130: 1.964171287 | J130: 94.29007584 | K130: 17.45668841 | L130: 15.3723638 | M130: 142.840586 | Q130: 23.04286421 | S130: 0
A131: 2091 - Jan | B131: 92 | C131: 25 | D131: 3.840974998 | E131: 23.53333732 | F131: 86.04939946 | G131: 182.8549738 | H131: 1.227558384 | I131: 1.987554064 | J131: 95.0155341 | K131: 17.72634175 | L131: 15.35215972 | M131: 142.5972909 | Q131: 22.50628838 | S131: 0
A132: 2092 - Jan | B132: 93 | C132: 25 | D132: 3.830734531 | E132: 23.51265415 | F132: 87.98447977 | G132: 186.9670195 | H132: 1.224179445 | I132: 2.010398059 | J132: 95.72966566 | K132: 17.99380354 | L132: 15.33197848 | M132: 142.3550308 | Q132: 21.99342789 | S132: 0
A133: 2093 - Jan | B133: 94 | C133: 25 | D133: 3.82059607 | E133: 23.49083721 | F133: 89.91796529 | G133: 191.0756762 | H133: 1.220831515 | I133: 2.03271996 | J133: 96.43287796 | K133: 18.25913276 | L133: 15.31183885 | M133: 142.1140604 | Q133: 21.50277218 | S133: 0
A134: 2094 - Jan | B134: 95 | C134: 25 | D134: 3.81056858 | E134: 23.46808127 | F134: 91.8498364 | G134: 195.1809024 | H134: 1.217517903 | I134: 2.054535814 | J134: 97.12555588 | K134: 18.52238576 | L134: 15.29175357 | M134: 141.8745559 | Q134: 21.03292924 | S134: 0
A135: 2095 - Jan | B135: 96 | C135: 25 | D135: 3.800658168 | E135: 23.44455082 | F135: 93.7800756 | G135: 199.2826606 | H135: 1.214240926 | I135: 2.075861048 | J135: 97.80806325 | K135: 18.78361632 | L135: 15.27173038 | M135: 141.6366285 | Q135: 20.58261505 | S135: 0
A136: 2096 - Jan | B136: 97 | C136: 25 | D136: 3.790868572 | E136: 23.42038416 | F136: 95.70866687 | G136: 203.3809171 | H136: 1.211002069 | I136: 2.096710486 | J136: 98.48074426 | K136: 19.04287577 | L136: 15.25177287 | M136: 141.4003352 | Q136: 20.15064397 | S136: 0
A137: 2097 - Jan | B137: 98 | C137: 25 | D137: 3.781201571 | E137: 23.39569692 | F137: 97.63559518 | G137: 207.4756397 | H137: 1.207802135 | I137: 2.117098365 | J137: 99.14392473 | K137: 19.30021309 | L137: 15.23188119 | M137: 141.165689 | Q137: 19.73592012 | S137: 0
A138: 2098 - Jan | B138: 99 | C138: 25 | D138: 3.77165734 | E138: 23.37058514 | F138: 99.56084602 | G138: 211.5667978 | H138: 1.204641363 | I138: 2.137038362 | J138: 99.7979133 | K138: 19.55567501 | L138: 15.21205273 | M138: 140.9326664 | Q138: 19.33742955 | S138: 0
A139: 2099 - Jan | B139: 100 | C139: 25 | D139: 3.762234754 | E139: 23.34512799 | F139: 101.4844051 | G139: 215.6543608 | H139: 1.201519533 | I139: 2.156543608 | J139: 100.4430026 | K139: 19.80930614 | L139: 15.19228258 | M139: 140.7012149 | Q139: 18.95423315 | S139: 0
P190: =M190/30 -> 0

Sheet Penman-Monteith EX 4a
I1: Indentify which of the original runs represent:
I2: Condition | J2: Letters (A-E)
I3: wet forest | J3: D
I4: dry forest | J4: A,C
I5: wet grass | J5: E
I6: dry grass | J6: B
B8: Insert Values for all red variables | D8: Solving the Penman Monteith Equation
K9: Latent Heat Flux | L9: Evaporation
A10: Constants | C10: Values of constants | D10: Units | E10: Rnet | F10: vpd | G10: gb | H10: gs | K10: Num./Den. | L10: (W/m2)/K1)*3600 s) | N10: Evaporation
B11: Temperature | C11: 20 | D11: oC | E11: W/m2 | F11: Pascals | G11: m/s | H11: m/s | I11: Numerator | J11: Denominator | K11: W/m2 | L11: mm/hr | M11: Compare | N11: % change
A12: K1 | B12: Latent heat vaporization | C12: 2454000 | D12: J/Kg | E12: 600 | F12: 1000 | G12: 0.2 | H12: 0.02 | I12: =(C13*E12)+(1.204*1004*F12*G12) -> 327202.6763 | J12: =66.1*(G12/H12+1)+C13 -> 869.4991272 | K12: =I12/J12 -> 376.3116789 | L12: =(K12/2454000)*3600 -> 0.5520464727 | M12: A
A13: K2 | B13: slope of saturated vp | C13: =(47.117*EXP(C11*0.0553)) -> 142.3991272 | D13: Pa/K | E13: 300 | F13: 1000 | G13: 0.2 | H13: 0.02 | I13: =(C13*E13)+(1.204*1004*F13*G13) -> 284482.9382 | J13: =66.1*(G13/H13+1)+C13 -> 869.4991272 | K13: 327.1802458 | L13: 0.4799710207 | M13: A | N13: -0.13 | O13: Reduce Rnet 50%
A14: K3 | B14: Density of dry air | C14: 1.204 | D14: kg/m3 | E14: 600 | F14: 1000 | G14: 0.01 | H14: 0.02 | I14: =(C13*E14)+(1.204*1004*F14*G14) -> 97527.63635 | J14: =66.1*(G14/H14+1)+C13 -> 241.5491272 | K14: 403.7590094 | L14: 0.5923115053 | M14: B
A15: K4 | B15: Specific Heat of dry air | C15: 1004 | D15: J/kg/oK | E15: 300 | F15: 1000 | G15: 0.01 | H15: 0.02 | I15: =(C13*E15)+(1.204*1004*F15*G15) -> 54807.89817 | J15: =66.1*(G15/H15+1)+C13 -> 241.5491272 | K15: 226.901661 | L15: 0.3328630723 | M15: B | N15: -0.28 | O15: Reduce Rnet 50%
A16: K5 | B16: psycrometric constant | C16: 66.1 | D16: Pa/oK | E16: 600 | F16: 1000 | G16: 0.2 | H16: 0.02 | I16: =(C15*E16)+(1.204*1004*F16*G16) -> 844163.2 | J16: =66.1*(G16/H16+1)+C13 -> 869.4991272 | K16: 970.861469 | L16: 1.424246654 | M16: C
E17: 600 | F17: 3000 | G17: 0.02 | H17: 0.005 | I17: =(C13*E17)+(1.204*1004*F17*G17) -> 157968.4363 | J17: =66.1*(G17/H17+1)+C13 -> 472.8991272 | K17: 334.0425627 | L17: 0.4900379892 | M17: C | O17: Increase vpd 3-fold
A18: Penman-Monteith Equation | E18: 100 | F18: 100 | G18: 0.2 | H18: 100 | I18: =(C13*E18)+(1.204*1004*F18*G18) -> 38416.23272 | J18: =66.1*(G18/H18+1)+C13 -> 208.6313272 | K18: 184.1345364 | L18: 0.2701240143 | M18: D
A19: E (K1) | B19: = K2 (Rnet) + (K3)(K4)(D)*gb | E19: 100 | F19: 100 | G19: 0.2 | H19: 1000 | I19: =(C13*E19)+(1.204*1004*F19*G19) -> 38416.23272 | J19: =66.1*(G19/H19+1)+C13 -> 208.5123472 | K19: 184.2396061 | L19: 0.2702781508 | M19: D | N19: 0 | O19: Increase gs by 10-fold
B20: K2 +K5(1 +gb/gc) | E20: 100 | F20: 100 | G20: 0.02 | H20: 100 | I20: =(C13*E20)+(1.204*1004*F20*G20) -> 16657.54472 | J20: =66.1*(G20/H20+1)+C13 -> 208.5123472 | K20: 79.88756994 | L20: 0.1171944791 | M20: E
E21: 100 | F21: 100 | G21: 0.02 | H21: 1000 | I21: =(C13*E21)+(1.204*1004*F21*G21) -> 16657.54472 | J21: =66.1*(G21/H21+1)+C13 -> 208.5004492 | K21: 79.8921287 | L21: 0.1172011668 | M21: E | N21: 0 | O21: Increase gs by 10-fold
B22: 1 W/m2 = 0.0015 kg/m2/hr =0.0015 mm/hr
B23: 67 W/m2 = 1mm/hr
E25: Reference to derivation of the Penman-Monteith Equation: | I25: λv = Latent heat of vaporization. Energy required per unit mass of water vaporized. (J g−1)
A26: K2 at temperature | E26: www.bsyse.wsu.edu/joan/teaching/bsyse556/W7/L7Joan.pdf | I26: Lv = Volumetric latent heat of vaporization. Energy required per water volume vaporized. (Lv = 2453 MJ m−3)
A27: 5 | B27: 61 | I27: E = Mass water evapotranspiration rate (g s−1 m−2)
A28: 10 | B28: 83 | I28: ETo = Water volume evapotranspired (mm s−1)
A29: 20 | B29: 145 | I29: Δ = Rate of change of saturation specific humidity with air temperature. (Pa K−1)
A30: 30 | B30: 244 | I30: Rn = Net irradiance (W m−2), the external source of energy flux
I31: cp = Specific heat capacity of air (J kg−1 K−1)
I32: ρa = dry air density (kg m−3)
I33: δe = vapor pressure deficit, or specific humidity (Pa)
I34: ga = Conductivity of air, atmospheric conductance (m s−1)
I35: gs = Conductivity of stoma, surface conductance (m s−1)
I36: γ = Psychrometric constant (γ ≈ 66 Pa K−1)

Sheet Pinyon Socorro NM Ex 4b
A2: Run type : | B2: SingleSite | E2: Stand initialisation and site factor data | K2: Optional parameter block | N2: Definition of parameters
A3: Site : | B3: Socorro NM | F3: Year planted = | G3: 1900 | I3: Latitude = | J3: 34.2 | L3: Parameters
A4: Species : | B4: Juniper | F4: Month planted = | G4: Jan | I4: Fertility rating = | J4: 0.15 | L4: alpha = | M4: 0.025 | N4: Quantum Efficiency (mol CO2/mol APAR (X 55 =gC/MJ absorbed PAR)
A5: Climate data : | B5: Socorro Metdata | F5: Initial year = | G5: 1 | I5: Soil class = | J5: cl | L5: gammaFx = | M5: 0.008 | N5: Leaf turnover/ month | Q5: (1/10th per year)
A6: Met station : | B6: yearly data | F6: Initial month = | G6: Jan | I6: Maximum ASW = | J6: 50 | L6: MaxCond | M6: 0.008 | N6: Max canopy conductance, m/second | T6: 0
A7: Title : | B7: Pinyon pine | F7: End age = | G7: 105 | I7: Minimum ASW = | J7: 0 | L7: MaxAge | M7: 500 | N7: Age when species reaches 90% of max height on site
F8: Initial WF = | G8: 2 | I8: Atmospheric CO2 = | J8: 350 | L8: pFS2 | M8: 0.53 | N8: partitioning of growth into foliage vs stem mass at dbh of 2 cm
F9: Initial WR = | G9: 3 | L9: pFS20 | M9: 0.45 | N9: partitioning of growth into foliage vs stem mass at dbh of 20 cm
F10: Initial WS = | G10: 2 | L10: WSx1000= | M10: 400 | N10: Mass of mean dia tree in kg when stocked at 1000 trees/ha and value when self-thinning starts
F11: Initial stocking = | G11: 250 | L11: thinpower= | M11: 1.8 | N11: self thinning power exp
F12: Initial ASW = | G12: 50 | L12: aS | M12: 0.0411 | N12: const in stem biomass eq | R12: derived from Jenkins et al.
L13: nS | M13: 2.4192 | N13: power for stem biomass eq
F16: Output details | S16: 0.005
G17: Output frequency : | H17: a
F18: Output data : | G18: fVPD,fFROST,fSW | S18: 7
F19: Output sheet :
F20: Output ages : | H20: 100y 1m,100y 2m,100y 3m,100y 4m,100y 5m,100y 6m,100y 7m,100y 8m,100y 9m,100y 10m,100y 11m, 100y 12m | S20: Mo
F21: Note: these runs made without frost function limiting transpiration | L21: To switch PhyMod from min values of f(vpd) and f(ASW), see code
W27: LAI =1.0
W28: GPP, Mg/ha/yr
T29: Year | U29: 50mm | V29: 75mm | W29: 100mm | X29: 150mm | Y29: 200mm
T30: 1985 | U30: 10.17741264 | V30: 12.39766221 | W30: 13.59679831 | X30: 13.8286904 | Y30: 12.9995867
B31: Target values | T31: 1986
B32: LAI | C32: 1.0 m2/m2 | T32: 1987
B33: Basal area | C33: 40-45 m2/ha | T33: 1988
A34: Annual | B34: Mortality rate | C34: 0.01/yr | T34: 1989
T35: 1990
A36: #Output from 3PGpjs 2.7 / 3-PG vsn 1 Sep2009 | T36: 1991
A37: Stand development for Socorro NM | T37: 1992
A38: Pinyon pine | T38: 1993
A39: Year & month | B39: Stand age | C39: Stems | D39: Foliage DM | E39: Root DM | F39: Stem DM | G39: Stand volume | H39: LAI | I39: MAI | J39: Mean DBH | K39: Basal area | L39: GPP | M39: Penman transp. | N39: fVPD | O39: fFrost | P39: fSW | T39: 1994
A40: 1901 - Jan | B40: 1 | C40: 250 | D40: 2 | E40: 3 | F40: 2 | G40: 4.261420016 | H40: 0.3998065899 | I40: 4.261420016 | J40: 8.836558095 | K40: 1.533190657 | T40: 1995
A41: 1902 - Jan | B41: 2 | C41: 250 | D41: 2.087610365 | E41: 0.4662931168 | F41: 2.306424596 | G41: 4.927190876 | H41: 0.4105757107 | I41: 2.463595438 | J41: 9.372899013 | K41: 1.724954983 | L41: 2.718632877 | M41: 76.94469014 | N41: 0.7925739358 | O41: 1 | P41: 0.9999704513 | T41: 1996
A42: 1903 - Jan | B42: 3 | C42: 250 | D42: 2.199299615 | E42: 0.3911515498 | F42: 2.745091611 | G42: 5.879277317 | H42: 0.4311062283 | I42: 1.959759106 | J42: 10.07235921 | K42: 1.992013608 | L42: 3.885188145 | M42: 80.68556219 | N42: 0.7925739358 | O42: 1 | P42: 0.9999437011 | T42: 1997
A43: 1904 - Jan | B43: 4 | C43: 250 | D43: 2.309981067 | E43: 0.4563407677 | F43: 3.276533203 | G43: 7.034944107 | H43: 0.4527114412 | I43: 1.758736027 | J43: 10.83680106 | K43: 2.305855518 | L43: 4.698897098 | M43: 84.73238719 | N43: 0.7925739358 | O43: 1 | P43: 1 | T43: 1998
A44: 1905 - Jan | B44: 5 | C44: 250 | D44: 2.413265698 | E44: 0.5156878453 | F44: 3.880025989 | G44: 8.350884178 | H44: 0.4726297791 | I44: 1.670176836 | J44: 11.62117394 | K44: 2.651733611 | L44: 5.327246371 | M44: 88.48605128 | N44: 0.7925739358 | O44: 1 | P44: 0.9977206719 | T44: 1999
A45: 1906 - Jan | B45: 6 | C45: 250 | D45: 2.469775636 | E45: 0.5089858502 | F45: 4.44782812 | G45: 9.595576966 | H45: 0.4854903361 | I45: 1.599262828 | J45: 12.29611058 | K45: 2.968693835 | L45: 5.065356512 | M45: 79.65501726 | N45: 0.7925739358 | O45: 1 | P45: 0.9978437812 | T45: 2000
A46: 1907 - Jan | B46: 7 | C46: 250 | D46: 2.568577017 | E46: 0.5969902156 | F46: 5.153214421 | G46: 11.14296668 | H46: 0.4997966757 | I46: 1.591852383 | J46: 13.0675431 | K46: 3.352878167 | L46: 6.209523688 | M46: 93.57452062 | N46: 0.7925739358 | O46: 1 | P46: 0.9998850269 | T46: 2001
A47: 1908 - Jan | B47: 8 | C47: 250 | D47: 2.655902826 | E47: 0.6261869607 | F47: 5.870732241 | G47: 12.72299529 | H47: 0.515015608 | I47: 1.590374412 | J47: 13.79100503 | K47: 3.734407651 | L47: 6.361183352 | M47: 93.55401708 | N47: 0.7925739358 | O47: 1 | P47: 1 | T47: 2002
A48: 1909 - Jan | B48: 9 | C48: 250 | D48: 2.7629143 | E48: 0.6713294871 | F48: 6.662469447 | G48: 14.47046324 | H48: 0.5322522308 | I48: 1.607829249 | J48: 14.53138891 | K48: 4.146141719 | L48: 6.952355666 | M48: 99.58161255 | N48: 0.7925739358 | O48: 1 | P48: 1 | T48: 2003
A49: 1910 - Jan | B49: 10 | C49: 250 | D49: 2.871529474 | E49: 0.7019821077 | F49: 7.487285414 | G49: 16.29663727 | H49: 0.5505809903 | I49: 1.629663727 | J49: 15.24965386 | K49: 4.566146719 | L49: 7.247809421 | M49: 102.0861279 | N49: 0.7925739358 | O49: 1 | P49: 0.9949177478 | T49: 2004
A50: 1911 - Jan | B50: 11 | C50: 250 | D50: 2.989987727 | E50: 0.7407704943 | F50: 8.362387241 | G50: 18.23926055 | H50: 0.5700104657 | I50: 1.658114596 | J50: 15.96260213 | K50: 5.003077933 | L50: 7.667673235 | M50: 106.546777 | N50: 0.7925739358 | O50: 1 | P50: 1 | T50: 2005
A51: 1912 - Jan | B51: 12 | C51: 250 | D51: 3.082089063 | E51: 0.7341351958 | F51: 9.205574696 | G51: 20.11910964 | H51: 0.5870020649 | I51: 1.67659247 | J51: 16.60922316 | K51: 5.416622018 | L51: 7.451454485 | M51: 102.1675184 | N51: 0.7925739358 | O51: 1 | P51: 0.9990371915 | T51: FR
A52: 1913 - Jan | B52: 13 | C52: 250 | D52: 3.16328935 | E52: 0.7448784854 | F52: 10.04511664 | G52: 21.9974273 | H52: 0.6000321926 | I52: 1.692109793 | J52: 17.21937332 | K52: 5.82189775 | L52: 7.405747938 | M52: 100.3718155 | N52: 0.7925739358 | O52: 1 | P52: 0.9997223622
A53: 1914 - Jan | B53: 14 | C53: 250 | D53: 3.297604879 | E53: 0.8268730214 | F53: 11.02815802 | G53: 24.19678607 | H53: 0.6200602973 | I53: 1.728341862 | J53: 17.8969182 | K53: 6.289069532 | L53: 8.590840834 | M53: 115.7506433 | N53: 0.7925739358 | O53: 1 | P53: 1
A54: 1915 - Jan | B54: 15 | C54: 250 | D54: 3.428524169 | E54: 0.8551678956 | F54: 12.03475367 | G54: 26.45507598 | H54: 0.6430166549 | I54: 1.763671732 | J54: 18.55490505 | K54: 6.760010378 | L54: 8.816708474 | M54: 118.0846453 | N54: 0.7925739358 | O54: 1 | P54: 0.9999998433 | T54: Year | U54: GPP | V54: Penman transp. | W54: fVPD | X54: fFrost | Y54: fSW
A55: 1916 - Jan | B55: 16 | C55: 250 | D55: 3.566666819 | E55: 0.8732640131 | F55: 13.08932877 | G55: 28.82611682 | H55: 0.6671612796 | I55: 1.801632301 | J55: 19.21047803 | K55: 7.24613188 | L55: 9.215012842 | M55: 121.9761825 | N55: 0.7925739358 | O55: 0.5666666667 | P55: 0.9999930098 | T55: 100 | U55: max ASW 200 mm | V55: max ASW 200 mm | W55: max ASW 200 mm | X55: max ASW 200 mm | Y55: max ASW 200 mm
A56: 1917 - Jan | B56: 17 | C56: 250 | D56: 3.677273781 | E56: 0.8490182599 | F56: 14.11161622 | G56: 31.133136 | H56: 0.6880987889 | I56: 1.831360941 | J56: 19.81701539 | K56: 7.710923303 | L56: 8.979674962 | M56: 117.670826 | N56: 0.7925739358 | O56: 0.5666666667 | P56: 1 | T56: Jan
A57: 1918 - Jan | B57: 18 | C57: 250 | D57: 3.754237316 | E57: 0.8309651919 | F57: 15.0808159 | G57: 33.32953078 | H57: 0.7031416995 | I57: 1.851640599 | J57: 20.36867992 | K57: 8.146211043 | L57: 8.532864473 | M57: 113.377352 | N57: 0.7925739358 | O57: 1 | P57: 1 | T57: Feb
A58: 1919 - Jan | B58: 19 | C58: 250 | D58: 3.841757911 | E58: 0.8798357153 | F58: 16.09287816 | G58: 35.62687572 | H58: 0.7172292885 | I58: 1.875098722 | J58: 20.92296855 | K58: 8.595605883 | L58: 8.917130217 | M58: 121.1120068 | N58: 0.7925739358 | O58: 1 | P58: 1 | T58: Mar
A59: 1920 - Jan | B59: 20 | C59: 250 | D59: 3.867530736 | E59: 0.7926902311 | F59: 16.98243034 | G59: 37.65870688 | H59: 0.7268776784 | I59: 1.882935344 | J59: 21.39350368 | K59: 8.986565048 | L59: 7.966117739 | M59: 108.6490272 | N59: 0.7925739358 | O59: 1 | P59: 0.9993216333 | T59: Apr
A60: 1921 - Jan | B60: 21 | C60: 250 | D60: 4.010411876 | E60: 0.9717775455 | F60: 18.15285811 | G60: 40.31943928 | H60: 0.7430656908 | I60: 1.919973299 | J60: 21.99108645 | K60: 9.495618587 | L60: 10.18073186 | M60: 138.4064524 | N60: 0.7925739358 | O60: 1 | P60: 1 | T60: May
A61: 1922 - Jan | B61: 22 | C61: 250 | D61: 4.08742381 | E61: 0.9056924685 | F61: 19.20223824 | G61: 42.71771915 | H61: 0.7623817135 | I61: 1.941714507 | J61: 22.50792671 | K61: 9.947200567 | L61: 9.250267947 | M61: 127.0732859 | N61: 0.7925739358 | O61: 1 | P61: 0.9455202738 | T61: Jun
A62: 1923 - Jan | B62: 23 | C62: 250 | D62: 4.230846554 | E62: 1.019840656 | F62: 20.42574175 | G62: 45.5097069 | H62: 0.783032161 | I62: 1.978682909 | J62: 23.09001819 | K62: 10.46835496 | L62: 10.63076387 | M62: 145.7543508 | N62: 0.7925739358 | O62: 1 | P62: 0.9980707213 | T62: Jul
A63: 1924 - Jan | B63: 24 | C63: 250 | D63: 4.374742853 | E63: 1.0539327 | F63: 21.6836839 | G63: 48.38524775 | H63: 0.8094997853 | I63: 2.01605199 | J63: 23.66754022 | K63: 10.99856783 | L63: 10.92397362 | M63: 150.6148844 | N63: 0.7925739358 | O63: 1 | P63: 0.998781815 | T63: Aug
A64: 1925 - Jan | B64: 25 | C64: 250 | D64: 4.494972178 | E64: 1.044377479 | F64: 22.91963797 | G64: 51.21833721 | H64: 0.8338779281 | I64: 2.048733488 | J64: 24.21612395 | K64: 11.51434271 | L64: 10.80170095 | M64: 150.2995927 | N64: 0.7925739358 | O64: 1 | P64: 1 | T64: Sep
A65: 1926 - Jan | B65: 26 | C65: 250 | D65: 4.600665034 | E65: 1.051399178 | F65: 24.14838778 | G65: 54.04160161 | H65: 0.8536766144 | I65: 2.078523139 | J65: 24.74456316 | K65: 12.02235291 | L65: 10.69839078 | M65: 147.9557326 | N65: 0.7925739358 | O65: 1 | P65: 0.7460505514 | T65: Oct
A66: 1927 - Jan | B66: 27 | C66: 250 | D66: 4.484290477 | E66: 0.8408841386 | F66: 24.86682417 | G66: 55.72725712 | H66: 0.8409037283 | I66: 2.063972486 | J66: 25.046253 | K66: 12.31729709 | L66: 6.699853674 | M66: 96.47998559 | N66: 0.7925739358 | O66: 1 | P66: 0.9528682166 | T66: Nov
A67: 1928 - Jan | B67: 28 | C67: 250 | D67: 4.599919519 | E67: 1.071574069 | F67: 26.11824389 | G67: 58.61164383 | H67: 0.8511689686 | I67: 2.093272994 | J67: 25.55977948 | K67: 12.82756119 | L67: 10.98445842 | M67: 153.3646146 | N67: 0.7925739358 | O67: 1 | P67: 0.9872083764 | T67: Dec
A68: 1929 - Jan | B68: 29 | C68: 250 | D68: 4.570150815 | E68: 0.944347877 | F68: 27.04719798 | G68: 60.77717066 | H68: 0.8530140122 | I68: 2.095764506 | J68: 25.93171287 | K68: 13.20359816 | L68: 8.397324272 | M68: 121.7660608 | N68: 0.7925739358 | O68: 1 | P68: 1 | T68: Total/av
A69: 1930 - Jan | B69: 30 | C69: 250 | D69: 4.712584919 | E69: 1.109056232 | F69: 28.386131 | G69: 63.86879475 | H69: 0.8716903531 | I69: 2.128959825 | J69: 26.45483847 | K69: 13.74168909 | L69: 11.59845331 | M69: 162.0226934 | N69: 0.7925739358 | O69: 1 | P69: 1 | T69: Year | U69: GPP | V69: Penman transp. | W69: fVPD | X69: fFrost | Y69: fSW
A70: 1931 - Jan | B70: 31 | C70: 250 | D70: 4.718409886 | E70: 0.9211161532 | F70: 29.4334974 | G70: 66.3094019 | H70: 0.883685151 | I70: 2.139012965 | J70: 26.85403843 | K70: 14.15953862 | L70: 9.187248792 | M70: 126.8703361 | N70: 0.7925739358 | O70: 1 | P70: 0.4811033191 | T70: 100 | U70: max ASW 50 mm | V70: max ASW 50 mm | W70: max ASW 50 mm | X70: max ASW 50 mm | Y70: max ASW 50 mm
A71: 1932 - Jan | B71: 32 | C71: 250 | D71: 4.645156093 | E71: 0.8677347014 | F71: 30.28863061 | G71: 68.32039212 | H71: 0.8707086334 | I71: 2.135012254 | J71: 27.1738316 | K71: 14.49878632 | L71: 7.850516185 | M71: 112.621035 | N71: 0.7925739358 | O71: 1 | P71: 1 | T71: Jan
A72: 1933 - Jan | B72: 33 | C72: 250 | D72: 4.636189067 | E72: 0.9153963876 | F72: 31.28519006 | G72: 70.6535621 | H72: 0.8670689351 | I72: 2.141017033 | J72: 27.53990074 | K72: 14.892055 | L72: 8.803885677 | M72: 123.5931662 | N72: 0.7925739358 | O72: 1 | P72: 0.9185145267 | T72: Feb
A73: 1934 - Jan | B73: 34 | C73: 250 | D73: 4.598890243 | E73: 0.9325856397 | F73: 32.20834558 | G73: 72.82418663 | H73: 0.8582014775 | I73: 2.141887842 | J73: 27.87295076 | K73: 15.25442301 | L73: 8.264799483 | M73: 118.6420905 | N73: 0.7925739358 | O73: 1 | P73: 0.9977294755 | T73: Mar
A74: 1935 - Jan | B74: 35 | C74: 250 | D74: 4.739321393 | E74: 1.113014858 | F74: 33.55556146 | G74: 75.95763264 | H74: 0.8767030887 | I74: 2.170218075 | J74: 28.34909091 | K74: 15.78004231 | L74: 11.65231517 | M74: 162.9464935 | N74: 0.7925739358 | O74: 1 | P74: 1 | T74: Apr
A75: 1936 - Jan | B75: 36 | C75: 250 | D75: 4.811392759 | E75: 1.040294184 | F75: 34.77163019 | G75: 78.79881392 | H75: 0.8953006709 | I75: 2.188855942 | J75: 28.76934028 | K75: 16.25135945 | L75: 10.53907824 | M75: 147.7931961 | N75: 0.7925739358 | O75: 1 | P75: 0.9994082838 | T75: May
A76: 1937 - Jan | B76: 37 | C76: 250 | D76: 4.844570411 | E76: 0.9972570424 | F76: 35.91082755 | G76: 81.46969523 | H76: 0.9037315185 | I76: 2.201883655 | J76: 29.15527146 | K76: 16.69029716 | L76: 10.0207571 | M76: 140.8644712 | N76: 0.7925739358 | O76: 0.5666666667 | P76: 0.9895381082 | T76: Jun
A77: 1938 - Jan | B77: 38 | C77: 250 | D77: 4.864105352 | E77: 0.9139627451 | F77: 37.02876604 | G77: 84.09585516 | H77: 0.9110216836 | I77: 2.21304882 | J77: 29.52707927 | K77: 17.1187035 | L77: 9.897297459 | M77: 135.3081474 | N77: 0.7925739358 | O77: 0.5666666667 | P77: 1 | T77: Jul
A78: 1939 - Jan | B78: 39 | C78: 250 | D78: 4.902602387 | E78: 0.9788575923 | F78: 38.1950086 | G78: 86.83514702 | H78: 0.9146629065 | I78: 2.226542231 | J78: 29.90799918 | K78: 17.56323896 | L78: 10.10451939 | M78: 140.2045564 | N78: 0.7925739358 | O78: 1 | P78: 0.9999861159 | T78: Aug
A79: 1940 - Jan | B79: 40 | C79: 250 | D79: 4.905916608 | E79: 0.9900901742 | F79: 39.28390346 | G79: 89.40181386 | H79: 0.9159075988 | I79: 2.235045347 | J79: 30.25754347 | K79: 17.97617229 | L79: 9.521158923 | M79: 137.0067234 | N79: 0.7925739358 | O79: 1 | P79: 1 | T79: Sep
A80: 1941 - Jan | B80: 41 | C80: 250 | D80: 4.842411678 | E80: 0.8476280145 | F80: 40.2174076 | G80: 91.61740422 | H80: 0.912116175 | I80: 2.234570835 | J80: 30.55270757 | K80: 18.32860014 | L80: 8.329080521 | M80: 119.149687 | N80: 0.7925739358 | O80: 1 | P80: 0.9980162755 | T80: Oct
A81: 1942 - Jan | B81: 42 | C81: 250 | D81: 4.980926569 | E81: 1.149858147 | F81: 41.62261139 | G81: 94.91069695 | H81: 0.9220517958 | I81: 2.259778499 | J81: 30.98953563 | K81: 18.85645405 | L81: 12.13019003 | M81: 171.2492304 | N81: 0.7925739358 | O81: 1 | P81: 1 | T81: Nov
A82: 1943 - Jan | B82: 43 | C82: 250 | D82: 5.002383659 | E82: 0.9790435209 | F82: 42.77933194 | G82: 97.64089063 | H82: 0.9360227464 | I82: 2.270718387 | J82: 31.34266941 | K82: 19.28865095 | L82: 10.00351505 | M82: 143.2055582 | N82: 0.7925739358 | O82: 1 | P82: 0.8675276124 | T82: Dec
A83: 1944 - Jan | B83: 44 | C83: 250 | D83: 5.113250289 | E83: 1.148405454 | F83: 44.15596562 | G83: 100.8763202 | H83: 0.9489640456 | I83: 2.292643641 | J83: 31.75571579 | K83: 19.80038811 | L83: 11.94190767 | M83: 169.6134791 | N83: 0.7925739358 | O83: 1 | P83: 0.9891495801 | T83: Total/av
A84: 1945 - Jan | B84: 45 | C84: 250 | D84: 5.210096872 | E84: 1.180062994 | F84: 45.52318644 | G84: 104.0938486 | H84: 0.9669094953 | I84: 2.313196635 | J84: 32.15852644 | K84: 20.30589662 | L84: 11.91950452 | M84: 171.1926699 | N84: 0.7925739358 | O84: 1 | P84: 0.9971701945
A85: 1946 - Jan | B85: 46 | C85: 250 | D85: 5.278830921 | E85: 1.091972484 | F85: 46.84809863 | G85: 107.2179848 | H85: 0.9842909439 | I85: 2.330825757 | J85: 32.54215585 | K85: 20.79325747 | L85: 11.41746478 | M85: 165.2840865 | N85: 0.7925739358 | O85: 1 | P85: 1
A86: 1947 - Jan | B86: 47 | C86: 250 | D86: 5.342339577 | E86: 1.129889718 | F86: 48.17476022 | G86: 110.3492565 | H86: 0.9948786969 | I86: 2.347856521 | J86: 32.91996612 | K86: 21.27887431 | L86: 11.48825515 | M86: 162.2598785 | N86: 0.7925739358 | O86: 1 | P86: 0.5169957854
A87: 1948 - Jan | B87: 48 | C87: 250 | D87: 5.169648888 | E87: 0.9168458011 | F87: 48.93437396 | G87: 112.1835573 | H87: 0.9710293785 | I87: 2.337157444 | J87: 33.13354792 | K87: 21.55588087 | L87: 7.03908531 | M87: 104.5422316 | N87: 0.7925739358 | O87: 1 | P87: 0.9030140338
A88: 1949 - Jan | B88: 49 | C88: 250 | D88: 5.218721538 | E88: 1.116644626 | F88: 50.20130807 | G88: 115.1826019 | H88: 0.9710070836 | I88: 2.350665345 | J88: 33.4854892 | K88: 22.01624179 | L88: 11.2378571 | M88: 162.0011267 | N88: 0.7925739358 | O88: 1 | P88: 0.9417232104
A89: 1950 - Jan | B89: 50 | C89: 250 | D89: 5.126812573 | E89: 0.9924974007 | F89: 51.13290922 | G89: 117.4141951 | H89: 0.9594925365 | I89: 2.348283902 | J89: 33.7409666 | K89: 22.35346899 | L89: 8.434090717 | M89: 126.3427572 | N89: 0.7925739358 | O89: 1 | P89: 1
A90: 1951 - Jan | B90: 51 | C90: 250 | D90: 5.262367137 | E90: 1.208354988 | F90: 52.60416435 | G90: 120.8871826 | H90: 0.9749498832 | I90: 2.370336914 | J90: 34.13893406 | K90: 22.88388748 | L90: 12.67384329 | M90: 180.9111742 | N90: 0.7925739358 | O90: 1 | P90: 1
A91: 1952 - Jan | B91: 52 | C91: 250 | D91: 5.216709625 | E91: 0.9379569973 | F91: 53.66883311 | G91: 123.4281693 | H91: 0.9811693576 | I91: 2.37361864 | J91: 34.42286588 | K91: 23.2661187 | L91: 9.347950467 | M91: 130.5291413 | N91: 0.7925739358 | O91: 1 | P91: 0.3410125739
A92: 1953 - Jan | B92: 53 | C92: 250 | D92: 5.098904024 | E92: 0.8952945154 | F92: 54.54113215 | G92: 125.5279567 | H92: 0.958020095 | I92: 2.368452014 | J92: 34.65304226 | K92: 23.57830746 | L92: 7.924808452 | M92: 116.4345257 | N92: 0.7925739358 | O92: 1 | P92: 1
A93: 1954 - Jan | B93: 54 | C93: 250 | D93: 5.049633332 | E93: 0.9435283077 | F93: 55.55788962 | G93: 127.9612843 | H93: 0.9470193719 | I93: 2.369653413 | J93: 34.91862804 | K93: 23.94110734 | L93: 8.920076608 | M93: 128.076616 | N93: 0.7925739358 | O93: 1 | P93: 0.8391342359
A94: 1955 - Jan | B94: 55 | C94: 250 | D94: 4.97383041 | E94: 0.9777452181 | F94: 56.49353924 | G94: 130.2089148 | H94: 0.9296178329 | I94: 2.367434815 | J94: 35.1605199 | K94: 24.27395074 | L94: 8.414166014 | M94: 123.223588 | N94: 0.7925739358 | O94: 1 | P94: 0.9949868678
A95: 1956 - Jan | B95: 56 | C95: 250 | D95: 5.108155052 | E95: 1.181006449 | F95: 57.93185673 | G95: 133.6168405 | H95: 0.9461743103 | I95: 2.386015009 | J95: 35.52782533 | K95: 24.78375687 | L95: 12.37957041 | M95: 175.6536655 | N95: 0.7925739358 | O95: 1 | P95: 1
A96: 1957 - Jan | B96: 57 | C96: 250 | D96: 5.156041168 | E96: 1.084099799 | F96: 59.19080561 | G96: 136.6132174 | H96: 0.9613945275 | I96: 2.396723113 | J96: 35.84495866 | K96: 25.22818795 | L96: 10.88182624 | M96: 154.414329 | N96: 0.7925739358 | O96: 1 | P96: 0.9984810012
A97: 1958 - Jan | B97: 58 | C97: 250 | D97: 5.153383547 | E97: 1.024883472 | F97: 60.33653903 | G97: 139.3498988 | H97: 0.9632310497 | I97: 2.402584462 | J97: 36.13015103 | K97: 25.63122978 | L97: 10.09730301 | M97: 144.1165482 | N97: 0.7925739358 | O97: 0.5666666667 | P97: 0.9783858067
A98: 1959 - Jan | B98: 59 | C98: 250 | D98: 5.151022005 | E98: 0.9270408348 | F98: 61.48753021 | G98: 142.1000884 | H98: 0.9665235209 | I98: 2.408476075 | J98: 36.41347092 | K98: 26.034788 | L98: 10.11300546 | M98: 139.6832126 | N98: 0.7925739358 | O98: 0.5666666667 | P98: 1
A99: 1960 - Jan | B99: 60 | C99: 250 | D99: 5.163687535 | E99: 1.000821191 | F99: 62.67239841 | G99: 144.9299213 | H99: 0.9654013355 | I99: 2.415498689 | J99: 36.70189826 | K99: 26.44885916 | L99: 10.27285948 | M99: 143.6633846 | N99: 0.7925739358 | O99: 1 | P99: 0.9998322305
A100: 1961 - Jan | B100: 61 | C100: 250 | D100: 5.133513716 | E100: 1.010837294 | F100: 63.75272845 | G100: 147.5191917 | H100: 0.9599327107 | I100: 2.418347405 | J100: 36.96210309 | K100: 26.82521664 | L100: 9.494566027 | M100: 138.9955622 | N100: 0.7925739358 | O100: 1 | P100: 1
A101: 1962 - Jan | B101: 62 | C101: 250 | D101: 5.040425079 | E101: 0.8549454894 | F101: 64.67809872 | G101: 149.7506507 | H101: 0.9511227427 | I101: 2.415333076 | J101: 37.1829355 | K101: 27.14671207 | L101: 8.287911984 | M101: 120.2592896 | N101: 0.7925739358 | O101: 1 | P101: 0.9975919503
A102: 1963 - Jan | B102: 63 | C102: 250 | D102: 5.17292876 | E102: 1.183704702 | F102: 66.13258924 | G102: 153.2084065 | H102: 0.9584327528 | I102: 2.431879468 | J102: 37.52632354 | K102: 27.6504324 | L102: 12.50442204 | M102: 177.8800755 | N102: 0.7925739358 | O102: 1 | P102: 1
A103: 1964 - Jan | B103: 64 | C103: 250 | D103: 5.181456417 | E103: 0.9940563469 | F103: 67.31664867 | G103: 156.0411592 | H103: 0.9705822978 | I103: 2.438143112 | J103: 37.80260827 | K103: 28.05907965 | L103: 10.16933204 | M103: 146.7532879 | N103: 0.7925739358 | O103: 1 | P103: 0.8466541963
A104: 1965 - Jan | B104: 65 | C104: 250 | D104: 5.268252884 | E104: 1.146759992 | F104: 68.69302885 | G104: 159.3210353 | H104: 0.9798190624 | I104: 2.451092851 | J104: 38.12020896 | K104: 28.53254003 | L104: 11.88448721 | M104: 169.8975034 | N104: 0.7925739358 | O104: 1 | P104: 0.986099896
A105: 1966 - Jan | B105: 66 | C105: 250 | D105: 5.348359167 | E105: 1.192945807 | F105: 70.07148786 | G105: 162.6072353 | H105: 0.9937318951 | I105: 2.46374599 | J105: 38.43456933 | K105: 29.00507069 | L105: 11.97584218 | M105: 173.3594417 | N105: 0.7925739358 | O105: 1 | P105: 0.9967910015
A106: 1967 - Jan | B106: 67 | C106: 250 | D106: 5.399945904 | E106: 1.099201713 | F106: 71.40233084 | G106: 165.7843096 | H106: 1.008272612 | I106: 2.474392681 | J106: 38.73464701 | K106: 29.45975259 | L106: 11.46075814 | M106: 166.8059525 | N106: 0.7925739358 | O106: 1 | P106: 1
A107: 1968 - Jan | B107: 68 | C107: 250 | D107: 5.448867031 | E107: 1.139621139 | F107: 72.73669531 | G107: 168.9708078 | H107: 1.015717847 | I107: 2.48486482 | J107: 39.03224235 | K107: 29.91416559 | L107: 11.54925328 | M107: 163.8275024 | N107: 0.7925739358 | O107: 1 | P107: 0.4952503176
A108: 1969 - Jan | B108: 69 | C108: 250 | D108: 5.266332507 | E108: 0.9273160475 | F108: 73.50520705 | G108: 170.843318 | H108: 0.9896989173 | I108: 2.475990115 | J108: 39.20218725 | K108: 30.17522295 | L108: 7.093426265 | M108: 105.8044481 | N108: 0.7925739358 | O108: 1 | P108: 0.8940038226
A109: 1970 - Jan | B109: 70 | C109: 250 | D109: 5.300345407 | E109: 1.124180439 | F109: 74.77182642 | G109: 173.8739354 | H109: 0.9871515403 | I109: 2.483913363 | J109: 39.48002149 | K109: 30.60445505 | L109: 11.24278963 | M109: 162.6617488 | N109: 0.7925739358 | O109: 1 | P109: 0.9315674291
A110: 1971 - Jan | B110: 71 | C110: 250 | D110: 5.19803358 | E110: 0.9991793044 | F110: 75.7069423 | G110: 176.1342246 | H110: 0.9733581158 | I110: 2.480763727 | J110: 39.68337303 | K110: 30.92053852 | L110: 8.44710558 | M110: 126.9530947 | N110: 0.7925739358 | O110: 1 | P110: 1
A111: 1972 - Jan | B111: 72 | C111: 250 | D111: 5.328083705 | E111: 1.219935332 | F111: 77.19764057 | G111: 179.6878419 | H111: 0.9876555275 | I111: 2.495664471 | J111: 40.00451807 | K111: 31.4230239 | L111: 12.79899122 | M111: 183.1830801 | N111: 0.7925739358 | O111: 1 | P111: 1
A112: 1973 - Jan | B112: 73 | C112: 250 | D112: 5.272565187 | E112: 0.9409650642 | F112: 78.26488116 | G112: 182.2566576 | H112: 0.9923188242 | I112: 2.496666543 | J112: 40.23220794 | K112: 31.78173664 | L112: 9.360839419 | M112: 130.9437355 | N112: 0.7925739358 | O112: 1 | P112: 0.329986463
A113: 1974 - Jan | B113: 74 | C113: 250 | D113: 5.147556205 | E113: 0.8981555724 | F113: 79.14171795 | G113: 184.3822247 | H113: 0.96761242 | I113: 2.491651685 | J113: 40.41791688 | K113: 32.07581817 | L113: 7.934258193 | M113: 116.8691426 | N113: 0.7925739358 | O113: 1 | P113: 1
A114: 1975 - Jan | B114: 75 | C114: 250 | D114: 5.09123057 | E114: 0.9458995561 | F114: 80.16322373 | G114: 186.8449089 | H114: 0.9553087116 | I114: 2.491265452 | J114: 40.63275005 | K114: 32.41770929 | L114: 8.929511669 | M114: 128.4953142 | N114: 0.7925739358 | O114: 1 | P114: 0.8296775971
A115: 1976 - Jan | B115: 76 | C115: 250 | D115: 5.008999714 | E115: 0.9818515593 | F115: 81.10242407 | G115: 189.115867 | H115: 0.9365689856 | I115: 2.488366672 | J115: 40.82886092 | K115: 32.73138765 | L115: 8.428089221 | M115: 123.6223183 | N115: 0.7925739358 | O115: 1 | P115: 0.9946539477
A116: 1977 - Jan | B116: 77 | C116: 250 | D116: 5.138371668 | E116: 1.1863755 | F116: 82.55173342 | G116: 192.5768129 | H116: 0.9521947468 | I116: 2.50099757 | J116: 41.12888887 | K116: 33.21420363 | L116: 12.43687275 | M116: 176.6903517 | N116: 0.7925739358 | O116: 1 | P116: 1
A117: 1978 - Jan | B117: 78 | C117: 250 | D117: 5.180750169 | E117: 1.087030866 | F117: 83.8170201 | G117: 195.6092596 | H117: 0.9664131244 | I117: 2.50781102 | J117: 41.38830489 | K117: 33.63451499 | L117: 10.90473884 | M117: 154.8817412 | N117: 0.7925739358 | O117: 1 | P117: 0.9983940836
A118: 1979 - Jan | B118: 79 | C118: 250 | D118: 5.172336761 | E118: 1.026289079 | F118: 84.96581577 | G118: 198.3703 | H118: 0.9671571798 | I118: 2.511016455 | J118: 41.62185472 | K118: 34.01517801 | L118: 10.09896433 | M118: 144.2756402 | N118: 0.7925739358 | O118: 0.5666666667 | P118: 0.9777476666
A119: 1980 - Jan | B119: 80 | C119: 250 | D119: 5.164911755 | E119: 0.9275156594 | F119: 86.12013907 | G119: 201.1445623 | H119: 0.9694549761 | I119: 2.514307029 | J119: 41.85466982 | K119: 34.3967754 | L119: 10.11565016 | M119: 139.8077219 | N119: 0.7925739358 | O119: 0.5666666667 | P119: 1
A120: 1981 - Jan | B120: 81 | C120: 250 | D120: 5.172954369 | E120: 1.001312266 | F120: 87.3084744 | G120: 203.9985848 | H120: 0.9674766751 | I120: 2.518501047 | J120: 42.09244027 | K120: 34.78869187 | L120: 10.27608607 | M120: 143.7575332 | N120: 0.7925739358 | O120: 1 | P120: 0.9998250971
A121: 1982 - Jan | B121: 82 | C121: 250 | D121: 5.138652588 | E121: 1.011034885 | F121: 88.39124358 | G121: 206.606176 | H121: 0.9611984078 | I121: 2.519587513 | J121: 42.30744075 | K121: 35.14498805 | L121: 9.491455526 | M121: 139.0107005 | N121: 0.7925739358 | O121: 1 | P121: 1
A122: 1983 - Jan | B122: 83 | C122: 250 | D122: 5.042385603 | E122: 0.8548571857 | F122: 89.31881279 | G122: 208.8509759 | H122: 0.9517123149 | I122: 2.516276818 | J122: 42.49039841 | K122: 35.44961286 | L122: 8.285816885 | M122: 120.248967 | N122: 0.7925739358 | O122: 1 | P122: 0.9975943271 | X122: Year | Y122: 50mm | Z122: 75mm | AA122: 100mm | AB122: 150mm | AC122: 200mm
A123: 1984 - Jan | B123: 84 | C123: 250 | D123: 5.170268268 | E123: 1.182957654 | F123: 90.77610109 | G123: 212.3346664 | H123: 0.9582748997 | I123: 2.527793648 | J123: 42.77560267 | K123: 35.92710013 | L123: 12.49603722 | M123: 177.7572713 | N123: 0.7925739358 | O123: 1 | P123: 1 | X123: 1985 | Y123: 11.13172458 | Z123: 12.39766221 | AA123: 13.59679831 | AB123: 13.8286904 | AC123: 12.9995867
A124: 1985 - Jan | B124: 85 | C124: 250 | D124: 5.175329906 | E124: 0.9933093044 | F124: 91.96198973 | G124: 215.1839805 | H124: 0.9696755076 | I124: 2.531576241 | J124: 43.0057155 | K124: 36.31468197 | L124: 10.16037603 | M124: 146.5937343 | N124: 0.7925739358 | O124: 1 | P124: 0.8477914429 | X124: 1986 | Y124: 12.75786696 | Z124: 13.87797168 | AA124: 14.37473536 | AB124: 13.8780441 | AC124: 13.02876163
A125: 1986 - Jan | B125: 86 | C125: 250 | D125: 5.258670095 | E125: 1.146221097 | F125: 93.34102484 | G125: 218.4855975 | H125: 0.9782747583 | I125: 2.540530203 | J125: 43.27112836 | K125: 36.76430247 | L125: 11.8795997 | M125: 169.7758499 | N125: 0.7925739358 | O125: 1 | P125: 0.9863790842 | X125: 1987 | Y125: 12.9027349 | Z125: 14.44506281 | AA125: 14.7986076 | AB125: 13.92592059 | AC125: 13.05695437
A126: 1987 - Jan | B126: 87 | C126: 250 | D126: 5.33539775 | E126: 1.19121307 | F126: 94.72139025 | G126: 221.7908058 | H126: 0.9915867576 | I126: 2.549319607 | J126: 43.53450342 | K126: 37.21320541 | L126: 11.96373583 | M126: 173.0784365 | N126: 0.7925739358 | O126: 1 | P126: 0.9968392837 | X126: 1988 | Y126: 12.11771462 | Z126: 13.52225197 | AA126: 14.39605997 | AB126: 13.97234407 | AC126: 13.08418234
A127: 1988 - Jan | B127: 88 | C127: 250 | D127: 5.385205261 | E127: 1.098636572 | F127: 96.05662862 | G127: 224.9907573 | H127: 1.005625514 | I127: 2.556713151 | J127: 43.78713431 | K127: 37.6463553 | L127: 11.46304884 | M127: 166.7431227 | N127: 0.7925739358 | O127: 1 | P127: 1 | X127: 1989 | Y127: 12.12322767 | Z127: 13.57752732 | AA127: 14.50609331 | AB127: 14.01733874 | AC127: 13.11046269
A128: 1989 - Jan | B128: 89 | C128: 250 | D128: 5.431861296 | E128: 1.138102049 | F128: 97.39367835 | G128: 228.195294 | H128: 1.012726395 | I128: 2.563992067 | J128: 44.03805194 | K128: 38.07904858 | L128: 11.53908424 | M128: 163.5946145 | N128: 0.7925739358 | O128: 1 | P128: 0.4994482683 | X128: 1990 | Y128: 7.7407091 | Z128: 8.886360135 | AA128: 10.28299806 | AB128: 12.63495434 | AC128: 13.13581238
A129: 1990 - Jan | B129: 90 | C129: 250 | D129: 5.248237837 | E129: 0.9249829841 | F129: 98.16235783 | G129: 230.0680262 | H129: 0.9864964527 | I129: 2.556311402 | J129: 44.18139229 | K129: 38.32734055 | L129: 7.07951277 | M129: 105.5172267 | N129: 0.7925739358 | O129: 1 | P129: 0.8961396152 | X129: 1991 | Y129: 11.90957425 | Z129: 12.9703939 | AA129: 13.85175397 | AB129: 13.93700062 | AC129: 13.16024809
A130: 1991 - Jan | B130: 91 | C130: 250 | D130: 5.28075192 | E130: 1.121344233 | F130: 99.43200426 | G130: 233.1147297 | H130: 0.9836793753 | I130: 2.561700326 | J130: 44.41671611 | K130: 38.73671451 | L130: 11.23240473 | M130: 162.4029948 | N130: 0.7925739358 | O130: 1 | P130: 0.9346535814 | X130: 1992 | Y130: 9.034672271 | Z130: 10.18842851 | AA130: 10.26086119 | AB130: 10.85773364 | AC130: 13.18378626
A131: 1992 - Jan | B131: 92 | C131: 250 | D131: 5.177588876 | E131: 0.9967657921 | F131: 100.3685446 | G131: 235.3804165 | H131: 0.9697217893 | I131: 2.558482788 | J131: 44.58917255 | K131: 39.03810396 | L131: 8.43876024 | M131: 126.718683 | N131: 0.7925739358 | O131: 1 | P131: 1 | X131: 1993 | Y131: 14.05366956 | Z131: 14.58606026 | AA131: 14.63965163 | AB131: 13.82126075 | AC131: 13.20644308
A132: 1993 - Jan | B132: 93 | C132: 250 | D132: 5.303281593 | E132: 1.215016815 | F132: 101.8561266 | G132: 238.9384529 | H132: 0.9833338447 | I132: 2.569230676 | J132: 44.86116915 | K132: 39.51582612 | L132: 12.7449646 | M132: 182.2493626 | N132: 0.7925739358 | O132: 1 | P132: 1 | X132: 1994 | Y132: 9.924576065 | Z132: 11.53745688 | AA132: 12.75125145 | AB132: 13.8674679 | AC132: 13.22823446
A133: 1994 - Jan | B133: 94 | C133: 250 | D133: 5.247457244 | E133: 0.9394072022 | F133: 102.9256417 | G133: 241.5159109 | H133: 0.9876345489 | I133: 2.569318201 | J133: 45.05528739 | K133: 39.85854293 | L133: 9.351229612 | M133: 130.7291058 | N133: 0.7925739358 | O133: 1 | P133: 0.3358742794 | X133: 1995 | Y133: 8.480715152 | Z133: 9.362108302 | AA133: 10.42677723 | AB133: 12.70260438 | AC133: 13.24917605
A134: 1995 - Jan | B134: 95 | C134: 250 | D134: 5.121998063 | E134: 0.8962183807 | F134: 103.8027972 | G134: 243.6417128 | H134: 0.9629356203 | I134: 2.564649608 | J134: 45.21361071 | K134: 40.13915925 | L134: 7.924570504 | M134: 116.5777941 | N134: 0.7925739358 | O134: 1 | P134: 1 | X134: 1996 | Y134: 9.59709739 | Z134: 10.59113767 | AA134: 11.52544155 | AB134: 13.28543962 | AC134: 13.2692832
A135: 1996 - Jan | B135: 96 | C135: 250 | D135: 5.064906093 | E135: 0.943918617 | F135: 104.8247556 | G135: 246.107068 | H135: 0.9504646762 | I135: 2.563615292 | J135: 45.39708369 | K135: 40.46558279 | L135: 8.918317948 | M135: 128.1651924 | N135: 0.7925739358 | O135: 1 | P135: 0.8370214487 | X135: 1997 | Y135: 9.114178068 | Z135: 9.759237031 | AA135: 10.14411735 | AB135: 10.55968421 | AC135: 12.39903663
A136: 1997 - Jan | B136: 97 | C136: 250 | D136: 4.982260648 | E136: 0.9780432205 | F136: 105.7645348 | G136: 248.3791946 | H136: 0.9317591855 | I136: 2.560610254 | J136: 45.56487907 | K136: 40.76527102 | L136: 8.410629547 | M136: 123.2309104 | N136: 0.7925739358 | O136: 1 | P136: 0.9949715549 | X136: 1998 | Y136: 13.67293864 | Z136: 14.12062125 | AA136: 14.17653218 | AB136: 13.62804645 | AC136: 13.23779746
A137: 1998 - Jan | B137: 98 | C137: 250 | D137: 5.107437674 | E137: 1.180092795 | F137: 107.2086377 | G137: 251.8356432 | H137: 0.9467135943 | I137: 2.569751461 | J137: 45.82102425 | K137: 41.22488718 | L137: 12.3682931 | M137: 175.5187607 | N137: 0.7925739358 | O137: 1 | P137: 1 | X137: 1999 | Y137: 11.86723955 | Z137: 13.22418058 | AA137: 14.28268168 | AB137: 13.67631829 | AC137: 13.2569507
A138: 1999 - Jan | B138: 99 | C138: 250 | D138: 5.147828933 | E138: 1.082363158 | F138: 108.4716694 | G138: 254.8668907 | H138: 0.9604134365 | I138: 2.574413037 | J138: 46.04339797 | K138: 41.6259946 | L138: 10.86462875 | M138: 154.1515553 | N138: 0.7925739358 | O138: 1 | P138: 0.9985401841 | X138: 2000 | Y138: 10.8532792 | Z138: 12.33062625 | AA138: 13.53226859 | AB138: 13.72316184 | AC138: 13.27530304
A139: 2000 - Jan | B139: 100 | C139: 250 | D139: 5.139430162 | E139: 1.0230497 | F139: 109.6218102 | G139: 257.6328339 | H139: 0.9610961369 | I139: 2.576328339 | J139: 46.24457805 | K139: 41.99054704 | L139: 10.08562195 | M139: 143.8875291 | N139: 0.7925739358 | O139: 0.5666666667 | P139: 0.9791943372 | X139: 2001 | Y139: 10.72972777 | Z139: 12.39273248 | AA139: 13.63313963 | AB139: 13.76859762 | AC139: 13.29286859
A140: 2001 - Jan | B140: 101 | C140: 250 | D140: 5.131603376 | E140: 0.9257012026 | F140: 110.7762937 | G140: 260.4088527 | H140: 0.9632735606 | I140: 2.578305472 | J140: 46.44527631 | K140: 42.35581005 | L140: 10.09591019 | M140: 139.3644146 | N140: 0.7925739358 | O140: 0.5666666667 | P140: 1 | X140: 2002 | Y140: 11.65525266 | Z140: 13.19179034 | AA140: 14.09733682 | AB140: 13.81264622 | AC140: 13.30966117
A141: 2002 - Jan | B141: 102 | C141: 250 | D141: 5.139140513 | E141: 0.9984328797 | F141: 111.9645384 | G141: 263.2641145 | H141: 0.9611697936 | I141: 2.581020731 | J141: 46.6505664 | K141: 42.73106649 | L141: 10.25020076 | M141: 143.2758915 | N141: 0.7925739358 | O141: 1 | P141: 0.9998621666 | X141: 2003 | Y141: 9.636457702 | Z141: 10.72603681 | AA141: 12.105509 | AB141: 13.85532833 | AC141: 13.32569431
A142: 2003 - Jan | B142: 103 | C142: 250 | D142: 5.105331978 | E142: 1.007326153 | F142: 113.0489008 | G142: 265.8749449 | H142: 0.9550719762 | I142: 2.581310144 | J142: 46.83679652 | K142: 43.07291424 | L142: 9.482436937 | M142: 138.5621642 | N142: 0.7925739358 | O142: 1 | P142: 1 | X142: 2004 | Y142: 8.827872534 | Z142: 9.810465261 | AA142: 10.76962713 | AB142: 12.80105276 | AC142: 13.34098129
A143: 2004 - Jan | B143: 104 | C143: 250 | D143: 5.01072459 | E143: 0.853672234 | F143: 113.9797096 | G143: 268.1243208 | H143: 0.9456820468 | I143: 2.578118469 | J143: 46.99582099 | K143: 43.36590078 | L143: 8.290935613 | M143: 120.0482692 | N143: 0.7925739358 | O143: 1 | P143: 0.9976816162 | X143: 2005 | Y143: 13.61987556 | Z143: 14.24373781 | AA143: 14.40591684 | AB143: 13.8424728 | AC143: 13.3555351
A144: 2005 - Jan | B144: 105 | C144: 250 | D144: 5.134458206 | E144: 1.175773217 | F144: 115.4298847 | G144: 271.595312 | H144: 0.9518777706 | I144: 2.586622019 | J144: 47.242066 | K144: 43.82154186 | L144: 12.41466565 | M144: 176.3688422 | N144: 0.7925739358 | O144: 1 | P144: 1

Sheet Pinyon Socorro NM Ex 4b ANS
A2: Run type : | B2: SingleSite | E2: Stand initialisation and site factor data | K2: Optional parameter block | N2: Definition of parameters
A3: Site : | B3: Socorro NM | F3: Year planted = | G3: 1900 | I3: Latitude = | J3: 34.2 | L3: Parameters
A4: Species : | B4: Juniper | F4: Month planted = | G4: Jan | I4: Fertility rating = | J4: 0.15 | L4: alpha = | M4: 0.025 | N4: Quantum Efficiency (mol CO2/mol APAR (X 55 =gC/MJ absorbed PAR)
A5: Climate data : | B5: Socorro Metdata | F5: Initial year = | G5: 1 | I5: Soil class = | J5: cl | L5: gammaFx = | M5: 0.008 | N5: Leaf turnover/ month | Q5: (1/10th per year)
A6: Met station : | B6: Yearly data | F6: Initial month = | G6: Jan | I6: Maximum ASW = | J6: 50 | L6: MaxCond | M6: 0.008 | N6: Max canopy conductance, m/second | T6: 0
A7: Title : | B7: Pinyon pine | F7: End age = | G7: 105 | I7: Minimum ASW = | J7: 0 | L7: MaxAge | M7: 500 | N7: Age when species reaches 90% of max height on site
F8: Initial WF = | G8: 2 | I8: Atmospheric CO2 = | J8: 350 | L8: pFS2 | M8: 0.53 | N8: partitioning of growth into foliage vs stem mass at dbh of 2 cm
F9: Initial WR = | G9: 3 | L9: pFS20 | M9: 0.45 | N9: partitioning of growth into foliage vs stem mass at dbh of 20 cm
F10: Initial WS = | G10: 2 | L10: WSx1000= | M10: 400 | N10: Mass of mean dia tree in kg when stocked at 1000 trees/ha and value when self-thinning starts
F11: Initial stocking = | G11: 250 | L11: thinpower= | M11: 1.8 | N11: self thinning power exp
F12: Initial ASW = | G12: 50 | L12: aS | M12: 0.0411 | N12: const in stem biomass eq | R12: derived from Jenkins et al.
L13: nS | M13: 2.4192 | N13: power for stem biomass eq
F16: Output details | S16: 0.005
G17: Output frequency : | H17: a
F18: Output data : | G18: fVPD,fFROST,fSW | S18: 7
F19: Output sheet :
F20: Output ages : | G20: 100y 1m,100y 2m,100y 3m,100y 4m,100y 5m,100y 6m,100y 7m,100y 8m,100y 9m,100y 10m,100y 11m, 100y 12m
F22: Note: these runs made without frost function limiting transpiration | L22: To switch PhyMod from min values of f(vpd) and f(ASW), see code | X22: LAI =1.0
X23: GPP, Mg/ha/yr
U24: Year | V24: 50mm | W24: 75mm | X24: 100mm | Y24: 150mm | Z24: 200mm
U25: 1985 | V25: 10.17741264 | W25: 12.39766221 | X25: 13.59679831 | Y25: 13.8286904 | Z25: 12.9995867
U26: 1986 | V26: 11.88065821 | W26: 13.87797168 | X26: 14.37473536 | Y26: 13.8780441 | Z26: 13.02876163
U27: 1987 | V27: 11.97188126 | W27: 14.44506281 | X27: 14.7986076 | Y27: 13.92592059 | Z27: 13.05695437
U28: 1988 | V28: 11.45823016 | W28: 13.52225197 | X28: 14.39605997 | Y28: 13.97234407 | Z28: 13.08418234
B29: Target values | U29: 1989 | V29: 11.54503993 | W29: 13.57752732 | X29: 14.50609331 | Y29: 14.01733874 | Z29: 13.11046269
B30: LAI | C30: 0.5 m2/m2 | U30: 1990 | V30: 7.085955738 | W30: 8.886360135 | X30: 10.28299806 | Y30: 12.63495434 | Z30: 13.13581238
B31: Basal area | C31: 20-25 m2/ha | U31: 1991 | V31: 11.23539302 | W31: 12.9703939 | X31: 13.85175397 | Y31: 13.93700062 | Z31: 13.16024809
A32: Annual | B32: Mortality rate | C32: 0.01/yr | U32: 1992 | V32: 8.440750297 | W32: 10.18842851 | X32: 10.26086119 | Y32: 10.85773364 | Z32: 13.18378626
U33: 1993 | V33: 12.76209249 | W33: 14.58606026 | X33: 14.63965163 | Y33: 13.82126075 | Z33: 13.20644308
U34: 1994 | V34: 9.353284684 | W34: 11.53745688 | X34: 12.75125145 | Y34: 13.8674679 | Z34: 13.22823446
U35: 1995 | V35: 7.926314963 | W35: 9.362108302 | X35: 10.42677723 | Y35: 12.70260438 | Z35: 13.24917605
A36: #Output from 3PGpjs 2.7 / 3-PG vsn 1 Sep2009 | U36: 1996 | V36: 8.920199559 | W36: 10.59113767 | X36: 11.52544155 | Y36: 13.28543962 | Z36: 13.2692832
A37: Stand development for Socorro NM | U37: 1997 | V37: 8.413556748 | W37: 9.759237031 | X37: 10.14411735 | Y37: 10.55968421 | Z37: 12.39903663
A38: Pinyon pine | U38: 1998 | V38: 12.38032163 | W38: 14.12062125 | X38: 14.17653218 | Y38: 13.62804645 | Z38: 13.23779746
A39: Year & month | B39: Stand age | C39: Stems | D39: Foliage DM | E39: Root DM | F39: Stem DM | G39: Stand volume | H39: LAI | I39: MAI | J39: Mean DBH | K39: Basal area | L39: GPP | M39: Penman transp. | N39: fVPD | O39: fFrost | P39: fSW | U39: 1999 | V39: 10.87056088 | W39: 13.22418058 | X39: 14.28268168 | Y39: 13.67631829 | Z39: 13.2569507
A40: 1901 - Jan | B40: 1 | C40: 250 | D40: 2 | E40: 3 | F40: 2 | G40: 4.261420016 | H40: 0.3998065899 | I40: 4.261420016 | J40: 8.836558095 | K40: 1.533190657 | U40: 2000 | V40: 10.20260241 | W40: 12.33062625 | X40: 13.53226859 | Y40: 13.72316184 | Z40: 13.27530304
A41: 2000 - Feb | B41: 100.0833333 | C41: 250 | D41: 5.103865084 | E41: 0.9261234093 | F41: 109.1723967 | G41: 256.5818323 | H41: 0.9493189057 | I41: 2.563681922 | J41: 46.16611572 | K41: 41.84817871 | L41: 0.3845287931 | M41: 9.503329295 | N41: 0.7334446707 | O41: 0.7 | P41: 0.7773304921 | U41: 2001 | V41: 10.3103245 | W41: 12.39273248 | X41: 13.63313963 | Y41: 13.76859762 | Z41: 13.29286859
A42: 2000 - Mar | B42: 100.1666667 | C42: 250 | D42: 5.084303784 | E42: 0.8983862282 | F42: 109.2225574 | G42: 256.7049234 | H42: 0.9456805038 | I42: 2.562777937 | J42: 46.17488258 | K42: 41.86407401 | L42: 0.4870593089 | M42: 7.579059291 | N42: 0.6644886749 | O42: 0.84 | P42: 0.3626015817 | U42: 2002 | V42: 10.83374825 | W42: 13.19179034 | X42: 14.09733682 | Y42: 13.81264622 | Z42: 13.30966117
A43: 2000 - Apr | B43: 100.25 | C43: 250 | D43: 5.114255816 | E43: 1.132451482 | F43: 109.3891201 | G43: 257.1015932 | H43: 0.9512515817 | I43: 2.564604421 | J43: 46.2039767 | K43: 41.91684651 | L43: 1.384960895 | M43: 16.63200402 | N43: 0.5758514379 | O43: 0.9666666667 | P43: 1 | U43: 2003 | V43: 9.016268774 | W43: 10.72603681 | X43: 12.105509 | Y43: 13.85532833 | Z43: 13.32569431
A44: 2000 - May | B44: 100.3333333 | C44: 250 | D44: 5.151011763 | E44: 1.400226768 | F44: 109.5723021 | G44: 257.5373309 | H44: 0.9580881879 | I44: 2.566817251 | J44: 46.23594379 | K44: 41.9748685 | L44: 1.606633231 | M44: 19.89085825 | N44: 0.4947696469 | O44: 1 | P44: 0.8991999417 | U44: 2004 | V44: 8.286752746 | W44: 9.810465261 | X44: 10.76962713 | Y44: 12.80105276 | Z44: 13.34098129
A45: 2000 - Jun | B45: 100.4166667 | C45: 250 | D45: 5.12598034 | E45: 1.285931543 | F45: 109.6104561 | G45: 257.632197 | H45: 0.9534323433 | I45: 2.565631837 | J45: 46.2425981 | K45: 41.98695148 | L45: 0.4682570355 | M45: 7.263764084 | N45: 0.3975342699 | O45: 1 | P45: 0.1385626441 | U45: 2005 | V45: 12.44911305 | W45: 14.24373781 | X45: 14.40591684 | Y45: 13.8424728 | Z45: 13.3555351
A46: 2000 - Jul | B46: 100.5 | C46: 250 | D46: 5.152009827 | E46: 1.494156792 | F46: 109.7685708 | G46: 258.009022 | H46: 0.9582738279 | I46: 2.567253951 | J46: 46.27015986 | K46: 42.03701696 | L46: 1.469284132 | M46: 20.89638712 | N46: 0.4164205555 | O46: 1 | P46: 0.8987023062 | U46: FR | V46: 0.15 | W46: 0.14 | X46: 0.12 | Y46: 0.08 | Z46: 0.08
A47: 2000 - Aug | B47: 100.5833333 | C47: 250 | D47: 5.182526145 | E47: 1.673330435 | F47: 109.9377664 | G47: 258.4118982 | H47: 0.9639498629 | I47: 2.569132376 | J47: 46.29962742 | K47: 42.0905773 | L47: 1.52964474 | M47: 19.58665345 | N47: 0.4525107834 | O47: 1 | P47: 0.8450601947
A48: 2000 - Sep | B48: 100.6666667 | C48: 250 | D48: 5.206938644 | E48: 1.756192679 | F48: 110.0931478 | G48: 258.7823089 | H48: 0.9684905879 | I48: 2.570685187 | J48: 46.32666562 | K48: 42.13975203 | L48: 1.359111535 | M48: 16.99607691 | N48: 0.4986253503 | O48: 1 | P48: 0.5854628026
A49: 2000 - Oct | B49: 100.75 | C49: 250 | D49: 5.172182505 | E49: 1.478653455 | F49: 110.1094228 | G49: 258.8257375 | H49: 0.962025946 | I49: 2.568989951 | J49: 46.32949637 | K49: 42.14490201 | L49: 0.2061142108 | M49: 2.895077051 | N49: 0.5844993478 | O49: 0.9833333333 | P49: 0.1147996966 | U49: Year | V49: GPP | W49: Penman transp. | X49: fVPD | Y49: fFrost | Z49: fSW
A50: 2000 - Nov | B50: 100.8333333 | C50: 250 | D50: 5.154863414 | E50: 1.307132851 | F50: 110.1661746 | G50: 258.9643053 | H50: 0.958804595 | I50: 2.568241045 | J50: 46.33936541 | K50: 42.16285922 | L50: 0.4362132796 | M50: 9.918268267 | N50: 0.7136058844 | O50: 0.77 | P50: 1 | U50: 100 | V50: max ASW 200 mm | W50: max ASW 200 mm | X50: max ASW 200 mm | Y50: max ASW 200 mm | Z50: max ASW 200 mm
A51: 2000 - Dec | B51: 100.9166667 | C51: 250 | D51: 5.122000822 | E51: 1.086117095 | F51: 110.1859339 | G51: 259.0159098 | H51: 0.9526921529 | I51: 2.566631642 | J51: 46.34280084 | K51: 42.16911104 | L51: 0.1458436038 | M51: 7.567135878 | N51: 0.7949289504 | O51: 0.58 | P51: 1 | U51: Jan | V51: 0.3929767007 | W51: 9.765375626 | X51: 0.7334446707 | Y51: 0.7 | Z51: 0.999598202
A52: 2001 - Jan | B52: 101 | C52: 250 | D52: 5.089630866 | E52: 0.9104921415 | F52: 110.2062354 | G52: 259.0687805 | H52: 0.946671341 | I52: 2.56503743 | J52: 46.34633012 | K52: 42.17553415 | L52: 0.1500125957 | M52: 7.913192883 | N52: 0.7925739358 | O52: 0.5666666667 | P52: 1 | U52: Feb | V52: 0.9115974074 | W52: 14.10823233 | X52: 0.6644886749 | Y52: 0.84 | Z52: 0.9976895833
U53: Mar | V53: 1.418256897 | W53: 17.13612426 | X53: 0.5758514379 | Y53: 0.9666666667 | Z53: 1
U54: Apr | V54: 1.641877382 | W54: 20.44308673 | X54: 0.4947696469 | Y54: 1 | Z54: 0.9998723266
U55: May | V55: 1.369970992 | W55: 21.16290851 | X55: 0.3975342699 | Y55: 1 | Z55: 0.9930334476
U56: Jun | V56: 1.506126138 | W56: 21.56243017 | X56: 0.4164205555 | Y56: 1 | Z56: 0.9970838906
U57: Jul | V57: 1.565297772 | W57: 20.16662491 | X57: 0.4525107834 | Y57: 1 | Z57: 0.9958185368
U58: Aug | V58: 1.388162172 | W58: 17.45722722 | X58: 0.4986253503 | Y58: 1 | Z58: 0.990373414
U59: Sep | V59: 1.069950532 | W59: 14.84724971 | X59: 0.5844993478 | Y59: 0.9833333333 | Z59: 0.9547962773
U60: Oct | V60: 0.4472010747 | W60: 10.23306159 | X60: 0.7136058844 | Y60: 0.77 | Z60: 0.9998275597
U61: Nov | V61: 0.1494125492 | W61: 7.799526875 | X61: 0.7949289504 | Y61: 0.58 | Z61: 1
U62: Dec | V62: 0.1536499544 | W62: 8.153626579 | X62: 0.7925739358 | Y62: 0.5666666667 | Z62: 1
U63: Total/av | V63: =SUM(V51:V62) -> 12.01447957 | W63: =SUM(W51:W62) -> 182.8354745 | X63: =AVERAGE(X51:X62) -> 0.5932711257 | Y63: =AVERAGE(Y51:Y62) -> 0.8672222222 | Z63: 0.9940077698
V65: PHYMOD = (min fVPD,SW) | X65: LAI max = 1.0
U66: Year | V66: GPP | W66: Penman transp. | X66: fVPD | Y66: fFrost | Z66: fSW
U67: 100 | V67: max ASW 50 mm | W67: max ASW 50 mm | X67: max ASW 50 mm | Y67: max ASW 50 mm | Z67: max ASW 50 mm
U68: Jan | V68: 0.3845287931 | W68: 9.503329295 | X68: 0.7334446707 | Y68: 0.7 | Z68: 0.7773304921
U69: Feb | V69: 0.4870593089 | W69: 7.579059291 | X69: 0.6644886749 | Y69: 0.84 | Z69: 0.3626015817
U70: Mar | V70: 1.384960895 | W70: 16.63200402 | X70: 0.5758514379 | Y70: 0.9666666667 | Z70: 1
U71: Apr | V71: 1.606633231 | W71: 19.89085825 | X71: 0.4947696469 | Y71: 1 | Z71: 0.8991999417
U72: May | V72: 0.4682570355 | W72: 7.263764084 | X72: 0.3975342699 | Y72: 1 | Z72: 0.1385626441
U73: Jun | V73: 1.469284132 | W73: 20.89638712 | X73: 0.4164205555 | Y73: 1 | Z73: 0.8987023062
U74: Jul | V74: 1.52964474 | W74: 19.58665345 | X74: 0.4525107834 | Y74: 1 | Z74: 0.8450601947
U75: Aug | V75: 1.359111535 | W75: 16.99607691 | X75: 0.4986253503 | Y75: 1 | Z75: 0.5854628026
U76: Sep | V76: 0.2061142108 | W76: 2.895077051 | X76: 0.5844993478 | Y76: 0.9833333333 | Z76: 0.1147996966
U77: Oct | V77: 0.4362132796 | W77: 9.918268267 | X77: 0.7136058844 | Y77: 0.77 | Z77: 1
U78: Nov | V78: 0.1458436038 | W78: 7.567135878 | X78: 0.7949289504 | Y78: 0.58 | Z78: 1
U79: Dec | V79: 0.1500125957 | W79: 7.913192883 | X79: 0.7925739358 | Y79: 0.5666666667 | Z79: 1
U80: Total/av | V80: =SUM(V68:V79) -> 9.62766336 | W80: =SUM(W68:W79) -> 146.6418065 | X80: =AVERAGE(X68:X79) -> 0.5932711257 | Y80: =AVERAGE(Y68:Y79) -> 0.8672222222 | Z80: 0.7184766383
U81: FR=0.15
V82: PHYMOD =fVPD*fSW | X82: LAI max = 1.0
U83: Year | V83: GPP | W83: Penman transp. | X83: fVPD | Y83: fFrost | Z83: fSW
U84: 100 | V84: max ASW 50 mm | W84: max ASW 50 mm | X84: max ASW 50 mm | Y84: max ASW 50 mm | Z84: max ASW 50 mm
U85: Jan | V85: 0.3138227071 | W85: 7.883558737 | X85: 0.7334446707 | Y85: 0.7 | Z85: 0.7836526108
U86: Feb | V86: 0.4092165961 | W86: 6.454174803 | X86: 0.6644886749 | Y86: 0.84 | Z86: 0.4405183392
U87: Mar | V87: 1.440608971 | W87: 17.47837139 | X87: 0.5758514379 | Y87: 0.9666666667 | Z87: 1
U88: Apr | V88: 1.461274164 | W88: 18.32966932 | X88: 0.4947696469 | Y88: 1 | Z88: 0.8735335179
U89: May | V89: 0.2109052181 | W89: 3.31842865 | X89: 0.3975342699 | Y89: 1 | Z89: 0.1509475488
U90: Jun | V90: 1.494634588 | W90: 21.48178577 | X90: 0.4164205555 | Y90: 1 | Z90: 0.9794865812
U91: Jul | V91: 1.51191737 | W91: 19.57745806 | X91: 0.4525107834 | Y91: 1 | Z91: 0.951193564
U92: Aug | V92: 1.106054618 | W92: 14.03374207 | X92: 0.4986253503 | Y92: 1 | Z92: 0.7830416666
U93: Sep | V93: 0.2881843354 | W93: 4.084292072 | X93: 0.5844993478 | Y93: 0.9833333333 | Z93: 0.2647956674
U94: Oct | V94: 0.4526416498 | W94: 10.39057934 | X94: 0.7136058844 | Y94: 0.77 | Z94: 1
U95: Nov | V95: 0.1513966313 | W95: 7.930077397 | X95: 0.7949289504 | Y95: 0.58 | Z95: 1
U96: Dec | V96: 0.1557543461 | W96: 8.294187284 | X96: 0.7925739358 | Y96: 0.5666666667 | Z96: 1
U97: Total/av | V97: =SUM(V85:V96) -> 8.996411196 | W97: =SUM(W85:W96) -> 139.2563249 | X97: =AVERAGE(X85:X96) -> 0.5932711257 | Y97: =AVERAGE(Y85:Y96) -> 0.8672222222 | Z97: =AVERAGE(Z85:Z96) -> 0.7689307913
U98: FR=0.20

Sheet FR decline Monthly Ex 5
A2: Run type : | B2: SingleSite | E2: Stand initialisation and site factor data | K2: Optional parameter block | R2: Observed data
A3: Site : | B3: SE Qld | F3: Date planted = | G3: 1988/6 | I3: Latitude = | J3: -26 | L3: Parameters | Q3: (The format of this block of observed data
A4: Species : | B4: Trial | F4: Initial year = | G4: 1 | I4: Fertility rating = | J4: 1 | L4: alpha = | M4: 0.052 | Q4: is quite arbitrary and is of no concern to
A5: Climate data : | B5: Qld Metdata | F5: Initial month = | G5: June | I5: Soil class = | J5: cl | L5: gammaF1 = | M5: 0.085 | Q5: 3PGpjs - the user has placed it here and
A6: Met station : | B6: Mean Data | F6: End age = | G6: 10 | I6: Maximum ASW = | J6: 300 | L6: poolFractn = | M6: 0 | Q6: uses it to plot observed data.)
A7: Title : | B7: FR declines with stand age | F7: Initial WF = | G7: 7 | I7: Minimum ASW = | J7: 0
F8: Initial WR = | G8: 2 | I8: Atmospheric CO2 = | J8: 350 | K8: Silvicultural events | R8: Age | S8: standVol | T8: LAI
F9: Initial WS = | G9: 5 | L9: Fertility | N9: Irrigation
F10: Initial stocking = | G10: 1111 | L10: Age | M10: FR | N10: Age | O10: Ml/ha/yr | R10: 0.83 | S10: 2.730293817
F11: Initial ASW = | G11: 300 | L11: 2 | M11: 1 | N11: 6 | O11: 4 | R11: 1.08 | S11: 9.339603211 | T11: 4.46
L12: 3 | M12: 0.8 | N12: 6 | O12: -1 | R12: 1.33 | S12: 19.05384691
L13: 5 | M13: 0.5 | R13: 1.58 | S13: 26.62194645 | T13: 4.81
L14: 7 | M14: 0.3 | R14: 1.83 | S14: 42.97620438 | T14: 4.79
L15: 99 | M15: 0.1
F16: Output details | R16: 2.08 | S16: 60.98791167
G17: Output frequency : | H17: a | R17: 2.33 | S17: 72.89770122 | T17: 5.17 | V17: ANSWERS:
G18: Output data : | H18: FR, Irrig, fSW | R18: 2.58 | S18: 83.94959967
G19: Output sheet : | R19: 2.83 | S19: 95.85868178 | V19: 1)
G20: Output ages : | H20: 1y 4m, 2y 1m, 2y 10m, 3y 7m, 4y 7m, 6y 5m, 7y 4m, 10y | R20: 3.08 | S20: 101.1090528 | T20: 3.86
R21: 3.58 | S21: 114.1160268
R22: 4.58 | S22: 140.3976957 | V22: 2)
R23: 6.5 | S23: 192.2696334
R24: 7.33 | S24: 204.9150965
R25: 9.92 | S25: 221.6892464
R27: CASE I | S27: CASE II | U27: CASE III
R28: FR=1 @ 2 yr | S28: FR=1 @ 2 & 5yrs | T28: CASE II-I | U28: FR=0.5 all | V28: CASE III-I
Q29: AGE | R29: MAI | S29: MAI | T29: Difference | V29: Difference
Q30: 1
Q31: 1.333333333
Q32: 2.083333333
Q33: 2.833333333
Q34: 3.583333333
Q35: 4.583333333
Q36: 6.416666667
A37: #Output from 3PGpjs 2.7 / 3-PG vsn 1 Sep2009 | Q37: 7.33
A38: Stand development for SE Qld | Q38: 10
A39: FR declines with stand age
A40: Year & month | B40: Stand age | C40: Stems | D40: Foliage DM | E40: Root DM | F40: Stem DM | G40: Stand volume | H40: LAI | I40: MAI | J40: Mean DBH | K40: Basal area | L40: GPP | M40: Penman transp. | N40: FR | O40: Applied irrig. | P40: fSW
A41: 1989 - Jun | B41: 1 | C41: 1111 | D41: 7 | E41: 2 | F41: 5 | G41: 8.5 | H41: 4.2 | I41: 8.5 | J41: 4.990435824 | K41: 2.173105898
A42: 1989 - Oct | B42: 1.333333333 | C42: 1111 | D42: 8.575066371 | E42: 7.404815235 | F42: 12.93311661 | G42: 21.98629824 | H42: 5.145039823 | I42: 16.48972368 | J42: 7.414991153 | K42: 4.797613024 | L42: 10.59972736 | M42: 126.8475003 | N42: 1 | O42: 4 | P42: 0.9659458962
A43: 1990 - Jul | B43: 2.083333333 | C43: 1111 | D43: 8.069080042 | E43: 18.55782961 | F43: 32.90742735 | G43: 55.94262649 | H43: 4.841448025 | I43: 26.85246072 | J43: 10.94225365 | K43: 10.44762308 | L43: 7.418436883 | M43: 85.68156702 | N43: 1 | O43: 4 | P43: 1
A44: 1991 - Apr | B44: 2.833333333 | C44: 1111 | D44: 6.94723688 | E44: 30.99376076 | F44: 53.46149488 | G44: 90.88454129 | H44: 4.168342128 | I44: 32.07689693 | J44: 13.39424065 | K44: 15.65453368 | L44: 7.697385629 | M44: 97.39402048 | N44: 0.8 | O44: 4 | P44: 1
A45: 1992 - Jan | B45: 3.583333333 | C45: 1111 | D45: 5.486785559 | E45: 42.55394214 | F45: 69.62452303 | G45: 118.3616892 | H45: 3.292071336 | I45: 33.03116907 | J45: 14.95266386 | K45: 19.50927278 | L45: 9.830905336 | M45: 133.5974439 | N45: 0.5 | O45: 4 | P45: 0.7925092214
A46: 1993 - Jan | B46: 4.583333333 | C46: 1111 | D46: 4.148031087 | E46: 54.07561152 | F46: 88.56498345 | G46: 150.5604719 | H46: 2.488818652 | I46: 32.8495575 | J46: 16.52951683 | K46: 23.84098851 | L46: 8.657296031 | M46: 104.9461112 | N46: 0.5 | O46: 4 | P46: 1
A47: 1994 - Nov | B47: 6.416666667 | C47: 1111 | D47: 2.315530847 | E47: 67.22397064 | F47: 112.9628604 | G47: 192.0368626 | H47: 1.389318508 | I47: 29.92782275 | J47: 18.29324876 | K47: 29.2001862 | L47: 5.978201953 | M47: 60.17908827 | N47: 0.3 | O47: -1 | P47: 0.9886803777
A48: 1995 - Oct | B48: 7.333333333 | C48: 1111 | D48: 1.677739371 | E48: 70.02667814 | F48: 121.0740414 | G48: 205.8258703 | H48: 1.006643623 | I48: 28.06716413 | J48: 18.82950513 | K48: 30.93725327 | L48: 4.700244081 | M48: 44.62232112 | N48: 0.1 | O48: -1 | P48: 0.999835293
A49: 1998 - Jun | B49: 10 | C49: 1111 | D49: 0.5147367708 | E49: 63.9375235 | F49: 131.010666 | G49: 222.7181321 | H49: 0.3088420625 | I49: 22.27181321 | J49: 19.45862189 | K49: 33.03909165 | L49: 1.096329817 | M49: 9.360968228 | N49: 0.1 | O49: -1 | P49: 1

Sheet FR decline Monthly Ex 5 ANS
A2: Run type : | B2: SingleSite | E2: Stand initialisation and site factor data | K2: Optional parameter block | R2: Observed data
A3: Site : | B3: SE Qld | F3: Date planted = | G3: 1988/6 | I3: Latitude = | J3: -26 | L3: Parameters | Q3: (The format of this block of observed data
A4: Species : | B4: Trial | F4: Initial year = | G4: 1 | I4: Fertility rating = | J4: 1 | L4: alpha = | M4: 0.052 | Q4: is quite arbitrary and is of no concern to
A5: Climate data : | B5: Qld Metdata | F5: Initial month = | G5: June | I5: Soil class = | J5: cl | L5: gammaF1 = | M5: 0.085 | Q5: 3PGpjs - the user has placed it here and
A6: Met station : | B6: Mean Data | F6: End age = | G6: 10 | I6: Maximum ASW = | J6: 300 | L6: poolFractn = | M6: 0 | Q6: uses it to plot observed data.)
A7: Title : | B7: FR declines with stand age | F7: Initial WF = | G7: 7 | I7: Minimum ASW = | J7: 0
F8: Initial WR = | G8: 2 | I8: Atmospheric CO2 = | J8: 350 | K8: Silvicultural events | R8: Age | S8: standVol | T8: LAI
F9: Initial WS = | G9: 5 | L9: Fertility | N9: Irrigation
F10: Initial stocking = | G10: 1111 | L10: Age | M10: FR | N10: Age | O10: Ml/ha/yr | R10: 0.83 | S10: 2.730293817
F11: Initial ASW = | G11: 300 | L11: 2 | M11: 1 | N11: 6 | O11: 4 | R11: 1.08 | S11: 9.339603211 | T11: 4.46
L12: 3 | M12: 0.8 | N12: 6 | O12: -1 | R12: 1.33 | S12: 19.05384691
L13: 5 | M13: 0.5 | R13: 1.58 | S13: 26.62194645 | T13: 4.81
L14: 7 | M14: 0.3 | R14: 1.83 | S14: 42.97620438 | T14: 4.79
L15: 99 | M15: 0.1
F16: Output details | R16: 2.08 | S16: 60.98791167
G17: Output frequency : | H17: a | R17: 2.33 | S17: 72.89770122 | T17: 5.17 | V17: ANSWERS:
G18: Output data : | H18: FR, Irrig, fSW | R18: 2.58 | S18: 83.94959967
G19: Output sheet : | R19: 2.83 | S19: 95.85868178 | V19: 1) Soil water supply (fSW) never becomes limiting so
G20: Output ages : | H20: 1y 4m, 2y 1m, 2y 10m, 3y 7m, 4y 7m, 6y 5m, 7y 4m, 10y | R20: 3.08 | S20: 101.1090528 | T20: 3.86 | V20: no variation is shown among years (see Qld Metdata)
R21: 3.58 | S21: 114.1160268
R22: 4.58 | S22: 140.3976957 | V22: 2) Adding max fertilizer at age 5 improves MAI by 2.7 m3/ha at age 10; maintaining FR =0.5 for all years increases MAI by 3.1 m3/ha
R23: 6.5 | S23: 192.2696334 | V23: Maintaining FR = 0.5 does slightly better (3.1) based on last 3 years
R24: 7.33 | S24: 204.9150965 | V24: LAI drops because of age-related allometrics after age 5
R25: 9.92 | S25: 221.6892464
V26: 3) best add fertilizer when trees are young and potential to maximize LAI at that time.
R27: CASE I | S27: CASE II | U27: CASE III
R28: FR=1 @ 2 yr | S28: FR=1 @ 2 & 5yrs | T28: CASE II-I | U28: FR=0.5 all | V28: CASE III-I
Q29: AGE | R29: MAI | S29: MAI | T29: Difference | V29: Difference
Q30: 1 | R30: 8.5 | S30: 8.5 | T30: =S30-R30 -> 0 | U30: 8.5 | V30: =U30-R30 -> 0
Q31: 1.333333333 | R31: 16.48972368 | S31: 16.48972368 | T31: 0 | U31: 14.28484634 | V31: =U31-R31 -> -2.204877343
Q32: 2.083333333 | R32: 26.85246072 | S32: 26.85246072 | T32: 0 | U32: 21.60155088 | V32: -5.250909838
Q33: 2.833333333 | R33: 32.07689693 | S33: 32.07689693 | T33: 0 | U33: 25.8093233 | V33: -6.267573628
Q34: 3.583333333 | R34: 33.03116907 | S34: 34.76829107 | T34: 1.737122004 | U34: 27.44641186 | V34: -5.584757203
Q35: 4.583333333 | R35: 32.8495575 | S35: 36.65007468 | T35: 3.800517186 | U35: 28.26164967 | V35: -4.587907831
Q36: 6.416666667 | R36: 29.92782275 | S36: 33.89661333 | T36: 3.968790581 | U36: 27.85156036 | V36: -2.076262385
A37: #Output from 3PGpjs 2.7 / 3-PG vsn 1 Sep2009 | Q37: 7.33 | R37: 28.06716413 | S37: 31.68830398 | T37: 3.621139849 | U37: 27.31090276 | V37: -0.7562613741
A38: Stand development for SE Qld | Q38: 10 | R38: 22.27181321 | S38: 25.00693914 | T38: 2.735125924 | U38: 25.39516092 | V38: 3.123347705
A39: FR declines with stand age
A40: Year & month | B40: Stand age | C40: Stems | D40: Foliage DM | E40: Root DM | F40: Stem DM | G40: Stand volume | H40: LAI | I40: MAI | J40: Mean DBH | K40: Basal area | L40: GPP | M40: Penman transp. | N40: FR | O40: Applied irrig. | P40: fSW
A41: 1989 - Jun | B41: 1 | C41: 1111 | D41: 7 | E41: 2 | F41: 5 | G41: 8.5 | H41: 4.2 | I41: 8.5 | J41: 4.990435824 | K41: 2.173105898
A42: 1989 - Oct | B42: 1.333333333 | C42: 1111 | D42: 8.575066371 | E42: 7.404815235 | F42: 12.93311661 | G42: 21.98629824 | H42: 5.145039823 | I42: 16.48972368 | J42: 7.414991153 | K42: 4.797613024 | L42: 10.59972736 | M42: 126.8475003 | N42: 1 | O42: 4 | P42: 0.9659458962
A43: 1990 - Jul | B43: 2.083333333 | C43: 1111 | D43: 8.069080042 | E43: 18.55782961 | F43: 32.90742735 | G43: 55.94262649 | H43: 4.841448025 | I43: 26.85246072 | J43: 10.94225365 | K43: 10.44762308 | L43: 7.418436883 | M43: 85.68156702 | N43: 1 | O43: 4 | P43: 1
A44: 1991 - Apr | B44: 2.833333333 | C44: 1111 | D44: 6.94723688 | E44: 30.99376076 | F44: 53.46149488 | G44: 90.88454129 | H44: 4.168342128 | I44: 32.07689693 | J44: 13.39424065 | K44: 15.65453368 | L44: 7.697385629 | M44: 97.39402048 | N44: 0.8 | O44: 4 | P44: 1
A45: 1992 - Jan | B45: 3.583333333 | C45: 1111 | D45: 5.486785559 | E45: 42.55394214 | F45: 69.62452303 | G45: 118.3616892 | H45: 3.292071336 | I45: 33.03116907 | J45: 14.95266386 | K45: 19.50927278 | L45: 9.830905336 | M45: 133.5974439 | N45: 0.5 | O45: 4 | P45: 0.7925092214
A46: 1993 - Jan | B46: 4.583333333 | C46: 1111 | D46: 4.148031087 | E46: 54.07561152 | F46: 88.56498345 | G46: 150.5604719 | H46: 2.488818652 | I46: 32.8495575 | J46: 16.52951683 | K46: 23.84098851 | L46: 8.657296031 | M46: 104.9461112 | N46: 0.5 | O46: 4 | P46: 1
A47: 1994 - Nov | B47: 6.416666667 | C47: 1111 | D47: 2.315530847 | E47: 67.22397064 | F47: 112.9628604 | G47: 192.0368626 | H47: 1.389318508 | I47: 29.92782275 | J47: 18.29324876 | K47: 29.2001862 | L47: 5.978201953 | M47: 60.17908827 | N47: 0.3 | O47: -1 | P47: 0.9886803777
A48: 1995 - Oct | B48: 7.333333333 | C48: 1111 | D48: 1.677739371 | E48: 70.02667814 | F48: 121.0740414 | G48: 205.8258703 | H48: 1.006643623 | I48: 28.06716413 | J48: 18.82950513 | K48: 30.93725327 | L48: 4.700244081 | M48: 44.62232112 | N48: 0.1 | O48: -1 | P48: 0.999835293
A49: 1998 - Jun | B49: 10 | C49: 1111 | D49: 0.5147367708 | E49: 63.9375235 | F49: 131.010666 | G49: 222.7181321 | H49: 0.3088420625 | I49: 22.27181321 | J49: 19.45862189 | K49: 33.03909165 | L49: 1.096329817 | M49: 9.360968228 | N49: 0.1 | O49: -1 | P49: 1

Sheet Doug fir vs Pond pine Ex 6a
A2: Run type : | B2: SingleSite | E2: Stand initialisation and site factor data
A3: Site : | B3: Metolius River Oregon | F3: Year planted = | G3: 1999 | I3: Latitude = | J3: 44 | R3: A Oregon Coast Range | Y3: B. Central Oregon
A4: Species : | B4: Doug fir | F4: Month planted = | G4: Jan | I4: Fertility rating = | J4: 0.25 | R4: Climate data | S4: Tmax | T4: Tmin | U4: Rain | V4: Solar rad | W4: Frost days | Y4: C limate data | Z4: Tmax | AA4: Tmin | AB4: Rain | AC4: Solar rad | AD4: Frost days
B5: Pond pine | F5: Initial year = | G5: 1 | I5: Soil class = | J5: sl | R5: January | S5: 6.6 | T5: 0.43 | U5: 364.5270833 | V5: 4.2 | W5: 12.88192536 | Y5: January | Z5: 4.897322581 | AA5: -2.232903226 | AB5: 120 | AC5: 4 | AD5: 20
F6: Initial month = | G6: Jan | I6: Maximum ASW = | J6: 100 | R6: Feb | S6: 9.2 | T6: 0.8 | U6: 264.4425532 | V6: 4.8 | W6: 11.46160723 | Y6: Feb | Z6: 5.879103448 | AA6: -4.202931034 | AB6: 170.2 | AC6: 7.7 | AD6: 21
A7: Title : | B7: Douglas-fir Coast Range and Central OR | F7: End age = | G7: 50 | I7: Minimum ASW = | J7: 0 | R7: March | S7: 11.1 | T7: 1.4 | U7: 255.8148936 | V7: 7.3 | W7: 9.752933196 | Y7: March | Z7: 10.13901075 | AA7: -0.9282150538 | AB7: 39 | AC7: 13.06 | AD7: 14
F8: Initial WF = | G8: 3 | I8: Atmospheric CO2 = | J8: 360 | R8: April | S8: 14.5 | T8: 2.9 | U8: 170.4765957 | V8: 13.3 | W8: 6.52198066 | Y8: April | Z8: 12.9387 | AA8: 1.7519 | AB8: 55.8 | AC8: 15.62 | AD8: 9
F9: Initial WR = | G9: 3 | R9: may | S9: 18.8 | T9: 6.611111111 | U9: 122.8361702 | V9: 16.7 | W9: 1.046945779 | Y9: may | Z9: 13.98225806 | AA9: 3.083290323 | AB9: 34.2 | AC9: 19.42 | AD9: 7
F10: Initial WS = | G10: 3 | R10: June | S10: 22.88888889 | T10: 9.166666667 | U10: 66.11276596 | V10: 16.8 | W10: 0 | Y10: June | Z10: 21.35366667 | AA10: 6.163433333 | AB10: 8.9 | AC10: 23.78 | AD10: 1
F11: Initial stocking = | G11: 300 | R11: July | S11: 27.22222222 | T11: 10.77777778 | U11: 16.6893617 | V11: 21.2 | W11: 0 | Y11: July | Z11: 28.23322581 | AA11: 10.19183871 | AB11: 0.6 | AC11: 24.56 | AD11: 0
F12: Initial ASW = | G12: 100 | R12: Aug | S12: 27.44444444 | T12: 10.61111111 | U12: 32.86382979 | V12: 15.4 | W12: 0 | Y12: Aug | Z12: 27.21354839 | AA12: 9.664064516 | AB12: 0 | AC12: 20.4 | AD12: 0
R13: Sep | S13: 22.6 | T13: 7.7 | U13: 75.08723404 | V13: 15.8 | W13: -0.1455319149 | Y13: Sep | Z13: 20.76766667 | AA13: 4.386666667 | AB13: 4.5 | AC13: 15.4 | AD13: 7
R14: Oct | S14: 16.7 | T14: 4.1 | U14: 167.606383 | V14: 10.1 | W14: 2.250322186 | Y14: Oct | Z14: 14.9493871 | AA14: 2.401806452 | AB14: 16.7 | AC14: 9.06 | AD14: 10
R15: Nov | S15: 9.8 | T15: 1.9 | U15: 372.6851064 | V15: 3.9 | W15: 8.028513028 | Y15: Nov | Z15: 9.1326 | AA15: -0.2464666667 | AB15: 56.1 | AC15: 5.76 | AD15: 15
F16: Output details | H16: BasArea, avdbh | R16: Dec | S16: 8.111111111 | T16: 0.65 | U16: 386.6851064 | V16: 3.4 | W16: 12.31542755 | Y16: Dec | Z16: 5.041612903 | AA16: -2.922 | AB16: 97.6 | AC16: 3.08 | AD16: 28
G17: Output frequency : | H17: a | R17: Average | S17: =AVERAGE(S5:S16) -> 16.24722222 | T17: =AVERAGE(T5:T16) -> 4.753888889 | U17: =AVERAGE(U5:U16) -> 191.3189236 | V17: 11.075 | W17: 5.34284359 | Y17: Average | Z17: =AVERAGE(Z5:Z16) -> 14.54400853 | AA17: =AVERAGE(AA5:AA16) -> 2.259207002 | AB17: =AVERAGE(AB5:AB16) -> 50.3 | AC17: 13.48666667 | AD17: 11
R18: Total | U18: =SUM(U5:U16) -> 2295.827083 | V18: =V17*365 -> 4042.375 | W18: =SUM(W5:W16) -> 64.11412308 | Y18: Total | AB18: =SUM(AB5:AB16) -> 603.6 | AC18: =AC17*365 -> 4922.633333 | AD18: =SUM(AD5:AD16) -> 132
P21: Species & | Q21: LAI | R21: MAI | S21: Mean DBH | T21: Basal area | U21: GPP | V21: Penman transp. | W21: vigor
P22: Location | Q22: m2/m2 | R22: m3/ha/yr | S22: cm | T22: m2/ha | U22: Mg(DM)/ha/yr | V22: mm/yr | W22: g wood/m2 LA/yr
P23: DF Coast Range
P24: DF Central OR
P26: PP Coast Range
P27: PP Central OR
A36: #Output from 3PGpjs 2.7 / 3-PG vsn 1 Sep2009
A37: Stand development for Metolius River Oregon
A38: Douglas-fir Coast Range and Central OR | Q38: Tree vigor
A39: Year & month | B39: Stand age | C39: Stems | D39: Foliage DM | E39: Root DM | F39: Stem DM | G39: Stand volume | H39: LAI | I39: MAI | J39: Mean DBH | K39: Basal area | L39: GPP | M39: Penman transp. | Q39: g wood/m2 Leaf area/yr | S39: % mortality/yr
A40: 2000 - Jan | B40: 1 | C40: 300 | D40: 3 | E40: 3 | F40: 3 | G40: 6.365027996 | H40: 1.65 | I40: 6.365027996 | J40: 7.103975709 | K40: 1.189088206
A41: 2001 - Jan | B41: 2 | C41: 300 | D41: 3.133653627 | E41: 0.4633581245 | F41: 3.300128008 | G41: 6.991504125 | H41: 1.702113354 | I41: 3.495752062 | J41: 7.387562229 | K41: 1.285918489 | L41: 2.982254273 | M41: 429.9643253 | Q41: =1000*(F41-F40)/F41 -> 90.94435348 | S41: =100*(C40-C41)/C40 -> 0
A42: 2002 - Jan | B42: 3 | C42: 300 | D42: 3.295999841 | E42: 0.455376817 | F42: 3.816856906 | G42: 8.075045916 | H42: 1.796513415 | I42: 2.691681972 | J42: 7.842168381 | K42: 1.449050303 | L42: 5.091984183 | M42: 430.4984267 | Q42: 135.3807362 | S42: 0
A43: 2003 - Jan | B43: 4 | C43: 300 | D43: 3.425010326 | E43: 0.6140573896 | F43: 4.546145504 | G43: 9.605462093 | H43: 1.884800224 | I43: 2.401365523 | J43: 8.42578655 | K43: 1.672753865 | L43: 7.119166589 | M43: 430.9904666 | Q43: 160.4191062 | S43: 0
A44: 2004 - Jan | B44: 5 | C44: 300 | D44: 3.537794415 | E44: 0.773688215 | F44: 5.478913568 | G44: 11.56218237 | H44: 1.955920699 | I44: 2.312436475 | J44: 9.0967034 | K44: 1.949751241 | L44: 9.014952144 | M44: 431.3403061 | Q44: 170.2469025 | S44: 0
A45: 2005 - Jan | B45: 6 | C45: 300 | D45: 3.681980963 | E45: 0.9227536114 | F45: 6.604681115 | G45: 13.92196352 | H45: 2.03190308 | I45: 2.320327253 | J45: 9.822029856 | K45: 2.273074322 | L45: 10.77152655 | M45: 431.6657432 | Q45: 170.4499471 | S45: 0
A46: 2006 - Jan | B46: 7 | C46: 300 | D46: 3.88192094 | E46: 1.063530595 | F46: 7.916336178 | G46: 16.668913 | H46: 2.133227444 | I46: 2.381273286 | J46: 10.58030765 | K46: 2.637592677 | L46: 12.42744392 | M46: 432.0694673 | Q46: 165.6896617 | S46: 0
A47: 2007 - Jan | B47: 8 | C47: 300 | D47: 4.139523407 | E47: 1.199750778 | F47: 9.411593562 | G47: 19.79749158 | H47: 2.266276356 | I47: 2.474686447 | J47: 11.35912226 | K47: 3.040189704 | L47: 14.03337492 | M47: 432.5490906 | Q47: 158.873986 | S47: 0
A48: 2008 - Jan | B48: 9 | C48: 300 | D48: 4.447554127 | E48: 1.333844057 | F48: 11.09143692 | G48: 23.30916881 | H48: 2.429110002 | I48: 2.589907646 | J48: 12.15137402 | K48: 3.479059958 | L48: 15.62338593 | M48: 433.0432097 | Q48: 151.4540783 | S48: 0
A49: 2009 - Jan | B49: 10 | C49: 300 | D49: 4.796649932 | E49: 1.466659105 | F49: 12.9581143 | G49: 27.20816986 | H49: 2.617043707 | I49: 2.720816986 | J49: 12.95263273 | K49: 3.953003861 | L49: 17.21153974 | M49: 433.4857565 | Q49: 144.0547086 | S49: 0
A50: 2010 - Jan | B50: 11 | C50: 300 | D50: 5.177766968 | E50: 1.598041021 | F50: 15.01384689 | G50: 31.49874653 | H50: 2.82501524 | I50: 2.863522412 | J50: 13.75977251 | K50: 4.461014592 | L50: 18.79913005 | M50: 433.8348485 | Q50: 136.9224428 | S50: 0
A51: 2011 - Jan | B51: 12 | C51: 300 | D51: 5.582921627 | E51: 1.727443064 | F51: 17.26030643 | G51: 36.18407517 | H51: 3.048359129 | I51: 3.015339598 | J51: 14.57039322 | K51: 5.002115102 | L51: 20.38203613 | M51: 434.0828252 | Q51: 130.1517766 | S51: 0
A52: 2012 - Jan | B52: 13 | C52: 300 | D52: 6.005414796 | E52: 1.854345348 | F52: 19.6986005 | G52: 41.26622361 | H52: 3.283044575 | I52: 3.174324893 | J52: 15.38261138 | K52: 5.575338916 | L52: 21.95553657 | M52: 434.2546684 | Q52: 123.7800659 | S52: 0
A53: 2013 - Jan | B53: 14 | C53: 300 | D53: 6.439878745 | E53: 1.97847389 | F53: 22.32949501 | G53: 46.7466145 | H53: 3.52574815 | I53: 3.339043893 | J53: 16.19498485 | K53: 6.179768811 | L53: 23.51670139 | M53: 434.3992184 | Q53: 117.8214958 | S53: 0
A54: 2014 - Jan | B54: 15 | C54: 300 | D54: 6.882215602 | E54: 2.09986399 | F54: 25.15367606 | G54: 52.62656894 | H54: 3.773854545 | I54: 3.508437929 | J54: 17.00646292 | K54: 6.814580549 | L54: 25.06504481 | M54: 434.5770384 | Q54: 112.2770704 | S54: 0
A55: 2015 - Jan | B55: 16 | C55: 300 | D55: 7.294826158 | E55: 2.169913266 | F55: 28.11907128 | G55: 58.79714909 | H55: 4.015522569 | I55: 3.674821818 | J55: 17.80259237 | K55: 7.467541276 | L55: 26.13301794 | M55: 434.8426524 | Q55: 105.4585051 | S55: 0
A56: 2016 - Jan | B56: 17 | C56: 300 | D56: 7.627793143 | E56: 2.187011226 | F56: 31.13515959 | G56: 65.0693504 | H56: 4.219786331 | I56: 3.827608847 | J56: 18.56303865 | K56: 8.119125862 | L56: 26.41156147 | M56: 435.2142937 | Q56: 96.87081575 | S56: 0
A57: 2017 - Jan | B57: 18 | C57: 300 | D57: 7.892916848 | E57: 2.196232142 | F57: 34.19089343 | G57: 71.42057315 | H57: 4.383206116 | I57: 3.96780962 | J57: 19.29038013 | K57: 8.767841851 | L57: 26.60834607 | M57: 435.626556 | Q57: 89.37274034 | S57: 0
A58: 2018 - Jan | B58: 19 | C58: 300 | D58: 8.101289762 | E58: 2.207047247 | F58: 37.27805474 | G58: 77.83414479 | H58: 4.511904249 | I58: 4.096533936 | J58: 19.98725134 | K58: 9.412766463 | L58: 26.76303332 | M58: 437.2012833 | Q58: 82.81444216 | S58: 0
A59: 2019 - Jan | B59: 20 | C59: 300 | D59: 8.262632675 | E59: 2.214993885 | F59: 40.39049648 | G59: 84.29771722 | H59: 4.61215019 | I59: 4.214885861 | J59: 20.65618086 | K59: 10.053359 | L59: 26.87351336 | M59: 438.4300723 | Q59: 77.05876408 | S59: 0
A60: 2020 - Jan | B60: 21 | C60: 300 | D60: 8.385448438 | E60: 2.220653443 | F60: 43.5236553 | G60: 90.80223728 | H60: 4.688988396 | I60: 4.323916061 | J60: 21.29953001 | K60: 10.68934704 | L60: 26.95266127 | M60: 439.3739722 | Q60: 71.98749278 | S60: 0
A61: 2021 - Jan | B61: 22 | C61: 300 | D61: 8.476984734 | E61: 2.224662901 | F61: 46.67407632 | G61: 97.34094726 | H61: 4.74675864 | I61: 4.424588512 | J61: 21.919449 | K61: 11.32062493 | L61: 27.00922429 | M61: 440.0855881 | Q61: 67.49830458 | S61: 0
A62: 2022 - Jan | B62: 23 | C62: 300 | D62: 8.543389654 | E62: 2.227657631 | F62: 49.839219 | G62: 103.9089753 | H62: 4.789137299 | I62: 4.517781534 | J62: 22.51789406 | K62: 11.947215 | L62: 27.05063791 | M62: 440.6281242 | Q62: 63.50706818 | S62: 0
A63: 2023 - Jan | B63: 24 | C63: 300 | D63: 8.589745686 | E63: 2.229965982 | F63: 53.01712049 | G63: 110.5026304 | H63: 4.81920189 | I63: 4.604276267 | J63: 23.0966132 | K63: 12.56920295 | L63: 27.08116907 | M63: 441.0387785 | Q63: 59.94104271 | S63: 0
A64: 2024 - Jan | B64: 25 | C64: 300 | D64: 8.620088554 | E64: 2.231508542 | F64: 56.20603835 | G64: 117.118657 | H64: 4.839451515 | I64: 4.684746281 | J64: 23.65712939 | K64: 13.18667269 | L64: 27.1015623 | M64: 441.3170417 | Q64: 56.73621486 | S64: 0
A65: 2025 - Jan | B65: 26 | C65: 300 | D65: 8.63771419 | E65: 2.23244762 | F65: 59.40456142 | G65: 123.7544656 | H65: 4.85188904 | I65: 4.75978714 | J65: 24.20080328 | K65: 13.79973349 | L65: 27.11418206 | M65: 441.4897676 | Q65: 53.84305496 | S65: 0
A66: 2026 - Jan | B66: 27 | C66: 300 | D66: 8.645299516 | E66: 2.232919843 | F66: 62.61153371 | G66: 130.4079746 | H66: 4.858144517 | I66: 4.829924987 | J66: 24.72885195 | K66: 14.4085091 | L66: 27.12079615 | M66: 441.5788003 | Q66: 51.22015226 | S66: 0
A67: 2027 - Jan | B67: 28 | C67: 300 | D67: 8.645008956 | E67: 2.233029757 | F67: 65.82599873 | G67: 137.0774946 | H67: 4.859538142 | I67: 4.895624808 | J67: 25.24236638 | K67: 15.01313079 | L67: 27.12274458 | M67: 441.6018227 | Q67: 48.83275728 | S67: 0
A68: 2028 - Jan | B68: 29 | C68: 300 | D68: 8.638585899 | E68: 2.232857588 | F68: 69.04715788 | G68: 143.7616425 | H68: 4.857134828 | I68: 4.957298016 | J68: 25.74232687 | K68: 15.6137326 | L68: 27.12105541 | M68: 441.5730907 | Q68: 46.65158213 | S68: 0
A69: 2029 - Jan | B69: 30 | C69: 300 | D69: 8.627429873 | E69: 2.232465502 | F69: 72.27433898 | G69: 150.4592766 | H69: 4.851790548 | I69: 5.015309218 | J69: 26.22961675 | K69: 16.21044833 | L69: 27.11652555 | M69: 441.5040562 | Q69: 44.65182441 | S69: 0
A70: 2030 - Jan | B70: 31 | C70: 300 | D70: 8.612660825 | E70: 2.231902086 | F70: 75.50697194 | G70: 157.1694472 | H70: 4.84419111 | I70: 5.069982167 | J70: 26.70503417 | K70: 16.80340953 | L70: 27.10977793 | M70: 441.4038875 | Q70: 42.81237723 | S70: 0
A71: 2031 - Jan | B71: 32 | C71: 300 | D71: 8.595172203 | E71: 2.231205579 | F71: 78.74456993 | G71: 163.8913581 | H71: 4.83488428 | I71: 5.121604942 | J71: 27.16930235 | K71: 17.3927442 | L71: 27.1013028 | M71: 441.279901 | Q71: 41.11519046 | S71: 0
A72: 2032 - Jan | B72: 33 | C72: 300 | D72: 8.575674482 | E72: 2.230406235 | F72: 81.98671438 | G72: 170.6243366 | H72: 4.824306196 | I72: 5.170434442 | J72: 27.62307848 | K72: 17.97857602 | L72: 27.09148793 | M72: 441.1379147 | Q72: 39.54475389 | S72: 0
A73: 2033 - Jan | B73: 34 | C73: 300 | D73: 8.554730681 | E73: 2.229528077 | F73: 85.23304305 | G73: 177.3678092 | H73: 4.812802947 | I73: 5.21670027 | J73: 28.06696131 | K73: 18.56102381 | L73: 27.08064111 | M73: 440.9825379 | Q73: 38.08767772 | S73: 0
A74: 2034 - Jan | B74: 35 | C74: 300 | D74: 8.53278523 | E74: 2.228590224 | F74: 88.48324049 | G74: 184.1212832 | H74: 4.800648153 | I74: 5.260608092 | J74: 28.50149779 | K74: 19.14020138 | L74: 27.06900711 | M74: 440.817407 | Q74: 36.73235094 | S74: 0
A75: 2035 - Jan | B75: 36 | C75: 300 | D75: 8.510187367 | E75: 2.227607904 | F75: 91.7370302 | G75: 190.8843311 | H75: 4.788057215 | I75: 5.30234253 | J75: 28.92718884 | K75: 19.71621736 | L75: 27.05678074 | M75: 440.645376 | Q75: 35.46866185 | S75: 0
A76: 2036 - Jan | B76: 37 | C76: 300 | D76: 8.487246991 | E76: 2.226683966 | F76: 94.99423165 | G76: 197.6567101 | H76: 4.775207639 | I76: 5.342073246 | J76: 29.34450229 | K76: 20.28918638 | L76: 27.04480667 | M76: 440.4779782 | Q76: 34.28841304 | S76: 0
A77: 2037 - Jan | B77: 38 | C77: 300 | D77: 8.464200215 | E77: 2.225821375 | F77: 98.25468447 | G77: 204.4382054 | H77: 4.762247676 | I77: 5.379952773 | J77: 29.75386772 | K77: 20.85921651 | L77: 27.03311826 | M77: 440.3157293 | Q77: 33.18368828 | S77: 0
A78: 2038 - Jan | B78: 39 | C78: 300 | D78: 8.44119877 | E78: 2.224951579 | F78: 101.5181995 | G78: 211.2285291 | H78: 4.749283393 | I78: 5.416116131 | J78: 30.15567496 | K78: 21.42640172 | L78: 27.0212427 | M78: 440.1522515 | Q78: 32.14709353 | S78: 0
A79: 2039 - Jan | B79: 40 | C79: 300 | D79: 8.418357348 | E79: 2.224074103 | F79: 104.7846059 | G79: 218.0274188 | H79: 4.736386706 | I79: 5.450685471 | J79: 30.55028408 | K79: 21.99083106 | L79: 27.00924459 | M79: 439.9883779 | Q79: 31.17257853 | S79: 0
A80: 2040 - Jan | B80: 41 | C80: 300 | D80: 8.395761311 | E80: 2.223192231 | F80: 108.0537481 | G80: 224.8346328 | H80: 4.723611483 | I80: 5.483771533 | J80: 30.9380284 | K80: 22.55258891 | L80: 26.99717415 | M80: 439.8247204 | Q80: 30.25477824 | S80: 0
A81: 2041 - Jan | B81: 42 | C81: 300 | D81: 8.373472864 | E81: 2.222308756 | F81: 111.3254838 | G81: 231.6499458 | H81: 4.71099733 | I81: 5.5154749 | J81: 31.31921701 | K81: 23.11175517 | L81: 26.98506991 | M81: 439.6617156 | Q81: 29.38891984 | S81: 0
A82: 2042 - Jan | B82: 43 | C82: 300 | D82: 8.351535984 | E82: 2.221425831 | F82: 114.599682 | G82: 238.4731458 | H82: 4.69857261 | I82: 5.545887111 | J82: 31.69413716 | K82: 23.66840556 | L82: 26.97296098 | M82: 439.4996617 | Q82: 28.57074428 | S82: 0
A83: 2043 - Jan | B83: 44 | C83: 300 | D83: 8.329980353 | E83: 2.220545072 | F83: 117.8762213 | G83: 245.3040312 | H83: 4.686356858 | I83: 5.575091618 | J83: 32.06305622 | K83: 24.2226118 | L83: 26.96086888 | M83: 439.3387476 | Q83: 27.79643984 | S83: 0
A84: 2044 - Jan | B84: 45 | C84: 300 | D84: 8.308824499 | E84: 2.219667661 | F84: 121.1549885 | G84: 252.1424089 | H84: 4.674362702 | I84: 5.603164642 | J84: 32.42622348 | K84: 24.77444187 | L84: 26.94880893 | M84: 439.1790766 | Q84: 27.06258558 | S84: 0
A85: 2045 - Jan | B85: 46 | C85: 300 | D85: 8.288078287 | E85: 2.218794423 | F85: 124.4358777 | G85: 258.9880922 | H85: 4.662597404 | I85: 5.630175918 | J85: 32.78387182 | K85: 25.3239602 | L85: 26.93679149 | M85: 439.020685 | Q85: 26.36610314 | S85: 0
A86: 2046 - Jan | B86: 47 | C86: 300 | D86: 8.267744911 | E86: 2.217925902 | F86: 127.718789 | G86: 265.8408996 | H86: 4.651064071 | I86: 5.656189353 | J86: 33.13621907 | K86: 25.8712279 | L86: 26.92482289 | M86: 438.8635567 | Q86: 25.70421536 | S86: 0
A87: 2047 - Jan | B87: 48 | C87: 300 | D87: 8.247822465 | E87: 2.217062406 | F87: 131.0036277 | G87: 272.7006531 | H87: 4.639762628 | I87: 5.681263606 | J87: 33.4834693 | K87: 26.41630291 | L87: 26.91290624 | M87: 438.7076353 | Q87: 25.07441069 | S87: 0
A88: 2048 - Jan | B88: 49 | C88: 300 | D88: 8.228305189 | E88: 2.216204062 | F88: 134.290304 | G88: 279.5671777 | H88: 4.628690584 | I88: 5.705452607 | J88: 33.82581399 | K88: 26.95924025 | L88: 26.90104205 | M88: 438.5528332 | Q88: 24.47441252 | S88: 0
A89: 2049 - Jan | B89: 50 | C89: 300 | D89: 8.209184458 | E89: 2.215350846 | F89: 137.5787319 | G89: 286.4403006 | H89: 4.617843639 | I89: 5.728806012 | J89: 34.16343306 | K89: 27.5000921 | L89: 26.88922878 | M89: 438.3990393 | Q89: 23.9021526 | S89: 0
P190: =M190/30 -> 0

Sheet Doug fir vs Pond pine Ex 6a ANS
A2: Run type : | B2: SingleSite | E2: Stand initialisation and site factor data
A3: Site : | B3: Metolius River Oregon | F3: Year planted = | G3: 1999 | I3: Latitude = | J3: 44 | R3: A Oregon Coast Range | Y3: B. Central Oregon
A4: Species : | B4: Pond pine | F4: Month planted = | G4: Jan | I4: Fertility rating = | J4: 0.25 | R4: Climate data | S4: Tmax | T4: Tmin | U4: Rain | V4: Solar rad | W4: Frost days | Y4: C limate data | Z4: Tmax | AA4: Tmin | AB4: Rain | AC4: Solar rad | AD4: Frost days
B5: Doug fir | F5: Initial year = | G5: 1 | I5: Soil class = | J5: sl | R5: January | S5: 6.6 | T5: 0.43 | U5: 364.5270833 | V5: 4.2 | W5: 12.88192536 | Y5: January | Z5: 4.897322581 | AA5: -2.232903226 | AB5: 120 | AC5: 4 | AD5: 20
F6: Initial month = | G6: Jan | I6: Maximum ASW = | J6: 100 | R6: Feb | S6: 9.2 | T6: 0.8 | U6: 264.4425532 | V6: 4.8 | W6: 11.46160723 | Y6: Feb | Z6: 5.879103448 | AA6: -4.202931034 | AB6: 170.2 | AC6: 7.7 | AD6: 21
A7: Title : | B7: Douglas-fir Coast Range and Central OR | F7: End age = | G7: 50 | I7: Minimum ASW = | J7: 0 | R7: March | S7: 11.1 | T7: 1.4 | U7: 255.8148936 | V7: 7.3 | W7: 9.752933196 | Y7: March | Z7: 10.13901075 | AA7: -0.9282150538 | AB7: 39 | AC7: 13.06 | AD7: 14
F8: Initial WF = | G8: 3 | I8: Atmospheric CO2 = | J8: 360 | R8: April | S8: 14.5 | T8: 2.9 | U8: 170.4765957 | V8: 13.3 | W8: 6.52198066 | Y8: April | Z8: 12.9387 | AA8: 1.7519 | AB8: 55.8 | AC8: 15.62 | AD8: 9
F9: Initial WR = | G9: 3 | R9: may | S9: 18.8 | T9: 6.611111111 | U9: 122.8361702 | V9: 16.7 | W9: 1.046945779 | Y9: may | Z9: 13.98225806 | AA9: 3.083290323 | AB9: 34.2 | AC9: 19.42 | AD9: 7
F10: Initial WS = | G10: 3 | R10: June | S10: 22.88888889 | T10: 9.166666667 | U10: 66.11276596 | V10: 16.8 | W10: 0 | Y10: June | Z10: 21.35366667 | AA10: 6.163433333 | AB10: 8.9 | AC10: 23.78 | AD10: 1
F11: Initial stocking = | G11: 300 | R11: July | S11: 27.22222222 | T11: 10.77777778 | U11: 16.6893617 | V11: 21.2 | W11: 0 | Y11: July | Z11: 28.23322581 | AA11: 10.19183871 | AB11: 0.6 | AC11: 24.56 | AD11: 0
F12: Initial ASW = | G12: 100 | R12: Aug | S12: 27.44444444 | T12: 10.61111111 | U12: 32.86382979 | V12: 15.4 | W12: 0 | Y12: Aug | Z12: 27.21354839 | AA12: 9.664064516 | AB12: 0 | AC12: 20.4 | AD12: 0
R13: Sep | S13: 22.6 | T13: 7.7 | U13: 75.08723404 | V13: 15.8 | W13: -0.1455319149 | Y13: Sep | Z13: 20.76766667 | AA13: 4.386666667 | AB13: 4.5 | AC13: 15.4 | AD13: 7
R14: Oct | S14: 16.7 | T14: 4.1 | U14: 167.606383 | V14: 10.1 | W14: 2.250322186 | Y14: Oct | Z14: 14.9493871 | AA14: 2.401806452 | AB14: 16.7 | AC14: 9.06 | AD14: 10
R15: Nov | S15: 9.8 | T15: 1.9 | U15: 372.6851064 | V15: 3.9 | W15: 8.028513028 | Y15: Nov | Z15: 9.1326 | AA15: -0.2464666667 | AB15: 56.1 | AC15: 5.76 | AD15: 15
F16: Output details | H16: BasArea, avdbh | R16: Dec | S16: 8.111111111 | T16: 0.65 | U16: 386.6851064 | V16: 3.4 | W16: 12.31542755 | Y16: Dec | Z16: 5.041612903 | AA16: -2.922 | AB16: 97.6 | AC16: 3.08 | AD16: 28
G17: Output frequency : | H17: a | R17: Average | S17: =AVERAGE(S5:S16) -> 16.24722222 | T17: =AVERAGE(T5:T16) -> 4.753888889 | U17: =AVERAGE(U5:U16) -> 191.3189236 | V17: 11.075 | W17: 5.34284359 | Y17: Average | Z17: =AVERAGE(Z5:Z16) -> 14.54400853 | AA17: =AVERAGE(AA5:AA16) -> 2.259207002 | AB17: =AVERAGE(AB5:AB16) -> 50.3 | AC17: =AVERAGE(AC5:AC16) -> 13.48666667 | AD17: =AVERAGE(AD5:AD16) -> 11
R18: Total | U18: =SUM(U5:U16) -> 2295.827083 | V18: =V17*365 -> 4042.375 | W18: =SUM(W5:W16) -> 64.11412308 | Y18: Total | AB18: =SUM(AB5:AB16) -> 603.6 | AC18: =AC17*365 -> 4922.633333 | AD18: =SUM(AD5:AD16) -> 132
P21: Species & | Q21: LAI | R21: MAI | S21: Mean DBH | T21: Basal area | U21: GPP | V21: Penman transp. | W21: vigor
P22: Location | Q22: m2/m2 | R22: m3/ha/yr | S22: cm | T22: m2/ha | U22: Mg(DM)/ha/yr | V22: mm/yr | W22: g wood/m2 LA/yr
P23: DF Coast Range | Q23: 4.617843639 | R23: 5.728806012 | S23: 34.16343306 | T23: 27.5000921 | U23: 26.88922878 | V23: 438.3990393 | W23: 24
P24: DF Central OR | Q24: 2.676928363 | R24: 3.16173179 | S24: 26.76632383 | T24: 16.88062771 | U24: 14.69509294 | V24: 268.2105538 | W24: 23
P26: PP Coast Range | Q26: 2.025611319 | R26: 4.69388161 | S26: 44.76418465 | T26: 47.21418453 | U26: 21.69604491 | V26: 254.7549905 | W26: 24
P27: PP Central OR | Q27: 1.318892899 | R27: 3.246619346 | S27: 39.53891057 | T27: 36.8349881 | U27: 14.30753342 | V27: 149.1640367 | W27: 22
A36: #Output from 3PGpjs 2.7 / 3-PG vsn 1 Sep2009
A37: Stand development for Metolius River Oregon
A38: Douglas-fir Coast Range and Central OR | Q38: Tree vigor
A39: Year & month | B39: Stand age | C39: Stems | D39: Foliage DM | E39: Root DM | F39: Stem DM | G39: Stand volume | H39: LAI | I39: MAI | J39: Mean DBH | K39: Basal area | L39: GPP | M39: Penman transp. | Q39: g wood/m2 Leaf area/yr | S39: % mortality/yr
A40: 2000 - Jan | B40: 1 | C40: 300 | D40: 3 | E40: 3 | F40: 3 | G40: 6.375 | H40: 0.93 | I40: 6.375 | J40: 13.2938435 | K40: 4.164014754
A41: 2001 - Jan | B41: 2 | C41: 300 | D41: 3.139912756 | E41: 3.305937016 | F41: 3.34630256 | G41: 7.110892941 | H41: 0.958722801 | I41: 3.55544647 | J41: 13.7919272 | K41: 4.481888501 | L41: 3.209566571 | M41: 124.6790898 | Q41: =1000*(F41-F40)/F41 -> 103.4881198 | S41: =100*(C40-C41)/C40 -> 0
A42: 2002 - Jan | B42: 3 | C42: 300 | D42: 3.287578914 | E42: 4.0712315 | F42: 3.917021509 | G42: 8.323670706 | H42: 1.008920857 | I42: 2.774556902 | J42: 14.54293774 | K42: 4.983281557 | L42: 5.260468593 | M42: 131.0035394 | Q42: 145.7022758 | S42: 0
A43: 2003 - Jan | B43: 4 | C43: 300 | D43: 3.36281155 | E43: 5.14007953 | F43: 4.680461209 | G43: 9.945980068 | H43: 1.045506537 | I43: 2.486495017 | J43: 15.44152144 | K43: 5.618123913 | L43: 6.991489349 | M43: 135.9524082 | Q43: 163.1120666 | S43: 0
A44: 2004 - Jan | B44: 5 | C44: 300 | D44: 3.381942609 | E44: 6.37905384 | F44: 5.602628841 | G44: 11.90558629 | H44: 1.059686648 | I44: 2.381117258 | J44: 16.40542416 | K44: 6.341413355 | L44: 8.388367249 | M44: 137.9414754 | Q44: 164.5955245 | S44: 0
A45: 2005 - Jan | B45: 6 | C45: 300 | D45: 3.399188521 | E45: 7.689508898 | F45: 6.654009369 | G45: 14.13976991 | H45: 1.065343058 | I45: 2.356628318 | J45: 17.3834565 | K45: 7.120055954 | L45: 9.50149577 | M45: 138.5974801 | Q45: 158.0070705 | S45: 0
A46: 2006 - Jan | B46: 7 | C46: 300 | D46: 3.444733431 | E46: 9.014994997 | F46: 7.815710481 | G46: 16.60838477 | H46: 1.076053765 | I46: 2.372626396 | J46: 18.35128402 | K46: 7.934947358 | L46: 10.43461958 | M46: 139.7625858 | Q46: 148.6366614 | S46: 0
A47: 2007 - Jan | B47: 8 | C47: 300 | D47: 3.525356623 | E47: 10.33175181 | F47: 9.078827098 | G47: 19.29250758 | H47: 1.096997161 | I47: 2.411563448 | J47: 19.30068009 | K47: 8.777207407 | L47: 11.281763 | M47: 142.1881562 | Q47: 139.1277313 | S47: 0
A48: 2008 - Jan | B48: 9 | C48: 300 | D48: 3.638616603 | E48: 11.63465011 | F48: 10.44088463 | G48: 22.18687983 | H48: 1.1285144 | I48: 2.46520887 | J48: 20.23079109 | K48: 9.643548457 | L48: 12.10222347 | M48: 145.9479797 | Q48: 130.4542267 | S48: 0
A49: 2009 - Jan | B49: 10 | C49: 300 | D49: 3.780096465 | E49: 12.92731727 | F49: 11.90293273 | G49: 25.29373205 | H49: 1.169443822 | I49: 2.529373205 | J49: 21.14349277 | K49: 10.53330354 | L49: 12.9279193 | M49: 150.8948282 | Q49: 122.8309137 | S49: 0
A50: 2010 - Jan | B50: 11 | C50: 300 | D50: 3.945707814 | E50: 14.21674686 | F50: 13.46782613 | G50: 28.61913053 | H50: 1.218457063 | I50: 2.601739139 | J50: 22.04136688 | K50: 11.44690775 | L50: 13.77486441 | M50: 156.8509313 | Q50: 116.1949512 | S50: 0
A51: 2011 - Jan | B51: 12 | C51: 300 | D51: 4.132142664 | E51: 15.51065631 | F51: 15.13930133 | G51: 32.17101533 | H51: 1.274419557 | I51: 2.680917944 | J51: 22.9269195 | K51: 12.38518643 | L51: 14.65065798 | M51: 163.6614971 | Q51: 110.4063631 | S51: 0
A52: 2012 - Jan | B52: 13 | C52: 300 | D52: 4.336797178 | E52: 16.81627665 | F52: 16.92148622 | G52: 35.95815823 | H52: 1.336427897 | I52: 2.766012171 | J52: 23.80232237 | K52: 13.34903285 | L52: 15.55850077 | M52: 171.2017172 | Q52: 105.3208251 | S52: 0
A53: 2013 - Jan | B53: 14 | C53: 300 | D53: 4.557598354 | E53: 18.13984963 | F53: 18.81863258 | G53: 39.98959424 | H53: 1.40376644 | I53: 2.856399588 | J53: 24.66936125 | K53: 14.3392668 | L53: 16.49924086 | M53: 179.371715 | Q53: 100.812126 | S53: 0
A54: 2014 - Jan | B54: 15 | C54: 300 | D54: 4.792850253 | E54: 19.4864677 | F54: 20.83496389 | G54: 44.27429826 | H54: 1.475856534 | I54: 2.951619884 | J54: 25.52946056 | K54: 15.35657668 | L54: 17.47242129 | M54: 188.09006 | Q54: 96.77632818 | S54: 0
A55: 2015 - Jan | B55: 16 | C55: 300 | D55: 5.027791333 | E55: 20.8138685 | F55: 22.95357074 | G55: 48.77633782 | H55: 1.550151465 | I55: 3.048521114 | J55: 26.37560401 | K55: 16.3913968 | L55: 18.29504524 | M55: 197.1277671 | Q55: 92.29966345 | S55: 0
A56: 2016 - Jan | B56: 17 | C56: 300 | D56: 5.243193448 | E56: 22.05838209 | F56: 25.14324388 | G56: 53.42939325 | H56: 1.620314012 | I56: 3.142905485 | J56: 27.19731307 | K56: 17.42862546 | L56: 18.84715663 | M56: 205.6995548 | Q56: 87.08793313 | S56: 0
A57: 2017 - Jan | B57: 18 | C57: 300 | D57: 5.438870018 | E57: 23.21763321 | F57: 27.39640811 | G57: 58.21736724 | H57: 1.684292495 | I57: 3.23429818 | J57: 27.99468615 | K57: 18.46555401 | L57: 19.33447553 | M57: 213.4877297 | Q57: 82.24305258 | S57: 0
A58: 2018 - Jan | B58: 19 | C58: 300 | D58: 5.615094172 | E58: 24.29090696 | F58: 29.70601378 | G58: 63.12527929 | H58: 1.742116434 | I58: 3.322383121 | J58: 28.76807966 | K58: 19.49992233 | L58: 19.76207676 | M58: 220.503938 | Q58: 77.74875777 | S58: 0
A59: 2019 - Jan | B59: 20 | C59: 300 | D59: 5.772496558 | E59: 25.27892367 | F59: 32.06557656 | G59: 68.13935019 | H59: 1.793940566 | I59: 3.40696751 | J59: 29.51804095 | K59: 20.52986994 | L59: 20.13524168 | M59: 226.7741295 | Q59: 73.58554032 | S59: 0
A60: 2020 - Jan | B60: 21 | C60: 300 | D60: 5.911970667 | E60: 26.18359096 | F60: 34.46918664 | G60: 73.2470216 | H60: 1.840014038 | I60: 3.48795341 | J60: 30.24525302 | K60: 21.55388593 | L60: 20.45921536 | M60: 232.3346471 | Q60: 69.73213788 | S60: 0
A61: 2021 - Jan | B61: 22 | C61: 300 | D61: 6.034589754 | E61: 27.00775634 | F61: 36.91149654 | G61: 78.43693016 | H61: 1.880652771 | I61: 3.565315007 | J61: 30.95049014 | K61: 22.5707608 | L61: 20.73904282 | M61: 237.2288289 | Q61: 66.16664554 | S61: 0
A62: 2022 - Jan | B62: 23 | C62: 300 | D62: 6.141537049 | E62: 27.75497576 | F62: 39.38769499 | G62: 83.69885186 | H62: 1.916215831 | I62: 3.639080516 | J62: 31.63458303 | K62: 23.57954198 | L62: 20.97946717 | M62: 241.5041869 | Q62: 62.86731046 | S62: 0
A63: 2023 - Jan | B63: 24 | C63: 300 | D63: 6.234049348 | E63: 28.42930671 | F63: 41.89347231 | G63: 89.02362867 | H63: 1.947086017 | I63: 3.709317861 | J63: 32.29839188 | K63: 24.57949384 | L63: 21.18487383 | M63: 245.2101515 | Q63: 59.81307308 | S63: 0
A64: 2024 - Jan | B64: 25 | C64: 300 | D64: 6.313373051 | E64: 29.03513008 | F64: 44.42498162 | G64: 94.40308594 | H64: 1.97365449 | I64: 3.776123437 | J64: 32.94278613 | K64: 25.5700625 | L64: 21.3592674 | M64: 248.396337 | Q64: 56.98391333 | S64: 0
A65: 2025 - Jan | B65: 26 | C65: 300 | D65: 6.380731187 | E65: 29.57700138 | F65: 46.97879851 | G65: 99.82994683 | H65: 1.996309049 | I65: 3.839613339 | J65: 33.56862937 | K65: 26.55084542 | L65: 21.50627068 | M65: 251.1112572 | Q65: 54.3610516 | S65: 0
A66: 2026 - Jan | B66: 27 | C66: 300 | D66: 6.437299741 | E66: 30.05952997 | F66: 49.55188127 | G66: 105.2977477 | H66: 2.015425549 | I66: 3.899916581 | J66: 34.17676852 | K66: 27.52156525 | L66: 21.62913798 | M66: 253.4014183 | Q66: 51.9270449 | S66: 0
A67: 2027 - Jan | B67: 28 | C67: 300 | D67: 6.484191623 | E67: 30.48728387 | F67: 52.14153273 | G67: 110.8007571 | H67: 2.031361922 | I67: 3.957169895 | J67: 34.76802618 | K67: 28.48204762 | L67: 21.73077688 | M67: 255.3107163 | Q67: 49.66581008 | S67: 0
A68: 2028 - Jan | B68: 29 | C68: 300 | D68: 6.522446699 | E68: 30.86471682 | F68: 54.74536449 | G68: 116.3338995 | H68: 2.04445431 | I68: 4.011513777 | J68: 35.34319552 | K68: 29.43220248 | L68: 21.8137745 | M68: 256.8800736 | Q68: 47.5625979 | S68: 0
A69: 2029 - Jan | B69: 30 | C69: 300 | D69: 6.553026525 | E69: 31.19611453 | F69: 57.36126389 | G69: 121.8926858 | H69: 2.055014833 | I69: 4.063089526 | J69: 35.90303703 | K69: 30.37200833 | L69: 21.8804256 | M69: 258.1472583 | Q69: 45.60393591 | S69: 0
A70: 2030 - Jan | B70: 31 | C70: 300 | D70: 6.576812633 | E70: 31.48555679 | F70: 59.98736388 | G70: 127.4731482 | H70: 2.063330628 | I70: 4.11203704 | J70: 36.44827678 | K70: 31.30149906 | L70: 21.93276067 | M70: 259.1468393 | Q70: 43.77755272 | S70: 0
A71: 2031 - Jan | B71: 32 | C71: 300 | D71: 6.594607385 | E71: 31.73689265 | F71: 62.62201565 | G71: 133.0717833 | H71: 2.069663799 | I71: 4.158493227 | J71: 36.97960558 | K71: 32.220753 | L71: 21.97257298 | M71: 259.9102394 | Q71: 42.07229277 | S71: 0
A72: 2032 - Jan | B72: 33 | C72: 300 | D72: 6.60713665 | E72: 31.95372601 | F72: 65.2637641 | G72: 138.6854987 | H72: 2.074252051 | I72: 4.20259087 | J72: 37.49767907 | K72: 33.12988373 | L72: 22.00144398 | M72: 260.4658548 | Q72: 40.47802769 | S72: 0
A73: 2033 - Jan | B73: 34 | C73: 300 | D73: 6.61505369 | E73: 32.13940941 | F73: 67.91132574 | G73: 144.3115672 | H73: 2.07730976 | I73: 4.244457859 | J73: 38.00311826 | K73: 34.02903256 | L73: 22.02076663 | M73: 260.83922 | Q73: =1000*(F73-F72)/F73 -> 38.98556837 | S73: =100*(C72-C73)/C72 -> 0
A74: 2034 - Jan | B74: 35 | C74: 300 | D74: 6.618943796 | E74: 32.2970442 | F74: 70.56356899 | G74: 149.9475841 | H74: 2.079029349 | I74: 4.284216689 | J74: 38.49651046 | K74: 34.91836215 | L74: 22.03176672 | M74: 261.0531978 | Q74: 37.58658033 | S74: 0
A75: 2035 - Jan | B75: 36 | C75: 300 | D75: 6.619329313 | E75: 32.42948534 | F75: 73.21949669 | G75: 155.5914305 | H75: 2.079582818 | I75: 4.321984179 | J75: 38.97841054 | K75: 35.79805139 | L75: 22.035522 | M75: 261.1281835 | Q75: 36.27350388 | S75: 0
A76: 2036 - Jan | B76: 37 | C76: 300 | D76: 6.616674819 | E76: 32.5393498 | F76: 75.87823043 | G76: 161.2412397 | H76: 2.079123359 | I76: 4.357871342 | J76: 39.44934229 | K76: 36.66829106 | L76: 22.03297939 | M76: 261.0823114 | Q76: 35.03948002 | S76: 0
A77: 2037 - Jan | B77: 38 | C77: 300 | D77: 6.61139225 | E77: 32.62902728 | F77: 78.53899672 | G77: 166.895368 | H77: 2.077786977 | I77: 4.391983369 | J77: 39.90979985 | K77: 37.52928027 | L77: 22.02497027 | M77: 260.931659 | Q77: 33.87828216 | S77: 0
A78: 2038 - Jan | B78: 39 | C78: 300 | D78: 6.603845864 | E78: 32.70069261 | F78: 81.20111469 | G78: 172.5523687 | H78: 2.075694069 | I78: 4.424419711 | J78: 40.36024928 | K78: 38.3812236 | L78: 22.0122241 | M78: 260.6904433 | Q78: 32.78425405 | S78: 0
A79: 2039 - Jan | B79: 40 | C79: 300 | D79: 6.59435695 | E79: 32.75631902 | F79: 83.86398519 | G79: 178.2109685 | H79: 2.072950943 | I79: 4.455274213 | J79: 40.80113006 | K79: 39.22432871 | L79: 21.99538043 | M79: 260.3712053 | Q79: 31.75225325 | S79: 0
A80: 2040 - Jan | B80: 41 | C80: 300 | D80: 6.583208231 | E80: 32.79769189 | F80: 86.5270811 | G80: 183.8700473 | H80: 2.069651233 | I80: 4.484635301 | J80: 41.23285657 | K80: 40.05880436 | L80: 21.97499961 | M80: 259.9849837 | Q80: 30.77760027 | S80: 0
A81: 2041 - Jan | B81: 42 | C81: 300 | D81: 6.570647946 | E81: 32.82642257 | F81: 89.18993883 | G81: 189.52862 | H81: 2.06587723 | I81: 4.512586191 | J81: 41.65581955 | K81: 40.88485887 | L81: 21.95157214 | M81: 259.5414737 | Q81: 29.85603262 | S81: 0
A82: 2042 - Jan | B82: 43 | C82: 300 | D82: 6.55689359 | E82: 32.84396196 | F82: 91.85215066 | G82: 195.1858202 | H82: 2.061701096 | I82: 4.53920512 | J82: 42.07038756 | K82: 41.70269884 | L82: 21.92552701 | M82: 259.0491732 | Q82: 28.98366364 | S82: 0
A83: 2043 - Jan | B83: 44 | C83: 300 | D83: 6.542135317 | E83: 32.85161365 | F83: 94.51335813 | G83: 200.840886 | H83: 2.057185978 | I83: 4.564565592 | J83: 42.47690824 | K83: 42.51252817 | L83: 21.89723902 | M83: 258.5155155 | Q83: 28.15694546 | S83: 0
A84: 2044 - Jan | B84: 45 | C84: 300 | D84: 6.526539024 | E84: 32.85054647 | F84: 97.17324602 | G84: 206.4931478 | H84: 2.052387018 | I84: 4.588736618 | J84: 42.87570964 | K84: 43.31454718 | L84: 21.86703521 | M84: 257.9469892 | Q84: 27.37263591 | S84: 0
A85: 2045 - Jan | B85: 46 | C85: 300 | D85: 6.510249129 | E85: 32.84180642 | F85: 99.8315371 | G85: 212.1420163 | H85: 2.04735226 | I85: 4.611782964 | J85: 43.26710145 | K85: 44.10895206 | L85: 21.83520055 | M85: 257.3492459 | Q85: 26.62776877 | S85: 0
A86: 2046 - Jan | B86: 47 | C86: 300 | D86: 6.49339106 | E86: 32.82632782 | F86: 102.4879875 | G86: 217.7869735 | H86: 2.042123473 | I86: 4.633765394 | J86: 43.65137607 | K86: 44.89593434 | L86: 21.80198296 | M86: 256.7271976 | Q86: 25.91962718 | S86: 0
A87: 2047 - Jan | B87: 48 | C87: 300 | D87: 6.476073483 | E87: 32.80494374 | F87: 105.1423827 | G87: 223.4275632 | H87: 2.036736882 | I87: 4.654740899 | J87: 44.02880978 | K87: 45.67568057 | L87: 21.76759771 | M87: 256.0851024 | Q87: 25.24571983 | S87: 0
